Workbook

Sheet Toelichting PV NE6R (sep2013)
B2: Toelichting bij berekening Gewijzigde x-factoren, q-factoren en rekenvolumina NE5R (september 2013)
B5: Dit Excel-bestand bevat het model waarmee de x-factoren voor regionale netbeheerders elektriciteit voor de periode 2011-2013 worden berekend.
B6: De oorspronkelijke versie van dit bestand maakt onderdeel uit van het x/q/rv-besluit (herstel) voor de vijfde periode elektriciteit (NE5R) zoals dat gepubliceerd is op 27 augustus 2012 met kenmerk 104163.
B8: Op bovengenoemd bestand zijn aanpassingen gemaakt bij de berekening van de productiviteitsveranderingen 2006-2007, 2007-2008 en 2008-2009 ten behoeve van het methodebesluit regionale netbeheerders elektriciteit zesde reguleringsperiode: besluit van 26 september 2013 met kenmerk 103999/536.
B9: Deze aanpassingen hebben geen ander doel dan hierboven uiteengezet. De x-factoren in NE5R wijzigen hierdoor niet.
B10: Dit bestand is gepubliceerd op 2 oktober 2013 (kenmerk 103999/536) en is te vinden op de website van ACM.
B13: Legenda celkleuren
B15: Data en input
B17: Berekende waarde
B19: Waarde die zonder berekening wordt overgenomen uit een andere cel
B21: Berekende of overgenomen waarde en tevens resultaat
B23: Waarde of berekening die speciale aandacht vraagt (toelichting in opmerking)
B27: Toelichting bij aanpassingen (in september 2013) t.o.v. de versie van dit bestand van 27 augustus 2012
B29: In september 2013 zijn er diverse wijzigingen aangebracht aan de x-factorberekening voor NE5R, in verband met diverse datafouten.
B30: Eerder, in augustus 2012, is deze x-factorberekening al eens gewijzigd vastgesteld, nadat door de vernietiging van het methodbesluit NE5R een nieuw x-factorbesluit moest worden genomen.
B31: Ook toen zijn diverse datafouten hersteld in de berekening (zie hiervoor het blad "Aanpassing gegevens (aug2012)").
B33: Op het blad "Aanpassing gegevens (sep2013)" is een overzicht opgenomen van de datafouten die in deze versie hersteld zijn.
B34: De bladen waarin wijzigingen zijn aangebracht naar aanleiding van deze datafouten zijn weergegeven met een donkeroranje kleur.
B36: Naast het aanpassen van foutieve gegevens in de berekening, zijn diverse wijzigingen aangebracht in de berekening zelf.
B37: Deze wijzigingen dienen er toe de berekening van de jaarlijkse productiviteitsverandering zo goed als mogelijk representatief te maken voor toepassing in het x-factorbesluit voor de zesde periode (NE6R).
B38: Al deze wijzigingen in de berekeningen zijn uitgebreid toegelicht en gemotiveerd in het methodebesluit voor de zesde periode elektriciteit (kenmerk 103999).
B39: Voor de volledigheid worden onderstaand de belangrijkste aanpassing nog kort aangehaald.
B41: Aanpassing: Productiviteitsverandering exclusief inkoopkosten transport
B42: De inkoopkosten voor transport maakten onderdeel uit van de OPEX in NE5R. In NE6R is dat niet het geval. De OPEX is hiervoor geschoond.
B43: De aanpassingen zijn te vinden in de regels 23, 50, 81 en 111 van tabblad Kosten.
B45: Aanpassing: de Productiviteitsverandering wordt berekend met de geldende WACC
B46: De productiviteitsverandering wordt gemeten voor de ontwikkeling tussen 2006-2007, 2007-2008 en 2008-2009.
B47: Voor de ontwikkeling 2008-2009 worden de kapitaalkosten berekend met de voor dat jaar geldende WACC. Voor de jaren 2008 en 2009 is dit gelijk aan 5,5%.
B48: Voor de ontwikkeling 2006-2007 worden de kapitaalkosten berekend met de gemiddelde WACC die berekend is met de geldende WACC voor de jaren 2006 (6,6%) en 2007 (5,8%).
B49: Voor de ontwikkeling 2007-2008 worden de kapitaalkosten berekend met de gemiddelde WACC die berekend is met de geldende WACC voor de jaren 2007 (5,8%) en 2008 (5,5%).
B50: De gemaakte wijzigingen zijn als volgt:
B51: - Tabblad Kosten: aanpassing van formules en/of tekst in regels 28, 30 55, 58, 86, 89, 116 en 118. De regels 56, 59, 87 en 90 zijn toegevoegd.
B52: - Tabblad ORV Lokale Heffingen: de formules en/of tekst in regels 14, 16, 28, 31, 44, 47, 60 en 62 zijn aangepast. De regels 29, 32, 45 en 48 zijn toegevoegd.
B53: - Tabblad Productiviteit: de formule en/of tekst in regels 32 en 45 zijn aangepast. De regels 14, 15, 16, 18, 19 en 21 zijn toegevoegd.
B55: Productiviteitsverandering tussen 2007-2008 wordt berekend alsof er geen HS-overdracht was
B56: De productiviteitsverandering tussen 2007 en 2008 wordt berekend alsof de overdracht van de HS-netten niet heeft plaatsgevonden.
B57: Hiertoe worden veelal feitelijke gegevens gebruikt daar de feitelijke overdracht niet altijd per 1 januari 2008 heeft plaatsgevonden.
B58: Er moeten een aantal schattingen gemaakt worden omdat niet alle data voor handen zijn.
B59: DNWB is niet meegenomen bij deze productiviteitsverandering omdat er te veel schattingen gemaakt zouden moeten worden om de situatie zonder de overdracht na te bootsen. DNWB heeft immers als enige feitelijk per 1 januari 2008 de HS-netten overgedragen
B60: Hiertoe wijzigen de gestandaardiseerde economische kosten en de samengestelde output.
B61: De wijzigingen zijn te vinden in:
B62: - de nieuwe tabbladen "HS Enexis" en "HS Liander".
B63: - Tabblad Productiviteit: de formule en/of tekst in regel 45 is aangepast. De regels 19, 39 en 40 zijn toegevoegd.
B65: Overzicht X-factorbesluiten behorende bij methodebesluit regionale netbeheerders elektriciteit zesde reguleringsperiode: besluit van 26 september 2013 met kenmerk 103999/536
B67: X-factorbesluiten Elektriciteit | C67: Zaaknummer | D67: Kenmerk
B68: Cogas Infra & Beheer B.V. | C68: 13.0789.52 | D68: ACM/DE/2013/204370
B69: DELTA Netwerkbedrijf B.V. | C69: 13.0791.52 | D69: ACM/DE/2013/204372
B70: Endinet B.V. | C70: 13.0797.52 | D70: ACM/DE/2013/204377
B71: Enexis B.V. | C71: 13.0793.52 | D71: ACM/DE/2013/204374
B72: Liander N.V. | C72: 13.0795.52 | D72: ACM/DE/2013/204368
B73: N.V. RENDO | C73: 13.0799.52 | D73: ACM/DE/2013/204379
B74: Stedin Netbeheer B.V. | C74: 13.0801.52 | D74: ACM/DE/2013/204383
B75: Westland Infra Netbeheer B.V. | C75: 13.0803.52 | D75: ACM/DE/2013/204385

Sheet Aanpassing gegevens (sep2013)
B2: Aanpassing van gegevens in berekening x-factor (september 2013)
B4: Zoals aangegeven in de toelichting worden in dit bestand enkele gegevens gewijzigd.
B5: Dit betreft het herstellen van enkele foutieve gegevens die sinds de publicatie van het herstelbesluit (in augusts 2012) aan het licht zijn gekomen.
B6: Deze wijziging zijn additioneel op de reeds aangebrachte wijzigingen in het betreffende herstelbesluit van augustus 2012 waarin ook reeds diverse foutieve gegevens zijn aangepast (zie hiervoor blad "Aanpassing gegevens (aug2012)").
B8: Onderstaande aanpassingen van gegevens zijn nog niet eerder in het besluit voor de regionale netbeheerders elektriciteit voor de vijfde periode opgenomen.
B9: Het eventueel doorvoeren van deze aangepaste gegevens in het x-factorbesluit voor de vijfde periode is in dit bestand niet aan de orde,
B10: aangezien dit bestand op dit moment uitsluitend gebruikt wordt voor de berekening van de productiviteitsverandering t.b.v. het x-factorbesluit voor de zesde periode (NE6R).
B11: De beschrijvingen die hieronder zijn opgenomen dienen ter verduidelijking van de doorgevoerde wijzigingen.
B13: In onderstaande overzichten is steeds per reeks van foutieve gegevens een gedetailleerde uitweking gegeven van de aangepaste gegevens.
B14: De oorspronkelijke gegevens zijn steeds gebaseerd op de x-factorberekening die gepubliceerd is op 27 augustus 2012 (kenmerk 104163)
B15: In alle gevallen (m.u.v. volumes) betreft het gegevens in duizenden euro's, weergegeven in het prijspeil van het jaar waarop het bedrag ziet.
B17: De gemaakte wijzigingen in tabbladen en regels zijn weergegeven in de kleur donkeroranje. De doorwerking van deze wijzigingen zijn niet verder weergegeven.
B18: Kleur wijzigingen:
B21: Aanpassing gegevens: volumes kleinverbruik Enexis 2008 a.g.v. foutieve opgave
B23: Netbeheerder: | E23: NXIS
B24: Bron gegevens: | E24: Enexis heeft in 2013 n.a.v. vragen van ACM een hernieuwde opgave gedaan over de volumes van 2008 (Bron: e-mail Gerben de Jaeger 27 juni 2013 aan ACM). Het format van deze opgave is het 'nieuwe' format dus niet 1-op-1 vertaalbaar naar correcties op de oorspronkelijke set. Daarom is in de cel "gecorr. waarde" een berekening opgenomen (ter benadering van de waarde volgens de oude indeling). Voor de volledigheid zijn hieronder in een opmerking ook de gegevens opgenomen conform de nieuwe indeling.
B26: Aanpassing gegevens | C26: Jaar | E26: Oorspronkelijk | G26: Aanpassing | I26: Nieuw
B28: t/m 3*25A + alle 1-fase aansluitingen | C28: 2008 | E28: 2439693 | G28: -50700 | I28: =E28+G28 -> 2388993 | K28: Bron: e-mail Gerben de Jaeger 27 juni 2013 aan ACM
B29: > 3*25A t/m 3*35A | C29: 2008 | E29: 34237 | G29: 24871 | I29: =E29+G29 -> 59108 | K29: Bron: e-mail Gerben de Jaeger 27 juni 2013 aan ACM
B30: > 3*35A t/m 3*50A | C30: 2008 | E30: 13408 | G30: 9448 | I30: =E30+G30 -> 22856 | K30: Bron: e-mail Gerben de Jaeger 27 juni 2013 aan ACM
B31: > 3*50A t/m 3*63A | C31: 2008 | E31: 12225 | G31: 9033 | I31: =E31+G31 -> 21258 | K31: Bron: e-mail Gerben de Jaeger 27 juni 2013 aan ACM
B32: > 3*63A t/m 3*80A | C32: 2008 | E32: 7895 | G32: 7348 | I32: =E32+G32 -> 15243 | K32: Bron: e-mail Gerben de Jaeger 27 juni 2013 aan ACM
B36: Aanpassing gegevens: volumes en PAV en EAV Stedin
B38: Netbeheerder: | E38: STED
B39: Bron gegevens: | E39: Correctie volumes op basis van PRD 2009 STED NE-PRD(i)-10-01 DEFINITIEF JULI 2013 zonder koppelingen.xls.
B41: Aanpassing gegevens | C41: Jaar | E41: Oorspronkelijk | G41: Aanpassing | I41: Nieuw
B43: Transportdienst
B44: Afnemers HS (110-150 kV)
B45: Volumes huidig boekjaar - kW gecontracteerd per jaar | C45: 2009 | E45: 268263.8792 | G45: -6623.87918 | I45: =E45+G45 -> 261640
B46: Volumes huidig boekjaar - kW max per maand | C46: 2009 | E46: 2714118.624 | G46: 51617.37634 | I46: =E46+G46 -> 2765736
B48: Afnemers HS (110-150 kV) max 600 u/j
B49: Volumes huidig boekjaar - Vastrecht transportdienst | C49: 2009 | E49: 5.992166667 | G49: 0.007833333333 | I49: 6
B50: Volumes huidig boekjaar - kW gecontracteerd per jaar | C50: 2009 | E50: 26234.71336 | G50: -1952.713362 | I50: 24282
B51: Volumes huidig boekjaar - kW max per week | C51: 2009 | E51: 118160.5 | G51: 11024.125 | I51: 129184.625
B52: Volumes huidig boekjaar - kVArh blindvermogen | C52: 2009 | E52: 4504166.667 | G52: -537513.3333 | I52: 3966653.333
B54: Afnemers TS (25-50 kV)
B55: Volumes huidig boekjaar - Vastrecht transportdienst | C55: 2009 | E55: 65.5108587 | G55: -3.056311594 | I55: 62.4545471
B56: Volumes huidig boekjaar - kW gecontracteerd per jaar | C56: 2009 | E56: 669129.586 | G56: -112850.7677 | I56: 556278.8182
B57: Volumes huidig boekjaar - kW max per maand | C57: 2009 | E57: 5991881.859 | G57: -743433.1353 | I57: 5248448.724
B58: Volumes huidig boekjaar - kVArh blindvermogen | C58: 2009 | E58: 4085476.667 | G58: 15961906.67 | I58: 20047383.33
B60: Afnemers TS (25-50 kV) max 600 u/j
B61: Volumes huidig boekjaar - Vastrecht transportdienst | C61: 2009 | E61: 8.157576087 | G61: 2.842423913 | I61: 11
B62: Volumes huidig boekjaar - kW gecontracteerd per jaar | C62: 2009 | E62: 186411.874 | G62: 110485.9436 | I62: 296897.8176
B63: Volumes huidig boekjaar - kW max per week | C63: 2009 | E63: 803503.0508 | G63: 1308763.136 | I63: 2112266.186
B64: Volumes huidig boekjaar - kVArh blindvermogen | C64: 2009 | E64: -25968.33333 | G64: 254328.3333 | I64: 228360
B66: Afnemers Trafo HS+TS/MS
B67: Volumes huidig boekjaar - Vastrecht transportdienst | C67: 2009 | E67: 107.2583007 | G67: -0.2583043478 | I67: 106.9999964
B68: Volumes huidig boekjaar - kW gecontracteerd per jaar | C68: 2009 | E68: 411324.4206 | G68: -18345.87556 | I68: 392978.545
B69: Volumes huidig boekjaar - kW max per maand | C69: 2009 | E69: 3717480.775 | G69: -76710.22995 | I69: 3640770.545
B70: Volumes huidig boekjaar - kVArh blindvermogen | C70: 2009 | E70: 12443976.67 | G70: -110785 | I70: 12333191.67
B72: Afnemers Trafo HS+TS/MS max 600 u/j
B73: Volumes huidig boekjaar - Vastrecht transportdienst | C73: 2009 | E73: 1 | G73: 1 | I73: 2
B74: Volumes huidig boekjaar - kW gecontracteerd per jaar | C74: 2009 | E74: 4688.385556 | G74: 5376.705556 | I74: 10065.09111
B75: Volumes huidig boekjaar - kW max per week | C75: 2009 | E75: 113099.4462 | G75: 116438.7385 | I75: 229538.1846
B77: Afnemers MS (1-20kV) - Distributie
B78: Volumes huidig boekjaar - Vastrecht transportdienst | C78: 2009 | E78: 3039.519955 | G78: 8.298231293 | I78: 3047.818186
B79: Volumes huidig boekjaar - kW gecontracteerd | C79: 2009 | E79: 1804684.007 | G79: 59441.53933 | I79: 1864125.547
B80: Volumes huidig boekjaar - kW max per maand | C80: 2009 | E80: 13928738.94 | G80: 271416.4207 | I80: 14200155.37
B81: Volumes huidig boekjaar - kWh tarief normaal | C81: 2009 | E81: 4764709397 | G81: -41862531.46 | I81: 4722846865
B82: Volumes huidig boekjaar - kVArh blindvermogen | C82: 2009 | E82: 35145930 | G82: 22810035 | I82: 57955965
B84: Afnemers Trafo MS/LS
B85: Volumes huidig boekjaar - Vastrecht transportdienst | C85: 2009 | E85: 8848.499184 | G85: 26.22809524 | I85: 8874.727279
B86: Volumes huidig boekjaar - kW gecontracteerd | C86: 2009 | E86: 1144311.282 | G86: 7852.718391 | I86: 1152164
B87: Volumes huidig boekjaar - kW max per maand | C87: 2009 | E87: 7943134.717 | G87: 969.737931 | I87: 7944104.455
B88: Volumes huidig boekjaar - kWh tarief normaal | C88: 2009 | E88: 2301030969 | G88: -8297611.236 | I88: 2292733357
B89: Volumes huidig boekjaar - kVArh blindvermogen | C89: 2009 | E89: 14223686.67 | G89: 600671.6667 | I89: 14824358.33
B91: Afnemers LS
B92: Volumes huidig boekjaar - Vastrecht transportdienst | C92: 2009 | E92: 7000.546111 | G92: 131.9083333 | I92: 7132.454444
B93: Volumes huidig boekjaar - kW gecontracteerd | C93: 2009 | E93: 587392.2275 | G93: 10126.22973 | I93: 597518.4572
B94: Volumes huidig boekjaar - kWh tarief laag | C94: 2009 | E94: 363643496.9 | G94: 240203.75 | I94: 363883700.6
B95: Volumes huidig boekjaar - kWh tarief normaal | C95: 2009 | E95: 581694761.2 | G95: 4771364.062 | I95: 586466125.3
B96: Volumes huidig boekjaar - kVArh blindvermogen | C96: 2009 | E96: 9205931.667 | G96: -42076.66667 | I96: 9163855
B98: Kleinverbruikers (t/m 3*80 A op LS)
B99: Volumes huidig boekjaar - Vastrecht transportdienst t/m 1*6A LS geschakeld | C99: 2009 | E99: 569744.6481 | G99: 229.8518519 | I99: 569974.5
B100: Volumes huidig boekjaar - Vastrecht transportdienst t/m 3*80A op LS | C100: 2009 | E100: 1914290.914 | G100: 15874.26722 | I100: 1930165.182
B102: Kleinverbruikers (t/m 3*80 A op LS) cap. Tar. Per afnemerscategorie
B103: Volumes huidig boekjaar - > 3*63A t/m 3*80A | C103: 2009 | E103: 7636.466733 | G103: -183.9389078 | I103: 7452.527825
B104: Volumes huidig boekjaar - > 3*50A t/m 3*63A | C104: 2009 | E104: 13272.4295 | G104: -319.6918512 | I104: 12952.73765
B105: Volumes huidig boekjaar - > 3*35A t/m 3*50A | C105: 2009 | E105: 11512.24184 | G105: -277.2943645 | I105: 11234.94747
B106: Volumes huidig boekjaar - > 3*25A t/m 3*35A | C106: 2009 | E106: 34080.31352 | G106: -820.8895377 | I106: 33259.42398
B107: Volumes huidig boekjaar - t/m 3*25A + alle 1-fase aansluitingen1 | C107: 2009 | E107: 1862844.869 | G107: -6949.687411 | I107: 1855895.182
B108: Volumes huidig boekjaar - t/m 1*6A op het geschakeld net | C108: 2009 | E108: 565931.5446 | G108: 4042.965645 | I108: 569974.5102
B110: Periodieke aansluitvergoeding
B111: Volumes huidig boekjaar - t/m 1*6 A | C111: 2009 | E111: 562227.886 | G111: 7746.624257 | I111: 569974.5102
B112: Volumes huidig boekjaar - > 1*6A t/m 3*25A (voorheen < 3*25A) | C112: 2009 | E112: 1837320.644 | G112: 18574.53829 | I112: 1855895.182
B113: Volumes huidig boekjaar - > 3*25A t/m 3*80A (voorheen > 3*25A) | C113: 2009 | E113: 74156.3165 | G113: 113.6834989 | I113: 74270
B114: Volumes huidig boekjaar - > 3*25A t/m 3*80A (voorheen LS) | C114: 2009 | E114: 6045.130519 | G114: 107.5057947 | I114: 6152.636313
B115: Volumes huidig boekjaar - > 3*80A t/m 175 kVA | C115: 2009 | E115: 14040.83624 | G115: -4381.169574 | I115: 9659.666667
B116: Volumes huidig boekjaar - > 175kVA t/m 1750kVA | C116: 2009 | E116: 4662.826824 | G116: -834.0768236 | I116: 3828.75
B117: Volumes huidig boekjaar - > 1.750kVA t/m 3.000kVA | C117: 2009 | E117: 36.31323343 | G117: -0.6476708879 | I117: 35.66556254
B118: Volumes huidig boekjaar - > 3.000kVA t/m 10.000kVA | C118: 2009 | E118: 155.4660306 | G118: -2.772840989 | I118: 152.6931896
B119: Volumes huidig boekjaar - >3,0 MVA en t/m 10 MVA | C119: 2009 | E119: 105135.9929 | G119: -105135.9929 | I119: 0
B121: EAV t/m 25 meter
B122: Volumes huidig boekjaar - t/m 1*6 A | C122: 2009 | E122: 16870.13476 | G122: -449.2534812 | I122: 16420.88128
B123: Volumes huidig boekjaar - > 1*6A t/m 3*25A | C123: 2009 | E123: 33085.45556 | G123: -1063.245577 | I123: 32022.20998
B124: Volumes huidig boekjaar - > 3*25A t/m 3*35A | C124: 2009 | E124: 1196.971072 | G124: -40.65170542 | I124: 1156.319367
B125: Volumes huidig boekjaar - > 3*35A t/m 3*63A | C125: 2009 | E125: 1204.815562 | G125: -42.70874602 | I125: 1162.106816
B126: Volumes huidig boekjaar - > 3*63A t/m 3*80A | C126: 2009 | E126: 505.9587438 | G126: -18.00829648 | I126: 487.9504473
B127: Volumes huidig boekjaar - > 3*80A t/m 3*125A | C127: 2009 | E127: 214.9023217 | G127: -7.406683904 | I127: 207.4956378
B128: Volumes huidig boekjaar - > 3*125A t/m 175kVA | C128: 2009 | E128: 540.5129923 | G128: -19.32782833 | I128: 521.185164
B129: Volumes huidig boekjaar - > 175kVA t/m 630kVA | C129: 2009 | E129: 146.9182312 | G129: -4.935850926 | I129: 141.9823803
B130: Volumes huidig boekjaar - > 630kVA t/m 1.000kVA | C130: 2009 | E130: 24.43865318 | G130: -0.7829003633 | I130: 23.65575282
B131: Volumes huidig boekjaar - > 1.000kVA t/m 1.750kVA | C131: 2009 | E131: 67.49646248 | G131: -1.712630409 | I131: 65.78383208
B132: Volumes huidig boekjaar - > 1.750kVA t/m 3.000kVA | C132: 2009 | E132: 10.26046216 | G132: -0.387711835 | I132: 9.872750322
B133: Volumes huidig boekjaar - > 3.000kVA t/m 10.000kVA | C133: 2009 | E133: 17.96882108 | G133: -0.4998774742 | I133: 17.46894361
B135: EAV meerlengte
B136: Volumes huidig boekjaar - t/m 1*6 A | C136: 2009 | E136: 9172.688646 | G136: -289.8965421 | I136: =E136+G136 -> 8882.792104
B137: Volumes huidig boekjaar - > 1*6A t/m 3*25A | C137: 2009 | E137: 32266.73986 | G137: -1185.148161 | I137: 31081.5917
B138: Volumes huidig boekjaar - > 3*25A t/m 3*35A | C138: 2009 | E138: 7784.042171 | G138: -246.2729142 | I138: 7537.769257
B139: Volumes huidig boekjaar - > 3*35A t/m 3*63A | C139: 2009 | E139: 9151.171303 | G139: -310.357541 | I139: 8840.813762
B140: Volumes huidig boekjaar - > 3*63A t/m 3*80A | C140: 2009 | E140: 7496.316918 | G140: -259.354425 | I140: 7236.962493
B141: Volumes huidig boekjaar - > 3*80A t/m 3*125A | C141: 2009 | E141: 19641.1561 | G141: -651.1947849 | I141: 18989.96131
B142: Volumes huidig boekjaar - > 3*125A t/m 175kVA | C142: 2009 | E142: 54371.92603 | G142: -1944.884778 | I142: 52427.04125
B143: Volumes huidig boekjaar - > 175kVA t/m 630kVA | C143: 2009 | E143: 8897.00487 | G143: -321.9600575 | I143: 8575.044812
B144: Volumes huidig boekjaar - > 630kVA t/m 1.000kVA | C144: 2009 | E144: 833.3088468 | G144: -29.48696557 | I144: 803.8218813
B145: Volumes huidig boekjaar - > 1.000kVA t/m 1.750kVA | C145: 2009 | E145: 2116.317661 | G145: -67.06293832 | I145: 2049.254723
B146: Volumes huidig boekjaar - > 1.750kVA t/m 3.000kVA | C146: 2009 | E146: 10973.97427 | G146: -423.3332504 | I146: 10550.64102
B147: Volumes huidig boekjaar - > 3.000kVA t/m 10.000kVA | C147: 2009 | E147: 4433.579251 | G147: -81.0813144 | I147: 4352.497937
B150: Aanpassing gegevens operationele kosten i.v.m. correctie E-Laad en andere correcties a.g.v "Correctievraag 9"
B152: Netbeheerder: | E152: Cogas
B153: Bron gegevens: | E153: Opgegeven correcties in PRD-uitvraag CORR2009-2011 -> tabel 9 (toelichting) vraag 9 "correctie PRD 2009-2011" / Correctie E-laad
B155: Aanpassing gegevens | C155: Jaar | E155: Oorspronkelijk | G155: Aanpassing | I155: Nieuw
B156: OPEX - Kosten uitbesteed werk en andere externe kosten | C156: 2009 | E156: 2687 | G156: -10 | I156: =E156+G156 -> 2677
B159: Netbeheerder: | E159: Enexis
B160: Bron gegevens: | E160: Opgegeven correcties in PRD-uitvraag CORR2009-2011 -> tabel 9 (toelichting) vraag 9 "correctie PRD 2009-2011" / Correctie E-laad
E161: (Let op: in de Correctiefile is deze post in mindering gebracht op de regel "Kosten uitbesteed werk en andere externe kosten".
E162: Echter: omdat deze regel oorspronkelijk niet gevuld was, wordt de E-laad correctie in mindering gebracht op de Overige kosten; bedrag komt overeen).
B164: Aanpassing gegevens | C164: Jaar | E164: Oorspronkelijk | G164: Aanpassing | I164: Nieuw
B165: OPEX - Overige kosten | C165: 2009 | E165: 227402 | G165: -3000 | I165: =E165+G165 -> 224402
B168: Aanpassing gegevens operationele kosten Liander i.v.m. E-Laad en mutatie kostenallocatie
B169: Netbeheerder: | E169: Liander
B170: Bron gegevens: | E170: Opgegeven correcties in PRD-uitvraag CORR2009-2011 -> tabel 9 (toelichting) vraag 9 "correctie PRD 2009-2011" / Correctie E-laad en mutatie kostenallocatie
B172: Aanpassing gegevens | C172: Jaar | E172: Oorspronkelijk | G172: Aanpassing | I172: Nieuw
B173: OPEX - Kosten uitbesteed werk en andere externe kosten | C173: 2009 | E173: ='Aanpassing gegevens (aug2012)'!I38 -> 248981.4275 | G173: -919.345 | I173: =E173+G173 -> 248062.0825
B176: Aanpassing gegevens operationele kosten RENDO i.v.m. correctie meteropname en E-Laad
B177: Eerder (zie blad "Aanpassing gegevens (aug2012)") hebben we een correctie opgenomen bij RENDO voor de meteropname. Daar komt nu een extra correctie bovenop voor E-Laad.
B179: Netbeheerder: | E179: Rendo
B180: Bron gegevens: | E180: Opgegeven correcties in PRD-uitvraag CORR2009-2011 -> tabel 9 (toelichting) vraag 9 "correctie PRD 2009-2011" / Correctie E-laad en meteropname
E181: Ook: brief RENDO van 4 april 2012
B183: Aanpassing gegevens | C183: Jaar | E183: Oorspronkelijk | G183: Aanpassing | I183: Nieuw
B184: Het totaalbedrag aan correctie voor meteropname en E-Laad | C184: 2009 | G184: =-27861/1000 -> -27.861
B185: Eerder al verrekend i.v.m. meteropname | C185: 2009 | G185: ='Aanpassing gegevens (aug2012)'!G137 -> -19.2916
B186: OPEX - Overige kosten | C186: 2009 | E186: =567135.34/1000 -> 567.13534 | G186: =G184-G185 -> -8.5694 | I186: =E186+G186 -> 558.56594
B189: Aanpassing gegevens i.v.m. verbeterde inschatting inkoopkosten transport bij landelijke netbeheerder o.b.v. gerealiseerde volumes
B191: Netbeheerder: | E191: Liander
B192: Bron gegevens: | E192: Berekening van de "nacalculatie Inkoopkosten Transport 2008-2010", zoals opgenomen in het nog te nemen tarievenbesluit voor 2014.
B194: Aanpassing gegevens | C194: Jaar | E194: Oorspronkelijk | I194: Nieuw
B196: Inkoop transport bij landelijk netbeheerder | C196: 2008 | E196: 63030.674 | I196: =57030.134+15871.3144 -> 72901.4484
B197: Inkoop transport bij landelijk netbeheerder | C197: 2009 | E197: =75713.411*7/12+39423.478 -> 83589.63442 | I197: =75713.411+12926.2708583333-4318 -> 84321.68186
B200: Netbeheerder: | E200: Enexis
B201: Bron gegevens: | E201: Berekening van de "nacalculatie Inkoopkosten Transport 2008-2010", zoals opgenomen in het nog te nemen tarievenbesluit voor 2014.
B203: Aanpassing gegevens | C203: Jaar | E203: Oorspronkelijk | I203: Nieuw
B205: Inkoop transport bij landelijk netbeheerder | C205: 2008 | E205: 96125.589 | I205: =64584+21745.5552593467 -> 86329.55526
B208: Netbeheerder: | E208: Stedin
B209: Bron gegevens: | E209: E-mail Stedin aan ACM, 29 augustus 2013
B211: Aanpassing gegevens | C211: Jaar | E211: Oorspronkelijk | G211: Aanpassing | I211: Nieuw
B213: Inkoop transport bij landelijk netbeheerder | C213: 2008 | E213: 62812.68208 | G213: =-8556.335 -> -8556.335 | I213: =E213+G213 -> 54256.34708
B214: Inkoop transport bij landelijk netbeheerder | C214: 2009 | E214: 50878.99972 | G214: =-(477.793 + 655.993) -> -1133.786 | I214: =E214+G214 -> 49745.21372

Sheet Toel. Herstel NE5R (aug2012)
B2: Toelichting bij berekening Gewijzigde x-factoren, q-factoren en rekenvolumina NE5R (augustus 2012)
B4: Dit Excel-bestand bevat het model waarmee de x-factoren voor regionale netbeheerders elektriciteit voor de periode 2011 tot en met 2013 worden berekend.
B5: Dit bestand maakt onderdeel uit van het (gewijzigde) x/q/rv-besluit voor de vijfde periode voor regionale netbeheerders elektriciteit (besluiten van 27 augustus 2012 met kenmerk 104163).
B6: Dit bestand zoals dat nu tot stand is gekomen is volledig gebaseerd op de berekening voor de vaststelling van de gewijzigde X-factoren NE5R van 26 november 2010 (kenmerk 103637) behoudens de aanpassingen die onderstaand worden toegelicht.
B9: Legenda celkleuren
B11: Data en input
B13: Berekende waarde
B15: Waarde die zonder berekening wordt overgenomen uit een andere cel
B17: Berekende of overgenomen waarde en tevens resultaat
B19: Waarde of berekening die speciale aandacht vraagt (toelichting in opmerking)
B22: Toelichting bij aanpassingen t.o.v. oorspronkelijke versie bestand
B24: In het gewijzigde methodebesluit voor NE5R (besluit van 5 juni 2012, met kenmerk 104007) worden diverse aanpassingen beschreven, welke in dit bestand zijn opgenomen.
B25: Daarnaast herstelt de Raad in deze berekening enkele foutieve gegevens die sinds de publicatie van het oorspronkelijke besluit aan het licht zijn gekomen.
B26: De uitgebreide toelichting op deze aanpassingen is opgenomen in gewijzigde x/q/rv-besluit, de beschrijvingen hieronder zijn uitsluitend bedoeld ter verduidelijking van de doorgevoerde wijzigingen.
B28: De bladen waarin wijzigingen zijn aangebracht zijn weergegeven met een pastel-blauwe kleur.
B29: De bladen die geheel nieuw zijn, zijn weergegeven met een lavendel-kleur
B30: De bladen waarop geen wijziging is aangebracht hebben een grijze kleur
B31: Aangepast gegevens en berekeningen zijn aangegeven met een roze kleur (plus toelichting in opmerking)
B33: De aanpassingen gericht op de methode en het x/q/rv-besluit worden hieronder toegelicht:
B35: Eerste aanpassing: SO berekening bevat niet langer de output van invoeding
B36: Op het blad SO is de input op de regels 36 en 45 verwijderd.
B37: Deze aanpassing vloeit voort uit het gewijzigde methodebesluit NE5R.
B39: Tweede aanpassing: voor DNWB worden de kosten gerelateerd aan de AI (OPEX en CAPEX) voor zover deze in 2009 aanwezig waren buiten de maatstaf gehouden
B40: Op het blad Kosten zijn voor DNWB de kosten van 2009 aangepast (deze aanpassing wordt tevens inzichtlijk gemaakt op het blad Aanpassing gegevens) zodat deze geen onderdeel vormen van de maatstaf en uiteindelijk via de x-factor worden vergoed.
B41: Deze aanpassing vloeit voort uit het gewijzigde methodebesluit NE5R.
B43: Derde aanpassing: correctie voor enkele gegevens die onderliggend zijn aan de berekening van de x-factor
B44: Met onderhavig besluit corrigeert de Raad ten opzichte van de voorgaande x/q/rv-besluiten enkele foutieve gegevens. Dit betreffen:
B45: 1. Het verwijderen van uitgekeerde bedragen tegemoetkomingsregeling (Liander in het jaar 2009) die in de OPEX waren verwerkt, aangezien deze kosten via een correctie van de tarieven worden vergoed.
B46: 2. Het verwijderen van operationele kosten en kapitaalkosten die toerekenbaar zijn aan de meetdienst (Enexis en RENDO in de jaren 2006 t/m 2009).
B47: 3. Het salderen van inkomsten uit gefactureerd verbruik met de kosten voor inkoopkosten energie en vermogen (diverse netbeheerders in de jaren 2006 t/m 2009) voor zover dit niet reeds was gesaldeerd.
B48: De herstelde gegevens worden tevens inzichtlijk gemaakt op het blad Aanpassing gegevens in deze berekening.
B50: Vierde aanpassing: voor Westland wordt een alternatieve x-factor berekend als gevolg van het continueren van de financeability maatregel uit NE4R
B51: De berekening van de alternatieve x-factor voor Westland en de gegevens die hierbij betrokken zijn, zijn voor de duidelijkheid opgenomen op een afzonderlijk blad ("Berekening x-factor Westland").
B53: Aanpassing van de kapitaalkostenberekening
B54: Omdat enkele van de bovenstaande wijzigingen betrekking hebben op de bepaling van de hoogte van de GAW en afschrijvingen, zijn tevens aanpassingen doorgevoerd op de kapitaalkostenberekening.
B55: De gewijzigde kapitaalkostenberekening maakt eveneens onderdeel uit van het onderhavige gewijzigde x/q/rv-besluit voor de vijfde periode voor regionale netbeheerders elektriciteit.

Sheet Aanpassing gegevens (aug2012)
B2: Aanpassing van gegevens in berekening x-factor (augustus 2012)
B4: In onderstaande overzichten is steeds een gedetailleerde uitweking gegeven van de aangepaste gegevens.
B5: De oorspronkelijke gegevens zijn steeds gebaseerd op de x-factorberekening die gepubliceerd is op 26 november 2010 (kenmerk 103637)
B7: In alle gevallen betreft het gegevens in duizenden euro's, weergegeven in het prijspeil van het jaar waarop het bedrag ziet.
B10: Aanpassing gegevens: voor DNWB worden de kosten gerelateerd aan de AI (OPEX en CAPEX) voor zover deze in 2009 aanwezig waren buiten de maatstaf gehouden
B12: Netbeheerder: | E12: DNWB
B13: Bron gegevens: | E13: Vernieuwde Kapitaalkostensheet NE5R (eveneens tegelijkertijd met dit bestand gepubliceerd), productiviteitsdata 2009 en de beoordeling van het AI-voorstel van DNWB (kenmerk: 103377)
B15: Berekening waaruit aanpassing volgt
B17: Investeringsbedrag (totaal) | E17: 9962.9225 | K17: Bron: PRD 2009 DNWB
B18: Toegewezen OPEX percentage voor Inkoop E&V | E18: 0.05 | K18: Bron: onderzoek AI DNWB (kenmerk: 103377)
B19: Toegewezen OPEX percentage voor Overige OPEX | E19: 0.02 | K19: Bron: onderzoek AI DNWB (kenmerk: 103377)
B20: Toepassing op tweede helft 2009 | E20: 0.5
B23: Aanpassing gegevens | C23: Jaar | E23: Oorspronkelijk | G23: Aanpassing | I23: Nieuw
B25: OPEX: Inkoop Energie en Vermogen | C25: 2009 | E25: 9030.34664 | G25: =-1*$E$17*E18*$E$20 -> -249.0730625 | I25: =E25+G25 -> 8781.273577
B26: OPEX: Kosten uitbesteed werk en andere externe kosten | C26: 2009 | E26: 18579.88227 | G26: =-1*$E$17*E19*$E$20 -> -99.629225 | I26: =E26+G26 -> 18480.25304
B27: CAPEX: Eindstand GAW | C27: 2009 | E27: 239509.8794 | I27: 229660.5779 | K27: Bron: Vernieuwde Kapitaalkostensheet NE5R
B28: CAPEX: Afschrijvingen | C28: 2009 | E28: 11931.65287 | I28: 11818.03188 | K28: Bron: Vernieuwde Kapitaalkostensheet NE5R
B31: Aanpassing: verwijderen van uitgekeerde bedragen tegemoetkomingsregeling
B33: Netbeheerder: | E33: Liander
B34: Bron gegevens: | E34: Productiviteitsdata 2009
B36: Aanpassing gegevens | C36: Jaar | E36: Oorspronkelijk | G36: Aanpassing | I36: Nieuw
B38: OPEX: Kosten uitbesteed werk en andere externe kosten | C38: 2009 | E38: 258289.4275 | G38: -9308 | I38: =E38+G38 -> 248981.4275
B41: Aanpassing: saldering van inkomsten uit alsnog gefactureerd niet-gecontracteerd verbruik met kosten voor Inkoop Energie en Vermogen
B43: Netbeheerder: | E43: Cogas
B44: Bron gegevens: | E44: Reactie op dataverzoek NMa aan Cogas (kenmerk 103791) van 3 april 2012 en daarop volgende e-mailwisseling
B46: Aanpassing gegevens | C46: Jaar | E46: Oorspronkelijk | G46: Aanpassing | I46: Nieuw
B48: OPEX: Inkoop energie en vermogen | C48: 2006 | E48: 1004 | G48: -44.169 | I48: =E48+G48 -> 959.831
B49: OPEX: Inkoop energie en vermogen | C49: 2007 | E49: 1486 | G49: -22.415 | I49: =E49+G49 -> 1463.585
B50: OPEX: Inkoop energie en vermogen | C50: 2008 | E50: 1170 | G50: -19.331 | I50: =E50+G50 -> 1150.669
B51: OPEX: Inkoop energie en vermogen | C51: 2009 | E51: 1248 | G51: -40.475 | I51: =E51+G51 -> 1207.525
B54: Netbeheerder: | E54: DNWB
B55: Bron gegevens: | E55: Reactie (25 april 2012) op dataverzoek NMa aan DNWB (kenmerk 103791) van 3 april 2012 en daarop volgende e-mailwisseling
B57: Aanpassing gegevens | C57: Jaar | E57: Oorspronkelijk | G57: Aanpassing | I57: Nieuw
B59: OPEX: Inkoop energie en vermogen | C59: 2006 | E59: 5305.6487 | G59: -106.941 | I59: =E59+G59 -> 5198.7077
B60: OPEX: Inkoop energie en vermogen | C60: 2007 | E60: 5525.89738 | G60: -148.446 | I60: =E60+G60 -> 5377.45138
B61: OPEX: Inkoop energie en vermogen | C61: 2008 | E61: 7143.192683 | G61: -57.577 | I61: =E61+G61 -> 7085.615683
B62: OPEX: Inkoop energie en vermogen | C62: 2009 | E62: =I25 -> 8781.273577 | G62: -92.067 | I62: =E62+G62 -> 8689.206577
B65: Netbeheerder: | E65: Enexis
B66: Bron gegevens: | E66: Reactie op dataverzoek NMa aan Enexis (kenmerk 103791) van 21 maart 2012 en e-mail van Enexis op 4 juli 2012
B68: Aanpassing gegevens | C68: Jaar | E68: Oorspronkelijk | G68: Aanpassing | I68: Nieuw
B70: OPEX: Inkoop energie en vermogen | C70: 2009 | E70: 119329.0023 | G70: -6150.363 | I70: =E70+G70 -> 113178.6393
B73: Netbeheerder: | E73: Liander
B74: Bron gegevens: | E74: Reacties op dataverzoek NMa van 3 april 2012 aan Liander (kenmerk 103791): brieven van Liander van 9 mei 2012 en 26 juni 2012
B76: Aanpassing gegevens | C76: Jaar | E76: Oorspronkelijk | G76: Aanpassing | I76: Nieuw
B78: OPEX: Inkoop energie en vermogen | C78: 2006 | E78: 98632.867 | G78: -2776.658 | I78: =E78+G78 -> 95856.209
B79: OPEX: Inkoop energie en vermogen | C79: 2007 | E79: 115901.043 | G79: -890.767 | I79: =E79+G79 -> 115010.276
B80: OPEX: Inkoop energie en vermogen | C80: 2008 | E80: 118643.512 | G80: -1441.928 | I80: =E80+G80 -> 117201.584
B81: OPEX: Inkoop energie en vermogen | C81: 2009 | E81: 113788.4745 | G81: -1199.942 | I81: =E81+G81 -> 112588.5326
B84: Netbeheerder: | E84: Stedin
B85: Bron gegevens: | E85: Reacties op dataverzoek NMa van 3 april 2012 aan Stedin (kenmerk 103791): brieven van Stedin van 4 mei 2012 en 26 juni 2012
B87: Aanpassing gegevens | C87: Jaar | E87: Oorspronkelijk | G87: Aanpassing | I87: Nieuw
B89: OPEX: Inkoop energie en vermogen | C89: 2006 | E89: 64204.5298 | G89: -1021.825 | I89: =E89+G89 -> 63182.7048
B90: OPEX: Inkoop energie en vermogen | C90: 2007 | E90: 72814.662 | G90: -1399.871 | I90: =E90+G90 -> 71414.791
B91: OPEX: Inkoop energie en vermogen | C91: 2008 | E91: 80260.437 | G91: -1966.322 | I91: =E91+G91 -> 78294.115
B92: OPEX: Inkoop energie en vermogen | C92: 2009 | E92: 93964.298 | G92: -3072.254 | I92: =E92+G92 -> 90892.044
B95: Aanpassing: voor Enexis worden investeringen in software voor de meetdienst in 2007-2009 uit de kapitaalkostenberekening gehaald
B97: Netbeheerder: | E97: Enexis
B98: Bron gegevens: | E98: Brief Enexis aan Energiekamer NMa 21 mei 2012 (kenmerken: 103779/203.B495; 12-SRA-uit-18)
E99: en de vernieuwde Kapitaalkostensheet NE5R (eveneens tegelijkertijd met dit bestand gepubliceerd)
B101: Aanpassing gegevens | C101: Jaar | E101: Oorspronkelijk | I101: Nieuw
B103: CAPEX: Eindstand GAW | C103: 2007 | E103: 3340332.48 | I103: 3339750.054
B104: CAPEX: Afschrijvingen | C104: 2007 | E104: 159709.1533 | I104: 159644.4394
B105: CAPEX: Eindstand GAW | C105: 2008 | E105: 3055264.38 | I105: 3056069.58
B106: CAPEX: Afschrijvingen | C106: 2008 | E106: 150055.0584 | I106: 150064.5601
B107: CAPEX: Eindstand GAW | C107: 2009 | E107: 3190094.016 | I107: 3186788.219
B108: CAPEX: Afschrijvingen | C108: 2009 | E108: 157578.3199 | I108: 157290.5134
B111: Aanpassing: voor RENDO worden operationele kosten voor fysieke meteropname in 2006-2009 uit de OPEX gehaald
B113: Netbeheerder: | E113: RENDO
B114: Bron gegevens: | E114: Brief RENDO aan Energiekamer NMa 4 april 2012 (kenmerken: 103780_7/1.B1522; C&R/IS/APM/12-0878)
E115: en telefoonnotitie (18 juli 2012) over toewijzing aandeel kosten aan controle op zichtbare aspecten van fraude.
B117: Opgave verkeerd opgegeven kosten | C117: Jaar | G117: Bedrag
B119: Fysieke meteropname | C119: 2006 | G119: 41.347
B120: Fysieke meteropname | C120: 2007 | G120: 41.906
B121: Fysieke meteropname | C121: 2008 | G121: 17.568
B122: Fysieke meteropname | C122: 2009 | G122: 22.696
B124: Toe te wijzen aan kosten voor controle op zichtbare aspecten van fraude (transportdomein): | G124: 0.15
B125: Kosten 2006 toe te wijzen aan personeelskosten | G125: 0.46
B126: Kosten 2006 toe te wijzen aan uitbesteed werk en andere externe kosten | G126: 0.4
B127: Kosten 2006 toe te wijzen aan overige kosten | G127: 0.14
B130: Aanpassing gegevens | C130: Jaar | E130: Oorspronkelijk | G130: Aanpassing | I130: Nieuw
B132: OPEX: Personeelskosten | C132: 2006 | E132: 1541.149 | G132: =-G119*(1-$G$124)*G125 -> -16.166677 | I132: =E132+G132 -> 1524.982323
B133: OPEX: Kosten uitbesteed werk en andere externe kosten | C133: 2006 | E133: 563.23 | G133: =-G119*(1-$G$124)*G126 -> -14.05798 | I133: 549.17202
B134: OPEX: Overige kosten | C134: 2006 | E134: 523.786 | G134: =-G119*(1-$G$124)*G127 -> -4.920293 | I134: 518.865707
B135: OPEX: Kosten uitbesteed werk en andere externe kosten | C135: 2007 | E135: 854.7304611 | G135: =-G120*(1-$G$124) -> -35.6201 | I135: 819.1103611
B136: OPEX: Kosten uitbesteed werk en andere externe kosten | C136: 2008 | E136: 763.29 | G136: =-G121*(1-$G$124) -> -14.9328 | I136: 748.3572
B137: OPEX: Kosten uitbesteed werk en andere externe kosten | C137: 2009 | E137: 1030.161699 | G137: =-G122*(1-$G$124) -> -19.2916 | I137: 1010.870099

Sheet Berek. x-factor WEIN (aug2012)
B2: Berekening alternatieve x-factor Westland als gevolg van continueren financeability maatregel (augustus 2012)
B4: Inschatting ophoging inkomsten niveau voor 2010
B6: Berekening ophoging TI 2010
B7: TI-bedrag 2010 conform gecorrigeerde x-factor NE4R (= 0,3): | C7: €, prijspeil 2007 | E7: 34720276.05 | G7: Bron: Analyse in x-factorbesluit NE4R na herstel (kenmerk 103838)
B8: TI-bedrag 2010 conform niet-gecorrigeerde x-factor NE4R (= 5,9): | C8: €, prijspeil 2007 | E8: 29192182.46 | G8: Bron: Analyse in x-factorbesluit NE4R na herstel (kenmerk 103838)
B9: Ophoging van TI in 2010 op basis van financeability-maatregel voor Westland in NE4R | C9: €, prijspeil 2007 | E9: =E7-E8 -> 5528093.593
B11: Correctie voor inflatie
B12: CPI van 2007 naar 2010 | C12: % | E12: =CPIv2007n2010 -> 0.046482056
B13: Ophoging van TI in 2010 in NE4R (in prijspeil 2010) | C13: €, prijspeil 2010 | E13: =E9*(1+E12) -> 5785050.749
B16: Berekening alternatieve x-factor voor Westland als gevolg van continueren financeability maatregel
B18: Begininkomsten 2010 | C18: €, prijspeil 2010 | E18: ='x-factor'!L8 -> 39819577.28
B19: Eindinkomsten 2013 | C19: €, prijspeil 2010 | E19: =Eindinkomsten!L23 -> 34515697.75
B20: Eindinkomsten 2013 na ophoging | C20: €, prijspeil 2010 | E20: =E19+E13 -> 40300748.5
B21: Alternatieve X-factor NE5R (onafgerond) | E21: =100*(1-(E20/E18)^(1/3)) -> -0.401181227
B23: Alternatieve X-factor na afronding | E23: =ROUNDUP(E21, 1) -> -0.5

Sheet x-factor
B2: x-factor | E2: COGAS | F2: DNWB | G2: ENDINET | H2: ENEXIS | I2: LIANDER | J2: RENDO | K2: STEDIN | L2: WESTLAND | M2: TOTAAL
B4: Begininkomsten 2010
B6: Begininkomsten 2010 Transportdienst, PAV | C6: €, prijspeil 2010 | E6: =SUMPRODUCT(Wegingsfactoren!E154:E267, Rekenvolumes!E132:E245) -> 15467552.76 | F6: =SUMPRODUCT(Wegingsfactoren!F154:F267, Rekenvolumes!F132:F245) -> 56119586.14 | G6: =SUMPRODUCT(Wegingsfactoren!G154:G267, Rekenvolumes!G132:G245) -> 28037498.97 | H6: =SUMPRODUCT(Wegingsfactoren!H154:H267, Rekenvolumes!H132:H245) -> 743227758.6 | I6: =SUMPRODUCT(Wegingsfactoren!I154:I267, Rekenvolumes!I132:I245) -> 754070214.7 | J6: =SUMPRODUCT(Wegingsfactoren!J154:J267, Rekenvolumes!J132:J245) -> 9124201.492 | K6: =SUMPRODUCT(Wegingsfactoren!K154:K267, Rekenvolumes!K132:K245) -> 514524723.5 | L6: =SUMPRODUCT(Wegingsfactoren!L154:L267, Rekenvolumes!L132:L245) -> 36777973.8 | M6: =SUM(E6:L6) -> 2157349510
B7: Begininkomsten 2010 EAV | C7: €, prijspeil 2010 | E7: =SUMPRODUCT(Wegingsfactoren!E272:E283, Rekenvolumes!E250:E261) -> 949039.1531 | F7: =SUMPRODUCT(Wegingsfactoren!F272:F283, Rekenvolumes!F250:F261) -> 5204295.02 | G7: =SUMPRODUCT(Wegingsfactoren!G272:G283, Rekenvolumes!G250:G261) -> 1849675.7 | H7: =SUMPRODUCT(Wegingsfactoren!H272:H283, Rekenvolumes!H250:H261) -> 53353706.51 | I7: =SUMPRODUCT(Wegingsfactoren!I272:I283, Rekenvolumes!I250:I261) -> 49205376.83 | J7: =SUMPRODUCT(Wegingsfactoren!J272:J283, Rekenvolumes!J250:J261) -> 486627.41 | K7: =SUMPRODUCT(Wegingsfactoren!K272:K283, Rekenvolumes!K250:K261) -> 46117294.17 | L7: =SUMPRODUCT(Wegingsfactoren!L272:L283, Rekenvolumes!L250:L261) -> 3041603.481 | M7: =SUM(E7:L7) -> 160207618.3
B8: Begininkomsten 2010 Totaal | C8: €, prijspeil 2010 | E8: =SUM(E6:E7) -> 16416591.91 | F8: =SUM(F6:F7) -> 61323881.16 | G8: 29887174.67 | H8: 796581465.1 | I8: 803275591.5 | J8: 9610828.902 | K8: 560642017.6 | L8: 39819577.28 | M8: 2317557128
B10: Eindinkomsten 2013
B12: Eindinkomsten 2013 | C12: €, prijspeil 2010 | E12: =Eindinkomsten!E23 -> 16060719.92 | F12: =Eindinkomsten!F23 -> 61260412.87 | G12: =Eindinkomsten!G23 -> 30632783.03 | H12: =Eindinkomsten!H23 -> 815865781.4 | I12: =Eindinkomsten!I23 -> 831734940 | J12: =Eindinkomsten!J23 -> 10083987.36 | K12: =Eindinkomsten!K23 -> 602377005.3 | L12: =Eindinkomsten!L23 -> 34515697.75 | M12: =SUM(E12:L12) -> 2402531328
B14: x-factor vijfde reguleringsperiode
B16: x-factor onafgerond | E16: =100*(1-(E12/E8)^(1/3)) -> 0.7278711324 | F16: =100*(1-(F12/F8)^(1/3)) -> 0.03451086107 | G16: -0.8247601944 | H16: -0.8005357831 | I16: -1.167291991 | J16: -1.61484263 | K16: -2.422234713 | L16: 4.653079536 | M16: -1.207540349
B17: x-factor | E17: =IF(E16>0,ROUNDDOWN(E16,1),ROUNDUP(E16,1)) -> 0.7 | F17: =IF(F16>0,ROUNDDOWN(F16,1),ROUNDUP(F16,1)) -> 0 | G17: -0.9 | H17: -0.9 | I17: -1.2 | J17: -1.7 | K17: -2.5 | L17: ='Berek. x-factor WEIN (aug2012)'!E23 -> -0.5 | M17: =IF(M16>0,ROUNDDOWN(M16,1),ROUNDUP(M16,1)) -> -1.3

Sheet Eindinkomsten
B2: Eindinkomsten | E2: COGAS | F2: DNWB | G2: ENDINET | H2: ENEXIS | I2: LIANDER | J2: RENDO | K2: STEDIN | L2: WESTLAND | M2: TOTAAL
B5: Efficiënte kosten 2010
B7: PV2010-2013 | C7: % | D7: =Productiviteit!C49 -> -0.008394158508
B9: Kosten 2009 inclusief EAV | C9: €, prijspeil 2009 | E9: =1000*Kosten!E128 -> 12876863.5 | F9: =1000*Kosten!F128 -> 62120662.8 | G9: =1000*Kosten!G128 -> 22844056.62 | H9: =1000*Kosten!H128 -> 748286809.3 | I9: =1000*Kosten!I128 -> 811881802.5 | J9: =1000*Kosten!J128 -> 9636682.859 | K9: =1000*Kosten!K128 -> 614060067.9 | L9: =1000*Kosten!L128 -> 35978456.89
B10: ORV 2009 | C10: €, prijspeil 2009 | E10: =1000*'ORV Lokale Heffingen'!E62 -> 1018978.059 | F10: =1000*'ORV Lokale Heffingen'!F62 -> 494009.98 | G10: =1000*'ORV Lokale Heffingen'!G62 -> 0 | H10: =1000*'ORV Lokale Heffingen'!H62 -> 1738000 | I10: =1000*'ORV Lokale Heffingen'!I62 -> 13649306.75 | J10: =1000*'ORV Lokale Heffingen'!J62 -> 943315.4008 | K10: =1000*'ORV Lokale Heffingen'!K62 -> 15458974 | L10: =1000*'ORV Lokale Heffingen'!L62 -> 24340
B11: Kosten 2009 exclusief ORV | C11: €, prijspeil 2009 | E11: =E9-E10 -> 11857885.44 | F11: =F9-F10 -> 61626652.82 | G11: 22844056.62 | H11: 746548809.3 | I11: 798232495.7 | J11: 8693367.458 | K11: 598601093.9 | L11: 35954116.89 | M11: =SUM(E11:L11) -> 2284358478
B12: Efficiënte kosten 2010 | C12: €, prijspeil 2010 | D12: =M11*(1-D7+_CPI2010) -> 2310386821
B15: Eindinkomsten 2013
B17: Efficiënte kosten per output 2010 | D17: =D12/SO!M47 -> 0.9969060924
B18: Efficiënte kosten per output 2013 | D18: =D17*(1-$D$7)^3 -> 1.022221977
B20: Efficiente kosten 2013 | C20: €, prijspeil 2010 | E20: =$D$18*SO!E47 -> 15031956.89 | F20: =$D$18*SO!F47 -> 60764920.86 | G20: =$D$18*SO!G47 -> 30632783.03 | H20: =$D$18*SO!H47 -> 814122567.4 | I20: =$D$18*SO!I47 -> 818044685.3 | J20: =$D$18*SO!J47 -> 9097976.88 | K20: =$D$18*SO!K47 -> 586871654.3 | L20: =$D$18*SO!L47 -> 34491284.73 | M20: =SUM(E20:L20) -> 2369057829
B21: ORV 2013 | C21: €, prijspeil 2010 | E21: =1000*'ORV Lokale Heffingen'!E68 -> 1028763.028 | F21: =1000*'ORV Lokale Heffingen'!F68 -> 495492.0099 | G21: =1000*'ORV Lokale Heffingen'!G68 -> 0 | H21: =1000*'ORV Lokale Heffingen'!H68 -> 1743214 | I21: =1000*'ORV Lokale Heffingen'!I68 -> 13690254.67 | J21: =1000*'ORV Lokale Heffingen'!J68 -> 986010.4756 | K21: =1000*'ORV Lokale Heffingen'!K68 -> 15505350.92 | L21: =1000*'ORV Lokale Heffingen'!L68 -> 24413.02 | M21: =SUM(E21:L21) -> 33473498.12
B23: Eindinkomsten 2013 | C23: €, prijspeil 2010 | E23: =E20+E21 -> 16060719.92 | F23: =F20+F21 -> 61260412.87 | G23: =G20+G21 -> 30632783.03 | H23: =H20+H21 -> 815865781.4 | I23: 831734940 | J23: 10083987.36 | K23: 602377005.3 | L23: 34515697.75 | M23: 2402531328

Sheet Productiviteit
B2: Productiviteitsmeting | D2: COGAS | E2: DNWB | F2: ENDINET | G2: ENEXIS | H2: LIANDER | I2: RENDO | J2: STEDIN | K2: WESTLAND | L2: TOTAAL
B5: Kostendata
B6: Gestandaardiseerde Economische Kosten 2006 | C6: €, prijspeil 2006 | D6: =Kosten!E30*1000 -> 10961975.65 | E6: =Kosten!F30*1000 -> 46918851.16 | F6: =Kosten!G30*1000 -> 21497668.84 | G6: =Kosten!H30*1000 -> 751593717.9 | H6: =Kosten!I30*1000 -> 703845386.2 | I6: =Kosten!J30*1000 -> 8635624.224 | J6: =Kosten!K30*1000 -> 494769890.5 | K6: =Kosten!L30*1000 -> 27015271.97 | L6: =SUM(D6:K6) -> 2065238386
B7: ORV kosten lokale heffingen 2006 | C7: €, prijspeil 2006 | D7: =1000*'ORV Lokale Heffingen'!E16 -> 1131407.547 | E7: =1000*'ORV Lokale Heffingen'!F16 -> 460239 | F7: =1000*'ORV Lokale Heffingen'!G16 -> 0 | G7: =1000*'ORV Lokale Heffingen'!H16 -> 1772800 | H7: =1000*'ORV Lokale Heffingen'!I16 -> 12580818 | I7: =1000*'ORV Lokale Heffingen'!J16 -> 1039990.47 | J7: =1000*'ORV Lokale Heffingen'!K16 -> 14260108 | K7: =1000*'ORV Lokale Heffingen'!L16 -> 0 | L7: =SUM(D7:K7) -> 31245363.02
B8: Gestandaardiseerde Economische Kosten 2006 excl ORV | C8: €, prijspeil 2006 | D8: =D6-D7 -> 9830568.105 | E8: =E6-E7 -> 46458612.16 | F8: 21497668.84 | G8: 749820917.9 | H8: 691264568.2 | I8: 7595633.754 | J8: 480509782.5 | K8: 27015271.97 | L8: =SUM(D8:K8) -> 2033993023
B10: Gestandaardiseerde Economische Kosten 2007 | C10: €, prijspeil 2007 | D10: =Kosten!E58*1000 -> 11324524.87 | E10: =Kosten!F58*1000 -> 57377739.65 | F10: =Kosten!G58*1000 -> 22990204.14 | G10: =Kosten!H58*1000 -> 751866942.8 | H10: =Kosten!I58*1000 -> 715718034.7 | I10: =Kosten!J58*1000 -> 9316919.07 | J10: =Kosten!K58*1000 -> 523389265.8 | K10: =Kosten!L58*1000 -> 31366679.97 | L10: =SUM(D10:K10) -> 2123350311
B11: ORV kosten lokale heffingen 2007 | C11: €, prijspeil 2007 | D11: =1000*'ORV Lokale Heffingen'!E31 -> 1089288.972 | E11: =1000*'ORV Lokale Heffingen'!F31 -> 451936 | F11: =1000*'ORV Lokale Heffingen'!G31 -> 0 | G11: =1000*'ORV Lokale Heffingen'!H31 -> 1673000 | H11: =1000*'ORV Lokale Heffingen'!I31 -> 14310348.46 | I11: =1000*'ORV Lokale Heffingen'!J31 -> 1017192.339 | J11: =1000*'ORV Lokale Heffingen'!K31 -> 14323928 | K11: =1000*'ORV Lokale Heffingen'!L31 -> 25000 | L11: =SUM(D11:K11) -> 32890693.77
B12: Gestandaardiseerde Economische Kosten 2007 excl ORV | C12: €, prijspeil 2007 | D12: =D10-D11 -> 10235235.9 | E12: =E10-E11 -> 56925803.65 | F12: 22990204.14 | G12: 750193942.8 | H12: 701407686.3 | I12: 8299726.732 | J12: 509065337.8 | K12: 31341679.97 | L12: =SUM(D12:K12) -> 2090459617
B14: Gestandaardiseerde Economische Kosten 2007 voor PV 2007-2008 | C14: €, prijspeil 2007 | D14: =Kosten!E59*1000 -> 11052528.07 | E14: =Kosten!F59*1000 -> 56025010.06 | F14: =Kosten!G59*1000 -> 22417896.87 | G14: =Kosten!H59*1000 -> 733498317.5 | H14: =Kosten!I59*1000 -> 696440052.2 | I14: =Kosten!J59*1000 -> 9110244.38 | J14: =Kosten!K59*1000 -> 509891221.7 | K14: =Kosten!L59*1000 -> 30266133.52 | L14: =SUM(D14:K14) -> 2068701404
B15: ORV kosten lokale heffingen 2007 voor PV 2007-2008 | C15: €, prijspeil 2007 | D15: ='ORV Lokale Heffingen'!E32*1000 -> 1074134.446 | E15: ='ORV Lokale Heffingen'!F32*1000 -> 451936 | F15: ='ORV Lokale Heffingen'!G32*1000 -> 0 | G15: ='ORV Lokale Heffingen'!H32*1000 -> 1673000 | H15: ='ORV Lokale Heffingen'!I32*1000 -> 14310348.46 | I15: ='ORV Lokale Heffingen'!J32*1000 -> 980609.6005 | J15: ='ORV Lokale Heffingen'!K32*1000 -> 14323928 | K15: ='ORV Lokale Heffingen'!L32*1000 -> 25000 | L15: =SUM(D15:K15) -> 32838956.51
B16: Gestandaardiseerde Economische Kosten 2007 excl ORV voor PV 2007-2008 | C16: €, prijspeil 2007 | D16: =D14-D15 -> 9978393.62 | E16: =E14-E15 -> 55573074.06 | F16: 22417896.87 | G16: 731825317.5 | H16: 682129703.8 | I16: 8129634.779 | J16: 495567293.7 | K16: 30241133.52 | L16: =SUM(D16:K16) -> 2035862448
B18: Gestandaardiseerde Economische Kosten 2008 voor PV 2007-2008 | C18: €, prijspeil 2008 | D18: =Kosten!E90*1000 -> 11054289.38 | E18: =Kosten!F90*1000 -> 54079197.55 | F18: =Kosten!G90*1000 -> 20586019.12 | G18: =Kosten!H90*1000 -> 685553491.4 | H18: =Kosten!I90*1000 -> 659287286.5 | I18: =Kosten!J90*1000 -> 8656653.428 | J18: =Kosten!K90*1000 -> 539714200.7 | K18: =Kosten!L90*1000 -> 30183508.9 | L18: =SUM(D18:K18) -> 2009114647
B19: Wijziging: geen overdracht HS-netten bij Enexis en Liander in 2008 | C19: €, prijspeil 2008 | G19: ='HS Enexis '!C13 -> 80622909.96 | H19: ='HS Liander'!C13 -> 52445159.48
B20: ORV kosten lokale heffingen 2008 voor PV 2007-2008 | C20: €, prijspeil 2008 | D20: ='ORV Lokale Heffingen'!E48*1000 -> 1033486.333 | E20: ='ORV Lokale Heffingen'!F48*1000 -> 482726 | F20: ='ORV Lokale Heffingen'!G48*1000 -> 0 | G20: ='ORV Lokale Heffingen'!H48*1000 -> 1677000 | H20: ='ORV Lokale Heffingen'!I48*1000 -> 14012000 | I20: ='ORV Lokale Heffingen'!J48*1000 -> 956873.1576 | J20: ='ORV Lokale Heffingen'!K48*1000 -> 14761361 | K20: ='ORV Lokale Heffingen'!L48*1000 -> 13000 | L20: =SUM(D20:K20) -> 32936446.49
B21: Gestandaardiseerde Economische Kosten 2008 excl ORV voor PV 2007-2008 | C21: €, prijspeil 2008 | D21: =D18+D19-D20 -> 10020803.05 | E21: =E18+E19-E20 -> 53596471.55 | F21: 20586019.12 | G21: 764499401.4 | H21: 697720446 | I21: 7699780.27 | J21: 524952839.7 | K21: 30170508.9 | L21: =SUM(D21:K21) -> 2109246270
B23: Gestandaardiseerde Economische Kosten 2008 | C23: €, prijspeil 2008 | D23: =Kosten!E89*1000 -> 10980870.72 | E23: =Kosten!F89*1000 -> 53770983.03 | F23: =Kosten!G89*1000 -> 20431517.71 | G23: =Kosten!H89*1000 -> 680969387 | H23: =Kosten!I89*1000 -> 654591156.2 | I23: =Kosten!J89*1000 -> 8598785.01 | J23: =Kosten!K89*1000 -> 535954431.9 | K23: =Kosten!L89*1000 -> 29878827.39 | L23: =SUM(D23:K23) -> 1995175959
B24: ORV kosten lokale heffingen 2008 | C24: €, prijspeil 2008 | D24: =1000*'ORV Lokale Heffingen'!E47 -> 1030700.655 | E24: =1000*'ORV Lokale Heffingen'!F47 -> 482726 | F24: =1000*'ORV Lokale Heffingen'!G47 -> 0 | G24: =1000*'ORV Lokale Heffingen'!H47 -> 1677000 | H24: =1000*'ORV Lokale Heffingen'!I47 -> 14012000 | I24: =1000*'ORV Lokale Heffingen'!J47 -> 947703.2861 | J24: =1000*'ORV Lokale Heffingen'!K47 -> 14761361 | K24: =1000*'ORV Lokale Heffingen'!L47 -> 13000 | L24: =SUM(D24:K24) -> 32924490.94
B25: Gestandaardiseerde Economische Kosten 2008 excl ORV | C25: €, prijspeil 2008 | D25: =D23-D24 -> 9950170.063 | E25: =E23-E24 -> 53288257.03 | F25: 20431517.71 | G25: 679292387 | H25: 640579156.2 | I25: 7651081.724 | J25: 521193070.9 | K25: 29865827.39 | L25: =SUM(D25:K25) -> 1962251468
B27: Gestandaardiseerde Economische Kosten 2009 | C27: €, prijspeil 2009 | D27: =Kosten!E118*1000 -> 11879469.92 | E27: =Kosten!F118*1000 -> 56624922.36 | F27: =Kosten!G118*1000 -> 21094313.31 | G27: =Kosten!H118*1000 -> 692228504.7 | H27: =Kosten!I118*1000 -> 760943300 | I27: =Kosten!J118*1000 -> 9145578.669 | J27: =Kosten!K118*1000 -> 564998783 | K27: =Kosten!L118*1000 -> 32939906.91 | L27: =SUM(D27:K27) -> 2149854779
B28: ORV kosten lokale heffingen 2009 | C28: €, prijspeil 2009 | D28: =1000*'ORV Lokale Heffingen'!E62 -> 1018978.059 | E28: =1000*'ORV Lokale Heffingen'!F62 -> 494009.98 | F28: =1000*'ORV Lokale Heffingen'!G62 -> 0 | G28: =1000*'ORV Lokale Heffingen'!H62 -> 1738000 | H28: =1000*'ORV Lokale Heffingen'!I62 -> 13649306.75 | I28: =1000*'ORV Lokale Heffingen'!J62 -> 943315.4008 | J28: =1000*'ORV Lokale Heffingen'!K62 -> 15458974 | K28: =1000*'ORV Lokale Heffingen'!L62 -> 24340 | L28: =SUM(D28:K28) -> 33326924.19
B29: Gestandaardiseerde Economische Kosten 2009 excl ORV | C29: €, prijspeil 2009 | D29: =D27-D28 -> 10860491.86 | E29: =E27-E28 -> 56130912.38 | F29: 21094313.31 | G29: 690490504.7 | H29: 747293993.3 | I29: 8202263.268 | J29: 549539809 | K29: 32915566.91 | L29: =SUM(D29:K29) -> 2116527855
B31: Gestandaardiseerde Economische Kosten 2007 excl ORV | C31: €, prijspeil 2006 | D31: =D12/(1+_CPI2007) -> 10093921 | E31: 56139845.81 | F31: 22672785.15 | G31: 739836235.5 | H31: 691723556.5 | I31: 8185134.844 | J31: 502036822.3 | K31: 30908954.6 | L31: =SUM(D31:K31) -> 2061597256
B32: Gestandaardiseerde Economische Kosten 2008 excl ORV voor PV 2007-2008 | C32: €, prijspeil 2007 | D32: =D21/(1+_CPI2008) -> 9911773.536 | E32: 53013324.98 | F32: 20362036.71 | G32: 756181405.9 | H32: 690129026.7 | I32: 7616004.224 | J32: 519241186.7 | K32: 29842244.22 | L32: =SUM(D32:K32) -> 2086297003
B33: Gestandaardiseerde Economische Kosten 2009 excl ORV | C33: €, prijspeil 2008 | D33: =D29/(1+_CPI2009) -> 10523732.42 | E33: 54390418.97 | F33: 20440226.07 | G33: 669079946.5 | H33: 724122086.5 | I33: 7947929.524 | J33: 532499814.9 | K33: 31894929.17 | L33: =SUM(D33:K33) -> 2050899084
B35: Outputdata
B36: Samengestelde Output 2006 (transportdienst en PAV) | D36: =SO!E6+SO!E7 -> 13447416.49 | E36: =SO!F6+SO!F7 -> 64786131.41 | F36: =SO!G6+SO!G7 -> 27927517.47 | G36: =SO!H6+SO!H7 -> 727260932.5 | H36: =SO!I6+SO!I7 -> 750805571.3 | I36: =SO!J6+SO!J7 -> 8289173.542 | J36: =SO!K6+SO!K7 -> 529723856.4 | K36: =SO!L6+SO!L7 -> 30938435.83 | L36: =SUM(D36:K36) -> 2153179035
B37: Samengestelde Output 2007 (transportdienst en PAV) | D37: =SO!E15+SO!E16 -> 13621265.74 | E37: =SO!F15+SO!F16 -> 64829048.56 | F37: =SO!G15+SO!G16 -> 27570646.54 | G37: =SO!H15+SO!H16 -> 742892765.3 | H37: =SO!I15+SO!I16 -> 753258807.2 | I37: =SO!J15+SO!J16 -> 8206043.3 | J37: =SO!K15+SO!K16 -> 536225500.1 | K37: =SO!L15+SO!L16 -> 31831391.12 | L37: =SUM(D37:K37) -> 2178435468
B38: Samengestelde Output 2008 (transportdienst en PAV) | D38: =SO!E24+SO!E25 -> 13873389.3 | E38: =SO!F24+SO!F25 -> 52663386.79 | F38: =SO!G24+SO!G25 -> 28090143.34 | G38: =SO!H24+SO!H25 -> 733417500.6 | H38: =SO!I24+SO!I25 -> 751819999.8 | I38: =SO!J24+SO!J25 -> 8340859.289 | J38: =SO!K24+SO!K25 -> 534382130 | K38: =SO!L24+SO!L25 -> 31671850.61 | L38: =SUM(D38:K38) -> 2154259260
B39: Wijziging: geen overdracht HS-netten bij Enexis en Liander in 2008 | G39: ='HS Enexis '!C15 -> 17979251.48 | H39: ='HS Liander'!C15 -> 14288258.81 | L39: =SUM(D39:K39) -> 32267510.29
B40: Samengestelde Output 2008 (transportdienst en PAV) incl. overgedragen HS-netten voor PV 2007-2008 | D40: =D38+D39 -> 13873389.3 | E40: =E38+E39 -> 52663386.79 | F40: 28090143.34 | G40: 751396752 | H40: 766108258.6 | I40: 8340859.289 | J40: 534382130 | K40: 31671850.61 | L40: 2186526770
B41: Samengestelde Output 2009 (transportdienst en PAV) | D41: =SO!E33+SO!E34 -> 13844262.87 | E41: =SO!F33+SO!F34 -> 54258486.22 | F41: =SO!G33+SO!G34 -> 28183387.18 | G41: =SO!H33+SO!H34 -> 739251147.4 | H41: =SO!I33+SO!I34 -> 754401492.1 | I41: =SO!J33+SO!J34 -> 8459529.334 | J41: =SO!K33+SO!K34 -> 527982340.8 | K41: =SO!L33+SO!L34 -> 30968863.96 | L41: =SUM(D41:K41) -> 2157349510
B43: Productiviteitsverandering gestandaardiseerde kosten
B44: PV 2006-2007 | D44: =(D8/D36-D31/D37)/(D8/D36) -> -0.01368419573 | E44: -0.2075840913 | F44: -0.06831391579 | G44: 0.03407773716 | H44: 0.002595008956 | I44: -0.08852711227 | J44: -0.03213239043 | K44: -0.1120330806 | L44: -0.001820263291
B45: PV 2007-2008 | D45: =(D16/D37-D32/D40)/(D16/D37) -> 0.02472827863 | F45: =(F16/F37-F32/F40)/(F16/F37) -> 0.1085041122 | G45: -0.02158705184 | H45: 0.005242077349 | I45: 0.07832215056 | J45: -0.05138562256 | K45: 0.008219436299 | L45: =((L16-E16)/(L37-E37)-(L32-E32)/(L40-E40))/((L16-E16)/(L37-E37)) -> -0.01701375232
B46: PV 2008-2009 | D46: =(D25/D38-D33/D41)/(D25/D38) -> -0.05986860927 | E46: 0.009323180968 | F46: 0.002883656346 | G46: 0.02280659449 | H46: -0.1265496239 | I46: -0.02422591591 | J46: -0.03407813992 | K46: -0.09218261015 | L46: -0.04367933964
B49: PV gestandaardiseerde kosten 2006-2009 | C49: -0.008394158508
B51: (linkerdeel formule) | C51: =(1-C49)+(1-C49)^2+(1-C49)^3 -> 3.05064739
B52: (rechterdeel formule) | C52: =(1-L44)+(1-L44)*(1-L45)+(1-L44)*(1-L45)*(1-L46) -> 3.084053583
B53: (verschil) | C53: =C52-C51 -> 0.03340619315

Sheet HS Enexis
B2: Wijzigingen in Gestandaardiseerde Economische Kosten 2008 en Samengestelde output ten behoeve van Productiviteitsverandering 2007-2008
B4: In deze sheet worden de wijzigingen in de gestandaardiseerde economische kosten voor het jaar 2008 en Samengestelde output berekend. De wijzigingen worden per onderdeel uitgewerkt.
B5: De wijzigingen betreffen het scenario dat de HS-netten van Enexis niet zouden worden overgedragen aan TenneT en zijn alleen relevant voor de productiviteitsverandering 2007-2008.
B6: Het neerwaartse effect op de inkoopkosten transport wordt niet meegenomen, omdat deze kosten niet worden meegenomen in de berekening van de productiviteitsverandering.
B8: De wijzigingen zijn als volgt:
B10: CAPEX HS-netten 2008 voor PV 2007-2008 | C10: =C26 -> 31216509.96
B11: OPEX HS-netten excl. inkoopkosten transport 2008 | C11: =C43 -> 49406400
B13: Wijziging Gestandaardiseerde Economische Kosten 2008 voor PV 2007-2008 excl. inkoop transport | C13: =C10+C11 -> 80622909.96
B15: Wijziging Samengestelde output 2008 | C15: =C55 -> 17979251.48
B17: CAPEX HS-netten 2008 Enexis
B19: De CAPEX voor HS-netten voor het jaar 2008 is berekend op basis van de data ten behoeve van de GAW en afschrijvingen tot en met het jaar 2007 uit NE5R en de mutatie in het jaar 2008 bij TenneT.
B21: Bron: verschillende codataverzoeken.
B23: Eindstand GAW 2008 (prijspeil 2008): | C23: 309316575.2
B24: Afschrijvingen 2008 (prijspeil 2008): | C24: 13740123.46
B25: Gemiddelde WACC 2007-2008 voor PV 2007-2008 | C25: =AVERAGE(WACC2007,WACC2008) -> 0.0565
B26: CAPEX HS-netten 2008 voor PV 2007-2008 | C26: =C23*C25+C24 -> 31216509.96
B28: OPEX HS-netten excl. inkoopkosten transport 2008 Enexis
B30: De OPEX voor HS-netten (excl. inkoopkosten transport bij TenneT) voor het jaar 2008 is berekend op basis van de opgave van Enexis.
B31: De opgave van Enexis betreft de opgave januari t/m oktober 2008. Deze bedragen worden herschaald voor het hele jaar 2008.
B33: Bron: specifiek dataverzoek HS-netten
B35: Door netbeheerder gerapporteerde HS-kosten:
B36: Onderhouds- en exploitatiekosten transportnetten
B37: Overige kosten
B38: Inkoop E&V transporttaak: netverliezen | C38: 19259000
B39: Inkoop E&V transporttaak: blindvermogen | C39: 1025000
B40: Overige personeelskosten
B41: Overige bedrijfskosten | C41: 20888000
B42: Totale OPEX (excl. inkoopkosten transport) t/m oktober 2008 | C42: =SUM(C36:C41) -> 41172000
B43: Totale OPEX (excl. inkoopkosten transport) 2008 | C43: =C42*12/10 -> 49406400
B45: Samengestelde output HS-net zonder overdracht
B47: De Samengestelde output op de HS-netten wordt op de normale wijze berekend: vermenigvuldiging van wegingsfactoren en volumes.
B49: Enexis heeft geen volumes opgegeven in de PRD 2008. Wel is het totaalbedrag opgegeven.
B50: Op basis van de verhoudingen in de volumes 2007 (Bron: PRD 2007) en gehanteerde tarieven 2008 (Bron: PRD 2008) worden de volumes 2008 geschat.
B51: De wegingsfactor 2010 uit NE5R wordt gebruikt. Deze worden niet aangepast.
B53: Overgedragen omzet HS januari t/m oktober 2008 | C53: 16394000
B54: Schatting overgedragen omzet HS 2008 | C54: =C53*12/10 -> 19672800
B55: Samengestelde output overgedragen HS/netten 2008 | C55: =SUMPRODUCT(F60:F71,G60:G71) -> 17979251.48
B57: Bron: PRD 2007 en PRD 2008.
B59: Afnemers HS (110-150 kV) | D59: Tarieven 2008 | E59: Volumes 2007 | F59: Volumes 2008 | G59: Wegingsfactor 2010 NE5R
C60: Vastrecht transportdienst | D60: 2760 | E60: =Volumes!H141 -> 20 | F60: =($C$54/SUMPRODUCT($D$60:$D$71,$E$60:$E$71))*E60 -> 22.96009956 | G60: =Wegingsfactoren!D291 -> 2760
C61: kW gecontracteerd per jaar | D61: 8.72 | E61: =Volumes!H142 -> 887205 | F61: =($C$54/SUMPRODUCT($D$60:$D$71,$E$60:$E$71))*E61 -> 1018515.756 | G61: =Wegingsfactoren!D292 -> 8.456532336
C62: kW max per maand | D62: 0.94 | E62: =Volumes!H143 -> 7488084 | F62: 8596357.707 | G62: =Wegingsfactoren!D293 -> 0.8444706513
C63: kVArh blindvermogen | D63: 0.006 | E63: =Volumes!H144 -> 68527627 | F63: 78670056.92 | G63: =Wegingsfactoren!D294 -> 0
B67: Afnemers HS (110-150 kV) maximaal 600 uur p/jr | E67: Volumes 2007 | F67: Volumes 2008
C68: Vastrecht transportdienst | D68: 2760 | E68: =Volumes!H147 -> 23 | F68: =($C$54/SUMPRODUCT($D$60:$D$71,$E$60:$E$71))*E68 -> 26.40411449 | G68: =Wegingsfactoren!D297 -> 2760
C69: kW gecontracteerd per jaar | D69: 4.36 | E69: =Volumes!H148 -> 217408 | F69: 249585.4662 | G69: =Wegingsfactoren!D298 -> 4.253467177
C70: kW max per week | D70: 0.33 | E70: =Volumes!H149 -> 2264640 | F70: 2599817.993 | G70: =Wegingsfactoren!D299 -> 0.2895552773
C71: kVArh blindvermogen | D71: 0.006 | E71: =Volumes!H150 -> 22701443 | F71: 26061369.57 | G71: =Wegingsfactoren!D300 -> 0.00599079884

Sheet HS Liander
B2: Wijzigingen in Gestandaardiseerde Economische Kosten 2008 en Samengestelde output ten behoeve van Productiviteitsverandering 2007-2008
B4: In deze sheet worden de wijzigingen in de gestandaardiseerde economische kosten voor het jaar 2008 en Samengestelde output berekend. De wijzigingen worden per onderdeel uitgewerkt.
B5: De wijzigingen betreffen het scenario dat de HS-netten van Liander niet zouden worden overgedragen aan TenneT en zijn alleen relevant voor de productiviteitsverandering 2007-2008.
B6: Het neerwaartse effect op de inkoopkosten transport wordt niet meegenomen, omdat deze kosten niet worden meegenomen in de berekening van de productiviteitsverandering.
B8: De wijzigingen zijn als volgt:
B10: CAPEX HS-netten 2008 voor PV 2007-2008 | C10: =C26 -> 35126159.48
B11: OPEX HS-netten excl. inkoopkosten transport 2008 | C11: =C41 -> 17319000
B13: Wijziging Gestandaardiseerde Economische Kosten 2008 voor PV 2007-2008 excl. inkoop transport | C13: =C10+C11 -> 52445159.48
B15: Wijziging Samengestelde output 2008 | C15: =C52 -> 14288258.81
B17: CAPEX HS-netten 2008 Liander
B19: De CAPEX voor HS-netten voor het jaar 2008 is berekend op basis van de data ten behoeve van de GAW en afschrijvingen tot en met het jaar 2007 uit NE5R en de mutatie in het jaar 2008 bij TenneT.
B21: Bron: verschillende codataverzoeken.
B23: Eindstand GAW 2008 (prijspeil 2008): | C23: 364373939.3
B24: Afschrijvingen 2008 (prijspeil 2008): | C24: 14539031.91
B25: Gemiddelde WACC 2007-2008 voor PV 2007-2008 | C25: =AVERAGE(WACC2007,WACC2008) -> 0.0565
B26: CAPEX HS-netten 2008 voor PV 2007-2008 | C26: =C23*C25+C24 -> 35126159.48
B28: OPEX HS-netten excl. inkoopkosten transport 2008 Liander
B30: De OPEX voor HS-netten (excl. inkoopkosten transport bij de TenneT) voor het jaar 2008 is berekend op basis van de opgave van Liander.
B32: Bron: specifiek dataverzoek HS-netten
B34: Door netbeheerder gerapporteerde HS-kosten:
B35: Onderhouds- en exploitatiekosten transportnetten | C35: 7061000
B36: Overige kosten | C36: 2269000
B37: Inkoop E&V transporttaak: netverliezen | C37: 5621000
B38: Inkoop E&V transporttaak: blindvermogen | C38: 1200000
B39: Overige personeelskosten | C39: 1168000
B40: Overige bedrijfskosten
B41: Totaal | C41: =SUM(C35:C40) -> 17319000
B43: Samengestelde output HS-net zonder overdracht
B45: De Samengestelde output op de HS-netten wordt op de normale wijze berekend: vermenigvuldiging van wegingsfactoren en volumes.
B47: Liander heeft geen volumes opgegeven in de PRD 2008. Wel is het totaalbedrag opgegeven.
B48: Op basis van de verhoudingen in de volumes 2007 (Bron: PRD 2007) en gehanteerde tarieven 2008 (Bron: PRD 2008) worden de volumes 2008 geschat.
B49: De wegingsfactor 2010 uit NE5R wordt gebruikt. Deze worden niet aangepast.
B51: Overgedragen omzet HS het hele jaar 2008 | C51: 12046000 | D51: Bron: PRD 2008
B52: Samengestelde output overgedragen HS/netten 2008 | C52: =SUMPRODUCT(F55:F66,G55:G66) -> 14288258.81
B54: Afnemers HS (110-150 kV) | D54: Tarieven 2008 | E54: Volumes 2007 | F54: Volumes 2008 | G54: Wegingsfactor 2010 NE5R
C55: Vastrecht transportdienst | D55: 2760 | E55: =Volumes!I141 -> 20.23762846 | F55: =($C$51/SUMPRODUCT($D$55:$D$66,$E$55:$E$66))*E55 -> 20.92008487 | G55: =Wegingsfactoren!D291 -> 2760
C56: kW gecontracteerd per jaar | D56: 7.44 | E56: =Volumes!I142 -> 752748.9059 | F56: =($C$51/SUMPRODUCT($D$55:$D$66,$E$55:$E$66))*E56 -> 778133.2198 | G56: =Wegingsfactoren!D292 -> 8.456532336
C57: kW max per maand | D57: 0.68 | E57: =Volumes!I143 -> 7904807.586 | F57: =($C$51/SUMPRODUCT($D$55:$D$66,$E$55:$E$66))*E57 -> 8171374.718 | G57: =Wegingsfactoren!D293 -> 0.8444706513
C58: kVArh blindvermogen | D58: 0 | E58: =Volumes!I144 -> 0 | F58: =($C$51/SUMPRODUCT($D$55:$D$66,$E$55:$E$66))*E58 -> 0 | G58: =Wegingsfactoren!D294 -> 0
B62: Afnemers HS (110-150 kV) maximaal 600 uur p/jr | E62: Volumes 2007 | F62: Volumes 2008
C63: Vastrecht transportdienst | D63: 2760 | E63: =Volumes!I147 -> 12 | F63: =($C$51/SUMPRODUCT($D$55:$D$66,$E$55:$E$66))*E63 -> 12.40466584 | G63: =Wegingsfactoren!D297 -> 2760
C64: kW gecontracteerd per jaar | D64: 3.72 | E64: =Volumes!I148 -> 75310.91667 | F64: =($C$51/SUMPRODUCT($D$55:$D$66,$E$55:$E$66))*E64 -> 77850.56293 | G64: =Wegingsfactoren!D298 -> 4.253467177
C65: kW max per week | D65: 0.24 | E65: =Volumes!I149 -> 1284087.917 | F65: =($C$51/SUMPRODUCT($D$55:$D$66,$E$55:$E$66))*E65 -> 1327390.126 | G65: =Wegingsfactoren!D299 -> 0.2895552773
C66: kVArh blindvermogen | D66: 0 | E66: =Volumes!I150 -> 0 | F66: =($C$51/SUMPRODUCT($D$55:$D$66,$E$55:$E$66))*E66 -> 0 | G66: =Wegingsfactoren!D300 -> 0.00599079884

Sheet Kosten
B2: Gestandaardiseerde Economische Kosten | E2: COGAS | F2: DNWB | G2: ENDINET | H2: ENEXIS | I2: LIANDER | J2: RENDO | K2: STEDIN | L2: WESTLAND | M2: TOTAAL
B6: Kosten 2006 t.b.v. productiviteit (exclusief EAV)
B8: OPEX
B9: Inkoop transport bij hoger en/of naastgelegen netbeheerder | C9: € '000 | E9: 3085 | F9: 4967.8254 | G9: 6895.10648 | H9: 48162 | I9: 43166.399 | J9: 2018.972 | K9: 65280.029 | L9: 8483.20618 | M9: =SUM(E9:L9) -> 182058.5381
B10: Inkoop energie en vermogen | C10: € '000 | E10: ='Aanpassing gegevens (aug2012)'!I48 -> 959.831 | F10: ='Aanpassing gegevens (aug2012)'!I59 -> 5198.7077 | G10: 4575.36135 | H10: 126599 | I10: ='Aanpassing gegevens (aug2012)'!I78 -> 95856.209 | J10: 549.841 | K10: ='Aanpassing gegevens (aug2012)'!I89 -> 63182.7048 | L10: 3150.61282 | M10: 300072.2677
B11: Overige inkoopkosten voor de gereguleerde activiteiten ex artikel 16 | C11: € '000 | E11: 0 | F11: 12.039 | G11: 0 | H11: 0 | I11: 0 | J11: 0 | K11: 302.37 | L11: 432 | M11: 746.409
B12: totaal van inkopen | C12: € '000 | E12: =SUM(E9:E11) -> 4044.831 | F12: =SUM(F9:F11) -> 10178.5721 | G12: 11470.46783 | H12: 174761 | I12: 139022.608 | J12: 2568.813 | K12: 128765.1038 | L12: 12065.819 | M12: 482877.2147
B13: Personeelskosten | C13: € '000 | E13: 54 | F13: 1799.060732 | G13: 2206.64005 | H13: 0 | I13: 8510.189321 | J13: ='Aanpassing gegevens (aug2012)'!I132 -> 1524.982323 | K13: 70086.91199 | L13: 0 | M13: 84181.78442
B14: Kosten uitbesteed werk en andere externe kosten | C14: € '000 | E14: 3475 | F14: 12549.98533 | G14: 396.12009 | H14: 0 | I14: 227554.2972 | J14: ='Aanpassing gegevens (aug2012)'!I133 -> 549.17202 | K14: 46356.27583 | L14: 0 | M14: 290880.8505
B15: Bijzondere waardeverminderingen | C15: € '000 | E15: 0 | F15: 0 | G15: 0 | H15: 0 | I15: 0 | J15: 0 | K15: 0 | L15: 0 | M15: 0
B16: Kosten wettelijke reserve inzake art 16 O&O-kosten | C16: € '000 | E16: 0 | F16: 0 | G16: 0 | H16: 0 | I16: 0 | J16: 0 | K16: 0 | L16: 0 | M16: 0
B17: Gedoogbelasting | C17: € '000 | E17: 1 | F17: 0 | G17: 0 | H17: 1772.8 | I17: 0 | J17: 0 | K17: 20.167 | L17: 0 | M17: =SUM(E17:L17) -> 1793.967
B18: Precario | C18: € '000 | E18: 0 | F18: 460.239 | G18: 0 | H18: 0 | I18: 12580.818 | J18: 0 | K18: 14239.941 | L18: 0 | M18: 27280.998
B19: Overige kosten | C19: € '000 | E19: 101 | F19: 543.4415844 | G19: 2059.353191 | H19: 265024 | I19: 6947.50885 | J19: ='Aanpassing gegevens (aug2012)'!I134 -> 518.865707 | K19: 46027.12223 | L19: 7212.371731 | M19: 328433.6633
B20: Buitengewone lasten artikel 16 | C20: € '000 | E20: 0 | F20: 0 | G20: 0 | H20: 0 | I20: 0 | J20: 256.493 | K20: 0 | L20: 0 | M20: =SUM(E20:L20) -> 256.493
B21: totaal bedrijfslasten ex afschrijvingen | C21: € '000 | E21: =SUM(E13:E20) -> 3631 | F21: =SUM(F13:F20) -> 15352.72665 | G21: 4662.113331 | H21: 266796.8 | I21: 255592.8134 | J21: 2849.51305 | K21: 176730.4181 | L21: 7212.371731 | M21: 732827.7562
B23: Totaal OPEX excl. inkoopkosten transport | C23: € '000 | E23: =E21+E12-E9 -> 4590.831 | F23: =F21+F12-F9 -> 20563.47335 | G23: 9237.474681 | H23: 393395.8 | I23: 351449.0224 | J23: 3399.35405 | K23: 240215.4929 | L23: 10794.98455 | M23: =SUM(E23:L23) -> 1033646.433
B25: CAPEX (o.b.v. WACC NE5R t.b.v. productiviteit)
B26: Eindstand GAW | C26: € '000 | E26: 49900.15577 | F26: 234726.792 | G26: 105249.5029 | H26: 3319423.151 | I26: 3507762.078 | J26: 38737.12429 | K26: 2444164.063 | L26: 175227.6179 | M26: =SUM(E26:L26) -> 9875190.484
B27: Afschrijvingen | C27: € '000 | E27: 3277.334994 | F27: 11802.3167 | G27: 5734.724981 | H27: 152393.6825 | I27: 134915.115 | J27: 2834.568468 | K27: 103016.2258 | L27: 5356.175115 | M27: =SUM(E27:L27) -> 419330.1436
B28: Totaal CAPEX met gemiddelde WACC voor PV 2006-2007 | C28: € '000 | E28: =AVERAGE(WACC2006,WACC2007)*E26+E27 -> 6371.144652 | F28: 26355.37781 | G28: 12260.19416 | H28: 358197.9179 | I28: 352396.3638 | J28: 5236.270174 | K28: 254554.3977 | L28: 16220.28742 | M28: =SUM(E28:L28) -> 1031591.954
B30: Gestandaardiseerde Economische Kosten 2006 met gemiddelde WACC voor PV 2006-2007 (incl. ORV) | C30: € '000 | E30: =E23+E28 -> 10961.97565 | F30: 46918.85116 | G30: 21497.66884 | H30: 751593.7179 | I30: 703845.3862 | J30: 8635.624224 | K30: 494769.8905 | L30: 27015.27197 | M30: =SUM(E30:L30) -> 2065238.386
B33: Kosten 2007 t.b.v. productiviteit (exclusief EAV)
B35: OPEX
B36: Inkoop transport bij hoger en/of naastgelegen netbeheerder | C36: € '000 | E36: 3193 | F36: 4974.5052 | G36: 7144.57139 | H36: 60743 | I36: 54864.385 | J36: 2011.92351 | K36: 64403.313 | L36: 6584 | M36: =SUM(E36:L36) -> 203918.6981
B37: Inkoop energie en vermogen | C37: € '000 | E37: ='Aanpassing gegevens (aug2012)'!I49 -> 1463.585 | F37: ='Aanpassing gegevens (aug2012)'!I60 -> 5377.45138 | G37: 4189.14975 | H37: 134400 | I37: ='Aanpassing gegevens (aug2012)'!I79 -> 115010.276 | J37: 890.1582908 | K37: ='Aanpassing gegevens (aug2012)'!I90 -> 71414.791 | L37: 5032 | M37: 337777.4114
B38: Overige inkoopkosten voor de gereguleerde activiteiten ex artikel 16 | C38: € '000 | E38: 0 | F38: 13 | G38: 0 | H38: 0 | I38: 0 | J38: 0 | K38: 0 | L38: 264 | M38: 277
B39: totaal van inkopen | C39: € '000 | E39: =SUM(E36:E38) -> 4656.585 | F39: 10364.95658 | G39: 11333.72114 | H39: 195143 | I39: 169874.661 | J39: 2902.081801 | K39: 135818.104 | L39: 11880 | M39: 541973.1095
B40: Personeelskosten | C40: € '000 | E40: 41.14246253 | F40: 1906.122138 | G40: 2192.6543 | H40: 0 | I40: 11891.72182 | J40: 1362.575614 | K40: 82990.358 | L40: 0 | M40: 100384.5743
B41: Kosten uitbesteed werk en andere externe kosten | C41: € '000 | E41: 3303.857537 | F41: 21472.29825 | G41: 724.83799 | H41: 0 | I41: 212107.3872 | J41: ='Aanpassing gegevens (aug2012)'!I135 -> 819.1103611 | K41: 44486.93021 | L41: 0 | M41: 282914.4215
B42: Bijzondere waardeverminderingen | C42: € '000 | E42: 0 | F42: 0 | G42: 0 | H42: 0 | I42: 0 | J42: 0 | K42: 0 | L42: 0 | M42: 0
B43: Kosten wettelijke reserve inzake art 16 O&O-kosten | C43: € '000 | E43: 0 | F43: 0 | G43: 0 | H43: 0 | I43: 0 | J43: 0 | K43: 0 | L43: 0 | M43: 0
B44: Gedoogbelasting | C44: € '000 | E44: 0 | F44: 0 | G44: 0 | H44: 0 | I44: 0 | J44: 0 | K44: 0 | L44: 0 | M44: 0
B45: Precario | C45: € '000 | E45: 0 | F45: 451.936 | G45: 0 | H45: 1673 | I45: 14310.34846 | J45: 0.13175 | K45: 14323.928 | L45: 25 | M45: 30784.34421
B46: Overige kosten | C46: € '000 | E46: 100 | F46: 567.8323063 | G46: 3535.348767 | H46: 249085 | I46: 6109.416653 | J46: 176.98261 | K46: 51722.13622 | L46: 7492 | M46: 318788.7166
B47: Buitengewone lasten artikel 16 | C47: € '000 | E47: 0 | F47: 0 | G47: 0 | H47: 0 | I47: 0 | J47: 810.436 | K47: 0 | L47: 0 | M47: 810.436
B48: totaal bedrijfslasten ex afschrijvingen | C48: € '000 | E48: =SUM(E40:E47) -> 3445 | F48: =SUM(F40:F47) -> 24398.1887 | G48: 6452.841057 | H48: 250758 | I48: 244418.8741 | J48: 3169.236335 | K48: 193523.3524 | L48: 7517 | M48: 733682.4926
B50: Totaal OPEX excl. inkoopkosten transport | C50: € '000 | E50: =E48+E39-E36 -> 4908.585 | F50: =F48+F39-F36 -> 29788.64008 | G50: 10641.99081 | H50: 385158 | I50: 359429.1501 | J50: 4059.394626 | K50: 264938.1434 | L50: 12813 | M50: =SUM(E50:L50) -> 1071736.904
B52: CAPEX (o.b.v. WACC NE5R t.b.v. productiviteit)
B53: Eindstand GAW | C53: € '000 | E53: 49453.96385 | F53: 245950.8341 | G53: 104055.8666 | H53: ='Aanpassing gegevens (aug2012)'!I103 -> 3339750.054 | I53: 3505087.724 | J53: 37577.21645 | K53: 2454189.83 | L53: 200099.3534 | M53: =SUM(E53:L53) -> 9936164.843
B54: Afschrijvingen | C54: € '000 | E54: 3349.794109 | F54: 12340.14786 | G54: 5896.749604 | H54: ='Aanpassing gegevens (aug2012)'!I104 -> 159644.4394 | I54: 138973.4457 | J54: 2927.737025 | K54: 106291.3529 | L54: 6147.520054 | M54: =SUM(E54:L54) -> 435571.1867
B55: Totaal CAPEX met gemiddelde WACC voor PV 2006-2007 | C55: € '000 | E55: =AVERAGE(WACC2006,WACC2007)*E53+E54 -> 6415.939867 | F55: 27589.09957 | G55: 12348.21333 | H55: 366708.9428 | I55: 356288.8846 | J55: 5257.524444 | K55: 258451.1224 | L55: 18553.67997 | M55: =SUM(E55:L55) -> 1051613.407
B56: Totaal CAPEX met gemiddelde WACC voor PV 2007-2008 | C56: € '000 | E56: =AVERAGE(WACC2007,WACC2008)*E53+E54 -> 6143.943066 | F56: 26236.36999 | G56: 11775.90607 | H56: 348340.3175 | I56: 337010.9021 | J56: 5050.849754 | K56: 244953.0783 | L56: 17453.13352 | M56: =SUM(E56:L56) -> 996964.5003
B58: Gestandaardiseerde Economische Kosten 2007 met gemiddelde WACC voor PV 2006-2007 (incl. ORV) | C58: € '000 | E58: =E50+E55 -> 11324.52487 | F58: 57377.73965 | G58: 22990.20414 | H58: 751866.9428 | I58: 715718.0347 | J58: 9316.91907 | K58: 523389.2658 | L58: 31366.67997 | M58: =SUM(E58:L58) -> 2123350.311
B59: Gestandaardiseerde Economische Kosten 2007 met gemiddelde WACC voor PV 2007-2008 (incl. ORV) | C59: € '000 | E59: =E50+E56 -> 11052.52807 | F59: =F50+F56 -> 56025.01006 | G59: 22417.89687 | H59: 733498.3175 | I59: 696440.0522 | J59: 9110.24438 | K59: 509891.2217 | L59: 30266.13352 | M59: =SUM(E59:L59) -> 2068701.404
B62: Kosten 2008 t.b.v. productiviteit (exclusief EAV)
B64: OPEX
B65: Inkoop transport bij landelijk netbeheerder | C65: € '000 | E65: 0 | F65: 3396.5828 | G65: 0 | H65: ='Aanpassing gegevens (sep2013)'!I205 -> 86329.55526 | I65: ='Aanpassing gegevens (sep2013)'!I196 -> 72901.4484 | J65: 0 | K65: ='Aanpassing gegevens (sep2013)'!I213 -> 54256.34708 | L65: 6115.963 | M65: =SUM(E65:L65) -> 222999.8965
B66: Inkoop transport bij regionale netbeheerder | C66: € '000 | E66: 3224 | F66: 0 | G66: 7078.59396 | H66: 1659 | I66: 787.689 | J66: 2030.96 | K66: 4679.13767 | L66: 756.45503 | M66: 20215.83566
B67: Inkoop energie en vermogen | C67: € '000 | E67: ='Aanpassing gegevens (aug2012)'!I50 -> 1150.669 | F67: ='Aanpassing gegevens (aug2012)'!I61 -> 7085.615683 | G67: 2505.76572 | H67: 119186 | I67: ='Aanpassing gegevens (aug2012)'!I80 -> 117201.584 | J67: 890.498 | K67: ='Aanpassing gegevens (aug2012)'!I91 -> 78294.115 | L67: 4601.415 | M67: 330915.6624
B68: Overige inkoopkosten voor de gereguleerde activiteiten ex artikel 16 | C68: € '000 | E68: 0 | F68: 0 | G68: 0 | H68: 0 | I68: 0 | J68: 0 | K68: 0 | L68: 350 | M68: 350
B69: totaal van inkopen | C69: € '000 | E69: =SUM(E65:E68) -> 4374.669 | F69: 10482.19848 | G69: 9584.35968 | H69: 207174.5553 | I69: 190890.7214 | J69: 2921.458 | K69: 137229.5997 | L69: 11823.83303 | M69: 574481.3946
B70: Personeelskosten | C70: € '000 | E70: 20 | F70: 3267.391665 | G70: 1914.95078 | H70: 0 | I70: =58066.7173833519-1168 -> 56898.71738 | J70: 1391.731 | K70: 97961.10794 | L70: 0 | M70: 161453.8988
B71: Kosten uitbesteed werk en andere externe kosten | C71: € '000 | E71: 3511 | F71: 20658 | G71: 784.29282 | H71: 0 | I71: =185942.943093848-7061 -> 178881.9431 | J71: ='Aanpassing gegevens (aug2012)'!I136 -> 748.3572 | K71: 42089.43778 | L71: 0 | M71: 246673.0309
B72: Bijzondere waardeverminderingen | C72: € '000 | E72: 0 | F72: 0 | G72: 0 | H72: 0 | I72: 0 | J72: 0 | K72: 0 | L72: 0 | M72: 0
B73: Kosten wettelijke reserve inzake art 16 O&O-kosten | C73: € '000 | E73: 0 | F73: 0 | G73: 0 | H73: 0 | I73: 0 | J73: 0 | K73: 0 | L73: 0 | M73: 0
B74: Gedoogbelasting | C74: € '000 | E74: 0 | F74: 0 | G74: 0 | H74: 0 | I74: 0 | J74: 0 | K74: 0 | L74: 0 | M74: 0
B75: Precario | C75: € '000 | E75: 0 | F75: 482.726 | G75: 0 | H75: 1677 | I75: 14012 | J75: 0.1499 | K75: 14761.361 | L75: 13 | M75: 30946.2369
B76: Dotaties aan dan wel vrijval van voorzieningen | C76: € '000 | E76: 0 | F76: 1.466609177 | G76: 228.1883378 | H76: 14584 | I76: 0 | J76: 19.881 | K76: 404.6035524 | L76: 0 | M76: 15238.1395
B77: Overige kosten | C77: € '000 | E77: 172 | F77: 420.4094315 | G77: 3256.063997 | H77: 227374 | I77: -12609.76219 | J77: 365.873 | K77: 54602.8447 | L77: 7106.591 | M77: 280688.0199
B78: Buitengewone lasten artikel 16 | C78: € '000 | E78: 0 | F78: 0 | G78: 0 | H78: 0 | I78: 0 | J78: 0 | K78: 0 | L78: 0 | M78: =SUM(E78:L78) -> 0
B79: totaal bedrijfslasten ex afschrijvingen | C79: € '000 | E79: =SUM(E70:E78) -> 3703 | F79: =SUM(F70:F78) -> 24829.99371 | G79: 6183.495935 | H79: 243635 | I79: 237182.8983 | J79: 2525.9921 | K79: 209819.355 | L79: 7119.591 | M79: 734999.326
B81: Totaal OPEX excl. inkoopkosten transport | C81: € '000 | E81: =E79+E69-E65-E66 -> 4853.669 | F81: =F79+F69-F65-F66 -> 31915.60939 | G81: 8689.261655 | H81: 362821 | I81: 354384.4823 | J81: 3416.4901 | K81: 288113.47 | L81: 12071.006 | M81: =SUM(E81:L81) -> 1066264.988
B83: CAPEX (o.b.v. WACC NE5R t.b.v. productiviteit)
B84: Eindstand GAW | C84: € '000 | E84: 48945.77326 | F84: 205476.3472 | G84: 103000.9354 | H84: ='Aanpassing gegevens (aug2012)'!I105 -> 3056069.58 | I84: 3130753.564 | J84: 38578.94498 | K84: 2506512.556 | L84: 203121.0105 | M84: =SUM(E84:L84) -> 9292458.712
B85: Afschrijvingen | C85: € '000 | E85: 3435.184189 | F85: 10554.17455 | G85: 6077.20461 | H85: ='Aanpassing gegevens (aug2012)'!I106 -> 150064.5601 | I85: 128015.2279 | J85: 3060.452937 | K85: 109982.7713 | L85: 6636.16581 | M85: =SUM(E85:L85) -> 417825.7414
B86: Totaal CAPEX voor PV 2008-2009 | C86: € '000 | E86: =WACC2008*E84+E85 -> 6127.201718 | F86: 21855.37364 | G86: 11742.25606 | H86: 318148.387 | I86: 300206.6739 | J86: 5182.29491 | K86: 247840.9619 | L86: 17807.82139 | M86: =SUM(E86:L86) -> 928910.9706
B87: Totaal CAPEX met gemiddelde WACC voor PV 2007-2008 | C87: € '000 | E87: =AVERAGE(WACC2007,WACC2008)*E84+E85 -> 6200.620378 | F87: 22163.58816 | G87: 11896.75746 | H87: 322732.4914 | I87: 304902.8042 | J87: 5240.163328 | K87: 251600.7308 | L87: 18112.5029 | M87: =SUM(E87:L87) -> 942849.6587
B89: Gestandaardiseerde Economische Kosten 2008 voor PV 2008-2009 (incl. ORV) | C89: € '000 | E89: =E81+E86 -> 10980.87072 | F89: 53770.98303 | G89: 20431.51771 | H89: 680969.387 | I89: 654591.1562 | J89: 8598.78501 | K89: 535954.4319 | L89: 29878.82739 | M89: =SUM(E89:L89) -> 1995175.959
B90: Gestandaardiseerde Economische Kosten 2008 met gemiddelde WACC voor PV 2007-2008 (incl. ORV) | C90: € '000 | E90: =E81+E87 -> 11054.28938 | F90: =F81+F87 -> 54079.19755 | G90: 20586.01912 | H90: 685553.4914 | I90: 659287.2865 | J90: 8656.653428 | K90: 539714.2007 | L90: 30183.5089 | M90: =SUM(E90:L90) -> 2009114.647
B92: Kosten 2009 t.b.v. productiviteit (exclusief EAV)
B94: OPEX
B95: Inkoop transport bij landelijk netbeheerder | C95: € '000 | E95: 0 | F95: 6923.12311 | G95: 0 | H95: 103693.2222 | I95: ='Aanpassing gegevens (sep2013)'!I197 -> 84321.68186 | J95: 0 | K95: ='Aanpassing gegevens (sep2013)'!I214 -> 49745.21372 | L95: 5401.28151 | M95: =SUM(E95:L95) -> 250084.5224
B96: Inkoop transport bij regionale netbeheerder | C96: € '000 | E96: 3138 | F96: 0 | G96: 6938.60784 | H96: 367.79362 | I96: 695.85163 | J96: 2044.465 | K96: 5781.25756 | L96: 926.71849 | M96: 19892.69414
B97: Inkoop energie en vermogen | C97: € '000 | E97: ='Aanpassing gegevens (aug2012)'!I51 -> 1207.525 | F97: ='Aanpassing gegevens (aug2012)'!I62 -> 8689.206577 | G97: 3506.00269 | H97: ='Aanpassing gegevens (aug2012)'!I70 -> 113178.6393 | I97: ='Aanpassing gegevens (aug2012)'!I81 -> 112588.5326 | J97: 807.928 | K97: ='Aanpassing gegevens (aug2012)'!I92 -> 90892.044 | L97: 6198 | M97: 337067.8781
B98: Overige inkoopkosten voor de gereguleerde activiteiten ex artikel 16 | C98: € '000 | E98: 7 | F98: 0 | G98: 0 | H98: 0 | I98: 0 | J98: 0 | K98: 0 | L98: 0 | M98: 7
B99: totaal van inkopen | C99: € '000 | E99: =SUM(E95:E98) -> 4352.525 | F99: =SUM(F95:F98) -> 15612.32969 | G99: 10444.61053 | H99: 217239.6551 | I99: 197606.066 | J99: 2852.393 | K99: 146418.5153 | L99: 12526 | M99: 607052.0946
B100: Personeelskosten | C100: € '000 | E100: 1480 | F100: 4090.991287 | G100: 2175.48403 | H100: 0 | I100: 69746.79172 | J100: 1367.92257 | K100: 99083.99672 | L100: 0 | M100: 177945.1863
B101: Kosten uitbesteed werk en andere externe kosten | C101: € '000 | E101: ='Aanpassing gegevens (sep2013)'!I156 -> 2677 | F101: ='Aanpassing gegevens (aug2012)'!I26 -> 18480.25304 | G101: 836.66921 | H101: 0 | I101: ='Aanpassing gegevens (sep2013)'!I173 -> 248062.0825 | J101: ='Aanpassing gegevens (aug2012)'!I137 -> 1010.870099 | K101: 44849.30868 | L101: 0 | M101: 315916.1835
B102: Bijzondere waardeverminderingen | C102: € '000 | E102: 0 | F102: 0 | G102: 0 | H102: 0 | I102: 0 | J102: 0 | K102: 0 | L102: 0 | M102: 0
B103: Kosten wettelijke reserve inzake art 16 O&O-kosten | C103: € '000 | E103: 0 | F103: 0 | G103: 0 | H103: 0 | I103: 0 | J103: 0 | K103: 0 | L103: 0 | M103: 0
B104: Gedoogbelasting | C104: € '000 | E104: 8 | F104: 0 | G104: 0 | H104: 0 | I104: 0 | J104: 0 | K104: 0 | L104: 0 | M104: 8
B105: Precario | C105: € '000 | F105: 494.00998 | G105: 0 | H105: 1738 | I105: 13649.30675 | J105: 0.1391 | K105: 15458.974 | L105: 24.34 | M105: 31364.76983
B106: Dotaties aan dan wel vrijval van voorzieningen | C106: € '000 | E106: 0 | F106: 0 | G106: 222.292518 | H106: 20346 | I106: 0 | J106: -40.27095 | K106: 634.6782392 | L106: 0 | M106: 21162.69981
B107: Overige kosten | C107: € '000 | E107: 133 | F107: 421.097806 | G107: 2275.735082 | H107: ='Aanpassing gegevens (sep2013)'!I165 -> 224402 | I107: 6191.926109 | J107: ='Aanpassing gegevens (sep2013)'!I186 -> 558.56594 | K107: 55563.43954 | L107: 7386.765633 | M107: 296932.5301
B108: Buitengewone lasten artikel 16 | C108: € '000 | E108: 0 | F108: 0 | G108: 0 | H108: 0 | I108: 0 | J108: 0 | K108: 0 | L108: 0 | M108: 0
B109: totaal bedrijfslasten ex afschrijvingen | C109: € '000 | E109: =SUM(E100:E108) -> 4298 | F109: =SUM(F100:F108) -> 23486.35212 | G109: 5510.18084 | H109: 246486 | I109: 337650.1071 | J109: 2897.226759 | K109: 215590.3972 | L109: 7411.105633 | M109: 843329.3696
B111: Totaal OPEX excl. inkoopkosten transport | C111: € '000 | E111: =E109+E99-E95-E96 -> 5512.525 | F111: =F109+F99-F95-F96 -> 32175.55869 | G111: 9016.18353 | H111: 359664.6393 | I111: 450238.6396 | J111: 3705.154759 | K111: 306482.4412 | L111: 13609.10563 | M111: =SUM(E111:L111) -> 1180404.248
B113: CAPEX (o.b.v. WACC NE5R t.b.v. productiviteit)
B114: Eindstand GAW | C114: € '000 | E114: 50203.27311 | F114: ='Aanpassing gegevens (aug2012)'!I27 -> 229660.5779 | G114: 102832.3387 | H114: ='Aanpassing gegevens (aug2012)'!I107 -> 3186788.219 | I114: 3206721.384 | J114: 39223.83731 | K114: 2587566.684 | L114: 222574.3312 | M114: =SUM(E114:L114) -> 9625570.646
B115: Afschrijvingen | C115: € '000 | E115: 3605.764896 | F115: ='Aanpassing gegevens (aug2012)'!I28 -> 11818.03188 | G115: 6422.35115 | H115: ='Aanpassing gegevens (aug2012)'!I108 -> 157290.5134 | I115: 134334.9843 | J115: 3283.112858 | K115: 116200.1741 | L115: 7089.213055 | M115: =SUM(E115:L115) -> 440044.1457
B116: Totaal CAPEX voor PV 2008-2009 | C116: € '000 | E116: =WACC2009*E114+E115 -> 6366.944917 | F116: 24449.36367 | G116: 12078.12978 | H116: 332563.8655 | I116: 310704.6604 | J116: 5440.42391 | K116: 258516.3418 | L116: 19330.80127 | M116: =SUM(E116:L116) -> 969450.5312
B118: Gestandaardiseerde Economische Kosten 2009 voor PV 2008-2009 (incl. ORV) | C118: € '000 | E118: =E111+E116 -> 11879.46992 | F118: 56624.92236 | G118: 21094.31331 | H118: 692228.5047 | I118: 760943.3 | J118: 9145.578669 | K118: 564998.783 | L118: 32939.90691 | M118: =SUM(E118:L118) -> 2149854.779
B121: Kosten 2009 t.b.v. eindinkomsten (inclusief EAV)
B123: Gestandaardiseerde economische kosten 2009 (excl. EAV) | C123: € '000 | E123: =E118 -> 11879.46992 | F123: =F118 -> 56624.92236 | G123: 21094.31331 | H123: 692228.5047 | I123: 760943.3 | J123: 9145.578669 | K123: 564998.783 | L123: 32939.90691 | M123: 2149854.779
B125: Inkomsten uit EAV t/m 25 meter | C125: € '000 | E125: =('EAV (incl RV)'!D160)/1000 -> 804.1970461 | F125: =('EAV (incl RV)'!I160)/1000 -> 2812.87367 | G125: =('EAV (incl RV)'!S160)/1000 -> 1366.39603 | H125: =('EAV (incl RV)'!N160)/1000 -> 43085.81491 | I125: =('EAV (incl RV)'!X160)/1000 -> 40136.85325 | J125: =('EAV (incl RV)'!AC160)/1000 -> 408.6504 | K125: =('EAV (incl RV)'!AH160)/1000 -> 40567.00092 | L125: =('EAV (incl RV)'!AM160)/1000 -> 2518.49805 | M125: =SUM(E125:L125) -> 131700.2843
B126: Inkomsten uit EAV > 25 meter | C126: € '000 | E126: =('EAV (incl RV)'!D194)/1000 -> 193.1965336 | F126: =('EAV (incl RV)'!I194)/1000 -> 2682.86677 | G126: =('EAV (incl RV)'!S194)/1000 -> 383.34728 | H126: =('EAV (incl RV)'!N194)/1000 -> 12972.4896 | I126: =('EAV (incl RV)'!X194)/1000 -> 10801.6492 | J126: =('EAV (incl RV)'!AC194)/1000 -> 82.45379 | K126: =('EAV (incl RV)'!AH194)/1000 -> 8494.28399 | L126: =('EAV (incl RV)'!AM194)/1000 -> 520.05193 | M126: =SUM(E126:L126) -> 36130.33909
B128: Gestandaardiseerde Economische Kosten 2009 (incl. EAV) | C128: € '000 | E128: =SUM(E123,E125:E126) -> 12876.8635 | F128: =SUM(F123,F125:F126) -> 62120.6628 | G128: 22844.05662 | H128: 748286.8093 | I128: 811881.8025 | J128: 9636.682859 | K128: 614060.0679 | L128: 35978.45689 | M128: =SUM(E128:L128) -> 2317685.402
B131: Sectorkosten 2009 incl. EAV (t.b.v. significantietoets ORV)
B133: OPEX 2009 (incl. ORV) | C133: € '000 | D133: =M111+M125+M126 -> 1348234.871
B134: CAPEX 2009 (incl. ORV; o.b.v. WACC 2009 t.b.v. significantietoets ORV) | C134: € '000 | D134: =WACC2009*M114+M115 -> 969450.5312
B135: Totale Sectorkosten (incl. ORV) t.b.v. significantietoets ORV | C135: € '000 | D135: =D133+D134 -> 2317685.402

Sheet SO
B2: Samengestelde Output | E2: COGAS | F2: DNWB | G2: ENDINET | H2: ENEXIS | I2: LIANDER | J2: RENDO | K2: STEDIN | L2: WESTLAND | M2: TOTAAL
B4: 2006
B6: Transportdienst | E6: =SUMPRODUCT(Wegingsfactoren!$D291:$D393,Volumes!E20:E122) -> 12218184.94 | F6: =SUMPRODUCT(Wegingsfactoren!$D291:$D393,Volumes!F20:F122) -> 59757727.37 | G6: =SUMPRODUCT(Wegingsfactoren!$D291:$D393,Volumes!G20:G122) -> 25256493.63 | H6: =SUMPRODUCT(Wegingsfactoren!$D291:$D393,Volumes!H20:H122) -> 661417758 | I6: =SUMPRODUCT(Wegingsfactoren!$D291:$D393,Volumes!I20:I122) -> 680782837.7 | J6: =SUMPRODUCT(Wegingsfactoren!$D291:$D393,Volumes!J20:J122) -> 7532803.261 | K6: =SUMPRODUCT(Wegingsfactoren!$D291:$D393,Volumes!K20:K122) -> 483187024.7 | L6: =SUMPRODUCT(Wegingsfactoren!$D291:$D393,Volumes!L20:L122) -> 29408448.68 | M6: =SUM(E6:L6) -> 1959561278
B7: Periodieke aansluitvergoeding | E7: =SUMPRODUCT(Wegingsfactoren!$D397:$D404,Volumes!E126:E133) -> 1229231.551 | F7: =SUMPRODUCT(Wegingsfactoren!$D397:$D404,Volumes!F126:F133) -> 5028404.038 | G7: =SUMPRODUCT(Wegingsfactoren!$D397:$D404,Volumes!G126:G133) -> 2671023.833 | H7: =SUMPRODUCT(Wegingsfactoren!$D397:$D404,Volumes!H126:H133) -> 65843174.58 | I7: =SUMPRODUCT(Wegingsfactoren!$D397:$D404,Volumes!I126:I133) -> 70022733.58 | J7: =SUMPRODUCT(Wegingsfactoren!$D397:$D404,Volumes!J126:J133) -> 756370.2814 | K7: =SUMPRODUCT(Wegingsfactoren!$D397:$D404,Volumes!K126:K133) -> 46536831.63 | L7: =SUMPRODUCT(Wegingsfactoren!$D397:$D404,Volumes!L126:L133) -> 1529987.144 | M7: =SUM(E7:L7) -> 193617756.6
B8: Eenmalige aansluitvergoeding
B9: Invoeding
B11: SO2006 | E11: =SUM(E6:E9) -> 13447416.49 | F11: 64786131.41 | G11: 27927517.47 | H11: 727260932.5 | I11: 750805571.3 | J11: 8289173.542 | K11: 529723856.4 | L11: 30938435.83 | M11: =SUM(E11:L11) -> 2153179035
B13: 2007
B15: Transportdienst | E15: =SUMPRODUCT(Wegingsfactoren!$D291:$D393,Volumes!E141:E243) -> 12382353.67 | F15: =SUMPRODUCT(Wegingsfactoren!$D291:$D393,Volumes!F141:F243) -> 59747091.46 | G15: =SUMPRODUCT(Wegingsfactoren!$D291:$D393,Volumes!G141:G243) -> 24832946.55 | H15: =SUMPRODUCT(Wegingsfactoren!$D291:$D393,Volumes!H141:H243) -> 675679693.2 | I15: =SUMPRODUCT(Wegingsfactoren!$D291:$D393,Volumes!I141:I243) -> 687192487.7 | J15: =SUMPRODUCT(Wegingsfactoren!$D291:$D393,Volumes!J141:J243) -> 7442948.935 | K15: =SUMPRODUCT(Wegingsfactoren!$D291:$D393,Volumes!K141:K243) -> 488543145.9 | L15: =SUMPRODUCT(Wegingsfactoren!$D291:$D393,Volumes!L141:L243) -> 30311782.58 | M15: =SUM(E15:L15) -> 1986132450
B16: Periodieke aansluitvergoeding | E16: =SUMPRODUCT(Wegingsfactoren!$D397:$D404,Volumes!E247:E254) -> 1238912.073 | F16: =SUMPRODUCT(Wegingsfactoren!$D397:$D404,Volumes!F247:F254) -> 5081957.107 | G16: =SUMPRODUCT(Wegingsfactoren!$D397:$D404,Volumes!G247:G254) -> 2737699.993 | H16: =SUMPRODUCT(Wegingsfactoren!$D397:$D404,Volumes!H247:H254) -> 67213072.15 | I16: =SUMPRODUCT(Wegingsfactoren!$D397:$D404,Volumes!I247:I254) -> 66066319.46 | J16: =SUMPRODUCT(Wegingsfactoren!$D397:$D404,Volumes!J247:J254) -> 763094.3653 | K16: =SUMPRODUCT(Wegingsfactoren!$D397:$D404,Volumes!K247:K254) -> 47682354.27 | L16: =SUMPRODUCT(Wegingsfactoren!$D397:$D404,Volumes!L247:L254) -> 1519608.533 | M16: =SUM(E16:L16) -> 192303018
B17: Eenmalige aansluitvergoeding
B18: Invoeding
B20: SO2007 | E20: =SUM(E15:E18) -> 13621265.74 | F20: 64829048.56 | G20: 27570646.54 | H20: 742892765.3 | I20: 753258807.2 | J20: 8206043.3 | K20: 536225500.1 | L20: 31831391.12 | M20: =SUM(E20:L20) -> 2178435468
B22: 2008
B24: Transportdienst | E24: =SUMPRODUCT(Wegingsfactoren!$D291:$D393,Volumes!E262:E364) -> 12620971.7 | F24: =SUMPRODUCT(Wegingsfactoren!$D291:$D393,Volumes!F262:F364) -> 47417885.98 | G24: =SUMPRODUCT(Wegingsfactoren!$D291:$D393,Volumes!G262:G364) -> 25319290.53 | H24: =SUMPRODUCT(Wegingsfactoren!$D291:$D393,Volumes!H262:H364) -> 665126266.4 | I24: =SUMPRODUCT(Wegingsfactoren!$D291:$D393,Volumes!I262:I364) -> 684724755.1 | J24: =SUMPRODUCT(Wegingsfactoren!$D291:$D393,Volumes!J262:J364) -> 7573047.058 | K24: =SUMPRODUCT(Wegingsfactoren!$D291:$D393,Volumes!K262:K364) -> 486192941.2 | L24: =SUMPRODUCT(Wegingsfactoren!$D291:$D393,Volumes!L262:L364) -> 30049664.03 | M24: =SUM(E24:L24) -> 1959024822
B25: Periodieke aansluitvergoeding | E25: =SUMPRODUCT(Wegingsfactoren!$D397:$D404,Volumes!E368:E375) -> 1252417.599 | F25: =SUMPRODUCT(Wegingsfactoren!$D397:$D404,Volumes!F368:F375) -> 5245500.808 | G25: =SUMPRODUCT(Wegingsfactoren!$D397:$D404,Volumes!G368:G375) -> 2770852.815 | H25: =SUMPRODUCT(Wegingsfactoren!$D397:$D404,Volumes!H368:H375) -> 68291234.11 | I25: =SUMPRODUCT(Wegingsfactoren!$D397:$D404,Volumes!I368:I375) -> 67095244.69 | J25: =SUMPRODUCT(Wegingsfactoren!$D397:$D404,Volumes!J368:J375) -> 767812.2314 | K25: =SUMPRODUCT(Wegingsfactoren!$D397:$D404,Volumes!K368:K375) -> 48189188.79 | L25: =SUMPRODUCT(Wegingsfactoren!$D397:$D404,Volumes!L368:L375) -> 1622186.585 | M25: =SUM(E25:L25) -> 195234437.6
B26: Eenmalige aansluitvergoeding
B27: Invoeding
B29: SO2008 | E29: =SUM(E24:E27) -> 13873389.3 | F29: 52663386.79 | G29: 28090143.34 | H29: 733417500.6 | I29: 751819999.8 | J29: 8340859.289 | K29: 534382130 | L29: 31671850.61 | M29: =SUM(E29:L29) -> 2154259260
B31: 2009
B33: Transportdienst | E33: =SUMPRODUCT(Wegingsfactoren!$D291:$D393,Volumes!E383:E485) -> 12579994.95 | F33: =SUMPRODUCT(Wegingsfactoren!$D291:$D393,Volumes!F383:F485) -> 48921959.57 | G33: =SUMPRODUCT(Wegingsfactoren!$D291:$D393,Volumes!G383:G485) -> 25390736.13 | H33: =SUMPRODUCT(Wegingsfactoren!$D291:$D393,Volumes!H383:H485) -> 668793310 | I33: =SUMPRODUCT(Wegingsfactoren!$D291:$D393,Volumes!I383:I485) -> 686372372 | J33: =SUMPRODUCT(Wegingsfactoren!$D291:$D393,Volumes!J383:J485) -> 7680496.741 | K33: =SUMPRODUCT(Wegingsfactoren!$D291:$D393,Volumes!K383:K485) -> 481620332.7 | L33: =SUMPRODUCT(Wegingsfactoren!$D291:$D393,Volumes!L383:L485) -> 29280889.76 | M33: =SUM(E33:L33) -> 1960640092
B34: Periodieke aansluitvergoeding | E34: =SUMPRODUCT(Wegingsfactoren!$D397:$D404,Volumes!E489:E496) -> 1264267.921 | F34: =SUMPRODUCT(Wegingsfactoren!$D397:$D404,Volumes!F489:F496) -> 5336526.643 | G34: =SUMPRODUCT(Wegingsfactoren!$D397:$D404,Volumes!G489:G496) -> 2792651.049 | H34: =SUMPRODUCT(Wegingsfactoren!$D397:$D404,Volumes!H489:H496) -> 70457837.41 | I34: =SUMPRODUCT(Wegingsfactoren!$D397:$D404,Volumes!I489:I496) -> 68029120.13 | J34: =SUMPRODUCT(Wegingsfactoren!$D397:$D404,Volumes!J489:J496) -> 779032.5935 | K34: =SUMPRODUCT(Wegingsfactoren!$D397:$D404,Volumes!K489:K496) -> 46362008.15 | L34: =SUMPRODUCT(Wegingsfactoren!$D397:$D404,Volumes!L489:L496) -> 1687974.195 | M34: =SUM(E34:L34) -> 196709418.1
B35: Eenmalige aansluitvergoeding | E35: =SUMPRODUCT(Wegingsfactoren!$D409:$D420+Wegingsfactoren!E409:E420,Volumes!E501:E512) -> 860915.8702 | F35: =SUMPRODUCT(Wegingsfactoren!$D409:$D420+Wegingsfactoren!F409:F420,Volumes!F501:F512) -> 5185472.361 | G35: =SUMPRODUCT(Wegingsfactoren!$D409:$D420+Wegingsfactoren!G409:G420,Volumes!G501:G512) -> 1783472.975 | H35: =SUMPRODUCT(Wegingsfactoren!$D409:$D420+Wegingsfactoren!H409:H420,Volumes!H501:H512) -> 57173294.33 | I35: =SUMPRODUCT(Wegingsfactoren!$D409:$D420+Wegingsfactoren!I409:I420,Volumes!I501:I512) -> 45859805.04 | J35: =SUMPRODUCT(Wegingsfactoren!$D409:$D420+Wegingsfactoren!J409:J420,Volumes!J501:J512) -> 440667.5751 | K35: =SUMPRODUCT(Wegingsfactoren!$D409:$D420+Wegingsfactoren!K409:K420,Volumes!K501:K512) -> 46131371.79 | L35: =SUMPRODUCT(Wegingsfactoren!$D409:$D420+Wegingsfactoren!L409:L420,Volumes!L501:L512) -> 2772618.333 | M35: =SUM(E35:L35) -> 160207618.3
B36: Invoeding
B38: SO2009 | E38: =SUM(E33:E36) -> 14705178.74 | F38: 59443958.58 | G38: 29966860.16 | H38: 796424441.8 | I38: 800261297.2 | J38: 8900196.909 | K38: 574113712.6 | L38: 33741482.29 | M38: =SUM(E38:L38) -> 2317557128
B40: 2010 op basis van Rekenvolumes
B42: Transportdienst | E42: =SUMPRODUCT(Wegingsfactoren!$D291:$D393,Rekenvolumes!E132:E234) -> 12579994.95 | F42: =SUMPRODUCT(Wegingsfactoren!$D291:$D393,Rekenvolumes!F132:F234) -> 48921959.57 | G42: =SUMPRODUCT(Wegingsfactoren!$D291:$D393,Rekenvolumes!G132:G234) -> 25390736.13 | H42: =SUMPRODUCT(Wegingsfactoren!$D291:$D393,Rekenvolumes!H132:H234) -> 668793310 | I42: =SUMPRODUCT(Wegingsfactoren!$D291:$D393,Rekenvolumes!I132:I234) -> 686372372 | J42: =SUMPRODUCT(Wegingsfactoren!$D291:$D393,Rekenvolumes!J132:J234) -> 7680496.741 | K42: =SUMPRODUCT(Wegingsfactoren!$D291:$D393,Rekenvolumes!K132:K234) -> 481620332.7 | L42: =SUMPRODUCT(Wegingsfactoren!$D291:$D393,Rekenvolumes!L132:L234) -> 29280889.76 | M42: =SUM(E42:L42) -> 1960640092
B43: Periodieke aansluitvergoeding | E43: =SUMPRODUCT(Wegingsfactoren!$D397:$D404,Rekenvolumes!E238:E245) -> 1264267.921 | F43: =SUMPRODUCT(Wegingsfactoren!$D397:$D404,Rekenvolumes!F238:F245) -> 5336526.643 | G43: =SUMPRODUCT(Wegingsfactoren!$D397:$D404,Rekenvolumes!G238:G245) -> 2792651.049 | H43: =SUMPRODUCT(Wegingsfactoren!$D397:$D404,Rekenvolumes!H238:H245) -> 70457837.41 | I43: =SUMPRODUCT(Wegingsfactoren!$D397:$D404,Rekenvolumes!I238:I245) -> 68029120.13 | J43: =SUMPRODUCT(Wegingsfactoren!$D397:$D404,Rekenvolumes!J238:J245) -> 779032.5935 | K43: =SUMPRODUCT(Wegingsfactoren!$D397:$D404,Rekenvolumes!K238:K245) -> 46362008.15 | L43: =SUMPRODUCT(Wegingsfactoren!$D397:$D404,Rekenvolumes!L238:L245) -> 1687974.195 | M43: =SUM(E43:L43) -> 196709418.1
B44: Eenmalige aansluitvergoeding | E44: =SUMPRODUCT(Wegingsfactoren!$D409:$D420+Wegingsfactoren!E409:E420,Volumes!E501:E512) -> 860915.8702 | F44: =SUMPRODUCT(Wegingsfactoren!$D409:$D420+Wegingsfactoren!F409:F420,Volumes!F501:F512) -> 5185472.361 | G44: =SUMPRODUCT(Wegingsfactoren!$D409:$D420+Wegingsfactoren!G409:G420,Volumes!G501:G512) -> 1783472.975 | H44: =SUMPRODUCT(Wegingsfactoren!$D409:$D420+Wegingsfactoren!H409:H420,Volumes!H501:H512) -> 57173294.33 | I44: =SUMPRODUCT(Wegingsfactoren!$D409:$D420+Wegingsfactoren!I409:I420,Volumes!I501:I512) -> 45859805.04 | J44: =SUMPRODUCT(Wegingsfactoren!$D409:$D420+Wegingsfactoren!J409:J420,Volumes!J501:J512) -> 440667.5751 | K44: =SUMPRODUCT(Wegingsfactoren!$D409:$D420+Wegingsfactoren!K409:K420,Volumes!K501:K512) -> 46131371.79 | L44: =SUMPRODUCT(Wegingsfactoren!$D409:$D420+Wegingsfactoren!L409:L420,Volumes!L501:L512) -> 2772618.333 | M44: =SUM(E44:L44) -> 160207618.3
B45: Invoeding
B47: SO2010 | E47: =SUM(E42:E45) -> 14705178.74 | F47: 59443958.58 | G47: 29966860.16 | H47: 796424441.8 | I47: 800261297.2 | J47: 8900196.909 | K47: 574113712.6 | L47: 33741482.29 | M47: =SUM(E47:L47) -> 2317557128
E50: =E47/$M$47 -> 0.006345120284 | F50: =F47/$M$47 -> 0.02564940378 | G50: 0.01293036525 | H50: 0.3436482458 | I50: 0.3453038061 | J50: 0.003840335498 | K50: 0.2477236507 | L50: 0.01455907252

Sheet Wegingsfactoren
B2: Wegingsfactoren | E2: COGAS | F2: DNWB | G2: ENDINET | H2: ENEXIS | I2: LIANDER | J2: RENDO | K2: STEDIN | L2: WESTLAND
B4: Tarieven 2010
B6: Transportdienst Verbruik > 3*80A
B8: Afnemers HS (110-150 kV)
B9: Vastrecht transportdienst | C9: € | E9: 0 | F9: 0 | G9: 0 | H9: 0 | I9: 2760 | J9: 0 | K9: 2760 | L9: 0
B10: kW gecontracteerd per jaar | C10: € | E10: 0 | F10: 0 | G10: 0 | H10: 0 | I10: 6.84 | J10: 0 | K10: 8.52 | L10: 0
B11: kW max per maand | C11: € | E11: 0 | F11: 0 | G11: 0 | H11: 0 | I11: 0.63 | J11: 0 | K11: 0.85 | L11: 0
B12: kVArh blindvermogen | C12: € | E12: 0 | F12: 0 | G12: 0 | H12: 0 | I12: 0 | J12: 0 | K12: 0 | L12: 0
B14: Afnemers HS (110-150 kV) maximaal 600 uur per jaar
B15: Vastrecht transportdienst | C15: € | E15: 0 | F15: 0 | G15: 0 | H15: 0 | I15: 0 | J15: 0 | K15: 2760 | L15: 0
B16: kW gecontracteerd per jaar | C16: € | E16: 0 | F16: 0 | G16: 0 | H16: 0 | I16: 0 | J16: 0 | K16: 4.26 | L16: 0
B17: kW max per week | C17: € | E17: 0 | F17: 0 | G17: 0 | H17: 0 | I17: 0 | J17: 0 | K17: 0.29 | L17: 0
B18: kVArh blindvermogen | C18: € | E18: 0 | F18: 0 | G18: 0 | H18: 0 | I18: 0 | J18: 0 | K18: 0.006 | L18: 0
B20: Afnemers TS (25-50 kV)
B21: Vastrecht transportdienst | C21: € | E21: 0 | F21: 2760 | G21: 0 | H21: 2760 | I21: 2760 | J21: 0 | K21: 2760 | L21: 0
B22: kW gecontracteerd per jaar | C22: € | E22: 0 | F22: 6 | G22: 0 | H22: 11.07 | I22: 17.28 | J22: 0 | K22: 14.16 | L22: 0
B23: kW max per maand | C23: € | E23: 0 | F23: 0.57 | G23: 0 | H23: 0.91 | I23: 1.64 | J23: 0 | K23: 1.58 | L23: 0
B24: kVArh blindvermogen | C24: € | E24: 0 | F24: 0 | G24: 0 | H24: 0.006 | I24: 0 | J24: 0 | K24: 0.006 | L24: 0
B26: Afnemers TS (25-50 kV) maximaal 600 uur per jaar
B27: Vastrecht transportdienst | C27: € | E27: 0 | F27: 0 | G27: 0 | H27: 2760 | I27: 2760 | J27: 0 | K27: 2760 | L27: 0
B28: kW gecontracteerd per jaar | C28: € | E28: 0 | F28: 0 | G28: 0 | H28: 5.54 | I28: 8.64 | J28: 0 | K28: 7.08 | L28: 0
B29: kW max per week | C29: € | E29: 0 | F29: 0 | G29: 0 | H29: 0.32 | I29: 0.56 | J29: 0 | K29: 0.55 | L29: 0
B30: kVArh blindvermogen | C30: € | E30: 0 | F30: 0 | G30: 0 | H30: 0.006 | I30: 0 | J30: 0 | K30: 0.006 | L30: 0
B32: Afnemers Trafo HS+TS/MS
B33: Vastrecht transportdienst | C33: € | E33: 0 | F33: 2760 | G33: 2760 | H33: 2760 | I33: 2760 | J33: 0 | K33: 2760 | L33: 2760
B34: kW gecontracteerd per jaar | C34: € | E34: 0 | F34: 15.84 | G34: 14.39 | H34: 14.18 | I34: 20.88 | J34: 0 | K34: 16.56 | L34: 22.87
B35: kW max per maand | C35: € | E35: 0 | F35: 1.55 | G35: 1.41 | H35: 1.4 | I35: 1.73 | J35: 0 | K35: 1.74 | L35: 2.52
B36: kVArh blindvermogen | C36: € | E36: 0 | F36: 0 | G36: 0.0064 | H36: 0.006 | I36: 0 | J36: 0 | K36: 0.006 | L36: 0
B38: Afnemers Trafo HS+TS/MS maximaal 600 uur per jaar
B39: Vastrecht transportdienst | C39: € | E39: 0 | F39: 2760 | G39: 0 | H39: 2760 | I39: 2760 | J39: 0 | K39: 2760 | L39: 0
B40: kW gecontracteerd per jaar | C40: € | E40: 0 | F40: 7.92 | G40: 0 | H40: 7.09 | I40: 10.44 | J40: 0 | K40: 8.28 | L40: 0
B41: kW max per week | C41: € | E41: 0 | F41: 0.53 | G41: 0 | H41: 0.48 | I41: 0.59 | J41: 0 | K41: 0.6 | L41: 0
B42: kVArh blindvermogen | C42: € | E42: 0 | F42: 0 | G42: 0 | H42: 0.006 | I42: 0 | J42: 0 | K42: 0 | L42: 0
B44: Afnemers MS (1-20 kV) - TRANSPORT
B45: Vastrecht transportdienst | C45: € | E45: 0 | F45: 0 | G45: 441 | H45: 441 | I45: 0 | J45: 441 | K45: 0 | L45: 0
B46: kW gecontracteerd | C46: € | E46: 0 | F46: 0 | G46: 12.73 | H46: 10.52 | I46: 0 | J46: 16.67 | K46: 0 | L46: 0
B47: kW max per maand | C47: € | E47: 0 | F47: 0 | G47: 1.08 | H47: 1.02 | I47: 0 | J47: 1.63 | K47: 0 | L47: 0
B48: kWh tarief normaal | C48: € | E48: 0 | F48: 0 | G48: 0.0057 | H48: 0.004 | I48: 0 | J48: 0.0024 | K48: 0 | L48: 0
B49: kVArh blindvermogen | C49: € | E49: 0 | F49: 0 | G49: 0.0062 | H49: 0.006 | I49: 0 | J49: 0.0084 | K49: 0 | L49: 0
B51: Afnemers MS (1-20 kV) - DISTRIBUTIE
B52: Vastrecht transportdienst | C52: € | E52: 441 | F52: 441 | G52: 441 | H52: 441 | I52: 441 | J52: 441 | K52: 441 | L52: 441
B53: kW gecontracteerd | C53: € | E53: 13.83 | F53: 10.56 | G53: 13.52 | H53: 13.26 | I53: 13.2 | J53: 13.05 | K53: 9.96 | L53: 11.4
B54: kW max per maand | C54: € | E54: 1.3 | F54: 1.03 | G54: 1.36 | H54: 1.33 | I54: 1.2 | J54: 1.39 | K54: 1.35 | L54: 1.47
B55: kWh tarief normaal | C55: € | E55: 0.0068 | F55: 0.0078 | G55: 0.0087 | H55: 0.0077 | I55: 0.0074 | J55: 0.0086 | K55: 0.0083 | L55: 0.0098
B56: kVArh blindvermogen | C56: € | E56: 0.0126 | F56: 0 | G56: 0.0062 | H56: 0.006 | I56: 0 | J56: 0.0084 | K56: 0.006 | L56: 0
B58: Afnemers Trafo MS/LS
B59: Vastrecht transportdienst | C59: € | E59: 441 | F59: 441 | G59: 441 | H59: 441 | I59: 441 | J59: 441 | K59: 441 | L59: 441
B60: kW gecontracteerd | C60: € | E60: 15.47 | F60: 18.96 | G60: 21.7 | H60: 20.2 | I60: 20.4 | J60: 18.26 | K60: 16.2 | L60: 22.81
B61: kW max per maand | C61: € | E61: 1.3 | F61: 1.03 | G61: 1.36 | H61: 1.33 | I61: 1.2 | J61: 1.39 | K61: 1.35 | L61: 1.47
B62: kWh tarief normaal | C62: € | E62: 0.0068 | F62: 0.0078 | G62: 0.0087 | H62: 0.0077 | I62: 0.0074 | J62: 0.0086 | K62: 0.0083 | L62: 0.0098
B63: kVArh blindvermogen | C63: € | E63: 0.0126 | F63: 0 | G63: 0.0062 | H63: 0.006 | I63: 0 | J63: 0.0084 | K63: 0.006 | L63: 0
B65: Afnemers LS
B66: Vastrecht transportdienst | C66: € | E66: 18 | F66: 18 | G66: 0 | H66: 18 | I66: 18 | J66: 18 | K66: 18 | L66: 18
B67: kW gecontracteerd | C67: € | E67: 6.59 | F67: 5.46 | G67: 0 | H67: 4.51 | I67: 3.84 | J67: 5.88 | K67: 4.08 | L67: 6.47
B68: kWh tarief laag | C68: € | E68: 0.0163 | F68: 0.0201 | G68: 0 | H68: 0.0143 | I68: 0.0111 | J68: 0.0168 | K68: 0.015 | L68: 0.0176
B69: kWh tarief normaal | C69: € | E69: 0.0349 | F69: 0.0304 | G69: 0 | H69: 0.0273 | I69: 0.0309 | J69: 0.0323 | K69: 0.03 | L69: 0.035
B70: kVArh blindvermogen | C70: € | E70: 0.0188 | F70: 0 | G70: 0 | H70: 0 | I70: 0 | J70: 0.0126 | K70: 0.006 | L70: 0
B72: Transportdienst Kleinverbruik t/m 3*80A (oude categorisering)
B74: Afnemers > 3 * 25 A (DT)
B75: Vastrecht transportdienst
B76: kW gecontracteerd
B77: kWh tarief laag
B78: kWh tarief normaal
B80: Afnemers > 3* 25 A (ET)
B81: Vastrecht transportdienst
B82: kW gecontracteerd
B83: kWh tarief enkel
B85: Afnemers < 3* 25 A (DT)
B86: Vastrecht transportdienst
B87: kWh tarief laag
B88: kWh tarief normaal
B90: Afnemers < 3* 25 A (ET)
B91: Vastrecht transportdienst
B92: kWh tarief enkel
B94: Afnemers LS geschakeld (1 * 6 A)
B95: Vastrecht transportdienst
B96: kWh tarief laag
B97: kWh tarief normaal
B99: Transportdienst Kleinverbruik t/m 3*80A (nieuwe categorisering)
B101: Kleinverbruikers (t/m 3*80 A op LS)
B102: Vastrecht transportdienst t/m 1*6A LS geschakeld | C102: € | E102: 0.54 | F102: 0.54 | G102: 0.54 | H102: 0.54 | I102: 0.54 | J102: 0.54 | K102: 0.54 | L102: 0.54
B103: Vastrecht transportdienst t/m 3*80A op LS | C103: € | E103: 18 | F103: 18 | G103: 18 | H103: 18 | I103: 18 | J103: 18 | K103: 18 | L103: 18
B105: Kleinverbruikers (t/m 3*80 A op LS) capaciteitstarieven per afnemerscategorie
B106: t/m 1*6A op het geschakeld net | C106: € | E106: 1.7255 | F106: 1.5375 | G106: 1.36 | H106: 1.3255 | I106: 1.3485 | J106: 1.3905 | K106: 1.314 | L106: 1.805
B107: t/m 3*25A + alle 1-fase aansluitingen2 | C107: € | E107: 138.04 | F107: 123 | G107: 108.8 | H107: 106.04 | I107: 107.88 | J107: 111.24 | K107: 105.12 | L107: 144.4
B108: > 3*25A t/m 3*35A | C108: € | E108: 690.2 | F108: 615 | G108: 544 | H108: 530.2 | I108: 539.4 | J108: 556.2 | K108: 525.6 | L108: 722
B109: > 3*35A t/m 3*50A | C109: € | E109: 1035.3 | F109: 922.5 | G109: 816 | H109: 795.3 | I109: 809.1 | J109: 834.3 | K109: 788.4 | L109: 1083
B110: > 3*50A t/m 3*63A | C110: € | E110: 1380.4 | F110: 1230 | G110: 1088 | H110: 1060.4 | I110: 1078.8 | J110: 1112.4 | K110: 1051.2 | L110: 1444
B111: > 3*63A t/m 3*80A | C111: € | E111: 1725.5 | F111: 1537.5 | G111: 1360 | H111: 1325.5 | I111: 1348.5 | J111: 1390.5 | K111: 1314 | L111: 1805
B113: Periodieke aansluitvergoeding
B115: t/m 1 x 6A geschakeld net | C115: € | E115: ='PAV (incl RV)'!D79 -> 5.16 | F115: ='PAV (incl RV)'!I79 -> 1.92 | G115: ='PAV (incl RV)'!S79 -> 6.23 | H115: ='PAV (incl RV)'!N79 -> 3.26 | I115: ='PAV (incl RV)'!X79 -> 7.8 | J115: ='PAV (incl RV)'!AC79 -> 10.6 | K115: ='PAV (incl RV)'!AH79 -> 6.24 | L115: ='PAV (incl RV)'!AM79 -> 2.54
B116: t/m 3*25 A | C116: € | E116: ='PAV (incl RV)'!D80 -> 14.75 | F116: ='PAV (incl RV)'!I80 -> 19.2 | G116: ='PAV (incl RV)'!S80 -> 13.47 | H116: ='PAV (incl RV)'!N80 -> 26.4 | I116: ='PAV (incl RV)'!X80 -> 15.96 | J116: ='PAV (incl RV)'!AC80 -> 21.46 | K116: ='PAV (incl RV)'!AH80 -> 16.56 | L116: ='PAV (incl RV)'!AM80 -> 13.5
B117: >3*25A t/m 3*80A | C117: € | E117: ='PAV (incl RV)'!D81 -> 14.75 | F117: ='PAV (incl RV)'!I81 -> 31.56 | G117: ='PAV (incl RV)'!S81 -> 13.47 | H117: ='PAV (incl RV)'!N81 -> 30.1 | I117: ='PAV (incl RV)'!X81 -> 26.39328475 | J117: ='PAV (incl RV)'!AC81 -> 34.8 | K117: ='PAV (incl RV)'!AH81 -> 32.88 | L117: ='PAV (incl RV)'!AM81 -> 35.71355779
B118: LS & Trafo MS/LS | C118: € | E118: ='PAV (incl RV)'!D82 -> 154.3185019 | F118: ='PAV (incl RV)'!I82 -> 112.6918565 | G118: ='PAV (incl RV)'!S82 -> 202.37 | H118: ='PAV (incl RV)'!N82 -> 143 | I118: ='PAV (incl RV)'!X82 -> 277.595662 | J118: ='PAV (incl RV)'!AC82 -> 96.89485868 | K118: ='PAV (incl RV)'!AH82 -> 46.8 | L118: ='PAV (incl RV)'!AM82 -> 170.8910664
B119: MS | C119: € | E119: ='PAV (incl RV)'!D83 -> 404.55 | F119: ='PAV (incl RV)'!I83 -> 915.36 | G119: ='PAV (incl RV)'!S83 -> 581.83 | H119: ='PAV (incl RV)'!N83 -> 569 | I119: ='PAV (incl RV)'!X83 -> 1403.360022 | J119: ='PAV (incl RV)'!AC83 -> 499.9700214 | K119: ='PAV (incl RV)'!AH83 -> 429.4089347 | L119: ='PAV (incl RV)'!AM83 -> 1295.457344
B120: >MS | C120: € | E120: ='PAV (incl RV)'!D84 -> 0 | F120: ='PAV (incl RV)'!I84 -> 6097.2 | G120: ='PAV (incl RV)'!S84 -> 2464.352526 | H120: ='PAV (incl RV)'!N84 -> 1573.597637 | I120: ='PAV (incl RV)'!X84 -> 7386.636438 | J120: ='PAV (incl RV)'!AC84 -> 0 | K120: ='PAV (incl RV)'!AH84 -> 5766 | L120: ='PAV (incl RV)'!AM84 -> 5073.28
B122: Meerlengte | C122: € | E122: ='PAV (incl RV)'!D88 -> 0 | F122: ='PAV (incl RV)'!I88 -> 1.47 | G122: ='PAV (incl RV)'!S88 -> 2.86 | H122: ='PAV (incl RV)'!N88 -> 2.189893793 | I122: ='PAV (incl RV)'!X88 -> 1.44 | J122: ='PAV (incl RV)'!AC88 -> 11.45 | K122: ='PAV (incl RV)'!AH88 -> 5.28 | L122: ='PAV (incl RV)'!AM88 -> 3.76
B124: Eenmalige aansluitvergoeding
B126: Aansluitingen t/m 25 meter
B127: t/m 1 x 6A geschakeld net | C127: € | E127: ='EAV (incl RV)'!D86 -> 350 | F127: ='EAV (incl RV)'!I86 -> 284.07 | G127: ='EAV (incl RV)'!S86 -> 345.18 | H127: ='EAV (incl RV)'!N86 -> 296 | I127: ='EAV (incl RV)'!X86 -> 329.4 | J127: ='EAV (incl RV)'!AC86 -> 363 | K127: ='EAV (incl RV)'!AH86 -> 327.86 | L127: ='EAV (incl RV)'!AM86 -> 356.53
B128: t/m 3*25 A | C128: € | E128: ='EAV (incl RV)'!D87 -> 585 | F128: ='EAV (incl RV)'!I87 -> 539.31 | G128: ='EAV (incl RV)'!S87 -> 542.6 | H128: ='EAV (incl RV)'!N87 -> 568 | I128: ='EAV (incl RV)'!X87 -> 546.7 | J128: ='EAV (incl RV)'!AC87 -> 615 | K128: ='EAV (incl RV)'!AH87 -> 479.57 | L128: ='EAV (incl RV)'!AM87 -> 678.65
B129: >3*25A t/m 3*80A | C129: € | E129: ='EAV (incl RV)'!D88 -> 990.8 | F129: ='EAV (incl RV)'!I88 -> 863.280098 | G129: ='EAV (incl RV)'!S88 -> 771.997235 | H129: ='EAV (incl RV)'!N88 -> 790.91051 | I129: ='EAV (incl RV)'!X88 -> 916.9934645 | J129: ='EAV (incl RV)'!AC88 -> 945.6470588 | K129: ='EAV (incl RV)'!AH88 -> 800.4795817 | L129: ='EAV (incl RV)'!AM88 -> 920.2499115
B130: LS & Trafo MS/LS | C130: € | E130: ='EAV (incl RV)'!D89 -> 7788.407023 | F130: ='EAV (incl RV)'!I89 -> 5461.872245 | G130: ='EAV (incl RV)'!S89 -> 5772.253455 | H130: ='EAV (incl RV)'!N89 -> 4842.556382 | I130: ='EAV (incl RV)'!X89 -> 7412.166608 | J130: ='EAV (incl RV)'!AC89 -> 5607.777778 | K130: ='EAV (incl RV)'!AH89 -> 7184.256543 | L130: ='EAV (incl RV)'!AM89 -> 5435.89
B131: MS en >MS | C131: € | E131: ='EAV (incl RV)'!D90 -> 0 | F131: ='EAV (incl RV)'!I90 -> 75115.32091 | G131: ='EAV (incl RV)'!S90 -> 22321.52 | H131: ='EAV (incl RV)'!N90 -> 34364.06222 | I131: ='EAV (incl RV)'!X90 -> 89048.88776 | J131: ='EAV (incl RV)'!AC90 -> 0 | K131: ='EAV (incl RV)'!AH90 -> 76132.09079 | L131: ='EAV (incl RV)'!AM90 -> 50208.40185
B133: Aansluitingen > 25 meter (per meter)
B134: t/m 1 x 6A geschakeld net | C134: € | E134: ='EAV (incl RV)'!D120 -> 17.36 | F134: ='EAV (incl RV)'!I120 -> 14.07 | G134: ='EAV (incl RV)'!S120 -> 23.04 | H134: ='EAV (incl RV)'!N120 -> 14 | I134: ='EAV (incl RV)'!X120 -> 16.35 | J134: ='EAV (incl RV)'!AC120 -> 18.09 | K134: ='EAV (incl RV)'!AH120 -> 15.23 | L134: ='EAV (incl RV)'!AM120 -> 17.67
B135: t/m 3*25 A | C135: € | E135: ='EAV (incl RV)'!D121 -> 17.66 | F135: ='EAV (incl RV)'!I121 -> 22.89 | G135: ='EAV (incl RV)'!S121 -> 23.92 | H135: ='EAV (incl RV)'!N121 -> 16 | I135: ='EAV (incl RV)'!X121 -> 21.6 | J135: ='EAV (incl RV)'!AC121 -> 21.2 | K135: ='EAV (incl RV)'!AH121 -> 21.06 | L135: ='EAV (incl RV)'!AM121 -> 25.53
B136: >3*25A t/m 3*80A | C136: € | E136: ='EAV (incl RV)'!D122 -> 24.73 | F136: ='EAV (incl RV)'!I122 -> 29.27078788 | G136: ='EAV (incl RV)'!S122 -> 39.83440522 | H136: ='EAV (incl RV)'!N122 -> 21 | I136: ='EAV (incl RV)'!X122 -> 28.6953613 | J136: ='EAV (incl RV)'!AC122 -> 27.19037037 | K136: ='EAV (incl RV)'!AH122 -> 29.02208384 | L136: ='EAV (incl RV)'!AM122 -> 29.95603712
B137: LS & Trafo MS/LS | C137: € | E137: ='EAV (incl RV)'!D123 -> 43.60522983 | F137: ='EAV (incl RV)'!I123 -> 48.50054775 | G137: ='EAV (incl RV)'!S123 -> 55.62813189 | H137: ='EAV (incl RV)'!N123 -> 30.752077 | I137: ='EAV (incl RV)'!X123 -> 60.51990983 | J137: ='EAV (incl RV)'!AC123 -> 45.27698413 | K137: ='EAV (incl RV)'!AH123 -> 50.5866159 | L137: ='EAV (incl RV)'!AM123 -> 77.933685
B138: MS en >MS | C138: € | E138: ='EAV (incl RV)'!D124 -> 0 | F138: ='EAV (incl RV)'!I124 -> 113.8816542 | G138: ='EAV (incl RV)'!S124 -> 0 | H138: ='EAV (incl RV)'!N124 -> 102.204073 | I138: ='EAV (incl RV)'!X124 -> 130.4542727 | J138: ='EAV (incl RV)'!AC124 -> 0 | K138: ='EAV (incl RV)'!AH124 -> 138.6879118 | L138: ='EAV (incl RV)'!AM124 -> 149.7443305
B141: Nacalculatiebedragen 2010 in prijzen 2010
B143: Nacalculaties 2010 die geen betrekking hebben op kosten 2010 | C143: € | E143: -29310.64874 | F143: 466787.3768 | G143: 683275.0639 | H143: 2073582.404 | I143: 2685292.183 | J143: -27768.92261 | K143: 723191.9832 | L143: 301579.9015
B145: Inkomsten vastrecht 2010 | C145: € | E145: =Wegingsfactoren!E9*Rekenvolumes!E10+Wegingsfactoren!E15*Rekenvolumes!E16+Wegingsfactoren!E21*Rekenvolumes!E22+Wegingsfactoren!E27*Rekenvolumes!E28+Wegingsfactoren!E33*Rekenvolumes!E34+Wegingsfactoren!E39*Rekenvolumes!E40+Wegingsfactoren!E45*Rekenvolumes!E46+Wegingsfactoren!E52*Rekenvolumes!E53+Wegingsfactoren!E59*Rekenvolumes!E60+Wegingsfactoren!E66*Rekenvolumes!E67+Wegingsfactoren!E102*Rekenvolumes!E103+Wegingsfactoren!E103*Rekenvolumes!E104 -> 1025355.6 | F145: =Wegingsfactoren!F9*Rekenvolumes!F10+Wegingsfactoren!F15*Rekenvolumes!F16+Wegingsfactoren!F21*Rekenvolumes!F22+Wegingsfactoren!F27*Rekenvolumes!F28+Wegingsfactoren!F33*Rekenvolumes!F34+Wegingsfactoren!F39*Rekenvolumes!F40+Wegingsfactoren!F45*Rekenvolumes!F46+Wegingsfactoren!F52*Rekenvolumes!F53+Wegingsfactoren!F59*Rekenvolumes!F60+Wegingsfactoren!F66*Rekenvolumes!F67+Wegingsfactoren!F102*Rekenvolumes!F103+Wegingsfactoren!F103*Rekenvolumes!F104 -> 4315456.81 | G145: =Wegingsfactoren!G9*Rekenvolumes!G10+Wegingsfactoren!G15*Rekenvolumes!G16+Wegingsfactoren!G21*Rekenvolumes!G22+Wegingsfactoren!G27*Rekenvolumes!G28+Wegingsfactoren!G33*Rekenvolumes!G34+Wegingsfactoren!G39*Rekenvolumes!G40+Wegingsfactoren!G45*Rekenvolumes!G46+Wegingsfactoren!G52*Rekenvolumes!G53+Wegingsfactoren!G59*Rekenvolumes!G60+Wegingsfactoren!G66*Rekenvolumes!G67+Wegingsfactoren!G102*Rekenvolumes!G103+Wegingsfactoren!G103*Rekenvolumes!G104 -> 2407462.665 | H145: =Wegingsfactoren!H9*Rekenvolumes!H10+Wegingsfactoren!H15*Rekenvolumes!H16+Wegingsfactoren!H21*Rekenvolumes!H22+Wegingsfactoren!H27*Rekenvolumes!H28+Wegingsfactoren!H33*Rekenvolumes!H34+Wegingsfactoren!H39*Rekenvolumes!H40+Wegingsfactoren!H45*Rekenvolumes!H46+Wegingsfactoren!H52*Rekenvolumes!H53+Wegingsfactoren!H59*Rekenvolumes!H60+Wegingsfactoren!H66*Rekenvolumes!H67+Wegingsfactoren!H102*Rekenvolumes!H103+Wegingsfactoren!H103*Rekenvolumes!H104 -> 55313773.73 | I145: =Wegingsfactoren!I9*Rekenvolumes!I10+Wegingsfactoren!I15*Rekenvolumes!I16+Wegingsfactoren!I21*Rekenvolumes!I22+Wegingsfactoren!I27*Rekenvolumes!I28+Wegingsfactoren!I33*Rekenvolumes!I34+Wegingsfactoren!I39*Rekenvolumes!I40+Wegingsfactoren!I45*Rekenvolumes!I46+Wegingsfactoren!I52*Rekenvolumes!I53+Wegingsfactoren!I59*Rekenvolumes!I60+Wegingsfactoren!I66*Rekenvolumes!I67+Wegingsfactoren!I102*Rekenvolumes!I103+Wegingsfactoren!I103*Rekenvolumes!I104 -> 59786451.4 | J145: =Wegingsfactoren!J9*Rekenvolumes!J10+Wegingsfactoren!J15*Rekenvolumes!J16+Wegingsfactoren!J21*Rekenvolumes!J22+Wegingsfactoren!J27*Rekenvolumes!J28+Wegingsfactoren!J33*Rekenvolumes!J34+Wegingsfactoren!J39*Rekenvolumes!J40+Wegingsfactoren!J45*Rekenvolumes!J46+Wegingsfactoren!J52*Rekenvolumes!J53+Wegingsfactoren!J59*Rekenvolumes!J60+Wegingsfactoren!J66*Rekenvolumes!J67+Wegingsfactoren!J102*Rekenvolumes!J103+Wegingsfactoren!J103*Rekenvolumes!J104 -> 622035.54 | K145: =Wegingsfactoren!K9*Rekenvolumes!K10+Wegingsfactoren!K15*Rekenvolumes!K16+Wegingsfactoren!K21*Rekenvolumes!K22+Wegingsfactoren!K27*Rekenvolumes!K28+Wegingsfactoren!K33*Rekenvolumes!K34+Wegingsfactoren!K39*Rekenvolumes!K40+Wegingsfactoren!K45*Rekenvolumes!K46+Wegingsfactoren!K52*Rekenvolumes!K53+Wegingsfactoren!K59*Rekenvolumes!K60+Wegingsfactoren!K66*Rekenvolumes!K67+Wegingsfactoren!K102*Rekenvolumes!K103+Wegingsfactoren!K103*Rekenvolumes!K104 -> 41843074.2 | L145: =Wegingsfactoren!L9*Rekenvolumes!L10+Wegingsfactoren!L15*Rekenvolumes!L16+Wegingsfactoren!L21*Rekenvolumes!L22+Wegingsfactoren!L27*Rekenvolumes!L28+Wegingsfactoren!L33*Rekenvolumes!L34+Wegingsfactoren!L39*Rekenvolumes!L40+Wegingsfactoren!L45*Rekenvolumes!L46+Wegingsfactoren!L52*Rekenvolumes!L53+Wegingsfactoren!L59*Rekenvolumes!L60+Wegingsfactoren!L66*Rekenvolumes!L67+Wegingsfactoren!L102*Rekenvolumes!L103+Wegingsfactoren!L103*Rekenvolumes!L104 -> 1511099.92
B146: Inkomsten niet vastrecht 2010 + PAV | C146: € | E146: =SUMPRODUCT(E9:E122, Rekenvolumes!E10:E123)-E145 -> 14023209.4 | F146: =SUMPRODUCT(F9:F122, Rekenvolumes!F10:F123)-F145 -> 49515824.39 | G146: =SUMPRODUCT(G9:G122, Rekenvolumes!G10:G123)-G145 -> 25494540.76 | H146: =SUMPRODUCT(H9:H122, Rekenvolumes!H10:H123)-H145 -> 664570640.7 | I146: =SUMPRODUCT(I9:I122, Rekenvolumes!I10:I123)-I145 -> 687133926.5 | J146: =SUMPRODUCT(J9:J122, Rekenvolumes!J10:J123)-J145 -> 8139942.297 | K146: =SUMPRODUCT(K9:K122, Rekenvolumes!K10:K123)-K145 -> 471587494.1 | L146: =SUMPRODUCT(L9:L122, Rekenvolumes!L10:L123)-L145 -> 35724752.19
B147: Inkomsten niet vastrecht 2010 + PAV - Nacalculatie 2010 | C147: € | E147: =E146-E143 -> 14052520.05 | F147: =F146-F143 -> 49049037.01 | G147: =G146-G143 -> 24811265.7 | H147: =H146-H143 -> 662497058.3 | I147: 684448634.3 | J147: 8167711.22 | K147: =K146-K143 -> 470864302.2 | L147: 35423172.29
B149: Tarieven 2010 gecorrigeerd voor nacalculaties
B151: Transportdienst Verbruik > 3*80A
B153: Afnemers HS (110-150 kV)
B154: Vastrecht transportdienst | C154: € | E154: =E9 -> 0 | F154: =F9 -> 0 | G154: =G9 -> 0 | H154: =H9 -> 0 | I154: 2760 | J154: 0 | K154: =K9 -> 2760 | L154: 0
B155: kW gecontracteerd per jaar | C155: € | E155: =E10*(E$147/E$146) -> 0 | F155: =F10*(F$147/F$146) -> 0 | G155: 0 | H155: 0 | I155: 6.813269551 | J155: 0 | K155: 8.506934353 | L155: 0
B156: kW max per maand | C156: € | E156: 0 | F156: 0 | G156: 0 | H156: 0 | I156: 0.6275379849 | J156: 0 | K156: 0.8486965024 | L156: 0
B157: kVArh blindvermogen | C157: € | E157: 0 | F157: 0 | G157: 0 | H157: 0 | I157: 0 | J157: 0 | K157: 0 | L157: 0
B159: Afnemers HS (110-150 kV) maximaal 600 uur per jaar
B160: Vastrecht transportdienst | C160: € | E160: =E15 -> 0 | F160: 0 | G160: =G15 -> 0 | H160: =H15 -> 0 | I160: 0 | J160: 0 | K160: =K15 -> 2760 | L160: 0
B161: kW gecontracteerd per jaar | C161: € | E161: =E16*(E$147/E$146) -> 0 | F161: 0 | G161: 0 | H161: 0 | I161: 0 | J161: 0 | K161: 4.253467177 | L161: 0
B162: kW max per week | C162: € | E162: 0 | F162: 0 | G162: 0 | H162: 0 | I162: 0 | J162: 0 | K162: 0.2895552773 | L162: 0
B163: kVArh blindvermogen | C163: € | E163: 0 | F163: 0 | G163: 0 | H163: 0 | I163: 0 | J163: 0 | K163: 0.00599079884 | L163: 0
B165: Afnemers TS (25-50 kV)
B166: Vastrecht transportdienst | C166: € | E166: =E21 -> 0 | F166: 2760 | G166: =G21 -> 0 | H166: =H21 -> 2760 | I166: 2760 | J166: 0 | K166: =K21 -> 2760 | L166: 0
B167: kW gecontracteerd per jaar | C167: € | E167: =E22*(E$147/E$146) -> 0 | F167: 5.943437794 | G167: 0 | H167: 11.03545957 | I167: 17.21247044 | J167: 0 | K167: 14.13828526 | L167: 0
B168: kW max per maand | C168: € | E168: 0 | F168: 0.5646265904 | G168: 0 | H168: 0.9071606329 | I168: 1.633590945 | J168: 0 | K168: 1.577577028 | L168: 0
B169: kVArh blindvermogen | C169: € | E169: 0 | F169: 0 | G169: 0 | H169: 0.005981278898 | I169: 0 | J169: 0 | K169: 0.00599079884 | L169: 0
B171: Afnemers TS (25-50 kV) maximaal 600 uur per jaar
B172: Vastrecht transportdienst | C172: € | E172: =E27 -> 0 | F172: 0 | G172: =G27 -> 0 | H172: =H27 -> 2760 | I172: 2760 | J172: 0 | K172: =K27 -> 2760 | L172: 0
B173: kW gecontracteerd per jaar | C173: € | E173: =E28*(E$147/E$146) -> 0 | F173: 0 | G173: 0 | H173: 5.522714183 | I173: 8.606235222 | J173: 0 | K173: 7.069142631 | L173: 0
B174: kW max per week | C174: € | E174: 0 | F174: 0 | G174: 0 | H174: 0.3190015413 | I174: 0.5578115422 | J174: 0 | K174: 0.5491565604 | L174: 0
B175: kVArh blindvermogen | C175: € | E175: 0 | F175: 0 | G175: 0 | H175: 0.005981278898 | I175: 0 | J175: 0 | K175: 0.00599079884 | L175: 0
B177: Afnemers Trafo HS+TS/MS
B178: Vastrecht transportdienst | C178: € | E178: =E33 -> 0 | F178: 2760 | G178: =G33 -> 2760 | H178: =H33 -> 2760 | I178: 2760 | J178: 0 | K178: =K33 -> 2760 | L178: 2760
B179: kW gecontracteerd per jaar | C179: € | E179: =E34*(E$147/E$146) -> 0 | F179: 15.69067578 | G179: 14.00433594 | H179: 14.1357558 | I179: 20.79840179 | J179: 0 | K179: 16.5346048 | L179: 22.67693687
B180: kW max per maand | C180: € | E180: 0 | F180: 1.535388097 | G180: 1.372210818 | H180: 1.395631743 | I180: 1.723239228 | J180: 0 | K180: 1.737331664 | L180: 2.498726757
B181: kVArh blindvermogen | C181: € | E181: 0 | F181: 0 | G181: 0.006228474635 | H181: 0.005981278898 | I181: 0 | J181: 0 | K181: 0.00599079884 | L181: 0
B183: Afnemers Trafo HS+TS/MS maximaal 600 uur per jaar
B184: Vastrecht transportdienst | C184: € | E184: =E39 -> 0 | F184: 2760 | G184: =G39 -> 0 | H184: =H39 -> 2760 | I184: 2760 | J184: 0 | K184: =K39 -> 2760 | L184: 0
B185: kW gecontracteerd per jaar | C185: € | E185: =E40*(E$147/E$146) -> 0 | F185: 7.845337888 | G185: 0 | H185: 7.067877898 | I185: 10.39920089 | J185: 0 | K185: 8.267302399 | L185: 0
B186: kW max per week | C186: € | E186: 0 | F186: 0.5250036718 | G186: 0 | H186: 0.4785023119 | I186: 0.5876943034 | J186: 0 | K186: 0.599079884 | L186: 0
B187: kVArh blindvermogen | C187: € | E187: 0 | F187: 0 | G187: 0 | H187: 0.005981278898 | I187: 0 | J187: 0 | K187: 0 | L187: 0
B189: Afnemers MS (1-20 kV) - TRANSPORT
B190: Vastrecht transportdienst | C190: € | E190: =E45 -> 0 | F190: 0 | G190: =G45 -> 441 | H190: =H45 -> 441 | I190: 0 | J190: 441 | K190: =K45 -> 0 | L190: 0
B191: kW gecontracteerd | C191: € | E191: =E46*(E$147/E$146) -> 0 | F191: 0 | G191: 12.38882533 | H191: 10.48717567 | I191: 0 | J191: 16.7268687 | K191: 0 | L191: 0
B192: kW max per maand | C192: € | E192: 0 | F192: 0 | G192: 1.051055095 | H192: 1.016817413 | I192: 0 | J192: 1.635560647 | K192: 0 | L192: 0
B193: kWh tarief normaal | C193: € | E193: 0 | F193: 0 | G193: 0.005547235222 | H193: 0.003987519266 | I193: 0 | J193: 0.002408187455 | K193: 0 | L193: 0
B194: kVArh blindvermogen | C194: € | E194: 0 | F194: 0 | G194: 0.006033834803 | H194: 0.005981278898 | I194: 0 | J194: 0.008428656094 | K194: 0 | L194: 0
B196: Afnemers MS (1-20 kV) - DISTRIBUTIE
B197: Vastrecht transportdienst | C197: € | E197: =E52 -> 441 | F197: 441 | G197: =G52 -> 441 | H197: =H52 -> 441 | I197: 441 | J197: 441 | K197: =K52 -> 441 | L197: 441
B198: kW gecontracteerd | C198: € | E198: =E53*(E$147/E$146) -> 13.85890681 | F198: 10.46045052 | G198: 13.15765267 | H198: 13.21862637 | I198: 13.14841492 | J198: 13.09451929 | K198: 9.944726075 | L198: 11.3037639
B199: kW max per maand | C199: € | E199: 1.302717198 | F199: 1.020290155 | G199: 1.32355086 | H199: 1.325850156 | I199: 1.195310448 | J199: 1.394741901 | K199: 1.347929739 | L199: 1.457590608
B200: kWh tarief normaal | C200: € | E200: 0.006814213038 | F200: 0.007726469132 | G200: 0.008466832707 | H200: 0.007675974586 | I200: 0.007371081093 | J200: 0.008629338382 | K200: 0.008287271729 | L200: 0.00971727072
B201: kVArh blindvermogen | C201: € | E201: 0.01262633592 | F201: 0 | G201: 0.006033834803 | H201: 0.005981278898 | I201: 0 | J201: 0.008428656094 | K201: 0.00599079884 | L201: 0
B203: Afnemers Trafo MS/LS
B204: Vastrecht transportdienst | C204: € | E204: =E59 -> 441 | F204: 441 | G204: =G59 -> 441 | H204: =H59 -> 441 | I204: 441 | J204: 441 | K204: =K59 -> 441 | L204: 441
B205: kW gecontracteerd | C205: € | E205: =E60*(E$147/E$146) -> 15.50233466 | F205: 18.78126343 | G205: 21.11842181 | H205: 20.13697229 | I205: 20.32027761 | J205: 18.32229289 | K205: 16.17515687 | L205: 22.61744338
B206: kW max per maand | C206: € | E206: 1.302717198 | F206: 1.020290155 | G206: 1.32355086 | H206: 1.325850156 | I206: 1.195310448 | J206: 1.394741901 | K206: 1.347929739 | L206: 1.457590608
B207: kWh tarief normaal | C207: € | E207: 0.006814213038 | F207: 0.007726469132 | G207: 0.008466832707 | H207: 0.007675974586 | I207: 0.007371081093 | J207: 0.008629338382 | K207: 0.008287271729 | L207: 0.00971727072
B208: kVArh blindvermogen | C208: € | E208: 0.01262633592 | F208: 0 | G208: 0.006033834803 | H208: 0.005981278898 | I208: 0 | J208: 0.008428656094 | K208: 0.00599079884 | L208: 0
B210: Afnemers LS
B211: Vastrecht transportdienst | C211: € | E211: =E66 -> 18 | F211: 18 | G211: =G66 -> 0 | H211: =H66 -> 18 | I211: 18 | J211: 18 | K211: =K66 -> 18 | L211: 18
B212: kW gecontracteerd | C212: € | E212: =E67*(E$147/E$146) -> 6.603774106 | F212: 5.408528393 | G212: 0 | H212: 4.495927972 | I212: 3.824993432 | J212: 5.900059266 | K212: 4.073743211 | L212: 6.415381792
B213: kWh tarief laag | C213: € | E213: 0.01633406949 | F213: 0.01991051661 | G213: 0 | H213: 0.01425538137 | I213: 0.01105662164 | J213: 0.01685731219 | K213: 0.0149769971 | L213: 0.01745142497
B214: kWh tarief normaal | C214: € | E214: 0.03497294633 | F214: 0.03011341816 | G214: 0 | H214: 0.02721481899 | I214: 0.03077924402 | J214: 0.0324101895 | K214: 0.0299539942 | L214: 0.03470453828
B215: kVArh blindvermogen | C215: € | E215: 0.01883929487 | F215: 0 | G215: 0 | H215: 0 | I215: 0 | J215: 0.01264298414 | K215: 0.00599079884 | L215: 0
B217: Transportdienst Kleinverbruik t/m 3*80A (oude categorisering)
B219: Afnemers > 3 * 25 A (DT)
B220: Vastrecht transportdienst
B221: kW gecontracteerd
B222: kWh tarief laag
B223: kWh tarief normaal
B225: Afnemers > 3* 25 A (ET)
B226: Vastrecht transportdienst
B227: kW gecontracteerd
B228: kWh tarief enkel
B230: Afnemers < 3* 25 A (DT)
B231: Vastrecht transportdienst
B232: kWh tarief laag
B233: kWh tarief normaal
B235: Afnemers < 3* 25 A (ET)
B236: Vastrecht transportdienst
B237: kWh tarief enkel
B239: Afnemers LS geschakeld (1 * 6 A)
B240: Vastrecht transportdienst
B241: kWh tarief laag
B242: kWh tarief normaal
B244: Transportdienst Kleinverbruik t/m 3*80A (nieuwe categorisering)
B246: Kleinverbruikers (t/m 3*80 A op LS)
B247: Vastrecht transportdienst t/m 1*6A LS geschakeld | C247: € | E247: =E102 -> 0.54 | F247: 0.54 | G247: =G102 -> 0.54 | H247: =H102 -> 0.54 | I247: 0.54 | J247: 0.54 | K247: =K102 -> 0.54 | L247: 0.54
B248: Vastrecht transportdienst t/m 3*80A op LS | C248: € | E248: 18 | F248: 18 | G248: =G103 -> 18 | H248: =H103 -> 18 | I248: 18 | J248: 18 | K248: =K103 -> 18 | L248: 18
B250: Kleinverbruikers (t/m 3*80 A op LS) capaciteitstarieven per afnemerscategorie
B251: t/m 1*6A op het geschakeld net | C251: € | E251: =E106*(E$147/E$146) -> 1.729106558 | F251: 1.523005935 | G251: 1.32355086 | H251: 1.321364197 | I251: 1.343230115 | J251: 1.395243607 | K251: 1.311984946 | L251: 1.789762617
B252: t/m 3*25A + alle 1-fase aansluitingen2 | C252: € | E252: 138.3285247 | F252: 121.8404748 | G252: 105.8840688 | H252: 105.7091357 | I252: 107.4584092 | J252: 111.6194886 | K252: 104.9587957 | L252: 143.1810094
B253: > 3*25A t/m 3*35A | C253: € | E253: 691.6426234 | F253: 609.2023739 | G253: 529.420344 | H253: 528.5456787 | I253: 537.2920462 | J253: 558.0974428 | K253: 524.7939784 | L253: 715.9050469
... 216 more rows

Sheet Rekenvolumes
B2: Rekenvolumina | E2: COGAS | F2: DNWB | G2: ENDINET | H2: ENEXIS | I2: LIANDER | J2: RENDO | K2: STEDIN | L2: WESTLAND
B4: Rekenvolumina 2008 - 2010
B5: (= gefactureerde volumes 2006)
B7: Transportdienst Verbruik > 3*80A
B9: Afnemers HS (110-150 kV)
B10: Vastrecht transportdienst | E10: 0 | F10: 0 | G10: 0 | H10: 0 | I10: 4.879821309 | J10: 0 | K10: 2.002536232 | L10: 0
B11: kW gecontracteerd per jaar | E11: 0 | F11: 0 | G11: 0 | H11: 0 | I11: 13386.0626 | J11: 0 | K11: 303016.7636 | L11: 0
B12: kW max per maand | E12: 0 | F12: 0 | G12: 0 | H12: 0 | I12: 43469.71148 | J12: 0 | K12: 3394729.545 | L12: 0
B13: kVArh blindvermogen | E13: 0 | F13: 0 | G13: 0 | H13: 0 | I13: 0 | J13: 0 | K13: 0 | L13: 0
B15: Afnemers HS (110-150 kV) maximaal 600 uur per jaar
B16: Vastrecht transportdienst | E16: 0 | F16: 0 | G16: 0 | H16: 0 | I16: 0 | J16: 0 | K16: 5 | L16: 0
B17: kW gecontracteerd per jaar | E17: 0 | F17: 0 | G17: 0 | H17: 0 | I17: 0 | J17: 0 | K17: 30165.46512 | L17: 0
B18: kW max per week | E18: 0 | F18: 0 | G18: 0 | H18: 0 | I18: 0 | J18: 0 | K18: 105469.913 | L18: 0
B19: kVArh blindvermogen | E19: 0 | F19: 0 | G19: 0 | H19: 0 | I19: 0 | J19: 0 | K19: 1341372.549 | L19: 0
B21: Afnemers TS (25-50 kV)
B22: Vastrecht transportdienst | E22: 0 | F22: 1 | G22: 0 | H22: 0 | I22: 8.240093381 | J22: 0 | K22: 70.41413043 | L22: 0
B23: kW gecontracteerd per jaar | E23: 0 | F23: 21780.096 | G23: 0 | H23: 0 | I23: 48218.7325 | J23: 0 | K23: 842856.6315 | L23: 0
B24: kW max per maand | E24: 0 | F24: 223082.64 | G24: 0 | H24: 0 | I24: 440583.7836 | J24: 0 | K24: 6590831 | L24: 0
B25: kVArh blindvermogen | E25: 0 | F25: 0 | G25: 0 | H25: 0 | I25: 0 | J25: 0 | K25: 83654313.73 | L25: 0
B27: Afnemers TS (25-50 kV) maximaal 600 uur per jaar
B28: Vastrecht transportdienst | E28: 0 | F28: 0 | G28: 0 | H28: 2 | I28: 11.997 | J28: 0 | K28: 10.86811594 | L28: 0
B29: kW gecontracteerd per jaar | E29: 0 | F29: 0 | G29: 0 | H29: 7472.009174 | I29: 78500.10466 | J29: 0 | K29: 238339.7887 | L29: 0
B30: kW max per week | E30: 0 | F30: 0 | G30: 0 | H30: 42608 | I30: 1494718.992 | J30: 0 | K30: 2101154.839 | L30: 0
B31: kVArh blindvermogen | E31: 0 | F31: 0 | G31: 0 | H31: 5624760 | I31: 0 | J31: 0 | K31: 53723333.33 | L31: 0
B33: Afnemers Trafo HS+TS/MS
B34: Vastrecht transportdienst | E34: 0 | F34: 24.41666667 | G34: 0 | H34: 214.5264163 | I34: 205.7931796 | J34: 0 | K34: 85.39094203 | L34: 1
B35: kW gecontracteerd per jaar | E35: 0 | F35: 60816.0125 | G35: 0 | H35: 1436437.392 | I35: 918893.1661 | J35: 0 | K35: 321782.6198 | L35: 16964
B36: kW max per maand | E36: 0 | F36: 524952.6 | G36: 0 | H36: 14398230.71 | I36: 8934930.701 | J36: 0 | K36: 3136940 | L36: 170788
B37: kVArh blindvermogen | E37: 0 | F37: 0 | G37: 0 | H37: 57994213.36 | I37: 18317886.43 | J37: 0 | K37: 13652058.82 | L37: 0
B39: Afnemers Trafo HS+TS/MS maximaal 600 uur per jaar
B40: Vastrecht transportdienst | E40: 0 | F40: 1 | G40: 0 | H40: 14.9469697 | I40: 8 | J40: 0 | K40: 3.909057971 | L40: 0
B41: kW gecontracteerd per jaar | E41: 0 | F41: 9300 | G41: 0 | H41: 96262.76661 | I41: 25227.01587 | J41: 0 | K41: 23327.57937 | L41: 0
B42: kW max per week | E42: 0 | F42: 168656 | G42: 0 | H42: 1040310.944 | I42: 387708.2222 | J42: 0 | K42: 500788.5714 | L42: 0
B43: kVArh blindvermogen | E43: 0 | F43: 0 | G43: 0 | H43: 153627.2727 | I43: 0 | J43: 0 | K43: 0 | L43: 0
B45: Afnemers MS (1-20 kV) - TRANSPORT
B46: Vastrecht transportdienst | E46: 0 | F46: 0 | G46: 5 | H46: 275.2972336 | I46: 0 | J46: 1 | K46: 0 | L46: 0
B47: kW gecontracteerd | E47: 0 | F47: 0 | G47: 35855 | H47: 693522.1371 | I47: 0 | J47: 5900 | K47: 0 | L47: 0
B48: kW max per maand | E48: 0 | F48: 0 | G48: 404848 | H48: 6702417.348 | I48: 0 | J48: 65430 | K48: 0 | L48: 0
B49: kWh tarief normaal | E49: 0 | F49: 0 | G49: 173654956 | H49: 2807015480 | I49: 0 | J49: 5054200 | K49: 0 | L49: 0
B50: kVArh blindvermogen | E50: 0 | F50: 0 | G50: 0 | H50: 75202176.36 | I50: 0 | J50: 296 | K50: 0 | L50: 0
B52: Afnemers MS (1-20 kV) - DISTRIBUTIE
B53: Vastrecht transportdienst | E53: 31 | F53: 315.25 | G53: 588 | H53: 8145.133836 | I53: 7468.664 | J53: 19 | K53: 6399.277631 | L53: 124.1486565
B54: kW gecontracteerd | E54: 27406 | F54: 163038.25 | G54: 134388 | H54: 2685845.966 | I54: 3025210.157 | J54: 22331.91667 | K54: 2489436.198 | L54: 134688.8752
B55: kW max per maand | E55: 274359 | F55: 1342584.2 | G55: 1126550 | H55: 24431689.93 | I55: 25836760.51 | J55: 218273 | K55: 18350210.73 | L55: 1101312.976
B56: kWh tarief normaal | E56: 99246802 | F56: 439948595.3 | G56: 378774636 | H56: 7673394276 | I56: 8290828757 | J56: 80215075 | K56: 5984156794 | L56: 314965717.7
B57: kVArh blindvermogen | E57: 2059440 | F57: 0 | G57: 8233302 | H57: 275219674.4 | I57: 6011116.257 | J57: 2608404 | K57: 93023806.76 | L57: 0
B59: Afnemers Trafo MS/LS
B60: Vastrecht transportdienst | E60: 189 | F60: 1227.166667 | G60: 755.0271223 | H60: 13875.09727 | I60: 13559.46542 | J60: 127.5 | K60: 10329.2456 | L60: 1234.727515
B61: kW gecontracteerd | E61: 36884 | F61: 117252.25 | G61: 37065.86513 | H61: 1001458.428 | I61: 1244157.864 | J61: 20380.16667 | K61: 1034847.611 | L61: 286608.8256
B62: kW max per maand | E62: 343533 | F62: 949240 | G62: 271896.25 | H62: 8069353.959 | I62: 9606120.002 | J62: 192959 | K62: 7513463.519 | L62: 2111305.541
B63: kWh tarief normaal | E63: 95770032 | F63: 253035750.8 | G63: 72247391.89 | H63: 2174199787 | I63: 2550767257 | J63: 51341646 | K63: 1917376962 | L63: 557775692.9
B64: kVArh blindvermogen | E64: 1509207 | F64: 0 | G64: 154174.9691 | H64: 40773203.82 | I64: 0 | J64: 1021367 | K64: 26609153.05 | L64: 0
B66: Afnemers LS
B67: Vastrecht transportdienst | E67: 307 | F67: 452 | G67: 0 | H67: 3762.604242 | I67: 6205.047003 | J67: 87.8 | K67: 333.1150877 | L67: 138.2067877
B68: kW gecontracteerd | E68: 23466 | F68: 22460 | G68: 0 | H68: 91165.26095 | I68: 232486.4278 | J68: 5437.75 | K68: 22487.10838 | L68: 22424.59496
B69: kWh tarief laag | E69: 15955565 | F69: 8221796 | G69: 0 | H69: 70996576.92 | I69: 168146152.7 | J69: 4904362 | K69: 13985110 | L69: 6139185.238
B70: kWh tarief normaal | E70: 32687208 | F70: 15989867.47 | G70: 0 | H70: 106841993.3 | I70: 265824582.6 | J70: 9112678 | K70: 23842312 | L70: 7890424.121
B71: kVArh blindvermogen | E71: 812096 | F71: 0 | G71: 0 | H71: 0 | I71: 0 | J71: 230229 | K71: 619986.3328 | L71: 0
B73: Transportdienst Kleinverbruik t/m 3*80A (oude categorisering)
B75: Afnemers > 3 * 25 A (DT)
B76: Vastrecht transportdienst | E76: 1056 | F76: 5670.153333 | G76: 719.8804083 | H76: 79041.91974 | I76: 72229.69835 | J76: 1084.5 | K76: 60310 | L76: 4358.397844
B77: kW gecontracteerd | E77: 12901 | F77: 126237.275 | G77: 20968.24938 | H77: 2293885.323 | I77: 2214496.698 | J77: 13472 | K77: 1916779.712 | L77: 127333.7474
B78: kWh tarief laag | E78: 13979541 | F78: 83868963.11 | G78: 9934909.96 | H78: 1083733882 | I78: 962625491.3 | J78: 10636874 | K78: 653632150 | L78: 66205515.65
B79: kWh tarief normaal | E79: 27223165 | F79: 105600835.5 | G79: 11656709.72 | H79: 1471462182 | I79: 1351737615 | J79: 23961893 | K79: 1014531667 | L79: 84744192.26
B81: Afnemers > 3* 25 A (ET)
B82: Vastrecht transportdienst | E82: 514 | F82: 2001.5725 | G82: 2261.581564 | H82: 31642.00365 | I82: 42061.22343 | J82: 0 | K82: 8814.777778 | L82: 0
B83: kW gecontracteerd | E83: 6279 | F83: 42964.7 | G83: 82089.13553 | H83: 920371.4696 | I83: 1400651.125 | J83: 0 | K83: 252634.4144 | L83: 0
B84: kWh tarief enkel | E84: 14275627 | F84: 33044894.07 | G84: 58131703.81 | H84: 767515660.2 | I84: 938039405.6 | J84: 0 | K84: 176581478.5 | L84: 0
B86: Afnemers < 3* 25 A (DT)
B87: Vastrecht transportdienst | E87: 30659 | F87: 72379.44583 | G87: 7357.255189 | H87: 1051385.071 | I87: 767249.8463 | J87: 16985.6 | K87: 1256257.13 | L87: 39703.27807
B88: kWh tarief laag | E88: 63304265 | F88: 187921252.8 | G88: 18943261.8 | H88: 2434460330 | I88: 1994327769 | J88: 33407566 | K88: 2432105067 | L88: 74170631.38
B89: kWh tarief normaal | E89: 72835431 | F89: 175995459.2 | G89: 19214011.01 | H89: 2538428098 | I89: 2044927636 | J89: 37443399 | K89: 2452015711 | L89: 91715461.58
B91: Afnemers < 3* 25 A (ET)
B92: Vastrecht transportdienst | E92: 18395 | F92: 114971.205 | G92: 89176.10919 | H92: 1298740.77 | I92: 1867079.161 | J92: 12267 | K92: 543917.3333 | L92: 5624.993333
B93: kWh tarief enkel | E93: 51158487 | F93: 331613546.8 | G93: 297352385.7 | H93: 4363077222 | I93: 5779873518 | J93: 32427231 | K93: 1516581239 | L93: 14448471.23
B95: Afnemers LS geschakeld (1 * 6 A)
B96: Vastrecht transportdienst | E96: 21440 | F96: 81115.33333 | G96: 40214.5 | H96: 889401.0101 | I96: 494083.1218 | J96: 17296 | K96: 596813.037 | L96: 22644
B97: kWh tarief laag | E97: 3691840 | F97: 0 | G97: 8702694.295 | H97: 136155581.5 | I97: 98509241.63 | J97: 2384588 | K97: 113637176.2 | L97: 4058235
B98: kWh tarief normaal | E98: 1570396 | F98: 14728181.31 | G98: 5604928.274 | H98: 51776188.96 | I98: 38440243.82 | J98: 778875 | K98: 37168904.93 | L98: 2104270
B100: Transportdienst Kleinverbruik t/m 3*80A (nieuwe categorisering)
B102: Kleinverbruikers (t/m 3*80 A op LS)
B103: Vastrecht transportdienst t/m 1*6A LS geschakeld | E103: =E96 -> 21440 | F103: =F96 -> 81115.33333 | G103: =G96 -> 40214.5 | H103: 889401.0101 | I103: 494083.1218 | J103: 17296 | K103: =K96 -> 596813.037 | L103: 22644
B104: Vastrecht transportdienst t/m 3*80A op LS | E104: =E92+E87+E82+E76 -> 50624 | F104: =F92+F87+F82+F76 -> 195022.3767 | G104: =G92+G87+G82+G76 -> 99514.82635 | H104: =H92+H87+H82+H76 -> 2460809.765 | I104: 2748619.929 | J104: 30337.1 | K104: =K92+K87+K82+K76 -> 1869299.241 | L104: 49686.66925
B106: Kleinverbruikers (t/m 3*80 A op LS) capaciteitstarieven per afnemerscategorie
B107: t/m 1*6A op het geschakeld net | E107: =Volumes!E$7*E96 -> 21440 | F107: =Volumes!F$7*F96 -> 81115.33333 | G107: =Volumes!G$7*G96 -> 40214.5 | H107: =Volumes!H$7*H96 -> 889401.0101 | I107: =Volumes!I$7*I96 -> 494083.1218 | J107: =Volumes!J$7*J96 -> 17296 | K107: =Volumes!K$7*K96 -> 596813.037 | L107: =Volumes!L$7*L96 -> 22644
B108: t/m 3*25A + alle 1-fase aansluitingen2 | E108: =Volumes!E$8*(E92+E87) -> 49054 | F108: =Volumes!F$8*(F92+F87) -> 187350.6508 | G108: =Volumes!G$8*(G92+G87) -> 96533.36438 | H108: =Volumes!H$8*(H92+H87) -> 2350125.841 | I108: =Volumes!I$8*(I92+I87) -> 2634329.008 | J108: =Volumes!J$8*(J92+J87) -> 29252.6 | K108: =Volumes!K$8*(K92+K87) -> 1800174.463 | L108: =Volumes!L$8*(L92+L87) -> 45328.2714
B109: > 3*25A t/m 3*35A | E109: =Volumes!E$9*(E82+E76) -> 838 | F109: =Volumes!F$9*(F82+F76) -> 3789.953333 | G109: =Volumes!G$9*(G82+G76) -> 1157.166998 | H109: =Volumes!H$9*(H82+H76) -> 55920.71112 | I109: =Volumes!I$9*(I82+I76) -> 54179.40125 | J109: =Volumes!J$9*(J82+J76) -> 502.2 | K109: =Volumes!K$9*(K82+K76) -> 36649 | L109: =Volumes!L$9*(L82+L76) -> 1756.669736
B110: > 3*35A t/m 3*50A | E110: =Volumes!E$10*(E82+E76) -> 268 | F110: =Volumes!F$10*(F82+F76) -> 1700.86 | G110: =Volumes!G$10*(G82+G76) -> 604.3491797 | H110: =Volumes!H$10*(H82+H76) -> 21899.90895 | I110: =Volumes!I$10*(I82+I76) -> 22143.88644 | J110: =Volumes!J$10*(J82+J76) -> 254.8 | K110: =Volumes!K$10*(K82+K76) -> 11742 | L110: =Volumes!L$10*(L82+L76) -> 1032.944367
B111: > 3*50A t/m 3*63A | E111: =Volumes!E$11*(E82+E76) -> 240 | F111: =Volumes!F$11*(F82+F76) -> 1200.7825 | G111: =Volumes!G$11*(G82+G76) -> 1114.790204 | H111: =Volumes!H$11*(H82+H76) -> 19967.53459 | I111: =Volumes!I$11*(I82+I76) -> 21917.85275 | J111: =Volumes!J$11*(J82+J76) -> 198.7 | K111: =Volumes!K$11*(K82+K76) -> 13814 | L111: =Volumes!L$11*(L82+L76) -> 869.3609178
B112: > 3*63A t/m 3*80A | E112: =Volumes!E$12*(E82+E76) -> 224 | F112: =Volumes!F$12*(F82+F76) -> 980.0466667 | G112: =Volumes!G$12*(G82+G76) -> 105.1555909 | H112: =Volumes!H$12*(H82+H76) -> 12895.84544 | I112: =Volumes!I$12*(I82+I76) -> 16049.78134 | J112: =Volumes!J$12*(J82+J76) -> 128.8 | K112: =Volumes!K$12*(K82+K76) -> 6920 | L112: =Volumes!L$12*(L82+L76) -> 699.422823
B114: Periodieke aansluitvergoeding
B116: t/m 1 x 6A geschakeld net | E116: 21440 | F116: 81115.33333 | G116: 40214.5 | H116: 889264 | I116: 713241 | J116: 17296 | K116: 734996 | L116: 22644
B117: t/m 3*25 A | E117: 49054 | F117: 187350.6508 | G117: 95165.14676 | H117: 2402350 | I117: 2635276.193 | J117: 29252.6 | K117: 1801974 | L117: 45318.28728
B118: >3*25A t/m 3*80A | E118: 1570 | F118: 7671.725833 | G118: 2922.980478 | H118: 65022 | I118: 111620.4832 | J118: 1084.5 | K118: 67577 | L118: 4410.183898
B119: LS & Trafo MS/LS | E119: 496 | F119: 1679.166667 | G119: 739.7711607 | H119: 31863 | I119: 12021 | J119: 215.3 | K119: 11163.7 | L119: 1042.470907
B120: MS | E120: 31 | F120: 315.25 | G120: 588 | H120: 8639 | I120: 11818 | J120: 20 | K120: 7842.9 | L120: 340.684434
B121: >MS | E121: 0 | F121: 25.41666667 | G121: 5 | H121: 1276 | I121: 165 | J121: 0 | K121: 130 | L121: 16.85806093
B123: Meerlengte | E123: 0 | F123: 104124 | G123: 0 | H123: 0 | I123: 532006 | J123: 5615 | K123: 253202 | L123: 1533.333333
B126: Rekenvolumina 2011-2013
B127: (= gefactureerde volumes 2009)
B129: Transportdienst Verbruik > 3*80A
B131: Afnemers HS (110-150 kV)
B132: Vastrecht transportdienst | E132: =Volumes!E383 -> 0 | F132: =Volumes!F383 -> 0 | G132: =Volumes!G383 -> 0 | H132: =Volumes!H383 -> 0 | I132: =Volumes!I383 -> 8 | J132: =Volumes!J383 -> 0 | K132: =Volumes!K383 -> 2 | L132: =Volumes!L383 -> 0
B133: kW gecontracteerd per jaar | E133: =Volumes!E384 -> 0 | F133: =Volumes!F384 -> 0 | G133: =Volumes!G384 -> 0 | H133: =Volumes!H384 -> 0 | I133: =Volumes!I384 -> 8025 | J133: =Volumes!J384 -> 0 | K133: =Volumes!K384 -> 261640 | L133: =Volumes!L384 -> 0
B134: kW max per maand | E134: =Volumes!E385 -> 0 | F134: =Volumes!F385 -> 0 | G134: =Volumes!G385 -> 0 | H134: =Volumes!H385 -> 0 | I134: =Volumes!I385 -> 53876.57143 | J134: =Volumes!J385 -> 0 | K134: =Volumes!K385 -> 2765736 | L134: =Volumes!L385 -> 0
B135: kVArh blindvermogen | E135: =Volumes!E386 -> 0 | F135: =Volumes!F386 -> 0 | G135: =Volumes!G386 -> 0 | H135: =Volumes!H386 -> 0 | I135: =Volumes!I386 -> 0 | J135: =Volumes!J386 -> 0 | K135: =Volumes!K386 -> 0 | L135: =Volumes!L386 -> 0
B137: Afnemers HS (110-150 kV) maximaal 600 uur per jaar
B138: Vastrecht transportdienst | E138: =Volumes!E389 -> 0 | F138: =Volumes!F389 -> 0 | G138: =Volumes!G389 -> 0 | H138: =Volumes!H389 -> 0 | I138: =Volumes!I389 -> 0 | J138: =Volumes!J389 -> 0 | K138: =Volumes!K389 -> 6 | L138: =Volumes!L389 -> 0
B139: kW gecontracteerd per jaar | E139: =Volumes!E390 -> 0 | F139: =Volumes!F390 -> 0 | G139: =Volumes!G390 -> 0 | H139: =Volumes!H390 -> 0 | I139: =Volumes!I390 -> 0 | J139: =Volumes!J390 -> 0 | K139: =Volumes!K390 -> 24282 | L139: =Volumes!L390 -> 0
B140: kW max per week | E140: =Volumes!E391 -> 0 | F140: =Volumes!F391 -> 0 | G140: =Volumes!G391 -> 0 | H140: =Volumes!H391 -> 0 | I140: =Volumes!I391 -> 0 | J140: =Volumes!J391 -> 0 | K140: =Volumes!K391 -> 129184.625 | L140: =Volumes!L391 -> 0
B141: kVArh blindvermogen | E141: =Volumes!E392 -> 0 | F141: =Volumes!F392 -> 0 | G141: =Volumes!G392 -> 0 | H141: =Volumes!H392 -> 0 | I141: =Volumes!I392 -> 0 | J141: =Volumes!J392 -> 0 | K141: =Volumes!K392 -> 3966653.333 | L141: =Volumes!L392 -> 0
B143: Afnemers TS (25-50 kV)
B144: Vastrecht transportdienst | E144: =Volumes!E395 -> 0 | F144: =Volumes!F395 -> 1.083333333 | G144: =Volumes!G395 -> 0 | H144: =Volumes!H395 -> 3 | I144: =Volumes!I395 -> 12.47360623 | J144: =Volumes!J395 -> 0 | K144: =Volumes!K395 -> 62.4545471 | L144: =Volumes!L395 -> 0
B145: kW gecontracteerd per jaar | E145: =Volumes!E396 -> 0 | F145: =Volumes!F396 -> 22019 | G145: =Volumes!G396 -> 0 | H145: =Volumes!H396 -> 54378.22519 | I145: =Volumes!I396 -> 115955.8987 | J145: =Volumes!J396 -> 0 | K145: =Volumes!K396 -> 556278.8182 | L145: =Volumes!L396 -> 0
B146: kW max per maand | E146: =Volumes!E397 -> 0 | F146: =Volumes!F397 -> 196972 | G146: =Volumes!G397 -> 0 | H146: =Volumes!H397 -> 347301.9835 | I146: =Volumes!I397 -> 1142836.706 | J146: =Volumes!J397 -> 0 | K146: =Volumes!K397 -> 5248448.724 | L146: =Volumes!L397 -> 0
B147: kVArh blindvermogen | E147: =Volumes!E398 -> 0 | F147: =Volumes!F398 -> 0 | G147: =Volumes!G398 -> 0 | H147: =Volumes!H398 -> 6272967.273 | I147: =Volumes!I398 -> 0 | J147: =Volumes!J398 -> 0 | K147: =Volumes!K398 -> 20047383.33 | L147: =Volumes!L398 -> 0
B149: Afnemers TS (25-50 kV) maximaal 600 uur per jaar
B150: Vastrecht transportdienst | E150: =Volumes!E401 -> 0 | F150: =Volumes!F401 -> 0 | G150: =Volumes!G401 -> 0 | H150: =Volumes!H401 -> 1 | I150: =Volumes!I401 -> 12 | J150: =Volumes!J401 -> 0 | K150: =Volumes!K401 -> 11 | L150: =Volumes!L401 -> 0
B151: kW gecontracteerd per jaar | E151: =Volumes!E402 -> 0 | F151: =Volumes!F402 -> 0 | G151: =Volumes!G402 -> 0 | H151: =Volumes!H402 -> 5072 | I151: =Volumes!I402 -> 69147.5 | J151: =Volumes!J402 -> 0 | K151: =Volumes!K402 -> 296897.8176 | L151: =Volumes!L402 -> 0
B152: kW max per week | E152: =Volumes!E403 -> 0 | F152: =Volumes!F403 -> 0 | G152: =Volumes!G403 -> 0 | H152: =Volumes!H403 -> 35083.63636 | I152: =Volumes!I403 -> 1017475 | J152: =Volumes!J403 -> 0 | K152: =Volumes!K403 -> 2112266.186 | L152: =Volumes!L403 -> 0
B153: kVArh blindvermogen | E153: =Volumes!E404 -> 0 | F153: =Volumes!F404 -> 0 | G153: =Volumes!G404 -> 0 | H153: =Volumes!H404 -> 1381912.727 | I153: =Volumes!I404 -> 0 | J153: =Volumes!J404 -> 0 | K153: =Volumes!K404 -> 228360 | L153: =Volumes!L404 -> 0
B155: Afnemers Trafo HS+TS/MS
B156: Vastrecht transportdienst | E156: =Volumes!E407 -> 0 | F156: =Volumes!F407 -> 42 | G156: =Volumes!G407 -> 0.9966573009 | H156: =Volumes!H407 -> 177.255502 | I156: =Volumes!I407 -> 296.3417824 | J156: =Volumes!J407 -> 0 | K156: =Volumes!K407 -> 106.9999964 | L156: =Volumes!L407 -> 1.116666667
B157: kW gecontracteerd per jaar | E157: =Volumes!E408 -> 0 | F157: =Volumes!F408 -> 74330.16667 | G157: =Volumes!G408 -> 14935.69686 | H157: =Volumes!H408 -> 1316544.555 | I157: =Volumes!I408 -> 1023162.886 | J157: =Volumes!J408 -> 0 | K157: =Volumes!K408 -> 392978.545 | L157: =Volumes!L408 -> 18335.33333
B158: kW max per maand | E158: =Volumes!E409 -> 0 | F158: =Volumes!F409 -> 435330.8571 | G158: =Volumes!G409 -> 161377.4927 | H158: =Volumes!H409 -> 13085783.29 | I158: =Volumes!I409 -> 9580235.368 | J158: =Volumes!J409 -> 0 | K158: =Volumes!K409 -> 3640770.545 | L158: =Volumes!L409 -> 178391.2016
B159: kVArh blindvermogen | E159: =Volumes!E410 -> 0 | F159: =Volumes!F410 -> 0 | G159: =Volumes!G410 -> 0 | H159: =Volumes!H410 -> 46422245.45 | I159: =Volumes!I410 -> 0 | J159: =Volumes!J410 -> 0 | K159: =Volumes!K410 -> 12333191.67 | L159: =Volumes!L410 -> 0
B161: Afnemers Trafo HS+TS/MS maximaal 600 uur per jaar
B162: Vastrecht transportdienst | E162: =Volumes!E413 -> 0 | F162: =Volumes!F413 -> 1 | G162: =Volumes!G413 -> 0 | H162: =Volumes!H413 -> 12.81818182 | I162: =Volumes!I413 -> 13.5 | J162: =Volumes!J413 -> 0 | K162: =Volumes!K413 -> 2 | L162: =Volumes!L413 -> 0
B163: kW gecontracteerd per jaar | E163: =Volumes!E414 -> 0 | F163: =Volumes!F414 -> 9116 | G163: =Volumes!G414 -> 0 | H163: =Volumes!H414 -> 93636.71747 | I163: =Volumes!I414 -> 31667.16667 | J163: =Volumes!J414 -> 0 | K163: =Volumes!K414 -> 10065.09111 | L163: =Volumes!L414 -> 0
B164: kW max per week | E164: =Volumes!E415 -> 0 | F164: =Volumes!F415 -> 137621.1429 | G164: =Volumes!G415 -> 0 | H164: =Volumes!H415 -> 1254540.877 | I164: =Volumes!I415 -> 429466 | J164: =Volumes!J415 -> 0 | K164: =Volumes!K415 -> 229538.1846 | L164: =Volumes!L415 -> 0
B165: kVArh blindvermogen | E165: =Volumes!E416 -> 0 | F165: =Volumes!F416 -> 0 | G165: =Volumes!G416 -> 0 | H165: =Volumes!H416 -> 3453165.455 | I165: =Volumes!I416 -> 0 | J165: =Volumes!J416 -> 0 | K165: =Volumes!K416 -> 0 | L165: =Volumes!L416 -> 0
B167: Afnemers MS (1-20 kV) - TRANSPORT
B168: Vastrecht transportdienst | E168: =Volumes!E419 -> 0 | F168: =Volumes!F419 -> 0 | G168: =Volumes!G419 -> 3.986448404 | H168: =Volumes!H419 -> 245.1783859 | I168: =Volumes!I419 -> 0 | J168: =Volumes!J419 -> 1 | K168: =Volumes!K419 -> 0 | L168: =Volumes!L419 -> 0
B169: kW gecontracteerd | E169: =Volumes!E420 -> 0 | F169: =Volumes!F420 -> 0 | G169: =Volumes!G420 -> 22689.79753 | H169: =Volumes!H420 -> 689684.9473 | I169: =Volumes!I420 -> 0 | J169: =Volumes!J420 -> 6990 | K169: =Volumes!K420 -> 0 | L169: =Volumes!L420 -> 0
B170: kW max per maand | E170: =Volumes!E421 -> 0 | F170: =Volumes!F421 -> 0 | G170: =Volumes!G421 -> 250071.4583 | H170: =Volumes!H421 -> 6559230.346 | I170: =Volumes!I421 -> 0 | J170: =Volumes!J421 -> 73111 | K170: =Volumes!K421 -> 0 | L170: =Volumes!L421 -> 0
B171: kWh tarief normaal | E171: =Volumes!E422 -> 0 | F171: =Volumes!F422 -> 0 | G171: =Volumes!G422 -> 92566296.63 | H171: =Volumes!H422 -> 2569025691 | I171: =Volumes!I422 -> 0 | J171: =Volumes!J422 -> 4819268 | K171: =Volumes!K422 -> 0 | L171: =Volumes!L422 -> 0
B172: kVArh blindvermogen | E172: =Volumes!E423 -> 0 | F172: =Volumes!F423 -> 0 | G172: =Volumes!G423 -> 0 | H172: =Volumes!H423 -> 56064187.27 | I172: =Volumes!I423 -> 0 | J172: =Volumes!J423 -> 0 | K172: =Volumes!K423 -> 0 | L172: =Volumes!L423 -> 0
B174: Afnemers MS (1-20 kV) - DISTRIBUTIE
B175: Vastrecht transportdienst | E175: =Volumes!E426 -> 30 | F175: =Volumes!F426 -> 400.75 | G175: =Volumes!G426 -> 583.2920808 | H175: =Volumes!H426 -> 9154.128905 | I175: =Volumes!I426 -> 9008.681099 | J175: =Volumes!J426 -> 17.73 | K175: =Volumes!K426 -> 3047.818186 | L175: =Volumes!L426 -> 270.0276871
B176: kW gecontracteerd | E176: =Volumes!E427 -> 31457 | F176: =Volumes!F427 -> 177244.4167 | G176: =Volumes!G427 -> 152716.8985 | H176: =Volumes!H427 -> 2946866.399 | I176: =Volumes!I427 -> 3194870.543 | J176: =Volumes!J427 -> 21018 | K176: =Volumes!K427 -> 1864125.547 | L176: =Volumes!L427 -> 260020.5111
B177: kW max per maand | E177: =Volumes!E428 -> 322886 | F177: =Volumes!F428 -> 1458129 | G177: =Volumes!G428 -> 1184984.358 | H177: =Volumes!H428 -> 26120456.89 | I177: =Volumes!I428 -> 26904835.06 | J177: =Volumes!J428 -> 201386 | K177: =Volumes!K428 -> 14200155.37 | L177: =Volumes!L428 -> 1886073.745
B178: kWh tarief normaal | E178: =Volumes!E429 -> 109111499 | F178: =Volumes!F429 -> 460008638.6 | G178: =Volumes!G429 -> 397691192.8 | H178: =Volumes!H429 -> 7946310326 | I178: =Volumes!I429 -> 8720106594 | J178: =Volumes!J429 -> 73450339 | K178: =Volumes!K429 -> 4722846865 | L178: =Volumes!L429 -> 484027904
B179: kVArh blindvermogen | E179: =Volumes!E430 -> 1508631 | F179: =Volumes!F430 -> 0 | G179: =Volumes!G430 -> 5345962.722 | H179: =Volumes!H430 -> 248060746.8 | I179: =Volumes!I430 -> 0 | J179: =Volumes!J430 -> 1070076 | K179: =Volumes!K430 -> 57955965 | L179: =Volumes!L430 -> 0
B181: Afnemers Trafo MS/LS
B182: Vastrecht transportdienst | E182: =Volumes!E433 -> 209 | F182: =Volumes!F433 -> 1444.916667 | G182: =Volumes!G433 -> 656.8749277 | H182: =Volumes!H433 -> 14388.93907 | I182: =Volumes!I433 -> 13388.26502 | J182: =Volumes!J433 -> 134.06 | K182: =Volumes!K433 -> 8874.727279 | L182: =Volumes!L433 -> 1060.158957
B183: kW gecontracteerd | E183: =Volumes!E434 -> 41068 | F183: =Volumes!F434 -> 138825.6667 | G183: =Volumes!G434 -> 39237.06242 | H183: =Volumes!H434 -> 1053288.666 | I183: =Volumes!I434 -> 1189134.186 | J183: =Volumes!J434 -> 22547 | K183: =Volumes!K434 -> 1152164 | L183: =Volumes!L434 -> 213714.8201
B184: kW max per maand | E184: =Volumes!E435 -> 362639 | F184: =Volumes!F435 -> 1059003.92 | G184: =Volumes!G435 -> 260076.2807 | H184: =Volumes!H435 -> 8343391.25 | I184: =Volumes!I435 -> 9152817.001 | J184: =Volumes!J435 -> 216002 | K184: =Volumes!K435 -> 7944104.455 | L184: =Volumes!L435 -> 1583827.671
B185: kWh tarief normaal | E185: =Volumes!E436 -> 96969671 | F185: =Volumes!F436 -> 276822280.4 | G185: =Volumes!G436 -> 70318119.05 | H185: =Volumes!H436 -> 2187557610 | I185: =Volumes!I436 -> 2533771484 | J185: =Volumes!J436 -> 55742080 | K185: =Volumes!K436 -> 2292733357 | L185: =Volumes!L436 -> 419642943
B186: kVArh blindvermogen | E186: =Volumes!E437 -> 1087461 | F186: =Volumes!F437 -> 0 | G186: =Volumes!G437 -> 165552.6622 | H186: =Volumes!H437 -> 12380964.55 | I186: =Volumes!I437 -> 0 | J186: =Volumes!J437 -> 860895 | K186: =Volumes!K437 -> 14824358.33 | L186: =Volumes!L437 -> 0
B188: Afnemers LS
B189: Vastrecht transportdienst | E189: =Volumes!E440 -> 305 | F189: =Volumes!F440 -> 352.4166667 | G189: =Volumes!G440 -> 0 | H189: =Volumes!H440 -> 3129.829697 | I189: =Volumes!I440 -> 5828.216556 | J189: =Volumes!J440 -> 122.1 | K189: =Volumes!K440 -> 7132.454444 | L189: =Volumes!L440 -> 66.64722222
B190: kW gecontracteerd | E190: =Volumes!E441 -> 23504 | F190: =Volumes!F441 -> 17433 | G190: =Volumes!G441 -> 0 | H190: =Volumes!H441 -> 101691.9093 | I190: =Volumes!I441 -> 211016.9609 | J190: =Volumes!J441 -> 7633 | K190: =Volumes!K441 -> 597518.4572 | L190: =Volumes!L441 -> 4308.68429
B191: kWh tarief laag | E191: =Volumes!E442 -> 14822263 | F191: =Volumes!F442 -> 8303103.014 | G191: =Volumes!G442 -> 0 | H191: =Volumes!H442 -> 66532794.18 | I191: =Volumes!I442 -> 158785264.2 | J191: =Volumes!J442 -> 5947722 | K191: =Volumes!K442 -> 363883700.6 | L191: =Volumes!L442 -> 3607089.444
B192: kWh tarief normaal | E192: =Volumes!E443 -> 29058707 | F192: =Volumes!F443 -> 11040413.39 | G192: =Volumes!G443 -> 0 | H192: =Volumes!H443 -> 101213575.5 | I192: =Volumes!I443 -> 242915658.7 | J192: =Volumes!J443 -> 11855582 | K192: =Volumes!K443 -> 586466125.3 | L192: =Volumes!L443 -> 4731515.642
B193: kVArh blindvermogen | E193: =Volumes!E444 -> 632422 | F193: =Volumes!F444 -> 0 | G193: =Volumes!G444 -> 0 | H193: =Volumes!H444 -> 1481.666667 | I193: =Volumes!I444 -> 0 | J193: =Volumes!J444 -> 370744 | K193: =Volumes!K444 -> 9163855 | L193: =Volumes!L444 -> 0
B195: Transportdienst Kleinverbruik t/m 3*80A (oude categorisering)
B197: Afnemers > 3 * 25 A (DT)
B198: Vastrecht transportdienst
B199: kW gecontracteerd
B200: kWh tarief laag
B201: kWh tarief normaal
B203: Afnemers > 3* 25 A (ET)
B204: Vastrecht transportdienst
B205: kW gecontracteerd
B206: kWh tarief enkel
B208: Afnemers < 3* 25 A (DT)
B209: Vastrecht transportdienst
B210: kWh tarief laag
B211: kWh tarief normaal
B213: Afnemers < 3* 25 A (ET)
B214: Vastrecht transportdienst
B215: kWh tarief enkel
B217: Afnemers LS geschakeld (1 * 6 A)
B218: Vastrecht transportdienst
B219: kWh tarief laag
B220: kWh tarief normaal
B222: Transportdienst Kleinverbruik t/m 3*80A (nieuwe categorisering)
B224: Kleinverbruikers (t/m 3*80 A op LS)
B225: Vastrecht transportdienst t/m 1*6A LS geschakeld | E225: =Volumes!E476 -> 22611 | F225: =Volumes!F476 -> 84946 | G225: =Volumes!G476 -> 43451.23143 | H225: =Volumes!H476 -> 1062646.71 | I225: =Volumes!I476 -> 772155.867 | J225: =Volumes!J476 -> 18103 | K225: =Volumes!K476 -> 569974.5 | L225: =Volumes!L476 -> 24409.27613
B226: Vastrecht transportdienst t/m 3*80A op LS | E226: =Volumes!E477 -> 51953 | F226: =Volumes!F477 -> 202530.6667 | G226: =Volumes!G477 -> 102534.1104 | H226: =Volumes!H477 -> 2529420.985 | I226: =Volumes!I477 -> 2821905.231 | J226: =Volumes!J477 -> 30881.6 | K226: =Volumes!K477 -> 1930165.182 | L226: =Volumes!L477 -> 51753.10552
B228: Kleinverbruikers (t/m 3*80 A op LS) capaciteitstarieven per afnemerscategorie
B229: t/m 1*6A op het geschakeld net | E229: =Volumes!E480 -> 22611 | F229: =Volumes!F480 -> 84946 | G229: =Volumes!G480 -> 43451.23143 | H229: =Volumes!H480 -> 1062646.05 | I229: =Volumes!I480 -> 772155.6837 | J229: =Volumes!J480 -> 18103 | K229: =Volumes!K480 -> 569974.5102 | L229: =Volumes!L480 -> 24409.27613
B230: t/m 3*25A + alle 1-fase aansluitingen | E230: =Volumes!E481 -> 50364 | F230: =Volumes!F481 -> 194549.5833 | G230: =Volumes!G481 -> 99162.72409 | H230: =Volumes!H481 -> 2408905.495 | I230: =Volumes!I481 -> 2711549.888 | J230: =Volumes!J481 -> 29703.68219 | K230: =Volumes!K481 -> 1855895.182 | L230: =Volumes!L481 -> 48234.7257
B231: > 3*25A t/m 3*35A | E231: =Volumes!E482 -> 846 | F231: =Volumes!F482 -> 3799.083333 | G231: =Volumes!G482 -> 1290.90042 | H231: =Volumes!H482 -> 59041.91012 | I231: =Volumes!I482 -> 51190.7927 | J231: =Volumes!J482 -> 522.0794521 | K231: =Volumes!K482 -> 33259.42398 | L231: =Volumes!L482 -> 1415.507621
B232: > 3*35A t/m 3*50A | E232: =Volumes!E483 -> 272 | F232: =Volumes!F483 -> 1828.916667 | G232: =Volumes!G483 -> 695.4066077 | H232: =Volumes!H483 -> 23480.99806 | I232: =Volumes!I483 -> 22699.70038 | J232: =Volumes!J483 -> 278.3589041 | K232: =Volumes!K483 -> 11234.94747 | L232: =Volumes!L483 -> 825.3782932
B233: > 3*50A t/m 3*63A | E233: =Volumes!E484 -> 240 | F233: =Volumes!F484 -> 1229.666667 | G233: =Volumes!G484 -> 1276.24855 | H233: =Volumes!H484 -> 21800.58944 | I233: =Volumes!I484 -> 20006.5674 | J233: =Volumes!J484 -> 211.1178082 | K233: =Volumes!K484 -> 12952.73765 | L233: =Volumes!L484 -> 660.0514251
B234: > 3*63A t/m 3*80A | E234: =Volumes!E485 -> 231 | F234: =Volumes!F485 -> 1113 | G234: =Volumes!G485 -> 108.830693 | H234: =Volumes!H485 -> 16621.3044 | I234: =Volumes!I485 -> 16457.84177 | J234: =Volumes!J485 -> 166.3616438 | K234: =Volumes!K485 -> 7452.527825 | L234: =Volumes!L485 -> 617.4424795
B236: Periodieke aansluitvergoeding
B238: t/m 1 x 6A geschakeld net | E238: =Volumes!E489 -> 22611 | F238: =Volumes!F489 -> 84946 | G238: =Volumes!G489 -> 44297.61125 | H238: =Volumes!H489 -> 1062638.483 | I238: =Volumes!I489 -> 772155.8848 | J238: =Volumes!J489 -> 18103 | K238: =Volumes!K489 -> 569974.5102 | L238: =Volumes!L489 -> 24409.27613
B239: t/m 3*25 A | E239: =Volumes!E490 -> 50364 | F239: =Volumes!F490 -> 195378.5835 | G239: =Volumes!G490 -> 99272.07522 | H239: =Volumes!H490 -> 2407244.5 | I239: =Volumes!I490 -> 2711550.165 | J239: =Volumes!J490 -> 29704 | K239: =Volumes!K490 -> 1855895.182 | L239: =Volumes!L490 -> 48234.7257
B240: >3*25A t/m 3*80A | E240: =Volumes!E491 -> 1589 | F240: =Volumes!F491 -> 7152.083167 | G240: =Volumes!G491 -> 3375.008108 | H240: =Volumes!H491 -> 121967.8003 | I240: =Volumes!I491 -> 111893.6338 | J240: =Volumes!J491 -> 1178 | K240: =Volumes!K491 -> 80422.63631 | L240: =Volumes!L491 -> 3665.774202
B241: LS & Trafo MS/LS | E241: =Volumes!E492 -> 514 | F241: =Volumes!F492 -> 1797.333333 | G241: =Volumes!G492 -> 657.623113 | H241: =Volumes!H492 -> 12070.14531 | I241: =Volumes!I492 -> 23529.79677 | J241: =Volumes!J492 -> 256.16 | K241: =Volumes!K492 -> 9659.666667 | L241: =Volumes!L492 -> 991.3631659
B242: MS | E242: =Volumes!E493 -> 30 | F242: =Volumes!F493 -> 400.75 | G242: =Volumes!G493 -> 583.9417828 | H242: =Volumes!H493 -> 14023.15245 | I242: =Volumes!I493 -> 2353.366347 | J242: =Volumes!J493 -> 18.73 | K242: =Volumes!K493 -> 3864.415563 | L242: =Volumes!L493 -> 354.9136499
B243: >MS | E243: =Volumes!E494 -> 0 | F243: =Volumes!F494 -> 10 | G243: =Volumes!G494 -> 4.988702184 | H243: =Volumes!H494 -> 832.5002357 | I243: =Volumes!I494 -> 192.989447 | J243: =Volumes!J494 -> 0 | K243: =Volumes!K494 -> 152.6931896 | L243: =Volumes!L494 -> 28.81530099
B245: Meerlengte | E245: =Volumes!E496 -> 0 | F245: =Volumes!F496 -> 146306 | G245: =Volumes!G496 -> 2834.993333 | H245: =Volumes!H496 -> 200840.4831 | I245: =Volumes!I496 -> 766153.7973 | J245: =Volumes!J496 -> 5615 | K245: =Volumes!K496 -> 0 | L245: =Volumes!L496 -> 2300
B247: Eenmalige aansluitvergoeding
B249: Aansluitingen t/m 25 meter
B250: t/m 1 x 6A geschakeld net | E250: =Volumes!E501 -> 541.6068176 | F250: =Volumes!F501 -> 1360 | G250: =Volumes!G501 -> 22 | H250: =Volumes!H501 -> 29519.46935 | I250: =Volumes!I501 -> 10610 | J250: =Volumes!J501 -> 309 | K250: =Volumes!K501 -> 16420.88128 | L250: =Volumes!L501 -> 456
B251: t/m 3*25 A | E251: =Volumes!E502 -> 658.0002805 | F251: =Volumes!F502 -> 1868 | G251: =Volumes!G502 -> 1781 | H251: =Volumes!H502 -> 30436.47982 | I251: =Volumes!I502 -> 36285 | J251: =Volumes!J502 -> 315 | K251: =Volumes!K502 -> 32022.20998 | L251: =Volumes!L502 -> 972
B252: >3*25A t/m 3*80A | E252: =Volumes!E503 -> 48.67924102 | F252: =Volumes!F503 -> 204 | G252: =Volumes!G503 -> 217 | H252: =Volumes!H503 -> 1845.734904 | I252: =Volumes!I503 -> 3507 | J252: =Volumes!J503 -> 51 | K252: =Volumes!K503 -> 2806.37663 | L252: =Volumes!L503 -> 113
... 25 more rows

Sheet Volumes
B2: Volumes | E2: COGAS | F2: DNWB | G2: ENDINET | H2: ENEXIS | I2: LIANDER | J2: RENDO | K2: STEDIN | L2: WESTLAND | M2: TOTAAL | O2: Enexis excl. Inframosane | P2: Inframosane | R2: Liander excl. EWR | S2: EWR | U2: Eneco (EMIX + EWUZ)/Stedin | V2: EMIX | W2: EWUZ | X2: ONS
B4: Factoren voor omzetten naar capaciteitstariefindeling
B7: t/m 1*6A op het geschakeld net | E7: 1 | F7: 1 | G7: 1 | H7: 1 | I7: 1 | J7: 1 | K7: 1 | L7: 1
B8: t/m 3*25A + alle 1-fase aansluitingen | E8: 1 | F8: 1 | G8: 1 | H8: 1 | I8: 1 | J8: 1 | K8: 1 | L8: 1
B9: > 3*25A t/m 3*35A | E9: ='Omzetting capaciteitstarief'!C17 -> 0.5337579618 | F9: ='Omzetting capaciteitstarief'!D17 -> 0.4940157424 | G9: ='Omzetting capaciteitstarief'!E17 -> 0.388120663 | H9: ='Omzetting capaciteitstarief'!F17 -> 0.5052288481 | I9: ='Omzetting capaciteitstarief'!G17 -> 0.4740481607 | J9: ='Omzetting capaciteitstarief'!H17 -> 0.4630705394 | K9: ='Omzetting capaciteitstarief'!I17 -> 0.5301861529 | L9: ='Omzetting capaciteitstarief'!J17 -> 0.4030540118
B10: > 3*35A t/m 3*50A | E10: ='Omzetting capaciteitstarief'!C18 -> 0.1707006369 | F10: ='Omzetting capaciteitstarief'!D18 -> 0.2217050031 | G10: ='Omzetting capaciteitstarief'!E18 -> 0.2027022934 | H10: ='Omzetting capaciteitstarief'!F18 -> 0.1978598903 | I10: ='Omzetting capaciteitstarief'!G18 -> 0.193750178 | J10: ='Omzetting capaciteitstarief'!H18 -> 0.2349469802 | K10: ='Omzetting capaciteitstarief'!I18 -> 0.1698667305 | L10: ='Omzetting capaciteitstarief'!J18 -> 0.2370009357
B11: > 3*50A t/m 3*63A | E11: ='Omzetting capaciteitstarief'!C19 -> 0.152866242 | F11: ='Omzetting capaciteitstarief'!D19 -> 0.1565205178 | G11: ='Omzetting capaciteitstarief'!E19 -> 0.3739072357 | H11: ='Omzetting capaciteitstarief'!F19 -> 0.1804013987 | I11: ='Omzetting capaciteitstarief'!G19 -> 0.1917724734 | J11: ='Omzetting capaciteitstarief'!H19 -> 0.1832180728 | K11: ='Omzetting capaciteitstarief'!I19 -> 0.1998415104 | L11: ='Omzetting capaciteitstarief'!J19 -> 0.1994680038
B12: > 3*63A t/m 3*80A | E12: ='Omzetting capaciteitstarief'!C20 -> 0.1426751592 | F12: ='Omzetting capaciteitstarief'!D20 -> 0.1277478742 | G12: ='Omzetting capaciteitstarief'!E20 -> 0.03526980787 | H12: ='Omzetting capaciteitstarief'!F20 -> 0.1165105558 | I12: ='Omzetting capaciteitstarief'!G20 -> 0.140429188 | J12: ='Omzetting capaciteitstarief'!H20 -> 0.1187644076 | K12: ='Omzetting capaciteitstarief'!I20 -> 0.1001088209 | L12: ='Omzetting capaciteitstarief'!J20 -> 0.1604770487
B15: Volumes 2006 (TD en PAV)
B17: Transportdienst Verbruik > 3*80A
B19: Afnemers HS (110-150 kV)
B20: Vastrecht transportdienst | F20: 10 | H20: =O20+P20 -> 39.93412253 | I20: =R20+S20 -> 16.3204726 | K20: =SUM(U20:X20) -> 2.002536232 | M20: =SUM(E20:L20) -> 68.25713137 | O20: 39.93412253 | R20: 16.3204726 | V20: 2.002536232
B21: kW gecontracteerd per jaar | F21: 680628 | H21: =O21+P21 -> 912273.6368 | I21: =R21+S21 -> 582002.7219 | K21: =SUM(U21:X21) -> 303016.7636 | M21: =SUM(E21:L21) -> 2477921.122 | O21: 912273.6368 | R21: 582002.7219 | V21: 303016.7636
B22: kW max per maand | F22: 7436088 | H22: =O22+P22 -> 7255148.321 | I22: =R22+S22 -> 6209958.783 | K22: =SUM(U22:X22) -> 3394729.545 | M22: =SUM(E22:L22) -> 24295924.65 | O22: 7255148.321 | R22: 6209958.783 | V22: 3394729.545
B23: kVArh blindvermogen | H23: =O23+P23 -> 55657345.45 | I23: =R23+S23 -> 0 | K23: =SUM(U23:X23) -> -275098.0392 | M23: =SUM(E23:L23) -> 55382247.42 | O23: 55657345.45 | V23: -275098.0392
B25: Afnemers HS (110-150 kV) maximaal 600 uur per jaar
B26: Vastrecht transportdienst | F26: 1 | H26: =O26+P26 -> 20.89255995 | I26: =R26+S26 -> 9 | K26: =SUM(U26:X26) -> 5 | M26: =SUM(E26:L26) -> 35.89255995 | O26: 20.89255995 | R26: 9 | V26: 2 | W26: 3
B27: kW gecontracteerd per jaar | F27: 35320 | H27: =O27+P27 -> 126097.181 | I27: =R27+S27 -> 64100.94536 | K27: =SUM(U27:X27) -> 30165.46512 | M27: =SUM(E27:L27) -> 255683.5915 | O27: 126097.181 | R27: 64100.94536 | V27: 21285.46512 | W27: 8880
B28: kW max per week | F28: 381562.8571 | H28: =O28+P28 -> 2386427.537 | I28: =R28+S28 -> 980712 | K28: =SUM(U28:X28) -> 105469.913 | M28: =SUM(E28:L28) -> 3854172.307 | O28: 2386427.537 | R28: 980712 | V28: 2623.913043 | W28: 102846
B29: kVArh blindvermogen | H29: =O29+P29 -> 12750389.09 | I29: =R29+S29 -> 0 | K29: =SUM(U29:X29) -> 1341372.549 | M29: =SUM(E29:L29) -> 14091761.64 | O29: 12750389.09 | V29: 1341372.549
B31: Afnemers TS (25-50 kV)
B32: Vastrecht transportdienst | H32: =O32+P32 -> 0 | I32: =R32+S32 -> 7.391428805 | K32: =SUM(U32:X32) -> 70.41413043 | M32: =SUM(E32:L32) -> 77.80555924 | R32: 7.391428805 | V32: 69.41413043 | X32: 1
B33: kW gecontracteerd per jaar | H33: =O33+P33 -> 0 | I33: =R33+S33 -> 35996.67534 | K33: =SUM(U33:X33) -> 842856.6315 | M33: =SUM(E33:L33) -> 878853.3068 | R33: 35996.67534 | V33: 837456.6315 | X33: 5400
B34: kW max per maand | H34: =O34+P34 -> 0 | I34: =R34+S34 -> 353644.3607 | K34: =SUM(U34:X34) -> 6590831 | M34: =SUM(E34:L34) -> 6944475.361 | R34: 353644.3607 | V34: 6536975 | X34: 53856
B35: kVArh blindvermogen | H35: =O35+P35 -> 0 | I35: =R35+S35 -> 0 | K35: =SUM(U35:X35) -> 83654313.73 | M35: =SUM(E35:L35) -> 83654313.73 | V35: 83654313.73
B37: Afnemers TS (25-50 kV) maximaal 600 uur per jaar
B38: Vastrecht transportdienst | H38: =O38+P38 -> 0 | I38: =R38+S38 -> 9 | K38: =SUM(U38:X38) -> 10.86811594 | M38: =SUM(E38:L38) -> 19.86811594 | R38: 9 | V38: 10.86811594
B39: kW gecontracteerd per jaar | H39: =O39+P39 -> 0 | I39: =R39+S39 -> 53052.02935 | K39: =SUM(U39:X39) -> 238339.7887 | M39: =SUM(E39:L39) -> 291391.8181 | R39: 53052.02935 | V39: 238339.7887
B40: kW max per week | H40: =O40+P40 -> 0 | I40: =R40+S40 -> 939636 | K40: =SUM(U40:X40) -> 2101154.839 | M40: =SUM(E40:L40) -> 3040790.839 | R40: 939636 | V40: 2101154.839
B41: kVArh blindvermogen | H41: =O41+P41 -> 0 | I41: =R41+S41 -> 0 | K41: =SUM(U41:X41) -> 53723333.33 | M41: =SUM(E41:L41) -> 53723333.33 | V41: 53723333.33
B43: Afnemers Trafo HS+TS/MS
B44: Vastrecht transportdienst | F44: 24.41666667 | H44: =O44+P44 -> 214.5264163 | I44: =R44+S44 -> 205.7931796 | K44: =SUM(U44:X44) -> 85.39094203 | L44: 1 | M44: =SUM(E44:L44) -> 531.1272047 | O44: 208.5264163 | P44: 6 | R44: 205.7931796 | V44: 69.39094203 | W44: 15 | X44: 1
B45: kW gecontracteerd per jaar | F45: 60816.0125 | H45: =O45+P45 -> 1436437.392 | I45: =R45+S45 -> 918893.1661 | K45: =SUM(U45:X45) -> 321782.6198 | L45: 16964 | M45: =SUM(E45:L45) -> 2754893.191 | O45: 1419001.392 | P45: 17436 | R45: 918893.1661 | V45: 246347.9663 | W45: 68942.65351 | X45: 6492
B46: kW max per maand | F46: 524952.6 | H46: =O46+P46 -> 14398230.71 | I46: =R46+S46 -> 8934930.701 | K46: =SUM(U46:X46) -> 3136940 | L46: 170788 | M46: =SUM(E46:L46) -> 27165842.01 | O46: 14213010.71 | P46: 185220 | R46: 8934930.701 | V46: 2418968.966 | W46: 641531.0345 | X46: 76440
B47: kVArh blindvermogen | H47: =O47+P47 -> 57994213.36 | I47: =R47+S47 -> 18317886.43 | K47: =SUM(U47:X47) -> 13224117.65 | M47: =SUM(E47:L47) -> 89536217.44 | O47: 56506316.36 | P47: 1487897 | R47: 18317886.43 | V47: 13652058.82 | W47: -427941.1765
B49: Afnemers Trafo HS+TS/MS maximaal 600 uur per jaar
B50: Vastrecht transportdienst | F50: 1 | H50: =O50+P50 -> 14.9469697 | I50: =R50+S50 -> 8 | K50: =SUM(U50:X50) -> 3.909057971 | M50: =SUM(E50:L50) -> 27.85602767 | O50: 14.9469697 | R50: 8 | V50: 3.909057971
B51: kW gecontracteerd per jaar | F51: 9300 | H51: =O51+P51 -> 96262.76661 | I51: =R51+S51 -> 25227.01587 | K51: =SUM(U51:X51) -> 23327.57937 | M51: =SUM(E51:L51) -> 154117.3618 | O51: 96262.76661 | R51: 25227.01587 | V51: 23327.57937
B52: kW max per week | F52: 168656 | H52: =O52+P52 -> 1040310.944 | I52: =R52+S52 -> 387708.2222 | K52: =SUM(U52:X52) -> 500788.5714 | M52: =SUM(E52:L52) -> 2097463.738 | O52: 1040310.944 | R52: 387708.2222 | V52: 500788.5714
B53: kVArh blindvermogen | H53: =O53+P53 -> 153627.2727 | I53: =R53+S53 -> 0 | K53: =SUM(U53:X53) -> 0 | M53: =SUM(E53:L53) -> 153627.2727 | O53: 153627.2727
B55: Afnemers MS (1-20 kV) - TRANSPORT
B56: Vastrecht transportdienst | H56: =O56+P56 -> 275.2972336 | I56: =R56+S56 -> 0 | J56: 1 | K56: =SUM(U56:X56) -> 1.818594104 | M56: =SUM(E56:L56) -> 278.1158277 | O56: 275.2972336 | W56: 1.818594104
B57: kW gecontracteerd | H57: =O57+P57 -> 693522.1371 | I57: =R57+S57 -> 0 | J57: 5900 | K57: =SUM(U57:X57) -> 6564.315789 | M57: =SUM(E57:L57) -> 705986.4529 | O57: 693522.1371 | W57: 6564.315789
B58: kW max per maand | H58: =O58+P58 -> 6702417.348 | I58: =R58+S58 -> 0 | J58: 65430 | K58: =SUM(U58:X58) -> 49654.02299 | M58: =SUM(E58:L58) -> 6817501.371 | O58: 6702417.348 | W58: 49654.02299
B59: kWh tarief normaal | H59: =O59+P59 -> 2807015480 | I59: =R59+S59 -> 0 | J59: 5054200 | K59: =SUM(U59:X59) -> 0 | M59: =SUM(E59:L59) -> 2812069680 | O59: 2807015480
B60: kVArh blindvermogen | H60: =O60+P60 -> 75202176.36 | I60: =R60+S60 -> 0 | J60: 296 | K60: =SUM(U60:X60) -> -79897 | M60: =SUM(E60:L60) -> 75122575.36 | O60: 75202176.36 | W60: -79897
B62: Afnemers MS (1-20 kV) - DISTRIBUTIE
B63: Vastrecht transportdienst | E63: 31 | F63: 315.25 | G63: 593.109254 | H63: =O63+P63 -> 8152.133836 | I63: =R63+S63 -> 7471.464 | J63: 19 | K63: =SUM(U63:X63) -> 2059.507937 | L63: 124.1486565 | M63: =SUM(E63:L63) -> 18765.61368 | O63: 8044.133836 | P63: 108 | R63: 7471.464 | V63: 1089.514739 | W63: 946.9931973 | X63: 23
B64: kW gecontracteerd | E64: 27406 | F64: 163038.25 | G64: 170243.0174 | H64: =O64+P64 -> 2691032.966 | I64: =R64+S64 -> 3029242.157 | J64: 22331.91667 | K64: =SUM(U64:X64) -> 1784012.586 | L64: 134688.8752 | M64: =SUM(E64:L64) -> 8021995.769 | O64: 2642725.966 | P64: 48307 | R64: 3029242.157 | V64: 1184925.989 | W64: 582979.5977 | X64: 16107
B65: kW max per maand | E65: 274359 | F65: 1342584.2 | G65: 1531397.605 | H65: =O65+P65 -> 24479362.93 | I65: =R65+S65 -> 25849629.51 | J65: 218273 | K65: =SUM(U65:X65) -> 13458539.68 | L65: 1101312.976 | M65: =SUM(E65:L65) -> 68255458.9 | O65: 23998666.93 | P65: 480696 | R65: 25849629.51 | V65: 8490600.592 | W65: 4870559.091 | X65: 97380
B66: kWh tarief normaal | E66: 99246802 | F66: 439948595.3 | G66: 552429592.1 | H66: =O66+P66 -> 7673394276 | I66: =R66+S66 -> 8290932321 | J66: 80215075 | K66: =SUM(U66:X66) -> 4646872338 | L66: 314965717.7 | M66: =SUM(E66:L66) -> 2.209800472e+10 | O66: 7513598349 | P66: 159795927 | R66: 8290932321 | V66: 2940447212 | W66: 1678542976 | X66: 27882150
B67: kVArh blindvermogen | E67: 2059440 | G67: 8233301.574 | H67: =O67+P67 -> 275567169.4 | I67: =R67+S67 -> 6011116.257 | J67: 2608404 | K67: =SUM(U67:X67) -> 81780196.08 | M67: =SUM(E67:L67) -> 376259627.3 | O67: 271079616.4 | P67: 4487553 | R67: 6011116.257 | V67: 40597352.94 | W67: 41182843.14
B69: Afnemers Trafo MS/LS
B70: Vastrecht transportdienst | E70: 189 | F70: 1227.166667 | G70: 755.0271223 | H70: =O70+P70 -> 13875.09727 | I70: =R70+S70 -> 13559.46542 | J70: 127.5 | K70: =SUM(U70:X70) -> 7355.70068 | L70: 1234.727515 | M70: =SUM(E70:L70) -> 38323.68468 | O70: 13596.09727 | P70: 279 | R70: 13559.46542 | V70: 3298.181406 | W70: 3905.519274 | X70: 152
B71: kW gecontracteerd | E71: 36884 | F71: 117252.25 | G71: 37065.86513 | H71: =O71+P71 -> 1001458.428 | I71: =R71+S71 -> 1244157.864 | J71: 20380.16667 | K71: =SUM(U71:X71) -> 844498.1324 | L71: 286608.8256 | M71: =SUM(E71:L71) -> 3588305.532 | O71: 975505.4282 | P71: 25953 | R71: 1244157.864 | V71: 449638.0491 | W71: 359977.0833 | X71: 34883
B72: kW max per maand | E72: 343533 | F72: 949240 | G72: 271896.25 | H72: =O72+P72 -> 8069353.959 | I72: =R72+S72 -> 9606120.002 | J72: 192959 | K72: =SUM(U72:X72) -> 5953177.367 | L72: 2111305.541 | M72: =SUM(E72:L72) -> 27497585.12 | O72: 7854745.959 | P72: 214608 | R72: 9606120.002 | V72: 2980413.609 | W72: 2767875.758 | X72: 204888
B73: kWh tarief normaal | E73: 95770032 | F73: 253035750.8 | G73: 72247391.89 | H73: =O73+P73 -> 2174199787 | I73: =R73+S73 -> 2550767257 | J73: 51341646 | K73: =SUM(U73:X73) -> 1682140123 | L73: 557775692.9 | M73: =SUM(E73:L73) -> 7437277681 | O73: 2114867341 | P73: 59332446 | R73: 2550767257 | V73: 845967596.2 | W73: 778992738.1 | X73: 57179789
B74: kVArh blindvermogen | E74: 1509207 | G74: 154174.9691 | H74: =O74+P74 -> 40773203.82 | I74: =R74+S74 -> 0 | J74: 1021367 | K74: =SUM(U74:X74) -> 19404705.88 | M74: =SUM(E74:L74) -> 62862658.67 | O74: 39146021.82 | P74: 1627182 | V74: 3533627.451 | W74: 15871078.43
B76: Afnemers LS
B77: Vastrecht transportdienst | E77: 307 | F77: 452 | H77: =O77+P77 -> 3762.604242 | I77: =R77+S77 -> 6205.047003 | J77: 87.8 | K77: =SUM(U77:X77) -> 15650.88889 | L77: 138.2067877 | M77: =SUM(E77:L77) -> 26603.54692 | O77: 3762.604242 | R77: 6205.047003 | V77: 7237.611111 | W77: 8258.277778 | X77: 155
B78: kW gecontracteerd | E78: 23466 | F78: 22460 | H78: =O78+P78 -> 91165.26095 | I78: =R78+S78 -> 232486.4278 | J78: 5437.75 | K78: =SUM(U78:X78) -> 911695.8829 | L78: 22424.59496 | M78: =SUM(E78:L78) -> 1309135.917 | O78: 91165.26095 | R78: 232486.4278 | V78: 878001.5766 | W78: 18981.30631 | X78: 14713
B79: kWh tarief laag | E79: 15955565 | F79: 8221796 | H79: =O79+P79 -> 70996576.92 | I79: =R79+S79 -> 168146152.7 | J79: 4904362 | K79: =SUM(U79:X79) -> 621859274.2 | L79: 6139185.238 | M79: =SUM(E79:L79) -> 896222912 | O79: 70996576.92 | R79: 157710187 | S79: 10435965.71 | V79: 598440955.1 | W79: 17337700.12 | X79: 6080619
B80: kWh tarief normaal | E80: 32687208 | F80: 15989867.47 | H80: =O80+P80 -> 106841993.3 | I80: =R80+S80 -> 265824582.6 | J80: 9112678 | K80: =SUM(U80:X80) -> 988489443 | L80: 7890424.121 | M80: =SUM(E80:L80) -> 1426836197 | O80: 106841993.3 | R80: 251651524.9 | S80: 14173057.72 | V80: 950862016.8 | W80: 25298420.17 | X80: 12329006
B81: kVArh blindvermogen | E81: 812096 | H81: =O81+P81 -> 0 | I81: =R81+S81 -> 0 | J81: 230229 | K81: =SUM(U81:X81) -> 19147941.18 | M81: =SUM(E81:L81) -> 20190266.18 | V81: 17658431.37 | W81: 1489509.804
B83: Transportdienst Kleinverbruik t/m 3*80A (oude categorisering)
B85: Afnemers > 3 * 25 A (DT)
B86: Vastrecht transportdienst | E86: 1056 | F86: 6600.301481 | G86: 719.8804083 | H86: =O86+P86 -> 79041.91974 | I86: =R86+S86 -> 72229.69835 | J86: 1251.5 | K86: =SUM(U86:X86) -> 60310 | L86: 4733.397844 | M86: =SUM(E86:L86) -> 225942.6978 | O86: 77853.91974 | P86: 1188 | R86: 72229.69835 | V86: 44689.61111 | W86: 13964.38889 | X86: 1656
B87: kW gecontracteerd | E87: 12901 | F87: 126237.275 | G87: 20968.24938 | H87: =O87+P87 -> 2293885.323 | I87: =R87+S87 -> 2214496.698 | J87: 14900 | K87: =SUM(U87:X87) -> 1916779.712 | L87: 141246.7474 | M87: =SUM(E87:L87) -> 6741415.004 | O87: 2256923.323 | P87: 36962 | R87: 2214496.698 | V87: 1449069.82 | W87: 420491.8919 | X87: 47218
B88: kWh tarief laag | E88: 13979541 | F88: 84151993.08 | G88: 11008954.28 | H88: =O88+P88 -> 1152671919 | I88: =R88+S88 -> 962625491.3 | J88: 12820835 | K88: =SUM(U88:X88) -> 654332844.8 | L88: 70263750.65 | M88: =SUM(E88:L88) -> 2961855329 | O88: 1132980412 | P88: 19691507 | R88: 745035378.2 | S88: 217590113.1 | V88: 464713427 | W88: 175467593.8 | X88: 14151824
B89: kWh tarief normaal | E89: 27223165 | F89: 105841935.2 | G89: 10582665.4 | H89: =O89+P89 -> 1402524145 | I89: =R89+S89 -> 1351737615 | J89: 24673817 | K89: =SUM(U89:X89) -> 1013830972 | L89: 86848462.26 | M89: =SUM(E89:L89) -> 4023262777 | O89: 1377435669 | P89: 25088476 | R89: 1210791019 | S89: 140946596.1 | V89: 731278403.4 | W89: 260621573.4 | X89: 21930995
B91: Afnemers > 3* 25 A (ET)
B92: Vastrecht transportdienst | E92: 514 | F92: 2001.5725 | G92: 2261.581564 | H92: =O92+P92 -> 31642.00365 | I92: =R92+S92 -> 42061.22343 | K92: =SUM(U92:X92) -> 8814.777778 | M92: =SUM(E92:L92) -> 87295.15892 | O92: 31250.00365 | P92: 392 | R92: 42061.22343 | V92: 3998.666667 | W92: 4602.111111 | X92: 214
B93: kW gecontracteerd | E93: 6279 | F93: 42964.7 | G93: 82089.13553 | H93: =O93+P93 -> 920371.4696 | I93: =R93+S93 -> 1400651.125 | K93: =SUM(U93:X93) -> 252634.4144 | M93: =SUM(E93:L93) -> 2704989.844 | O93: 909257.4696 | P93: 11114 | R93: 1400651.125 | V93: 117554.0541 | W93: 127360.3604 | X93: 7720
B94: kWh tarief enkel | E94: 14275627 | F94: 33044894.07 | G94: 58131703.81 | H94: =O94+P94 -> 767515660.2 | I94: =R94+S94 -> 938039405.6 | K94: =SUM(U94:X94) -> 176581478.5 | M94: =SUM(E94:L94) -> 1987588769 | O94: 757236347.2 | P94: 10279313 | R94: 938039405.6 | V94: 72259607.84 | W94: 101514486.6 | X94: 2807384
B96: Afnemers < 3* 25 A (DT)
B97: Vastrecht transportdienst | E97: 30659 | F97: 72379.44583 | G97: 7357.255189 | H97: =O97+P97 -> 1051385.071 | I97: =R97+S97 -> 778003.6304 | J97: 17014.6 | K97: =SUM(U97:X97) -> 1256257.13 | L97: 39703.27807 | M97: =SUM(E97:L97) -> 3252759.411 | O97: 1032128.071 | P97: 19257 | R97: 778003.6304 | V97: 995644.2967 | W97: 235571.8333 | X97: 25041
B98: kWh tarief laag | E98: 66996105 | F98: 187921252.8 | G98: 22237742.12 | H98: =O98+P98 -> 2805267946 | I98: =R98+S98 -> 2092837011 | J98: 33608193 | K98: =SUM(U98:X98) -> 2533547156 | L98: 74170631.38 | M98: =SUM(E98:L98) -> 7816586037 | O98: 2758375772 | P98: 46892174 | R98: 1950365438 | S98: 142471572.2 | V98: 1862890607 | W98: 627592116.4 | X98: 43064433
B99: kWh tarief normaal | E99: 74405827 | F99: 175995459.2 | G99: 15919530.69 | H99: =O99+P99 -> 2350383260 | I99: =R99+S99 -> 2083367880 | J99: 37510350 | K99: =SUM(U99:X99) -> 2481474069 | L99: 91715461.58 | M99: =SUM(E99:L99) -> 7310771837 | O99: 2313645552 | P99: 36737708 | R99: 1604424334 | S99: 478943546.3 | V99: 1881596838 | W99: 557999656.1 | X99: 41877575
B101: Afnemers < 3* 25 A (ET)
B102: Vastrecht transportdienst | E102: 18395 | F102: 122260.7673 | G102: 89176.10919 | H102: =O102+P102 -> 1298740.77 | I102: =R102+S102 -> 1867079.161 | J102: 12267 | K102: =SUM(U102:X102) -> 543917.3333 | L102: 5624.993333 | M102: =SUM(E102:L102) -> 3957461.135 | O102: 1274070.77 | P102: 24670 | R102: 1867079.161 | V102: 249542.2778 | W102: 284325.0556 | X102: 10050
B103: kWh tarief enkel | E103: 51158487 | F103: 345817598.4 | G103: 297352385.7 | H103: =O103+P103 -> 4363077222 | I103: =R103+S103 -> 5779873518 | J103: 32427231 | K103: =SUM(U103:X103) -> 1516581239 | L103: 14448471.23 | M103: =SUM(E103:L103) -> 1.240073615e+10 | O103: 4294973192 | P103: 68104030 | R103: 5779873518 | V103: 523160267.6 | W103: 974095687.8 | X103: 19325284
B105: Afnemers LS geschakeld (1 * 6 A)
B106: Vastrecht transportdienst | E106: 21440 | F106: 81115.33333 | G106: 40214.5 | H106: =O106+P106 -> 889401.0101 | I106: =R106+S106 -> 494083.1218 | J106: 17296 | K106: =V106+W106+X106 -> 596813.037 | L106: 22644 | M106: =SUM(E106:L106) -> 2163007.002 | O106: 874483.0101 | P106: 14918 | R106: 494083.1218 | V106: 425366.037 | W106: 163100 | X106: 8347
B107: kWh tarief laag | E107: 3691840 | G107: 10216206.35 | H107: =O107+P107 -> 152038819.6 | I107: =R107+S107 -> 85753384.86 | J107: 2384588 | K107: =V107+W107+X107 -> 113865786.8 | L107: 4058235 | M107: =SUM(E107:L107) -> 372008860.6 | O107: 147732163.6 | P107: 4306656 | R107: 85753384.86 | V107: 98346480.45 | W107: 15519306.36
B108: kWh tarief normaal | E108: 1570396 | F108: 14728181.31 | G108: 4091416.222 | H108: =O108+P108 -> 35892950.82 | I108: =R108+S108 -> 33548391.95 | J108: 778875 | K108: =V108+W108+X108 -> 36940294.35 | L108: 2104270 | M108: =SUM(E108:L108) -> 129654775.7 | O108: 35030613.82 | P108: 862337 | R108: 33548391.95 | V108: 32553966.48 | W108: 1335734.87 | X108: 3050593
B110: Transportdienst Kleinverbruik t/m 3*80A (nieuwe categorisering)
B112: Kleinverbruikers (t/m 3*80 A op LS)
B113: Vastrecht transportdienst t/m 1*6A LS geschakeld | E113: =E106 -> 21440 | F113: 81115.33333 | G113: 40214.5 | H113: 889401.0101 | I113: 494083.1218 | J113: 17296 | K113: 596813.037 | L113: 22644 | M113: =SUM(E113:L113) -> 2163007.002
B114: Vastrecht transportdienst t/m 3*80A op LS | E114: =E102+E97+E92+E86 -> 50624 | F114: 203242.0871 | G114: 99514.82635 | H114: 2460809.765 | I114: 2759373.713 | J114: 30533.1 | K114: 1869299.241 | L114: 50061.66925 | M114: =SUM(E114:L114) -> 7523458.402
B116: Kleinverbruikers (t/m 3*80 A op LS) capaciteitstarieven per afnemerscategorie
B117: t/m 1*6A op het geschakeld net | E117: =E$7*E106 -> 21440 | F117: 81115.33333 | G117: 40214.5 | H117: 889401.0101 | I117: 494083.1218 | J117: 17296 | K117: 596813.037 | L117: 22644 | M117: =SUM(E117:L117) -> 2163007.002
B118: t/m 3*25A + alle 1-fase aansluitingen | E118: =E$8*(E102+E97) -> 49054 | F118: 194640.2131 | G118: 96533.36438 | H118: 2350125.841 | I118: 2645082.792 | J118: 29281.6 | K118: 1800174.463 | L118: 45328.2714 | M118: 7210220.545
B119: > 3*25A t/m 3*35A | E119: =E$9*(E92+E86) -> 838 | F119: 4249.461161 | G119: 1157.166998 | H119: 55920.71112 | I119: 54179.40125 | J119: 579.5327801 | K119: 36649 | L119: 1907.81499 | M119: 155481.0883
B120: > 3*35A t/m 3*50A | E120: =E$10*(E92+E86) -> 268 | F120: 1907.078498 | G120: 604.3491797 | H120: 21899.90895 | I120: 22143.88644 | J120: 294.0361457 | K120: 11742 | L120: 1121.819718 | M120: 59981.07892
B121: > 3*50A t/m 3*63A | E121: =E$11*(E92+E86) -> 240 | F121: 1346.36977 | G121: 1114.790204 | H121: 19967.53459 | I121: 21917.85275 | J121: 229.2974182 | K121: 13814 | L121: 944.1614192 | M121: 59574.00615
B122: > 3*63A t/m 3*80A | E122: =E$12*(E92+E86) -> 224 | F122: 1098.871115 | G122: 105.1555909 | H122: 12895.84544 | I122: 16049.78134 | J122: 148.6336561 | K122: 6920 | L122: 759.6017162 | M122: 38201.88885
B124: Periodieke aansluitvergoeding
B126: t/m 1 x 6A geschakeld net | E126: ='PAV (incl RV)'!E126 -> 21440 | F126: ='PAV (incl RV)'!J126 -> 81115.33333 | G126: ='PAV (incl RV)'!T126 -> 40214.5 | H126: =O126+P126 -> 889264 | I126: =R126+S126 -> 713241 | J126: ='PAV (incl RV)'!AD126 -> 17296 | K126: =SUM(U126:X126) -> 734996 | L126: ='PAV (incl RV)'!AN126 -> 22644 | M126: =SUM(E126:L126) -> 2520210.833 | O126: ='PAV (incl RV)'!O126 -> 874277 | P126: ='PAV (incl RV)'!AS126 -> 14987 | R126: ='PAV (incl RV)'!Y126 -> 713241 | U126: ='PAV (incl RV)'!AI126 -> 726649 | X126: ='PAV (incl RV)'!AX126 -> 8347
B127: t/m 3*25 A | E127: ='PAV (incl RV)'!E127 -> 49054 | F127: ='PAV (incl RV)'!J127 -> 187350.6508 | G127: ='PAV (incl RV)'!T127 -> 95165.14676 | H127: =O127+P127 -> 2402350 | I127: =R127+S127 -> 2635276.118 | J127: ='PAV (incl RV)'!AD127 -> 29252.6 | K127: =SUM(U127:X127) -> 1801973.412 | L127: ='PAV (incl RV)'!AN127 -> 45318.28728 | M127: 7245740.215 | O127: ='PAV (incl RV)'!O127 -> 2357951 | P127: ='PAV (incl RV)'!AS127 -> 44399 | R127: ='PAV (incl RV)'!Y127 -> 2635276.118 | U127: ='PAV (incl RV)'!AI127 -> 1766882.412 | X127: ='PAV (incl RV)'!AX127 -> 35091
B128: >3*25A t/m 3*80A | E128: ='PAV (incl RV)'!E128 -> 1570 | F128: ='PAV (incl RV)'!J128 -> 7671.725833 | G128: ='PAV (incl RV)'!T128 -> 2922.980478 | H128: 64972 | I128: 109906.4832 | J128: ='PAV (incl RV)'!AD128 -> 1084.5 | K128: 67576.87601 | L128: ='PAV (incl RV)'!AN128 -> 4410.183898 | M128: 260114.7495 | O128: ='PAV (incl RV)'!O128 -> 63442 | P128: ='PAV (incl RV)'!AS128 -> 1530 | R128: ='PAV (incl RV)'!Y128 -> 109906.4832 | U128: ='PAV (incl RV)'!AI128 -> 65706.87601 | X128: ='PAV (incl RV)'!AX128 -> 1870
B129: LS & Trafo MS/LS | E129: ='PAV (incl RV)'!E129 -> 496 | F129: ='PAV (incl RV)'!J129 -> 1679.166667 | G129: ='PAV (incl RV)'!T129 -> 739.7711607 | H129: 31863 | I129: 13735 | J129: ='PAV (incl RV)'!AD129 -> 215.3 | K129: 17435.13602 | L129: ='PAV (incl RV)'!AN129 -> 1204.987512 | M129: 67368.36136 | O129: ='PAV (incl RV)'!O129 -> 31578 | P129: ='PAV (incl RV)'!AS129 -> 285 | R129: ='PAV (incl RV)'!Y129 -> 13735 | U129: ='PAV (incl RV)'!AI129 -> 17128.13602 | X129: ='PAV (incl RV)'!AX129 -> 307
B130: MS | E130: ='PAV (incl RV)'!E130 -> 31 | F130: ='PAV (incl RV)'!J130 -> 315.25 | G130: ='PAV (incl RV)'!T130 -> 581.1253609 | H130: 9022 | I130: 11818 | J130: ='PAV (incl RV)'!AD130 -> 20 | K130: 2828.437971 | L130: ='PAV (incl RV)'!AN130 -> 178.167829 | M130: 24793.98116 | O130: ='PAV (incl RV)'!O130 -> 8949 | P130: ='PAV (incl RV)'!AS130 -> 73 | R130: ='PAV (incl RV)'!Y130 -> 11818 | U130: ='PAV (incl RV)'!AI130 -> 2805.437971 | X130: ='PAV (incl RV)'!AX130 -> 23
B131: >MS | E131: ='PAV (incl RV)'!E131 -> 0 | F131: ='PAV (incl RV)'!J131 -> 10 | G131: ='PAV (incl RV)'!T131 -> 0 | H131: 173.7924472 | I131: 165 | J131: ='PAV (incl RV)'!AD131 -> 0 | K131: 2 | L131: ='PAV (incl RV)'!AN131 -> 16.85806093 | M131: 367.6505082 | O131: ='PAV (incl RV)'!O131 -> 154.7924472 | P131: ='PAV (incl RV)'!AS131 -> 19 | R131: ='PAV (incl RV)'!Y131 -> 165 | U131: ='PAV (incl RV)'!AI131 -> 0 | X131: ='PAV (incl RV)'!AX131 -> 2
B133: Meerlengte | E133: ='PAV (incl RV)'!E135 -> 0 | F133: ='PAV (incl RV)'!J135 -> 104124 | G133: ='PAV (incl RV)'!T135 -> 0 | H133: 0 | I133: 532006 | J133: ='PAV (incl RV)'!AD135 -> 5615 | K133: 253202 | L133: ='PAV (incl RV)'!AN135 -> 1533.333333 | M133: =SUM(E133:L133) -> 896480.3333 | O133: ='PAV (incl RV)'!O135 -> 0 | P133: ='PAV (incl RV)'!AS135 -> 0 | R133: ='PAV (incl RV)'!Y135 -> 532006 | U133: ='PAV (incl RV)'!AI135 -> 253202 | X133: ='PAV (incl RV)'!AX135 -> 0
B136: Volumes 2007 (TD en PAV)
B138: Transportdienst Verbruik > 3*80A
B140: Afnemers HS (110-150 kV)
B141: Vastrecht transportdienst | E141: 0 | F141: 10 | G141: 0 | H141: =O141+P141 -> 20 | I141: =R141+S141 -> 20.23762846 | J141: 0 | K141: =SUM(U141:X141) -> 2 | L141: 0 | M141: =SUM(E141:L141) -> 52.23762846 | O141: 20 | R141: 20.23762846 | U141: 2
B142: kW gecontracteerd per jaar | E142: 0 | F142: 747651.9982 | G142: 0 | H142: =O142+P142 -> 887205 | I142: =R142+S142 -> 752748.9059 | J142: 0 | K142: =SUM(U142:X142) -> 262176.2428 | L142: 0 | M142: =SUM(E142:L142) -> 2649782.147 | O142: 887205 | R142: 752748.9059 | U142: 262176.2428
B143: kW max per maand | E143: 0 | F143: 7967055.262 | G143: 0 | H143: =O143+P143 -> 7488084 | I143: =R143+S143 -> 7904807.586 | J143: 0 | K143: =SUM(U143:X143) -> 2877817.082 | L143: 0 | M143: =SUM(E143:L143) -> 26237763.93 | O143: 7488084 | R143: 7904807.586 | U143: 2877817.082
B144: kVArh blindvermogen | E144: 0 | F144: 0 | G144: 0 | H144: =O144+P144 -> 68527627 | I144: =R144+S144 -> 0 | J144: 0 | K144: =SUM(U144:X144) -> 0 | L144: 0 | M144: =SUM(E144:L144) -> 68527627 | O144: 68527627 | R144: 0 | U144: 0
B146: Afnemers HS (110-150 kV) maximaal 600 uur per jaar
B147: Vastrecht transportdienst | E147: 0 | F147: 0 | G147: 0 | H147: =O147+P147 -> 23 | I147: =R147+S147 -> 12 | J147: 0 | K147: =SUM(U147:X147) -> 4 | L147: 0 | M147: =SUM(E147:L147) -> 39 | O147: 23 | R147: 12 | U147: 4
B148: kW gecontracteerd per jaar | E148: 0 | F148: 12652 | G148: 0 | H148: =O148+P148 -> 217408 | I148: =R148+S148 -> 75310.91667 | J148: 0 | K148: =SUM(U148:X148) -> 21228.16885 | L148: 0 | M148: =SUM(E148:L148) -> 326599.0855 | O148: 217408 | R148: 75310.91667 | U148: 21228.16885
B149: kW max per week | E149: 0 | F149: 151340 | G149: 0 | H149: =O149+P149 -> 2264640 | I149: =R149+S149 -> 1284087.917 | J149: 0 | K149: =SUM(U149:X149) -> 176227.9714 | L149: 0 | M149: =SUM(E149:L149) -> 3876295.888 | O149: 2264640 | R149: 1284087.917 | U149: 176227.9714
B150: kVArh blindvermogen | E150: 0 | F150: 0 | G150: 0 | H150: =O150+P150 -> 22701443 | I150: =R150+S150 -> 0 | J150: 0 | K150: =SUM(U150:X150) -> 1967888.189 | L150: 0 | M150: =SUM(E150:L150) -> 24669331.19 | O150: 22701443 | R150: 0 | U150: 1967888.189
B152: Afnemers TS (25-50 kV)
B153: Vastrecht transportdienst | E153: 0 | F153: 0 | G153: 0 | H153: =O153+P153 -> 0 | I153: =R153+S153 -> 9.58234545 | J153: 0 | K153: =SUM(U153:X153) -> 63.15144203 | L153: 0 | M153: =SUM(E153:L153) -> 72.73378748 | O153: 0 | R153: 9.58234545 | U153: 62.15144203 | X153: 1
B154: kW gecontracteerd per jaar | E154: 0 | F154: 0 | G154: 0 | H154: =O154+P154 -> 0 | I154: =R154+S154 -> 55045.01362 | J154: 0 | K154: =SUM(U154:X154) -> 629418.5406 | L154: 0 | M154: =SUM(E154:L154) -> 684463.5542 | O154: 0 | R154: 55045.01362 | U154: 624018.5406 | X154: 5400
B155: kW max per maand | E155: 0 | F155: 0 | G155: 0 | H155: =O155+P155 -> 0 | I155: =R155+S155 -> 524252.554 | J155: 0 | K155: =SUM(U155:X155) -> 5337677.45 | L155: 0 | M155: =SUM(E155:L155) -> 5861930.004 | O155: 0 | R155: 524252.554 | U155: 5291493.45 | X155: 46184
B156: kVArh blindvermogen | E156: 0 | F156: 0 | G156: 0 | H156: =O156+P156 -> 0 | I156: =R156+S156 -> 0 | J156: 0 | K156: =SUM(U156:X156) -> 75450590.55 | L156: 0 | M156: =SUM(E156:L156) -> 75450590.55 | O156: 0 | R156: 0 | U156: 75450590.55 | X156: 0
B158: Afnemers TS (25-50 kV) maximaal 600 uur per jaar
B159: Vastrecht transportdienst | E159: 0 | F159: 0 | G159: 0 | H159: =O159+P159 -> 0 | I159: =R159+S159 -> 9 | J159: 0 | K159: =SUM(U159:X159) -> 8.908333333 | L159: 0 | M159: =SUM(E159:L159) -> 17.90833333 | O159: 0 | R159: 9 | U159: 8.908333333
B160: kW gecontracteerd per jaar | E160: 0 | F160: 0 | G160: 0 | H160: =O160+P160 -> 0 | I160: =R160+S160 -> 45843.08333 | J160: 0 | K160: =SUM(U160:X160) -> 228306.762 | L160: 0 | M160: =SUM(E160:L160) -> 274149.8453 | O160: 0 | R160: 45843.08333 | U160: 228306.762
B161: kW max per week | E161: 0 | F161: 0 | G161: 0 | H161: =O161+P161 -> 0 | I161: =R161+S161 -> 689377.3175 | J161: 0 | K161: =SUM(U161:X161) -> 1805242.963 | L161: 0 | M161: =SUM(E161:L161) -> 2494620.28 | O161: 0 | R161: 689377.3175 | U161: 1805242.963
B162: kVArh blindvermogen | E162: 0 | F162: 0 | G162: 0 | H162: =O162+P162 -> 0 | I162: =R162+S162 -> 0 | J162: 0 | K162: =SUM(U162:X162) -> 16943001.57 | L162: 0 | M162: =SUM(E162:L162) -> 16943001.57 | O162: 0 | R162: 0 | U162: 16943001.57
B164: Afnemers Trafo HS+TS/MS
B165: Vastrecht transportdienst | E165: 0 | F165: 30.33333333 | G165: 0.6849490334 | H165: =O165+P165 -> 185 | I165: =R165+S165 -> 276.5465339 | J165: 0 | K165: =SUM(U165:X165) -> 87.47554348 | L165: 1 | M165: =SUM(E165:L165) -> 581.0403597 | O165: 179 | P165: 6 | R165: 276.5465339 | U165: 86.47554348 | X165: 1
B166: kW gecontracteerd per jaar | E166: 0 | F166: 61193.36667 | G166: 9810.497467 | H166: =O166+P166 -> 1459025 | I166: =R166+S166 -> 937451.2693 | J166: 0 | K166: =SUM(U166:X166) -> 259283.1872 | L166: 17656 | M166: =SUM(E166:L166) -> 2744419.321 | O166: 1441018 | P166: 18007 | R166: 937451.2693 | U166: 252791.1872 | X166: 6492
B167: kW max per maand | E167: 0 | F167: 495429.4 | G167: 112829.8514 | H167: =O167+P167 -> 14712096 | I167: =R167+S167 -> 9074196.871 | J167: 0 | K167: =SUM(U167:X167) -> 2991444.506 | L167: 173852 | M167: =SUM(E167:L167) -> 27559848.63 | O167: 14525628 | P167: 186468 | R167: 9074196.871 | U167: 2918378.506 | X167: 73066
B168: kVArh blindvermogen | E168: 0 | F168: 0 | G168: 0 | H168: =O168+P168 -> 55069755 | I168: =R168+S168 -> 0 | J168: 0 | K168: =SUM(U168:X168) -> 16069700.79 | L168: 0 | M168: =SUM(E168:L168) -> 71139455.79 | O168: 53759139 | P168: 1310616 | R168: 0 | U168: 16069700.79 | X168: 0
B170: Afnemers Trafo HS+TS/MS maximaal 600 uur per jaar
B171: Vastrecht transportdienst | E171: 0 | F171: 1 | G171: 0 | H171: =O171+P171 -> 14 | I171: =R171+S171 -> 10.83333333 | J171: 0 | K171: =SUM(U171:X171) -> 2.725 | L171: 0 | M171: =SUM(E171:L171) -> 28.55833333 | O171: 14 | R171: 10.83333333 | U171: 2.725
B172: kW gecontracteerd per jaar | E172: 0 | F172: 9300 | G172: 0 | H172: =O172+P172 -> 89891 | I172: =R172+S172 -> 29965.75 | J172: 0 | K172: =SUM(U172:X172) -> 15976.13737 | L172: 0 | M172: =SUM(E172:L172) -> 145132.8874 | O172: 89891 | R172: 29965.75 | U172: 15976.13737
B173: kW max per week | E173: 0 | F173: 120364.8 | G173: 0 | H173: =O173+P173 -> 1139544 | I173: =R173+S173 -> 504448 | J173: 0 | K173: =SUM(U173:X173) -> 260665.9683 | L173: 0 | M173: =SUM(E173:L173) -> 2025022.768 | O173: 1139544 | R173: 504448 | U173: 260665.9683
B174: kVArh blindvermogen | E174: 0 | F174: 0 | G174: 0 | H174: =O174+P174 -> 1989823 | I174: =R174+S174 -> 0 | J174: 0 | K174: =SUM(U174:X174) -> 0 | L174: 0 | M174: =SUM(E174:L174) -> 1989823 | O174: 1989823 | R174: 0 | U174: 0
B176: Afnemers MS (1-20 kV) - TRANSPORT
B177: Vastrecht transportdienst | E177: 0 | F177: 0 | G177: 4.024075571 | H177: =O177+P177 -> 254 | I177: =R177+S177 -> 0 | J177: 1 | K177: =SUM(U177:X177) -> 0 | L177: 0 | M177: =SUM(E177:L177) -> 259.0240756 | O177: 254 | R177: 0 | U177: 0
B178: kW gecontracteerd | E178: 0 | F178: 0 | G178: 24375.98846 | H178: =O178+P178 -> 721057 | I178: =R178+S178 -> 0 | J178: 6381 | K178: =SUM(U178:X178) -> 0 | L178: 0 | M178: =SUM(E178:L178) -> 751813.9885 | O178: 721057 | R178: 0 | U178: 0
B179: kW max per maand | E179: 0 | F179: 0 | G179: 260858.5499 | H179: =O179+P179 -> 6979152 | I179: =R179+S179 -> 0 | J179: 70850 | K179: =SUM(U179:X179) -> 0 | L179: 0 | M179: =SUM(E179:L179) -> 7310860.55 | O179: 6979152 | R179: 0 | U179: 0
B180: kWh tarief normaal | E180: 0 | F180: 0 | G180: 103475254.5 | H180: =O180+P180 -> 2896490127 | I180: =R180+S180 -> 0 | J180: 3726100 | K180: =SUM(U180:X180) -> 0 | L180: 0 | M180: =SUM(E180:L180) -> 3003691481 | O180: 2896490127 | R180: 0 | U180: 0
B181: kVArh blindvermogen | E181: 0 | F181: 0 | G181: 0 | H181: =O181+P181 -> 77244216 | I181: =R181+S181 -> 0 | J181: 0 | K181: =SUM(U181:X181) -> 0 | L181: 0 | M181: =SUM(E181:L181) -> 77244216 | O181: 77244216 | R181: 0 | U181: 0
B183: Afnemers MS (1-20 kV) - DISTRIBUTIE
B184: Vastrecht transportdienst | E184: 31 | F184: 320.3333333 | G184: 589.3642327 | H184: =O184+P184 -> 8315 | I184: =R184+S184 -> 8399.133479 | J184: 19 | K184: =SUM(U184:X184) -> 2708.194059 | L184: 191.4729705 | M184: =SUM(E184:L184) -> 20573.49807 | O184: 8201 | P184: 114 | R184: 8399.133479 | U184: 2683.277392 | X184: 24.91666667
B185: kW gecontracteerd | E185: 28520 | F185: 168199.5 | G185: 146558.8807 | H185: =O185+P185 -> 2761666 | I185: =R185+S185 -> 3024341.105 | J185: 21104 | K185: =SUM(U185:X185) -> 1810311.694 | L185: 197945.0416 | M185: =SUM(E185:L185) -> 8158646.221 | O185: 2710252 | P185: 51414 | R185: 3024341.105 | U185: 1793046.11 | X185: 17265.58333
B186: kW max per maand | E186: 296004 | F186: 1397911 | G186: 1155442.167 | H186: =O186+P186 -> 25182504 | I186: =R186+S186 -> 26107558.15 | J186: 210849.01 | K186: =SUM(U186:X186) -> 13608801.88 | L186: 1632900.512 | M186: =SUM(E186:L186) -> 69591970.72 | O186: 24706860 | P186: 475644 | R186: 26107558.15 | U186: 13510532.88 | X186: 98269
B187: kWh tarief normaal | E187: 105315479 | F187: 450556856 | G187: 395109160.2 | H187: =O187+P187 -> 7850951424 | I187: =R187+S187 -> 8815158992 | J187: 79267934 | K187: =SUM(U187:X187) -> 4749517596 | L187: 432891228.8 | M187: =SUM(E187:L187) -> 2.287876867e+10 | O187: 7682983516 | P187: 167967908 | R187: 8815158992 | U187: 4722898138 | X187: 26619457.75
B188: kVArh blindvermogen | E188: 1735403 | F188: 0 | G188: 7114765.884 | H188: =O188+P188 -> 268911902 | I188: =R188+S188 -> 0 | J188: 1737134 | K188: =SUM(U188:X188) -> 98141407.87 | L188: 0 | M188: =SUM(E188:L188) -> 377640612.8 | O188: 264165513 | P188: 4746389 | R188: 0 | U188: 98141407.87 | X188: 0
B190: Afnemers Trafo MS/LS
B191: Vastrecht transportdienst | E191: 193 | F191: 1307.916667 | G191: 752.3939145 | H191: =O191+P191 -> 13818 | I191: =R191+S191 -> 12843.09608 | J191: 122.1472222 | K191: =SUM(U191:X191) -> 7489.838571 | L191: 1132.975261 | M191: =SUM(E191:L191) -> 37659.36771 | O191: 13517 | P191: 301 | R191: 12843.09608 | U191: 7338.505238 | X191: 151.3333333
B192: kW gecontracteerd | E192: 37501 | F192: 123792.6667 | G192: 41231.29359 | H192: =O192+P192 -> 1021795 | I192: =R192+S192 -> 1171521.981 | J192: 20318 | K192: =SUM(U192:X192) -> 1073211.628 | L192: 259133.6548 | M192: =SUM(E192:L192) -> 3748505.223 | O192: 995607 | P192: 26188 | R192: 1171521.981 | U192: 1038855.044 | X192: 34356.58333
B193: kW max per maand | E193: 349666 | F193: 1018467 | G193: 272437.7451 | H193: =O193+P193 -> 8203908 | I193: =R193+S193 -> 9133929.555 | J193: 189819.29 | K193: =SUM(U193:X193) -> 7452484.89 | L193: 1920236.415 | M193: =SUM(E193:L193) -> 28540948.89 | O193: 7982664 | P193: 221244 | R193: 9133929.555 | U193: 7248805.89 | X193: 203679
B194: kWh tarief normaal | E194: 100239742 | F194: 264853980 | G194: 73885070.5 | H194: =O194+P194 -> 2177343096 | I194: =R194+S194 -> 2564906473 | J194: 49758176 | K194: =SUM(U194:X194) -> 2173549499 | L194: 502812810.9 | M194: =SUM(E194:L194) -> 7907348847 | O194: 2115389194 | P194: 61953902 | R194: 2564906473 | U194: 2115629373 | X194: 57920126
B195: kVArh blindvermogen | E195: 1433724 | F195: 0 | G195: 190387.9905 | H195: =O195+P195 -> 42748779 | I195: =R195+S195 -> 0 | J195: 802567 | K195: =SUM(U195:X195) -> 35323979.53 | L195: 0 | M195: =SUM(E195:L195) -> 80499437.52 | O195: 41017899 | P195: 1730880 | R195: 0 | U195: 35323979.53 | X195: 0
B197: Afnemers LS
B198: Vastrecht transportdienst | E198: 302 | F198: 429.25 | G198: 0 | H198: =O198+P198 -> 3529 | I198: =R198+S198 -> 6425.081429 | J198: 105.3194444 | K198: =SUM(U198:X198) -> 15236.75 | L198: 204.7766667 | M198: =SUM(E198:L198) -> 26232.17754 | O198: 3528 | P198: 1 | R198: 6425.081429 | U198: 15027.41667 | X198: 209.3333333
B199: kW gecontracteerd | E199: 23758 | F199: 21322.5 | G199: 0 | H199: =O199+P199 -> 90608 | I199: =R199+S199 -> 213843.6339 | J199: 6636 | K199: =SUM(U199:X199) -> 694939.2339 | L199: 8709.717391 | M199: =SUM(E199:L199) -> 1059817.085 | O199: 90566 | P199: 42 | R199: 213843.6339 | U199: 682130.6505 | X199: 12808.58333
B200: kWh tarief laag | E200: 15619378 | F200: 6616072 | G200: 0 | H200: =O200+P200 -> 63928458 | I200: =R200+S200 -> 166255601.1 | J200: 5565758 | K200: =SUM(U200:X200) -> 432833734.5 | L200: 7529518.71 | M200: =SUM(E200:L200) -> 698348520.4 | O200: 63923780 | P200: 4678 | R200: 166255601.1 | U200: 426196082.5 | X200: 6637652
B201: kWh tarief normaal | E201: 31625622 | F201: 12916512 | G201: 0 | H201: =O201+P201 -> 96963207 | I201: =R201+S201 -> 260903088.7 | J201: 10617432 | K201: =SUM(U201:X201) -> 682841217.2 | L201: 9748896.694 | M201: =SUM(E201:L201) -> 1105615976 | O201: 96934539 | P201: 28668 | R201: 260903088.7 | U201: 670346798.2 | X201: 12494419
B202: kVArh blindvermogen | E202: 859352 | F202: 0 | G202: 0 | H202: =O202+P202 -> 0 | I202: =R202+S202 -> 0 | J202: 266992 | K202: =SUM(U202:X202) -> 17707362.2 | L202: 0 | M202: =SUM(E202:L202) -> 18833706.2 | O202: 0 | P202: 0 | R202: 0 | U202: 17707362.2 | X202: 0
B204: Transportdienst Kleinverbruik t/m 3*80A (oude categorisering)
B206: Afnemers > 3 * 25 A (DT)
B207: Vastrecht transportdienst | E207: 1087 | F207: 5818.1525 | G207: 748.6024887 | H207: =O207+P207 -> 81983 | I207: =R207+S207 -> 67148.09895 | J207: 1117 | K207: =SUM(U207:X207) -> 64948.12833 | L207: 4283.173889 | M207: =SUM(E207:L207) -> 227133.1562 | O207: 80713 | P207: 1270 | R207: 67148.09895 | U207: 63286.12833 | X207: 1662
B208: kW gecontracteerd | E208: 13365 | F208: 132541.8708 | G208: 19953.36991 | H208: =O208+P208 -> 2393907 | I208: =R208+S208 -> 2210686.148 | J208: 13941.5 | K208: =SUM(U208:X208) -> 1949114.301 | L208: 117832.2057 | M208: =SUM(E208:L208) -> 6851341.395 | O208: 2354197 | P208: 39710 | R208: 2210686.148 | U208: 1901896.301 | X208: 47218
B209: kWh tarief laag | E209: 13101862 | F209: 89523710.62 | G209: 11367800.66 | H209: =O209+P209 -> 1183158821 | I209: =R209+S209 -> 993224147.7 | J209: 10716684 | K209: =SUM(U209:X209) -> 713208024.1 | L209: 58956257.94 | M209: =SUM(E209:L209) -> 3073257308 | O209: 1162153413 | P209: 21005408 | R209: 993224147.7 | U209: 698883267.1 | X209: 14324757
B210: kWh tarief normaal | E210: 22513262 | F210: 108323589.5 | G210: 10978447.42 | H210: =O210+P210 -> 1397942720 | I210: =R210+S210 -> 1266352542 | J210: 24141683.66 | K210: =SUM(U210:X210) -> 1043697278 | L210: 78840523.44 | M210: =SUM(E210:L210) -> 3952790046 | O210: 1373110765 | P210: 24831955 | R210: 1266352542 | U210: 1021804514 | X210: 21892764
B212: Afnemers > 3* 25 A (ET)
B213: Vastrecht transportdienst | E213: 484 | F213: 2188.6475 | G213: 2395.658903 | H213: =O213+P213 -> 34534 | I213: =R213+S213 -> 45909.30018 | J213: 0 | K213: =SUM(U213:X213) -> 8573.023889 | L213: 0 | M213: =SUM(E213:L213) -> 94084.63047 | O213: 34120 | P213: 414 | R213: 45909.30018 | U213: 8363.023889 | X213: 210
B214: kW gecontracteerd | E214: 5983 | F214: 47063.74167 | G214: 79111.51511 | H214: =O214+P214 -> 1010468 | I214: =R214+S214 -> 1504648.768 | J214: 0 | K214: =SUM(U214:X214) -> 219186.0571 | L214: 0 | M214: =SUM(E214:L214) -> 2866461.081 | O214: 998624 | P214: 11844 | R214: 1504648.768 | U214: 211466.0571 | X214: 7720
B215: kWh tarief enkel | E215: 11431103 | F215: 44920045.88 | G215: 62215316.4 | H215: =O215+P215 -> 813391185 | I215: =R215+S215 -> 978770309 | J215: 0 | K215: =SUM(U215:X215) -> 144607532.8 | L215: 0 | M215: =SUM(E215:L215) -> 2055335492 | O215: 803250661 | P215: 10140524 | R215: 978770309 | U215: 141784322.8 | X215: 2823210
B217: Afnemers < 3* 25 A (DT)
B218: Vastrecht transportdienst | E218: 31256 | F218: 72700.28167 | G218: 7408.905333 | H218: =O218+P218 -> 1069689 | I218: =R218+S218 -> 755969.4315 | J218: 17138.21285 | K218: =SUM(U218:X218) -> 1370561.681 | L218: 40608.75389 | M218: =SUM(E218:L218) -> 3365332.266 | O218: 1049738 | P218: 19951 | R218: 755969.4315 | U218: 1345212.681 | X218: 25349
B219: kWh tarief laag | E219: 59836154 | F219: 178700282.9 | G219: 22484579.72 | H219: =O219+P219 -> 2651990064 | I219: =R219+S219 -> 1994835122 | J219: 33658229.79 | K219: =SUM(U219:X219) -> 2422920669 | L219: 75385964.34 | M219: =SUM(E219:L219) -> 7439811066 | O219: 2604545200 | P219: 47444864 | R219: 1994835122 | U219: 2380015785 | X219: 42904884
B220: kWh tarief normaal | E220: 67202927 | F220: 176374216.6 | G220: 15999082.96 | H220: =O220+P220 -> 2264968972 | I220: =R220+S220 -> 1936608066 | J220: 37997377.34 | K220: =SUM(U220:X220) -> 2532665411 | L220: 94024918.82 | M220: =SUM(E220:L220) -> 7125840971 | O220: 2228921197 | P220: 36047775 | R220: 1936608066 | U220: 2491028784 | X220: 41636627
B222: Afnemers < 3* 25 A (ET)
B223: Vastrecht transportdienst | E223: 18242 | F223: 115707.3242 | G223: 89566.4488 | H223: =O223+P223 -> 1312402 | I223: =R223+S223 -> 1894300.698 | J223: 12240.28715 | K223: =SUM(U223:X223) -> 514215.9572 | L223: 5484.238889 | M223: =SUM(E223:L223) -> 3962158.954 | O223: 1287727 | P223: 24675 | R223: 1894300.698 | U223: 504263.4572 | X223: 9952.5
B224: kWh tarief enkel | E224: 49282119 | F224: 332375348.4 | G224: 302051262.9 | H224: =O224+P224 -> 4343448348 | I224: =R224+S224 -> 5838525951 | J224: 32670538.71 | K224: =SUM(U224:X224) -> 1347625411 | L224: 13753450.77 | M224: =SUM(E224:L224) -> 1.225973243e+10 | O224: 4275906961 | P224: 67541387 | R224: 5838525951 | U224: 1328115410 | X224: 19510001
B226: Afnemers LS geschakeld (1 * 6 A)
B227: Vastrecht transportdienst | E227: 21663 | F227: 82800 | G227: 41640.5 | H227: =O227+P227 -> 990107 | I227: =R227+S227 -> 716304 | J227: 17491 | K227: =SUM(U227:X227) -> 545954.3502 | L227: 21227.94444 | M227: =SUM(E227:L227) -> 2437187.795 | O227: 975448 | P227: 14659 | R227: 716304 | U227: 537607.3502 | X227: 8347
B228: kWh tarief laag | E228: 4391345 | F228: 0 | G228: 8492196.602 | H228: =O228+P228 -> 154109093 | I228: =R228+S228 -> 96644865.35 | J228: 2330681 | K228: =SUM(U228:X228) -> 111951179.7 | L228: 3986300.456 | M228: =SUM(E228:L228) -> 381905661.1 | O228: 150317812 | P228: 3791281 | R228: 96644865.35 | U228: 111951179.7 | X228: 0
B229: kWh tarief normaal | E229: 1970364 | F229: 15951090 | G229: 3785063.284 | H229: =O229+P229 -> 44312015 | I229: =R229+S229 -> 33132636.9 | J229: 729583 | K229: =SUM(U229:X229) -> 39050316.86 | L229: 1474849.182 | M229: =SUM(E229:L229) -> 140405918.2 | O229: 43255987 | P229: 1056028 | R229: 33132636.9 | U229: 36022552.86 | X229: 3027764
B231: Transportdienst Kleinverbruik t/m 3*80A (nieuwe categorisering)
B233: Kleinverbruikers (t/m 3*80 A op LS)
B234: Vastrecht transportdienst t/m 1*6A LS geschakeld | E234: =E227 -> 21663 | F234: =F227 -> 82800 | G234: =G227 -> 41640.5 | H234: 990107 | I234: 716304 | J234: 17491 | K234: =K227 -> 545954.3502 | L234: 21227.94444 | M234: =SUM(E234:L234) -> 2437187.795
B235: Vastrecht transportdienst t/m 3*80A op LS | E235: =E223+E218+E213+E207 -> 51069 | F235: =F223+F218+F213+F207 -> 196414.4058 | G235: =G223+G218+G213+G207 -> 100119.6155 | H235: 2498608 | I235: 2763327.529 | J235: 30495.5 | K235: =K223+K218+K213+K207 -> 1958298.79 | L235: 50376.16667 | M235: =SUM(E235:L235) -> 7648709.007
B237: Kleinverbruikers (t/m 3*80 A op LS) capaciteitstarieven per afnemerscategorie
B238: t/m 1*6A op het geschakeld net | E238: =E$7*E227 -> 21663 | F238: =F$7*F227 -> 82800 | G238: =G$7*G227 -> 41640.5 | H238: 990107 | I238: 716304 | J238: 17491 | K238: =K$7*K227 -> 545954.3502 | L238: 21227.94444 | M238: =SUM(E238:L238) -> 2437187.795
B239: t/m 3*25A + alle 1-fase aansluitingen | E239: =E$8*(E223+E218) -> 49498 | F239: =F$8*(F223+F218) -> 188407.6058 | G239: =G$8*(G223+G218) -> 96975.35413 | H239: 2382091 | I239: 2650270.13 | J239: 29378.5 | K239: =K$8*(K223+K218) -> 1884777.638 | L239: 46092.99278 | M239: 7327491.22
B240: > 3*25A t/m 3*35A | E240: =E$9*(E213+E207) -> 838.533758 | F240: =F$9*(F213+F207) -> 3955.485247 | G240: =G$9*(G213+G207) -> 1220.352816 | H240: 58867.7497 | I240: 53594.65211 | J240: =J$9*(J213+J207) -> 517.2497925 | K240: =K$9*(K213+K207) -> 38979.89685 | L240: 1726.350419 | M240: 159700.2707
B241: > 3*35A t/m 3*50A | E241: =E$10*(E213+E207) -> 268.1707006 | F241: =F$10*(F213+F207) -> 1775.147619 | G241: =G$10*(G213+G207) -> 637.3489953 | H241: 23054.04084 | I241: 21904.8912 | J241: 262.4357769 | K241: =K$10*(K213+K207) -> 12488.79775 | L241: 1015.116219 | M241: 61405.94911
B242: > 3*50A t/m 3*63A | E242: =E$11*(E213+E207) -> 240.1528662 | F242: =F$11*(F213+F207) -> 1253.228482 | G242: =G$11*(G213+G207) -> 1175.662085 | H242: 21019.82977 | I242: 21681.29706 | J242: 204.6545874 | K242: =K$11*(K213+K207) -> 14692.57811 | L242: 854.3561457 | M242: 61121.75911
B243: > 3*63A t/m 3*80A | E243: =E$12*(E213+E207) -> 224.1426752 | F243: =F$12*(F213+F207) -> 1022.851679 | G243: =G$12*(G213+G207) -> 110.8974952 | H243: 13575.46043 | I243: 15876.55875 | J243: =J$12*(J213+J207) -> 132.6598432 | K243: =K$12*(K213+K207) -> 7360.115862 | L243: 687.3511047 | M243: 38990.03784
B245: Periodieke aansluitvergoeding
B247: t/m 1 x 6A geschakeld net | E247: ='PAV (incl RV)'!E174 -> 21663 | F247: ='PAV (incl RV)'!J174 -> 82800 | G247: ='PAV (incl RV)'!T174 -> 41640.5 | H247: =O247+P247 -> 912136 | I247: =R247+S247 -> 716357.5 | J247: ='PAV (incl RV)'!AD174 -> 17491 | K247: =SUM(U247:X247) -> 648674.7896 | L247: ='PAV (incl RV)'!AN174 -> 21230.09222 | M247: =SUM(E247:L247) -> 2461992.882 | O247: ='PAV (incl RV)'!O174 -> 912136 | P247: ='PAV (incl RV)'!AS174 -> 0 | R247: ='PAV (incl RV)'!Y174 -> 716357.5 | U247: ='PAV (incl RV)'!AI174 -> 640309.9159 | X247: ='PAV (incl RV)'!AX174 -> 8364.873662
B248: t/m 3*25 A | E248: ='PAV (incl RV)'!E175 -> 49498 | F248: ='PAV (incl RV)'!J175 -> 188407.6058 | G248: ='PAV (incl RV)'!T175 -> 96727.72519 | H248: 2447442 | I248: =R248+S248 -> 2646051.5 | J248: ='PAV (incl RV)'!AD175 -> 29378.5 | K248: =SUM(U248:X248) -> 1877433.007 | L248: ='PAV (incl RV)'!AN175 -> 44278.04404 | M248: 7379216.382 | O248: ='PAV (incl RV)'!O175 -> 2402342 | P248: ='PAV (incl RV)'!AS175 -> 45100 | R248: ='PAV (incl RV)'!Y175 -> 2646051.5 | U248: ='PAV (incl RV)'!AI175 -> 1842085.481 | X248: ='PAV (incl RV)'!AX175 -> 35347.52542
B249: >3*25A t/m 3*80A | E249: ='PAV (incl RV)'!E176 -> 1571 | F249: ='PAV (incl RV)'!J176 -> 8006.8 | G249: ='PAV (incl RV)'!T176 -> 3120.076048 | H249: 67046 | I249: 113832 | J249: ='PAV (incl RV)'!AD176 -> 1117 | K249: 82343.16518 | L249: ='PAV (incl RV)'!AN176 -> 4386.882189 | M249: 281422.9234 | O249: ='PAV (incl RV)'!O176 -> 65356 | P249: ='PAV (incl RV)'!AS176 -> 1690 | R249: ='PAV (incl RV)'!Y176 -> 113832 | U249: ='PAV (incl RV)'!AI176 -> 80468.72451 | X249: ='PAV (incl RV)'!AX176 -> 1874.440678
B250: LS & Trafo MS/LS | E250: ='PAV (incl RV)'!E177 -> 495 | F250: ='PAV (incl RV)'!J177 -> 1737.166667 | G250: ='PAV (incl RV)'!T177 -> 748.458629 | H250: 33022 | I250: 24212.5 | J250: ='PAV (incl RV)'!AD177 -> 227.4666667 | K250: 11086.04736 | L250: ='PAV (incl RV)'!AN177 -> 1159.26735 | M250: 72687.90668 | O250: ='PAV (incl RV)'!O177 -> 32720 | P250: ='PAV (incl RV)'!AS177 -> 302 | R250: ='PAV (incl RV)'!Y177 -> 24212.5 | U250: ='PAV (incl RV)'!AI177 -> 10253.91539 | X250: ='PAV (incl RV)'!AX177 -> 832.1319776
B251: MS | E251: ='PAV (incl RV)'!E178 -> 31 | F251: ='PAV (incl RV)'!J178 -> 320.3333333 | G251: ='PAV (incl RV)'!T178 -> 586.4032998 | H251: 9104 | I251: 1834 | J251: ='PAV (incl RV)'!AD178 -> 20 | K251: 3648.144984 | L251: ='PAV (incl RV)'!AN178 -> 214.4171062 | M251: 15758.29872 | O251: ='PAV (incl RV)'!O178 -> 9046 | P251: ='PAV (incl RV)'!AS178 -> 58 | R251: ='PAV (incl RV)'!Y178 -> 1834 | U251: ='PAV (incl RV)'!AI178 -> 3621.899008 | X251: ='PAV (incl RV)'!AX178 -> 26.24597644
B252: >MS | E252: ='PAV (incl RV)'!E179 -> 0 | F252: ='PAV (incl RV)'!J179 -> 10 | G252: ='PAV (incl RV)'!T179 -> 4.686358924 | H252: 178.0600244 | I252: 178.5 | J252: ='PAV (incl RV)'!AD179 -> 0 | K252: 136.0336057 | L252: ='PAV (incl RV)'!AN179 -> 17.44282186 | M252: 524.7228109 | O252: ='PAV (incl RV)'!O179 -> 154.7924472 | P252: ='PAV (incl RV)'!AS179 -> 23.26757714 | R252: ='PAV (incl RV)'!Y179 -> 178.5 | U252: ='PAV (incl RV)'!AI179 -> 133.8669391 | X252: ='PAV (incl RV)'!AX179 -> 2.166666667
B254: Meerlengte | E254: ='PAV (incl RV)'!E183 -> 0 | F254: ='PAV (incl RV)'!J183 -> 104124 | G254: ='PAV (incl RV)'!T183 -> 1932.397341 | H254: 15114 | I254: 648701.865 | J254: ='PAV (incl RV)'!AD183 -> 5615 | K254: 215750.6563 | L254: ='PAV (incl RV)'!AN183 -> 2302.292705 | M254: 993540.2113 | O254: ='PAV (incl RV)'!O183 -> 0 | P254: ='PAV (incl RV)'!AS183 -> 15114 | R254: ='PAV (incl RV)'!Y183 -> 648701.865 | U254: ='PAV (incl RV)'!AI183 -> 215750.6563 | X254: ='PAV (incl RV)'!AX183 -> 0
... 211 more rows

Sheet EAV (incl RV)
B2: Eenmalige Aansluitvergoeding (inclusief Rekenvolumes)
B4: Rekenvolumes EAV
B6: COGAS | G6: DNWB | L6: ENEXIS | Q6: ENDINET | V6: LIANDER | AA6: RENDO | AF6: STEDIN | AK6: WESTLAND
B8: Aansluitingen t/m 25 meter | G8: Aansluitingen t/m 25 meter | L8: Aansluitingen t/m 25 meter | Q8: Aansluitingen t/m 25 meter | V8: Aansluitingen t/m 25 meter | AA8: Aansluitingen t/m 25 meter | AF8: Aansluitingen t/m 25 meter | AK8: Aansluitingen t/m 25 meter
B10: =B64 -> 0 t/m 1*6A (OV) | E10: =E64 -> 541.6068176 | G10: =G64 -> t/m 1*6 A geschakeld net | J10: =J64 -> 1360 | L10: =L65 -> t/m 1*6 A op geschakeld net | O10: =O65 -> 29519.46935 | Q10: =Q64 -> 0 t/m 1*6 A aansluting op geschakeld net | T10: =T64 -> 22 | V10: =V64 -> t/m 3*25A | Y10: =Y64 -> 36285 | AA10: =AA64 -> 0 t/m 1x6A LS geschakeld | AD10: =AD64 -> 309 | AF10: =AF64 -> 1*6 A op geschakeld net | AI10: =AI64 -> 16420.88128 | AK10: =AK64 -> >2,4 MVA en t/m 10 MVA | AN10: =AN64 -> 1
B11: =B65 -> > 1*6A en t/m 3*25A | E11: =E65 -> 658.0002805 | G11: =G65 -> > 1*6A en t/m 3*25A | J11: =J65 -> 1868 | L11: t/m 1*40A | O11: 20542.66998 | Q11: > 1*6A t/m 3*25A | T11: 1781 | V11: >3*25A en t/m 3*50A | Y11: 2116 | AA11: =AA65 -> 0 t/m 3x25A en 1x40A | AD11: =AD65 -> 315 | AF11: >1*6A t/m 3*25A | AI11: 32022.20998 | AK11: =AK65 -> >= 1MW en t/m 2,4 MVA | AN11: =AN65 -> 17
B12: >3*25A en t/m 3*35A | E12: 18 | G12: >3*25A en t/m 3*35A | J12: 82 | L12: > 1*40A t/m 3*25A | O12: 9893.809832 | Q12: >3*25A t/m 3*63A | T12: 209 | V12: >3*50A en t/m 3*80A | Y12: 1391 | AA12: >3x25A en t/m 3x40A | AD12: 15 | AF12: >3*25A en t/m 3*35A | AI12: 1156.319367 | AK12: >3*1500A en t/m 3*1600A af sec. zijde LS | AN12: 8
B13: >3*35A en t/m 3*50A | E13: 4 | G13: >3*35A en t/m 3*50A | J13: 43 | L13: >3*25A en t/m 3*40A | O13: 0 | Q13: >3*63A t/m 3*80A | T13: 8 | V13: >3*80A en t/m 100 kVA af sec zijde trafo | Y13: 227 | AA13: >3x40A en t/m 3x50A | AD13: 6 | AF13: >3*35A en t/m 3*63A | AI13: 1162.106816 | AK13: >3*1200A en t/m 3*1500A af sec. zijde LS | AN13: 1
B14: >3*50A en t/m 3*63A | E14: 8.679241016 | G14: >3*50A en t/m 3*63A | J14: 24 | L14: >3*40A en t/m 3*50A | O14: 483.3275862 | Q14: >3*80 A t/m 3*160A | T14: 19 | V14: >100 kVA en t/m 160 kVA af sec zijde trafo | Y14: 233 | AA14: >3x50A en t/m 3x63A | AD14: 7 | AF14: > 3*63 A t/m 3*80A | AI14: 487.9504473 | AK14: >3*750A en t/m 3*1200A af sec. zijde LS | AN14: 4
B15: >3*63A en t/m 3*80A | E15: 18 | G15: >3*63A en t/m 3*80A | J15: 55 | L15: >3*50A en t/m 3*63A | O15: 569.3037572 | Q15: >3*160 A t/m 250 A | T15: 20 | V15: >160 kVA en t/m 630 kVA met LS meting | Y15: 168 | AA15: >3x63A en t/m 3x80A | AD15: 23 | AF15: >3*80A t/m 3*125 A | AI15: 207.4956378 | AK15: >3*500A en t/m 3*750A af sec. zijde LS | AN15: 3
B16: >3*80A en t/m 3*100A af sec. zijde LS-transformator | E16: 0 | G16: >50 kW en t/m 0,2 MW af sec. zijde LS | J16: 39 | L16: >3*63A en t/m 3*80A | O16: 793.1035607 | Q16: >110 kVA t/m 630 kVA | T16: 16 | V16: >630 kVA en t/m 1000 kVA met LS meting | Y16: 27 | AA16: >3x80A en t/m 3x100A | AD16: 0 | AF16: >3*125 Amp t/m 175 kVA | AI16: 521.185164 | AK16: >3*480A en t/m 3*500A af sec. zijde LS | AN16: 1
B17: >3*100A en t/m 3*125A af sec.zijde LS-transformator | E17: 3 | G17: >0,2 MW en t/m 0.6 MW, LS meting | J17: 10 | L17: >3*80A en t/m 3*160A | O17: 478.1095455 | Q17: >630 kVA t/m <1 MVA | T17: 1 | V17: >1000 kVA en t/m 2 MVA | Y17: 41 | AA17: >3x100A en t/m 3x125A | AD17: 2 | AF17: > 175kVA t/m 630kVA | AI17: 141.9823803 | AK17: >3*400A en t/m 3*480A af sec. zijde LS | AN17: 2
B18: >3*125A en t/m 3*160A af sec.zijde LS-transformator | E18: 1 | G18: >0,6 MW en t/m 2.0 MW, MS meting | J18: 9 | L18: >3*160A t/m 3*250A | O18: 392.2620862 | Q18: >1 MVA t/m 2 MVA | T18: 0 | V18: >2 MVA en t/m 5,0 MVA | Y18: 8 | AA18: >3x125A en t/m 3x160A | AD18: 3 | AF18: > 630kVA t/m 1.000kVA | AI18: 23.65575282 | AK18: >3*250A en t/m 3*400A af sec. zijde LS | AN18: 9
B19: >3*160A en t/m 3*200A af sec.zijde LS-transformator | E19: 3.998934135 | G19: >2,0 MVA en t/m 5 MVA | J19: 0 | L19: >3*250A (173 kVA) t/m 630 kVA | O19: 402.6470533 | Q19: >2 MVA t/m 5,0 MVA | T19: 0 | V19: >5 MVA en t/m 10,0 MVA | Y19: 9 | AA19: >3x160A en t/m 3x200A | AD19: 2 | AF19: > 1.000kVA t/m 1.750kVA | AI19: 65.78383208 | AK19: >3*200A en t/m 3*250A af sec. zijde LS | AN19: 5
B20: >3*200A en t/m 3*225A af sec.zijde LS-transformator | E20: 7 | G20: >5,0 MVA en t/m 10 MVA | J20: 2 | L20: > 630 kVA t/m 1750 kVA | O20: 200.0084602 | Q20: >5,0 MVA t/m 10 MVA | T20: 0 | V20: t/m 1 x 6A op geschakeld net | Y20: 10610 | AA20: >3x200A en t/m 3x225A | AD20: 1 | AF20: > 1.750kVA t/m 3.000kVA | AI20: 9.872750322 | AK20: >3*80A en t/m 3*200A af sec. zijde LS | AN20: 20
B21: >0,15 MVA en t/m 0,63 MVA MS met LS meting | E21: 2 | L21: > 1750 kVA t/m 6 MVA | O21: 14.20090645 | AA21: >0,15 t/m 0.63 MVA met LS meting | AD21: 1 | AF21: > 3.000kVA t/m 10.000kVA | AI21: 17.46894361 | AK21: >3*63A en t/m 3*80A | AN21: 24
B22: >0,63 MVA en t/m 1,2 MVA MS met LS meting | E22: 0 | L22: >6,0 MVA en t/m 10 MVA | O22: 3.688231781 | AA22: > 0.63 MVA t/m 1.2 MVA met LS meting | AD22: 0 | AK22: >3*50A en t/m 3*63A | AN22: 12
B23: >1,2 MVA en t/m 1,8 MVA MS met MS meting | E23: 0 | AA23: > 1.2 MVA t/m 2 MVA met MS meting | AD23: 0 | AK23: >3*35A en t/m 3*50A | AN23: 9
B24: >1,8 MVA en t/m 2,4 MVA MS met MS meting | E24: 0 | AA24: > 2 MVA t/m 5 MVA met MS meting | AD24: 0 | AK24: >3*25A en t/m 3*35A | AN24: 68
B25: >2,4 MVA en t/m 3,0 MVA MS met MS meting | E25: 0 | AA25: > 5 MVA tot 10 MVA met MS meting | AD25: 0 | AK25: t/m 3*25A | AN25: 972
AK26: 1*6A geschakeld net | AN26: 456
B29: Aansluitingen > 25 meter (in meters) | G29: Aansluitingen > 25 meter (in meters) | L29: Aansluitingen > 25 meter (in meters) | Q29: Aansluitingen > 25 meter (in meters) | V29: Aansluitingen > 25 meter (in meters) | AA29: Aansluitingen > 25 meter (in meters) | AF29: Aansluitingen > 25 meter (in meters) | AK29: Aansluitingen > 25 meter (in meters)
B31: =B98 -> 0 t/m 1*6A (OV) | E31: =E98 -> 704.6697122 | G31: =G98 -> t/m 1*6 A geschakeld net | J31: =J98 -> 680 | L31: =L99 -> t/m 1*6 A op geschakeld net | O31: =O99 -> 44844.57333 | Q31: =Q98 -> 0 t/m 1*6 A aansluting op geschakeld net | T31: =T98 -> 0 | V31: =V98 -> t/m 3*25A | Y31: =Y98 -> 34778 | AA31: =AA98 -> 0 t/m 1x6A LS geschakeld | AD31: =AD98 -> 261 | AF31: =AF98 -> 1*6 A op geschakeld net | AI31: =AI98 -> 8882.792104 | AK31: =AK98 -> >2,4 MVA en t/m 10 MVA | AN31: =AN98 -> 0
B32: =B99 -> > 1*6A en t/m 3*25A | E32: =E99 -> 256.835002 | G32: =G99 -> > 1*6A en t/m 3*25A | J32: =J99 -> 7147 | L32: t/m 1*40A | O32: 90185.23529 | Q32: > 1*6A t/m 3*25A | T32: 600 | V32: >3*25A en t/m 3*50A | Y32: 20149 | AA32: =AA99 -> 0 t/m 3x25A en 1x40A | AD32: =AD99 -> 583 | AF32: >1*6A t/m 3*25A | AI32: 31081.5917 | AK32: =AK99 -> >= 1MW en t/m 2,4 MVA | AN32: =AN99 -> 901.2774113
B33: >3*25A en t/m 3*35A | E33: 1218.674456 | G33: >3*25A en t/m 3*35A | J33: 798 | L33: > 1*40A t/m 3*25A | O33: 0 | Q33: >3*25A t/m 3*63A | T33: 664 | V33: >3*50A en t/m 3*80A | Y33: 17327 | AA33: >3x25A en t/m 3x40A | AD33: 0 | AF33: >3*25A en t/m 3*35A | AI33: 7537.769257 | AK33: >3*1500A en t/m 3*1600A af sec. zijde LS | AN33: 47
B34: >3*35A en t/m 3*50A | E34: 0 | G34: >3*35A en t/m 3*50A | J34: 901 | L34: >3*25A en t/m 3*40A | O34: 0 | Q34: >3*63A t/m 3*80A | T34: 1002.579664 | V34: >3*80A en t/m 100 kVA af sec zijde trafo | Y34: 30283 | AA34: >3x40A en t/m 3x50A | AD34: 12 | AF34: >3*35A en t/m 3*63A | AI34: 8840.813762 | AK34: >3*1200A en t/m 3*1500A af sec. zijde LS | AN34: 0
B35: >3*50A en t/m 3*63A | E35: 0 | G35: >3*50A en t/m 3*63A | J35: 143 | L35: >3*40A en t/m 3*50A | O35: 0 | Q35: >3*80 A t/m 3*160A | T35: 2657 | V35: >100 kVA en t/m 160 kVA af sec zijde trafo | Y35: 31083 | AA35: >3x50A en t/m 3x63A | AD35: 49 | AF35: > 3*63 A t/m 3*80A | AI35: 7236.962493 | AK35: >3*750A en t/m 3*1200A af sec. zijde LS | AN35: 185
B36: >3*63A en t/m 3*80A | E36: 0 | G36: >3*63A en t/m 3*80A | J36: 1623 | L36: >3*50A en t/m 3*63A | O36: 39048.40909 | Q36: >3*160 A t/m 250 A | T36: 1770 | V36: >160 kVA en t/m 630 kVA met LS meting | Y36: 24364 | AA36: >3x63A en t/m 3x80A | AD36: 20 | AF36: >3*80A t/m 3*125 A | AI36: 18989.96131 | AK36: >3*500A en t/m 3*750A af sec. zijde LS | AN36: 410
B37: >3*80A en t/m 3*100A af sec. zijde LS-transformator | E37: 370 | G37: >50 kW en t/m 0,2 MW af sec. zijde LS | J37: 6788 | L37: >3*63A en t/m 3*80A | O37: 0 | Q37: >110 kVA t/m 630 kVA | T37: 744 | V37: >630 kVA en t/m 1000 kVA met LS meting | Y37: 3916 | AA37: >3x80A en t/m 3x100A | AD37: 0 | AF37: >3*125 Amp t/m 175 kVA | AI37: 52427.04125 | AK37: >3*480A en t/m 3*500A af sec. zijde LS | AN37: 0
B38: >3*100A en t/m 3*125A af sec.zijde LS-transformator | E38: 0 | G38: >0,2 MW en t/m 0.6 MW, LS meting | J38: 825 | L38: >3*80A en t/m 3*160A | O38: 142120 | Q38: >630 kVA t/m <1 MVA | T38: 0 | V38: >1000 kVA en t/m 2 MVA | Y38: 5946 | AA38: >3x100A en t/m 3x125A | AD38: 336 | AF38: > 175kVA t/m 630kVA | AI38: 8575.044812 | AK38: >3*400A en t/m 3*480A af sec. zijde LS | AN38: 175
B39: >3*125A en t/m 3*160A af sec.zijde LS-transformator | E39: 621.4143328 | G39: >0,6 MW en t/m 2.0 MW, MS meting | J39: 6805 | L39: >3*160A t/m 3*250A | O39: 0 | Q39: >1 MVA t/m 2 MVA | T39: 0 | V39: >2 MVA en t/m 5,0 MVA | Y39: 5076.666667 | AA39: >3x125A en t/m 3x160A | AD39: 440 | AF39: > 630kVA t/m 1.000kVA | AI39: 803.8218813 | AK39: >3*250A en t/m 3*400A af sec. zijde LS | AN39: 920
B40: >3*160A en t/m 3*200A af sec.zijde LS-transformator | E40: 1888.782483 | G40: >2,0 MVA en t/m 5 MVA | J40: 0 | L40: >3*250A (173 kVA) t/m 630 kVA | O40: 23091.04762 | Q40: >2 MVA t/m 5,0 MVA | T40: 0 | V40: >5 MVA en t/m 10,0 MVA | Y40: 9135 | AA40: >3x160A en t/m 3x200A | AD40: 345 | AF40: > 1.000kVA t/m 1.750kVA | AI40: 2049.254723 | AK40: >3*200A en t/m 3*250A af sec. zijde LS | AN40: 208
B41: >3*200A en t/m 3*225A af sec.zijde LS-transformator | E41: 401.2795371 | G41: >5,0 MVA en t/m 10 MVA | J41: 9850 | L41: > 630 kVA t/m 1750 kVA | O41: 12149.47619 | Q41: >5,0 MVA t/m 10 MVA | T41: 0 | V41: t/m 1 x 6A op geschakeld net | Y41: 17007 | AA41: >3x200A en t/m 3x225A | AD41: 85 | AF41: > 1.750kVA t/m 3.000kVA | AI41: 10550.64102 | AK41: >3*80A en t/m 3*200A af sec. zijde LS | AN41: 1448
B42: >0,15 MVA en t/m 0,63 MVA MS met LS meting | E42: 90 | L42: > 1750 kVA t/m 6 MVA | O42: 12899.18261 | AA42: >0,15 t/m 0.63 MVA met LS meting | AD42: 180 | AF42: > 3.000kVA t/m 10.000kVA | AI42: 4352.497937 | AK42: >3*63A en t/m 3*80A | AN42: 64
B43: >0,63 MVA en t/m 1,2 MVA MS met LS meting | E43: 0 | L43: >6,0 MVA en t/m 10 MVA | O43: 16479.17037 | AA43: > 0.63 MVA t/m 1.2 MVA met LS meting | AD43: 0 | AK43: >3*50A en t/m 3*63A | AN43: 10
B44: >1,2 MVA en t/m 1,8 MVA MS met MS meting | E44: 0 | AA44: > 1.2 MVA t/m 2 MVA met MS meting | AD44: 0 | AK44: >3*35A en t/m 3*50A | AN44: 2563
B45: >1,8 MVA en t/m 2,4 MVA MS met MS meting | E45: 0 | AA45: > 2 MVA t/m 5 MVA met MS meting | AD45: 0 | AK45: >3*25A en t/m 3*35A | AN45: 407.5
B46: >2,4 MVA en t/m 3,0 MVA MS met MS meting | E46: 0 | AA46: > 5 MVA tot 10 MVA met MS meting | AD46: 0 | AK46: t/m 3*25A | AN46: 356
AK47: 1*6A geschakeld net | AN47: 992
A50: NE5R - Standaardisatie
B52: t/m 1 x 6A geschakeld net | C52: Geen verdere standaardisatie. Categorie is reeds uniform.
B53: t/m 3*25 A | C53: Geen verdere standaardisatie. Categorie is reeds uniform.
B54: >3*25A t/m 3*80A | C54: Standaardisatie op basis van aansluitcapaciteit.
B55: >3*80A t/m 630kVA | C55: Standaardisatie op basis van aansluitcapaciteit.
B56: MS en >MS | C56: Standaardisatie op basis van aansluitcapaciteit (>630 kVA).
A58: NE5R - EAV - Tarieven 2010 en Volumes 2009 om gestandaardiseerde tarieven 2010 tbv wegingsfactor te berekenen
B60: EAV t/m 25 meter
B62: COGAS | G62: DNWB | L62: ENEXIS | Q62: ENDINET | V62: LIANDER | AA62: RENDO | AF62: STEDIN | AK62: WESTLAND
B63: EAV t/m 25 meter | D63: tarief | E63: volume | G63: EAV t/m 25 meter | I63: tarief | J63: volume | L63: EAV t/m 25 meter | N63: tarief | O63: volume | Q63: EAV t/m 25 meter | S63: tarief | T63: volume | V63: EAV t/m 25 meter | X63: tarief | Y63: volume | AA63: EAV t/m 25 meter | AC63: tarief | AD63: volume | AF63: EAV t/m 25 meter | AH63: tarief | AI63: volume | AK63: EAV t/m 25 meter | AM63: tarief | AN63: volume
B64: 0 t/m 1*6A (OV) | D64: 350 | E64: =E133 -> 541.6068176 | G64: t/m 1*6 A geschakeld net | I64: 284.07 | J64: =J133 -> 1360 | Q64: 0 t/m 1*6 A aansluting op geschakeld net | S64: 345.18 | T64: =T133 -> 22 | V64: t/m 3*25A | X64: 546.7 | Y64: =Y133 -> 36285 | AA64: 0 t/m 1x6A LS geschakeld | AC64: 363 | AD64: =AD133 -> 309 | AF64: 1*6 A op geschakeld net | AH64: 327.86 | AI64: =AI133 -> 16420.88128 | AK64: >2,4 MVA en t/m 10 MVA | AM64: 178772.27 | AN64: =AN133 -> 1
B65: > 1*6A en t/m 3*25A | D65: 585 | E65: 658.0002805 | G65: > 1*6A en t/m 3*25A | I65: 539.31 | J65: =J134 -> 1868 | L65: t/m 1*6 A op geschakeld net | N65: 296 | O65: =O134 -> 29519.46935 | Q65: > 1*6A t/m 3*25A | S65: 542.6 | T65: =T134 -> 1781 | V65: >3*25A en t/m 3*50A | X65: 845.73 | Y65: =Y134 -> 2116 | AA65: 0 t/m 3x25A en 1x40A | AC65: 615 | AD65: =AD134 -> 315 | AF65: >1*6A t/m 3*25A | AH65: 479.57 | AI65: =AI134 -> 32022.20998 | AK65: >= 1MW en t/m 2,4 MVA | AM65: 58739.46 | AN65: =AN134 -> 17
B66: >3*25A en t/m 3*35A | D66: 990.8 | E66: 18 | G66: >3*25A en t/m 3*35A | I66: 760.63 | J66: 82 | L66: t/m 1*40A | N66: 568 | O66: =O135 -> 20542.66998 | Q66: >3*25A t/m 3*63A | S66: 740.04 | T66: 209 | V66: >3*50A en t/m 3*80A | X66: 1025.4 | Y66: 1391 | AA66: >3x25A en t/m 3x40A | AC66: 828 | AD66: 15 | AF66: >3*25A en t/m 3*35A | AH66: 721.26 | AI66: 1156.319367 | AK66: >3*1500A en t/m 3*1600A af sec. zijde LS | AM66: 20635.09 | AN66: 8
B67: >3*35A en t/m 3*50A | D67: 990.8 | E67: 4 | G67: >3*35A en t/m 3*50A | I67: 837.81 | J67: 43 | L67: > 1*40A t/m 3*25A | N67: 568 | O67: 9893.809832 | Q67: >3*63A t/m 3*80A | S67: 1606.88 | T67: 8 | V67: >3*80A en t/m 100 kVA af sec zijde trafo | X67: 3687.22 | Y67: 227 | AA67: >3x40A en t/m 3x50A | AC67: 933 | AD67: 6 | AF67: >3*35A en t/m 3*63A | AH67: 721.26 | AI67: 1162.106816 | AK67: >3*1200A en t/m 3*1500A af sec. zijde LS | AM67: 13203.04 | AN67: 1
B68: >3*50A en t/m 3*63A | D68: 990.8 | E68: 8.679241016 | G68: >3*50A en t/m 3*63A | I68: 942.95 | J68: 24 | L68: >3*25A en t/m 3*40A | N68: 692 | O68: 0 | Q68: >3*80 A t/m 3*160A | S68: 2707.34 | T68: 19 | V68: >100 kVA en t/m 160 kVA af sec zijde trafo | X68: 4137.37 | Y68: 233 | AA68: >3x50A en t/m 3x63A | AC68: 1007 | AD68: 7 | AF68: > 3*63 A t/m 3*80A | AH68: 1176.88 | AI68: 487.9504473 | AK68: >3*750A en t/m 3*1200A af sec. zijde LS | AM68: 11783.6 | AN68: 4
B69: >3*63A en t/m 3*80A | D69: 990.8 | E69: 18 | G69: >3*63A en t/m 3*80A | I69: 1001.47 | J69: 55 | L69: >3*40A en t/m 3*50A | N69: 692 | O69: 483.3275862 | Q69: >3*160 A t/m 250 A | S69: 4126.86 | T69: 20 | V69: >160 kVA en t/m 630 kVA met LS meting | X69: 16987.11 | Y69: 168 | AA69: >3x63A en t/m 3x80A | AC69: 1007 | AD69: 23 | AF69: >3*80A t/m 3*125 A | AH69: 2475.96 | AI69: 207.4956378 | AK69: >3*500A en t/m 3*750A af sec. zijde LS | AM69: 6435.8 | AN69: 3
B70: >3*80A en t/m 3*100A af sec. zijde LS-transformator | D70: 3707.2 | E70: 0 | G70: >50 kW en t/m 0,2 MW af sec. zijde LS | I70: 3655.66 | J70: 39 | L70: >3*50A en t/m 3*63A | N70: 826 | O70: 569.3037572 | Q70: >110 kVA t/m 630 kVA | S70: 11468.58 | T70: 16 | V70: >630 kVA en t/m 1000 kVA met LS meting | X70: 31507.05 | Y70: 27 | AA70: >3x80A en t/m 3x100A | AC70: 3025 | AD70: 0 | AF70: >3*125 Amp t/m 175 kVA | AH70: 2952.54 | AI70: 521.185164 | AK70: >3*480A en t/m 3*500A af sec. zijde LS | AM70: 6435.8 | AN70: 1
B71: >3*100A en t/m 3*125A af sec.zijde LS-transformator | D71: 3918.74 | E71: 3 | G71: >0,2 MW en t/m 0.6 MW, LS meting | I71: 12506.1 | J71: 10 | L71: >3*63A en t/m 3*80A | N71: 826 | O71: 793.1035607 | Q71: >630 kVA t/m <1 MVA | S71: 22321.52 | T71: 1 | V71: >1000 kVA en t/m 2 MVA | X71: 50035.9 | Y71: 41 | AA71: >3x100A en t/m 3x125A | AC71: 3130 | AD71: 2 | AF71: > 175kVA t/m 630kVA | AH71: 29598.72 | AI71: 141.9823803 | AK71: >3*400A en t/m 3*480A af sec. zijde LS | AM71: 4903.46 | AN71: 2
B72: >3*125A en t/m 3*160A af sec.zijde LS-transformator | D72: 5402.33 | E72: 1 | G72: >0,6 MW en t/m 2.0 MW, MS meting | I72: 47812.01 | J72: 9 | L72: >3*80A en t/m 3*160A | N72: 2101 | O72: 478.1095455 | Q72: >1 MVA t/m 2 MVA | S72: 32013.79 | T72: 0 | V72: >2 MVA en t/m 5,0 MVA | X72: 221208.2 | Y72: 8 | AA72: >3x125A en t/m 3x160A | AC72: 4020 | AD72: 3 | AF72: > 630kVA t/m 1.000kVA | AH72: 36978.66 | AI72: 23.65575282 | AK72: >3*250A en t/m 3*400A af sec. zijde LS | AM72: 4903.46 | AN72: 9
B73: >3*160A en t/m 3*200A af sec.zijde LS-transformator | D73: 5753.07 | E73: 3.998934135 | G73: >2,0 MVA en t/m 5 MVA | I73: 181433.46 | J73: 0 | L73: >3*160A t/m 3*250A | N73: 2769 | O73: 392.2620862 | Q73: >2 MVA t/m 5,0 MVA | S73: 103660.98 | T73: 0 | V73: >5 MVA en t/m 10,0 MVA | X73: 321925.29 | Y73: 9 | AA73: >3x160A en t/m 3x200A | AC73: 4615 | AD73: 2 | AF73: > 1.000kVA t/m 1.750kVA | AH73: 36978.66 | AI73: 65.78383208 | AK73: >3*200A en t/m 3*250A af sec. zijde LS | AM73: 4734.9 | AN73: 5
B74: >3*200A en t/m 3*225A af sec.zijde LS-transformator | D74: 6030.24 | E74: 7 | G74: >5,0 MVA en t/m 10 MVA | I74: 197980.22 | J74: 2 | L74: >3*250A (173 kVA) t/m 630 kVA | N74: 10118 | O74: 402.6470533 | Q74: >5,0 MVA t/m 10 MVA | S74: 143257.34 | T74: 0 | V74: t/m 1 x 6A op geschakeld net | X74: 329.4 | Y74: 10610 | AA74: >3x200A en t/m 3x225A | AC74: 4615 | AD74: 1 | AF74: > 1.750kVA t/m 3.000kVA | AH74: 172840.62 | AI74: 9.872750322 | AK74: >3*80A en t/m 3*200A af sec. zijde LS | AM74: 4434.45 | AN74: 20
B75: >0,15 MVA en t/m 0,63 MVA MS met LS meting | D75: 25009.12 | E75: 2 | L75: > 630 kVA t/m 1750 kVA | N75: 22576 | O75: 200.0084602 | AA75: >0,15 t/m 0.63 MVA met LS meting | AC75: 18305 | AD75: 1 | AF75: > 3.000kVA t/m 10.000kVA | AH75: 221938.7 | AI75: 17.46894361 | AK75: >3*63A en t/m 3*80A | AM75: 1245.02 | AN75: 24
B76: >0,63 MVA en t/m 1,2 MVA MS met LS meting | D76: 29110.35 | E76: 0 | L76: > 1750 kVA t/m 6 MVA | N76: 149089 | O76: 14.20090645 | AA76: > 0.63 MVA t/m 1.2 MVA met LS meting | AC76: 21455 | AD76: 0 | AK76: >3*50A en t/m 3*63A | AM76: 1173.41 | AN76: 12
B77: >1,2 MVA en t/m 1,8 MVA MS met MS meting | D77: 58385.75 | E77: 0 | L77: >6,0 MVA en t/m 10 MVA | N77: 231888 | O77: 3.688231781 | AA77: > 1.2 MVA t/m 2 MVA met MS meting | AC77: 48889.79265 | AD77: =AD146 -> 0 | AK77: >3*35A en t/m 3*50A | AM77: 1035.32 | AN77: 9
B78: >1,8 MVA en t/m 2,4 MVA MS met MS meting | D78: 59315.34 | E78: 0 | AA78: > 2 MVA t/m 5 MVA met MS meting | AC78: 311337.3606 | AD78: 0 | AK78: >3*25A en t/m 3*35A | AM78: 745.72 | AN78: 68
B79: >2,4 MVA en t/m 3,0 MVA MS met MS meting | D79: 59777.33 | E79: 0 | AA79: > 5 MVA tot 10 MVA met MS meting | AC79: 332744.7657 | AD79: 0 | AK79: t/m 3*25A | AM79: 678.65 | AN79: 972
AK80: 1*6A geschakeld net | AM80: 356.53 | AN80: 456
B82: OMZET | D82: =SUMPRODUCT(D64:D80,E64:E80) -> 755118.5602 | G82: OMZET | I82: =SUMPRODUCT(I64:I80,J64:J80) -> 2663775.69 | L82: OMZET | N82: =SUMPRODUCT(N65:N80,O65:O80) -> 41138005.99 | Q82: OMZET | S82: =SUMPRODUCT(S64:S80,T64:T80) -> 1481283.42 | V82: OMZET | X82: =SUMPRODUCT(X64:X80,Y64:Y80) -> 38771835.67 | AA82: OMZET | AC82: =SUMPRODUCT(AC64:AC80,AD64:AD80) -> 404590 | AF82: OMZET | AH82: =SUMPRODUCT(AH64:AH80,AI64:AI80) -> 38132959.15 | AK82: OMZET | AM82: =SUMPRODUCT(AM64:AM80,AN64:AN80) -> 2521019.73
B84: COGAS | G84: DNWB | L84: ENEXIS | Q84: ENDINET | V84: LIANDER | AA84: RENDO | AF84: STEDIN | AK84: WESTLAND
B85: EAV t/m 25 meter | D85: tarief | E85: volume | G85: EAV t/m 25 meter | I85: tarief | J85: volume | L85: EAV t/m 25 meter | N85: tarief | O85: volume | Q85: EAV t/m 25 meter | S85: tarief | T85: volume | V85: EAV t/m 25 meter | X85: tarief | Y85: volume | AA85: EAV t/m 25 meter | AC85: tarief | AD85: volume | AF85: EAV t/m 25 meter | AH85: tarief | AI85: volume | AK85: EAV t/m 25 meter | AM85: tarief | AN85: volume
B86: t/m 1 x 6A geschakeld net | D86: =D64 -> 350 | E86: =E64 -> 541.6068176 | G86: t/m 1 x 6A geschakeld net | I86: =I64 -> 284.07 | J86: =J64 -> 1360 | L86: t/m 1 x 6A geschakeld net | N86: =N65 -> 296 | O86: =O65 -> 29519.46935 | Q86: t/m 1 x 6A geschakeld net | S86: =S64 -> 345.18 | T86: =T64 -> 22 | V86: t/m 1 x 6A geschakeld net | X86: =X74 -> 329.4 | Y86: =Y74 -> 10610 | AA86: t/m 1 x 6A geschakeld net | AC86: =AC64 -> 363 | AD86: =AD64 -> 309 | AF86: t/m 1 x 6A geschakeld net | AH86: =AH64 -> 327.86 | AI86: =AI64 -> 16420.88128 | AK86: t/m 1 x 6A geschakeld net | AM86: =AM80 -> 356.53 | AN86: =AN80 -> 456
B87: t/m 3*25 A | D87: =D65 -> 585 | E87: =E65 -> 658.0002805 | G87: t/m 3*25 A | I87: =I65 -> 539.31 | J87: =J65 -> 1868 | L87: t/m 3*25 A | N87: =IF(O87<>0,SUMPRODUCT(N66:N67,O66:O67)/SUM(O66:O67),0) -> 568 | O87: =SUM(O66:O67) -> 30436.47982 | Q87: t/m 3*25 A | S87: =S65 -> 542.6 | T87: =T65 -> 1781 | V87: t/m 3*25 A | X87: =X64 -> 546.7 | Y87: =Y64 -> 36285 | AA87: t/m 3*25 A | AC87: =AC65 -> 615 | AD87: =AD65 -> 315 | AF87: t/m 3*25 A | AH87: =AH65 -> 479.57 | AI87: =AI65 -> 32022.20998 | AK87: t/m 3*25 A | AM87: =AM79 -> 678.65 | AN87: =AN79 -> 972
B88: >3*25A t/m 3*80A | D88: =IF(E88<>0,SUMPRODUCT(D66:D69,E66:E69)/SUM(E66:E69),0) -> 990.8 | E88: =SUM(E66:E69) -> 48.67924102 | G88: >3*25A t/m 3*80A | I88: =IF(J88<>0,SUMPRODUCT(I66:I69,J66:J69)/SUM(J66:J69),0) -> 863.280098 | J88: =SUM(J66:J69) -> 204 | L88: >3*25A t/m 3*80A | N88: =IF(O88<>0,SUMPRODUCT(N68:N71,O68:O71)/SUM(O68:O71),0) -> 790.91051 | O88: =SUM(O68:O71) -> 1845.734904 | Q88: >3*25A t/m 3*80A | S88: =IF(T88<>0,SUMPRODUCT(S66:S67,T66:T67)/SUM(T66:T67),0) -> 771.997235 | T88: =SUM(T66:T67) -> 217 | V88: >3*25A t/m 3*80A | X88: =IF(Y88<>0,SUMPRODUCT(X65:X66,Y65:Y66)/SUM(Y65:Y66),0) -> 916.9934645 | Y88: =SUM(Y65:Y66) -> 3507 | AA88: >3*25A t/m 3*80A | AC88: =IF(AD88<>0,SUMPRODUCT(AC66:AC69,AD66:AD69)/SUM(AD66:AD69),0) -> 945.6470588 | AD88: =SUM(AD66:AD69) -> 51 | AF88: >3*25A t/m 3*80A | AH88: =IF(AI88<>0,SUMPRODUCT(AH66:AH68,AI66:AI68)/SUM(AI66:AI68),0) -> 800.4795817 | AI88: =SUM(AI66:AI68) -> 2806.37663 | AK88: >3*25A t/m 3*80A | AM88: =SUMPRODUCT(AM75:AM78,AN75:AN78)/SUM(AN75:AN78) -> 920.2499115 | AN88: =SUM(AN75:AN78) -> 113
B89: LS & Trafo MS/LS | D89: =IF(E89<>0,SUMPRODUCT(D70:D75,E70:E75)/SUM(E70:E75),0) -> 7788.407023 | E89: =SUM(E70:E75) -> 16.99893413 | G89: LS & Trafo MS/LS | I89: =IF(J89<>0,SUMPRODUCT(I70:I71,J70:J71)/SUM(J70:J71),0) -> 5461.872245 | J89: =SUM(J70:J71) -> 49 | L89: LS & Trafo MS/LS | N89: =IF(O89<>0,SUMPRODUCT(N72:N74,O72:O74)/SUM(O72:O74),0) -> 4842.556382 | O89: =SUM(O72:O74) -> 1273.018685 | Q89: LS & Trafo MS/LS | S89: =IF(T89<>0,SUMPRODUCT(S68:S70,T68:T70)/SUM(T68:T70),0) -> 5772.253455 | T89: =SUM(T68:T70) -> 55 | V89: LS & Trafo MS/LS | X89: =IF(Y89<>0,SUMPRODUCT(X67:X69,Y67:Y69)/SUM(Y67:Y69),0) -> 7412.166608 | Y89: =SUM(Y67:Y69) -> 628 | AA89: LS & Trafo MS/LS | AC89: =IF(AD89<>0,SUMPRODUCT(AC70:AC75,AD70:AD75)/SUM(AD70:AD75),0) -> 5607.777778 | AD89: =SUM(AD70:AD75) -> 9 | AF89: LS & Trafo MS/LS | AH89: =IF(AI89<>0,SUMPRODUCT(AH69:AH71,AI69:AI71)/SUM(AI69:AI71),0) -> 7184.256543 | AI89: =SUM(AI69:AI71) -> 870.663182 | AK89: LS & Trafo MS/LS | AM89: =SUMPRODUCT(AM68:AM74,AN68:AN74)/SUM(AN68:AN74) -> 5435.89 | AN89: =SUM(AN68:AN74) -> 44
B90: MS en >MS | D90: =IF(E90<>0,SUMPRODUCT(D76:D79,E76:E79)/SUM(E76:E79),0) -> 0 | E90: =SUM(E76:E79) -> 0 | G90: MS en >MS | I90: =IF(J90<>0,SUMPRODUCT(I72:I74,J72:J74)/SUM(J72:J74),0) -> 75115.32091 | J90: =SUM(J72:J74) -> 11 | L90: MS en >MS | N90: =IF(O90<>0,SUMPRODUCT(N75:N77,O75:O77)/SUM(O75:O77),0) -> 34364.06222 | O90: =SUM(O75:O77) -> 217.8975985 | Q90: MS en >MS | S90: =IF(T90<>0,SUMPRODUCT(S71:S74,T71:T74)/SUM(T71:T74),0) -> 22321.52 | T90: =SUM(T71:T74) -> 1 | V90: MS en >MS | X90: =IF(Y90<>0,SUMPRODUCT(X70:X73,Y70:Y73)/SUM(Y70:Y73),0) -> 89048.88776 | Y90: =SUM(Y70:Y73) -> 85 | AA90: MS en >MS | AC90: =IF(AD90<>0,SUMPRODUCT(AC76:AC79,AD76:AD79)/SUM(AD76:AD79),0) -> 0 | AD90: =SUM(AD76:AD79) -> 0 | AF90: MS en >MS | AH90: =IF(AI90<>0,SUMPRODUCT(AH72:AH75,AI72:AI75)/SUM(AI72:AI75),0) -> 76132.09079 | AI90: =SUM(AI72:AI75) -> 116.7812788 | AK90: MS en >MS | AM90: =SUMPRODUCT(AM64:AM67,AN64:AN67)/SUM(AN64:AN67) -> 50208.40185 | AN90: =SUM(AN64:AN67) -> 27
B91: OMZET | D91: =SUMPRODUCT(D86:D90,E86:E90) -> 755118.5602 | G91: OMZET | I91: =SUMPRODUCT(I86:I90,J86:J90) -> 2663775.69 | L91: OMZET | N91: =SUMPRODUCT(N86:N90,O86:O90) -> 41138005.99 | Q91: OMZET | S91: =SUMPRODUCT(S86:S90,T86:T90) -> 1481283.42 | V91: OMZET | X91: =SUMPRODUCT(X86:X90,Y86:Y90) -> 38771835.67 | AA91: OMZET | AC91: =SUMPRODUCT(AC86:AC90,AD86:AD90) -> 404590 | AF91: OMZET | AH91: =SUMPRODUCT(AH86:AH90,AI86:AI90) -> 38132959.15 | AK91: OMZET | AM91: =SUMPRODUCT(AM86:AM90,AN86:AN90) -> 2521019.73
B94: EAV > 25 meter
B96: COGAS | G96: DNWB | L96: ENEXIS | Q96: ENDINET | V96: LIANDER | AA96: RENDO | AF96: STEDIN | AK96: WESTLAND
B97: EAV > 25 meter | D97: tarief | E97: volume | G97: EAV > 25 meter | I97: tarief | J97: volume | L97: EAV > 25 meter | N97: tarief | O97: volume | Q97: EAV > 25 meter | S97: tarief | T97: volume | V97: EAV > 25 meter | X97: tarief | Y97: volume | AA97: EAV > 25 meter | AC97: tarief | AD97: volume | AF97: EAV > 25 meter | AH97: tarief | AI97: volume | AK97: EAV > 25 meter | AM97: tarief | AN97: volume
B98: 0 t/m 1*6A (OV) | D98: 17.36 | E98: =E167 -> 704.6697122 | G98: t/m 1*6 A geschakeld net | I98: 14.07 | J98: =J167 -> 680 | Q98: 0 t/m 1*6 A aansluting op geschakeld net | S98: 23.04 | T98: =T167 -> 0 | V98: t/m 3*25A | X98: 21.6 | Y98: =Y167 -> 34778 | AA98: 0 t/m 1x6A LS geschakeld | AC98: 18.09 | AD98: =AD167 -> 261 | AF98: 1*6 A op geschakeld net | AH98: 15.23 | AI98: =AI167 -> 8882.792104 | AK98: >2,4 MVA en t/m 10 MVA | AM98: 132.79 | AN98: =AN167 -> 0
B99: > 1*6A en t/m 3*25A | D99: 17.66 | E99: =E168 -> 256.835002 | G99: > 1*6A en t/m 3*25A | I99: 22.89 | J99: =J168 -> 7147 | L99: t/m 1*6 A op geschakeld net | N99: 14 | O99: =O168 -> 44844.57333 | Q99: > 1*6A t/m 3*25A | S99: 23.92 | T99: =T168 -> 600 | V99: >3*25A en t/m 3*50A | X99: 28.27 | Y99: =Y168 -> 20149 | AA99: 0 t/m 3x25A en 1x40A | AC99: 21.2 | AD99: =AD168 -> 583 | AF99: >1*6A t/m 3*25A | AH99: 21.06 | AI99: =AI168 -> 31081.5917 | AK99: >= 1MW en t/m 2,4 MVA | AM99: 129 | AN99: =AN168 -> 901.2774113
B100: >3*25A en t/m 3*35A | D100: 24.73 | E100: 1218.674456 | G100: >3*25A en t/m 3*35A | I100: 27.97 | J100: 798 | L100: t/m 1*40A | N100: 16 | O100: =O169 -> 90185.23529 | Q100: >3*25A t/m 3*63A | S100: 27.49 | T100: 664 | V100: >3*50A en t/m 3*80A | X100: 29.19 | Y100: 17327 | AA100: >3x25A en t/m 3x40A | AC100: 24.49 | AD100: 0 | AF100: >3*25A en t/m 3*35A | AH100: 27.45 | AI100: 7537.769257 | AK100: >3*1500A en t/m 3*1600A af sec. zijde LS | AM100: 547.54 | AN100: 47
B101: >3*35A en t/m 3*50A | D101: 24.73 | E101: 0 | G101: >3*35A en t/m 3*50A | I101: 29.66 | J101: 901 | L101: > 1*40A t/m 3*25A | N101: 16 | O101: 0 | Q101: >3*63A t/m 3*80A | S101: 48.01 | T101: 1002.579664 | V101: >3*80A en t/m 100 kVA af sec zijde trafo | X101: 38.63 | Y101: 30283 | AA101: >3x40A en t/m 3x50A | AC101: 24.49 | AD101: 12 | AF101: >3*35A en t/m 3*63A | AH101: 27.45 | AI101: 8840.813762 | AK101: >3*1200A en t/m 3*1500A af sec. zijde LS | AM101: 318.72 | AN101: 0
B102: >3*50A en t/m 3*63A | D102: 24.73 | E102: 0 | G102: >3*50A en t/m 3*63A | I102: 29.66 | J102: 143 | L102: >3*25A en t/m 3*40A | N102: 16 | O102: 0 | Q102: >3*80 A t/m 3*160A | S102: 48.01 | T102: 2657 | V102: >100 kVA en t/m 160 kVA af sec zijde trafo | X102: 47.82 | Y102: 31083 | AA102: >3x50A en t/m 3x63A | AC102: 27.66 | AD102: 49 | AF102: > 3*63 A t/m 3*80A | AH102: 32.58 | AI102: 7236.962493 | AK102: >3*750A en t/m 3*1200A af sec. zijde LS | AM102: 301.85 | AN102: 185
B103: >3*63A en t/m 3*80A | D103: 24.73 | E103: 0 | G103: >3*63A en t/m 3*80A | I103: 29.66 | J103: 1623 | L103: >3*40A en t/m 3*50A | N103: 16 | O103: 0 | Q103: >3*160 A t/m 250 A | S103: 52.49 | T103: 1770 | V103: >160 kVA en t/m 630 kVA met LS meting | X103: 103.93 | Y103: 24364 | AA103: >3x63A en t/m 3x80A | AC103: 27.66 | AD103: 20 | AF103: >3*80A t/m 3*125 A | AH103: 45.92 | AI103: 18989.96131 | AK103: >3*500A en t/m 3*750A af sec. zijde LS | AM103: 143 | AN103: 410
B104: >3*80A en t/m 3*100A af sec. zijde LS-transformator | D104: 31.77 | E104: 370 | G104: >50 kW en t/m 0,2 MW af sec. zijde LS | I104: 44.09 | J104: 6788 | L104: >3*50A en t/m 3*63A | N104: 21 | O104: 39048.40909 | Q104: >110 kVA t/m 630 kVA | S104: 90.3 | T104: 744 | V104: >630 kVA en t/m 1000 kVA met LS meting | X104: 103.93 | Y104: 3916 | AA104: >3x80A en t/m 3x100A | AC104: 31.95 | AD104: 0 | AF104: >3*125 Amp t/m 175 kVA | AH104: 47.17 | AI104: 52427.04125 | AK104: >3*480A en t/m 3*500A af sec. zijde LS | AM104: 143 | AN104: 0
B105: >3*100A en t/m 3*125A af sec.zijde LS-transformator | D105: 31.77 | E105: 0 | G105: >0,2 MW en t/m 0.6 MW, LS meting | I105: 84.79 | J105: 825 | L105: >3*63A en t/m 3*80A | N105: 21 | O105: 0 | Q105: >630 kVA t/m <1 MVA | S105: 90.3 | T105: 0 | V105: >1000 kVA en t/m 2 MVA | X105: 103.93 | Y105: 5946 | AA105: >3x100A en t/m 3x125A | AC105: 31.95 | AD105: 336 | AF105: > 175kVA t/m 630kVA | AH105: 81.81 | AI105: 8575.044812 | AK105: >3*400A en t/m 3*480A af sec. zijde LS | AM105: 107.26 | AN105: 175
B106: >3*125A en t/m 3*160A af sec.zijde LS-transformator | D106: 38.86 | E106: 621.4143328 | G106: >0,6 MW en t/m 2.0 MW, MS meting | I106: 84.79 | J106: 6805 | L106: >3*80A en t/m 3*160A | N106: 26 | O106: 142120 | Q106: >1 MVA t/m 2 MVA | S106: 90.3 | T106: 0 | V106: >2 MVA en t/m 5,0 MVA | X106: 103.93 | Y106: 5076.666667 | AA106: >3x125A en t/m 3x160A | AC106: 37.29 | AD106: 440 | AF106: > 630kVA t/m 1.000kVA | AH106: 98.63 | AI106: 803.8218813 | AK106: >3*250A en t/m 3*400A af sec. zijde LS | AM106: 68.99 | AN106: 920
B107: >3*160A en t/m 3*200A af sec.zijde LS-transformator | D107: 38.86 | E107: 1888.782483 | G107: >2,0 MVA en t/m 5 MVA | I107: 84.79 | J107: 0 | L107: >3*160A t/m 3*250A | N107: 26 | O107: 0 | Q107: >2 MVA t/m 5,0 MVA | S107: 132.67 | T107: 0 | V107: >5 MVA en t/m 10,0 MVA | X107: 173.83 | Y107: 9135 | AA107: >3x160A en t/m 3x200A | AC107: 37.29 | AD107: 345 | AF107: > 1.000kVA t/m 1.750kVA | AH107: 103.99 | AI107: 2049.254723 | AK107: >3*200A en t/m 3*250A af sec. zijde LS | AM107: 59.07 | AN107: 208
B108: >3*200A en t/m 3*225A af sec.zijde LS-transformator | D108: 63.58 | E108: 401.2795371 | G108: >5,0 MVA en t/m 10 MVA | I108: 133.98 | J108: 9850 | L108: >3*250A (173 kVA) t/m 630 kVA | N108: 60 | O108: 23091.04762 | Q108: >5,0 MVA t/m 10 MVA | S108: 180.15 | T108: 0 | V108: t/m 1 x 6A op geschakeld net | X108: 16.35 | Y108: 17007 | AA108: >3x200A en t/m 3x225A | AC108: 53.21 | AD108: 85 | AF108: > 1.750kVA t/m 3.000kVA | AH108: 139.91 | AI108: 10550.64102 | AK108: >3*80A en t/m 3*200A af sec. zijde LS | AM108: 35.75 | AN108: 1448
B109: >0,15 MVA en t/m 0,63 MVA MS met LS meting | D109: 135.55 | E109: 90 | L109: > 630 kVA t/m 1750 kVA | N109: 60 | O109: 12149.47619 | AA109: >0,15 t/m 0.63 MVA met LS meting | AC109: 101.24 | AD109: 180 | AF109: > 3.000kVA t/m 10.000kVA | AH109: 159.46 | AI109: 4352.497937 | AK109: >3*63A en t/m 3*80A | AM109: 30.64 | AN109: 64
B110: >0,63 MVA en t/m 1,2 MVA MS met LS meting | D110: 150.75 | E110: 0 | L110: > 1750 kVA t/m 6 MVA | N110: 109 | O110: 12899.18261 | AA110: > 0.63 MVA t/m 1.2 MVA met LS meting | AC110: 101.24 | AD110: 0 | AK110: >3*50A en t/m 3*63A | AM110: 30.64 | AN110: 10
B111: >1,2 MVA en t/m 1,8 MVA MS met MS meting | D111: 150.75 | E111: 0 | L111: >6,0 MVA en t/m 10 MVA | N111: 128 | O111: 16479.17037 | AA111: > 1.2 MVA t/m 2 MVA met MS meting | AC111: 101.24 | AD111: 0 | AK111: >3*35A en t/m 3*50A | AM111: 30.64 | AN111: 2563
B112: >1,8 MVA en t/m 2,4 MVA MS met MS meting | D112: 150.75 | E112: 0 | AA112: > 2 MVA t/m 5 MVA met MS meting | AC112: 177.1 | AD112: 0 | AK112: >3*25A en t/m 3*35A | AM112: 25.53 | AN112: 407.5
B113: >2,4 MVA en t/m 3,0 MVA MS met MS meting | D113: 150.75 | E113: 0 | AA113: > 5 MVA tot 10 MVA met MS meting | AC113: 224.76 | AD113: 0 | AK113: t/m 3*25A | AM113: 25.53 | AN113: 356
AK114: 1*6A geschakeld net | AM114: 17.67 | AN114: 992
B116: OMZET | D116: =SUMPRODUCT(D98:D114,E98:E114) -> 193920.5929 | G116: OMZET | I116: =SUMPRODUCT(I98:I114,J98:J114) -> 2540519.33 | L116: OMZET | N116: =SUMPRODUCT(N99:N114,O99:O114) -> 12215700.52 | Q116: OMZET | S116: =SUMPRODUCT(S98:S114,T98:T114) -> 368392.2797 | V116: OMZET | X116: =SUMPRODUCT(X98:X114,Y98:Y114) -> 10433541.16 | AA116: OMZET | AC116: =SUMPRODUCT(AC98:AC114,AD98:AD114) -> 82037.41 | AF116: OMZET | AH116: =SUMPRODUCT(AH98:AH114,AI98:AI114) -> 7984335.02 | AK116: OMZET | AM116: =SUMPRODUCT(AM98:AM114,AN98:AN114) -> 520583.7511
B118: COGAS | G118: DNWB | L118: ENEXIS | Q118: ENDINET | V118: LIANDER | AA118: RENDO | AF118: STEDIN | AK118: WESTLAND
B119: EAV > 25 meter | D119: tarief | E119: volume | G119: EAV > 25 meter | I119: tarief | J119: volume | L119: EAV > 25 meter | N119: tarief | O119: volume | Q119: EAV > 25 meter | S119: tarief | T119: volume | V119: EAV > 25 meter | X119: tarief | Y119: volume | AA119: EAV > 25 meter | AC119: tarief | AD119: volume | AF119: EAV > 25 meter | AH119: tarief | AI119: volume | AK119: EAV > 25 meter | AM119: tarief | AN119: volume
B120: t/m 1 x 6A geschakeld net | D120: =D98 -> 17.36 | E120: =E98 -> 704.6697122 | G120: t/m 1 x 6A geschakeld net | I120: =I98 -> 14.07 | J120: =J98 -> 680 | L120: t/m 1 x 6A geschakeld net | N120: =N99 -> 14 | O120: =O99 -> 44844.57333 | Q120: t/m 1 x 6A geschakeld net | S120: =S98 -> 23.04 | T120: =T98 -> 0 | V120: t/m 1 x 6A geschakeld net | X120: =X108 -> 16.35 | Y120: =Y108 -> 17007 | AA120: t/m 1 x 6A geschakeld net | AC120: =AC98 -> 18.09 | AD120: =AD98 -> 261 | AF120: t/m 1 x 6A geschakeld net | AH120: =AH98 -> 15.23 | AI120: =AI98 -> 8882.792104 | AK120: t/m 1 x 6A geschakeld net | AM120: =AM114 -> 17.67 | AN120: =AN114 -> 992
B121: t/m 3*25 A | D121: =D99 -> 17.66 | E121: =E99 -> 256.835002 | G121: t/m 3*25 A | I121: =I99 -> 22.89 | J121: =J99 -> 7147 | L121: t/m 3*25 A | N121: =IF(O121<>0,SUMPRODUCT(N100:N101,O100:O101)/SUM(O100:O101),0) -> 16 | O121: =SUM(O100:O101) -> 90185.23529 | Q121: t/m 3*25 A | S121: =S99 -> 23.92 | T121: =T99 -> 600 | V121: t/m 3*25 A | X121: =X98 -> 21.6 | Y121: =Y98 -> 34778 | AA121: t/m 3*25 A | AC121: =AC99 -> 21.2 | AD121: =AD99 -> 583 | AF121: t/m 3*25 A | AH121: =AH99 -> 21.06 | AI121: =AI99 -> 31081.5917 | AK121: t/m 3*25 A | AM121: =AM113 -> 25.53 | AN121: =AN113 -> 356
B122: >3*25A t/m 3*80A | D122: =IF(E122<>0,SUMPRODUCT(D100:D103,E100:E103)/SUM(E100:E103),0) -> 24.73 | E122: =SUM(E100:E103) -> 1218.674456 | G122: >3*25A t/m 3*80A | I122: =IF(J122<>0,SUMPRODUCT(I100:I103,J100:J103)/SUM(J100:J103),0) -> 29.27078788 | J122: =SUM(J100:J103) -> 3465 | L122: >3*25A t/m 3*80A | N122: =IF(O122<>0,SUMPRODUCT(N102:N105,O102:O105)/SUM(O102:O105),0) -> 21 | O122: =SUM(O102:O105) -> 39048.40909 | Q122: >3*25A t/m 3*80A | S122: =IF(T122<>0,SUMPRODUCT(S100:S101,T100:T101)/SUM(T100:T101),0) -> 39.83440522 | T122: =SUM(T100:T101) -> 1666.579664 | V122: >3*25A t/m 3*80A | X122: =IF(Y122<>0,SUMPRODUCT(X99:X100,Y99:Y100)/SUM(Y99:Y100),0) -> 28.6953613 | Y122: =SUM(Y99:Y100) -> 37476 | AA122: >3*25A t/m 3*80A | AC122: =IF(AD122<>0,SUMPRODUCT(AC100:AC103,AD100:AD103)/SUM(AD100:AD103),0) -> 27.19037037 | AD122: =SUM(AD100:AD103) -> 81 | AF122: >3*25A t/m 3*80A | AH122: =IF(AI122<>0,SUMPRODUCT(AH100:AH102,AI100:AI102)/SUM(AI100:AI102),0) -> 29.02208384 | AI122: =SUM(AI100:AI102) -> 23615.54551 | AK122: >3*25A t/m 3*80A | AM122: =SUMPRODUCT(AM109:AM112,AN109:AN112)/SUM(AN109:AN112) -> 29.95603712 | AN122: =SUM(AN109:AN112) -> 3044.5
B123: LS & Trafo MS/LS | D123: =IF(E123<>0,SUMPRODUCT(D104:D109,E104:E109)/SUM(E104:E109),0) -> 43.60522983 | E123: =SUM(E104:E109) -> 3371.476353 | G123: LS & Trafo MS/LS | I123: =IF(J123<>0,SUMPRODUCT(I104:I105,J104:J105)/SUM(J104:J105),0) -> 48.50054775 | J123: =SUM(J104:J105) -> 7613 | L123: LS & Trafo MS/LS | N123: =IF(O123<>0,SUMPRODUCT(N106:N108,O106:O108)/SUM(O106:O108),0) -> 30.752077 | O123: =SUM(O106:O108) -> 165211.0476 | Q123: LS & Trafo MS/LS | S123: =IF(T123<>0,SUMPRODUCT(S102:S104,T102:T104)/SUM(T102:T104),0) -> 55.62813189 | T123: =SUM(T102:T104) -> 5171 | V123: LS & Trafo MS/LS | X123: =IF(Y123<>0,SUMPRODUCT(X101:X103,Y101:Y103)/SUM(Y101:Y103),0) -> 60.51990983 | Y123: =SUM(Y101:Y103) -> 85730 | AA123: LS & Trafo MS/LS | AC123: =IF(AD123<>0,SUMPRODUCT(AC104:AC109,AD104:AD109)/SUM(AD104:AD109),0) -> 45.27698413 | AD123: =SUM(AD104:AD109) -> 1386 | AF123: LS & Trafo MS/LS | AH123: =IF(AI123<>0,SUMPRODUCT(AH103:AH105,AI103:AI105)/SUM(AI103:AI105),0) -> 50.5866159 | AI123: =SUM(AI103:AI105) -> 79992.04737 | AK123: LS & Trafo MS/LS | AM123: =SUMPRODUCT(AM102:AM108,AN102:AN108)/SUM(AN102:AN108) -> 77.933685 | AN123: =SUM(AN102:AN108) -> 3346
B124: MS en >MS | D124: =IF(E124<>0,SUMPRODUCT(D110:D113,E110:E113)/SUM(E110:E113),0) -> 0 | E124: =SUM(E110:E113) -> 0 | G124: MS en >MS | I124: =IF(J124<>0,SUMPRODUCT(I106:I108,J106:J108)/SUM(J106:J108),0) -> 113.8816542 | J124: =SUM(J106:J108) -> 16655 | L124: MS en >MS | N124: =IF(O124<>0,SUMPRODUCT(N109:N111,O109:O111)/SUM(O109:O111),0) -> 102.204073 | O124: =SUM(O109:O111) -> 41527.82917 | Q124: MS en >MS | S124: =IF(T124<>0,SUMPRODUCT(S105:S108,T105:T108)/SUM(T105:T108),0) -> 0 | T124: =SUM(T105:T108) -> 0 | V124: MS en >MS | X124: =IF(Y124<>0,SUMPRODUCT(X104:X107,Y104:Y107)/SUM(Y104:Y107),0) -> 130.4542727 | Y124: =SUM(Y104:Y107) -> 24073.66667 | AA124: MS en >MS | AC124: =IF(AD124<>0,SUMPRODUCT(AC110:AC113,AD110:AD113)/SUM(AD110:AD113),0) -> 0 | AD124: =SUM(AD110:AD113) -> 0 | AF124: MS en >MS | AH124: =IF(AI124<>0,SUMPRODUCT(AH106:AH109,AI106:AI109)/SUM(AI106:AI109),0) -> 138.6879118 | AI124: =SUM(AI106:AI109) -> 17756.21556 | AK124: MS en >MS | AM124: =SUMPRODUCT(AM98:AM101,AN98:AN101)/SUM(AN98:AN101) -> 149.7443305 | AN124: =SUM(AN98:AN101) -> 948.2774113
B125: OMZET | D125: =SUMPRODUCT(D120:D124,E120:E124) -> 193920.5929 | G125: OMZET | I125: =SUMPRODUCT(I120:I124,J120:J124) -> 2540519.33 | L125: OMZET | N125: =SUMPRODUCT(N120:N124,O120:O124) -> 12215700.52 | Q125: OMZET | S125: =SUMPRODUCT(S120:S124,T120:T124) -> 368392.2797 | V125: OMZET | X125: =SUMPRODUCT(X120:X124,Y120:Y124) -> 10433541.16 | AA125: OMZET | AC125: =SUMPRODUCT(AC120:AC124,AD120:AD124) -> 82037.41 | AF125: OMZET | AH125: =SUMPRODUCT(AH120:AH124,AI120:AI124) -> 7984335.02 | AK125: OMZET | AM125: =SUMPRODUCT(AM120:AM124,AN120:AN124) -> 520583.7511
A127: NE5R - EAV - Volumes en tarieven 2009 (volumes tbv SO 2009, volumes en tarieven tbv kosten 2009)
B129: EAV t/m 25 meter
B131: COGAS | G131: DNWB | L131: ENEXIS | Q131: ENDINET | V131: LIANDER | AA131: RENDO | AF131: STEDIN | AK131: WESTLAND
B132: EAV t/m 25 meter | D132: tarief | E132: volume | G132: EAV t/m 25 meter | I132: tarief | J132: volume | L132: EAV t/m 25 meter | N132: tarief | O132: volume | Q132: EAV t/m 25 meter | S132: tarief | T132: volume | V132: EAV t/m 25 meter | X132: tarief | Y132: volume | AA132: EAV t/m 25 meter | AC132: tarief | AD132: volume | AF132: EAV t/m 25 meter | AH132: tarief | AI132: volume | AK132: EAV t/m 25 meter | AM132: tarief | AN132: volume
B133: 0 t/m 1*6A (OV) | D133: 424.02 | E133: 541.6068176 | G133: t/m 1*6 A geschakeld net | I133: 299.97 | J133: 1360 | Q133: 0 t/m 1*6 A aansluting op geschakeld net | S133: 359.19 | T133: 22 | V133: t/m 3*25A | X133: 565.95 | Y133: 36285 | AA133: 0 t/m 1x6A LS geschakeld | AC133: 366.84 | AD133: 309 | AF133: 1*6 A op geschakeld net | AH133: 348.79 | AI133: ='Aanpassing gegevens (sep2013)'!I122 -> 16420.88128 | AK133: >2,4 MVA en t/m 10 MVA | AM133: 178593.68 | AN133: 1
B134: > 1*6A en t/m 3*25A | D134: 604.57 | E134: 658.0002805 | G134: > 1*6A en t/m 3*25A | I134: 569.5 | J134: 1868 | L134: t/m 1*6 A op geschakeld net | N134: 310 | O134: 29519.46935 | Q134: > 1*6A t/m 3*25A | S134: 466.36 | T134: 1781 | V134: >3*25A en t/m 3*50A | X134: 875.5 | Y134: 2116 | AA134: 0 t/m 3x25A en 1x40A | AC134: 620.97 | AD134: 315 | AF134: >1*6A t/m 3*25A | AH134: 510.18 | AI134: ='Aanpassing gegevens (sep2013)'!I123 -> 32022.20998 | AK134: >= 1MW en t/m 2,4 MVA | AM134: 58680.78 | AN134: 17
B135: >3*25A en t/m 3*35A | D135: 969.47 | E135: 18 | G135: >3*25A en t/m 3*35A | I135: 803.21 | J135: 82 | L135: t/m 1*40A | N135: 595 | O135: 20542.66998 | Q135: >3*25A t/m 3*63A | S135: 770.07 | T135: 209 | V135: >3*50A en t/m 3*80A | X135: 1061.5 | Y135: 1391 | AA135: >3x25A en t/m 3x40A | AC135: 835.76 | AD135: 15 | AF135: >3*25A en t/m 3*35A | AH135: 767.3 | AI135: ='Aanpassing gegevens (sep2013)'!I124 -> 1156.319367 | AK135: >3*1500A en t/m 3*1600A af sec. zijde LS | AM135: 20614.48 | AN135: 8
B136: >3*35A en t/m 3*50A | D136: 969.47 | E136: 4 | G136: >3*35A en t/m 3*50A | I136: 884.7 | J136: 43 | L136: > 1*40A t/m 3*25A | N136: 595 | O136: 9893.809832 | Q136: >3*63A t/m 3*80A | S136: 1672.09 | T136: 8 | V136: >3*80A en t/m 100 kVA af sec zijde trafo | X136: 3817 | Y136: 227 | AA136: >3x40A en t/m 3x50A | AC136: 942.09 | AD136: 6 | AF136: >3*35A en t/m 3*63A | AH136: 767.3 | AI136: ='Aanpassing gegevens (sep2013)'!I125 -> 1162.106816 | AK136: >3*1200A en t/m 3*1500A af sec. zijde LS | AM136: 13189.85 | AN136: 1
B137: >3*50A en t/m 3*63A | D137: 969.47 | E137: 8.679241016 | G137: >3*50A en t/m 3*63A | I137: 995.73 | J137: 24 | L137: >3*25A en t/m 3*40A | N137: 725 | O137: 0 | Q137: >3*80 A t/m 3*160A | S137: 2817.21 | T137: 19 | V137: >100 kVA en t/m 160 kVA af sec zijde trafo | X137: 4283 | Y137: 233 | AA137: >3x50A en t/m 3x63A | AC137: 1017.58 | AD137: 7 | AF137: > 3*63 A t/m 3*80A | AH137: 1252 | AI137: ='Aanpassing gegevens (sep2013)'!I126 -> 487.9504473 | AK137: >3*750A en t/m 3*1200A af sec. zijde LS | AM137: 11771.83 | AN137: 4
B138: >3*63A en t/m 3*80A | D138: 969.47 | E138: 18 | G138: >3*63A en t/m 3*80A | I138: 1057.52 | J138: 55 | L138: >3*40A en t/m 3*50A | N138: 725 | O138: 483.3275862 | Q138: >3*160 A t/m 250 A | S138: 4294.34 | T138: 20 | V138: >160 kVA en t/m 630 kVA met LS meting | X138: 17585 | Y138: 168 | AA138: >3x63A en t/m 3x80A | AC138: 1017.58 | AD138: 23 | AF138: >3*80A t/m 3*125 A | AH138: 2634 | AI138: ='Aanpassing gegevens (sep2013)'!I127 -> 207.4956378 | AK138: >3*500A en t/m 3*750A af sec. zijde LS | AM138: 6429.37 | AN138: 3
B139: >3*80A en t/m 3*100A af sec. zijde LS-transformator | D139: 3627.4 | E139: 0 | G139: >50 kW en t/m 0,2 MW af sec. zijde LS | I139: 3860.26 | J139: 39 | L139: >3*50A en t/m 3*63A | N139: 865 | O139: 569.3037572 | Q139: >110 kVA t/m 630 kVA | S139: 11934.01 | T139: 16 | V139: >630 kVA en t/m 1000 kVA met LS meting | X139: 32616 | Y139: 27 | AA139: >3x80A en t/m 3x100A | AC139: 3054.88 | AF139: >3*125 Amp t/m 175 kVA | AH139: 3141 | AI139: ='Aanpassing gegevens (sep2013)'!I128 -> 521.185164 | AK139: >3*480A en t/m 3*500A af sec. zijde LS | AM139: 6429.37 | AN139: 1
B140: >3*100A en t/m 3*125A af sec.zijde LS-transformator | D140: 3834.38 | E140: 3 | G140: >0,2 MW en t/m 0.6 MW, LS meting | I140: 13206.02 | J140: 10 | L140: >3*63A en t/m 3*80A | N140: 865 | O140: 793.1035607 | Q140: >630 kVA t/m <1 MVA | S140: 23227.39 | T140: 1 | V140: >1000 kVA en t/m 2 MVA | X140: 51797 | Y140: 41 | AA140: >3x100A en t/m 3x125A | AC140: 3159.08 | AD140: 2 | AF140: > 175kVA t/m 630kVA | AH140: 31488 | AI140: ='Aanpassing gegevens (sep2013)'!I129 -> 141.9823803 | AK140: >3*400A en t/m 3*480A af sec. zijde LS | AM140: 4898.56 | AN140: 2
B141: >3*125A en t/m 3*160A af sec.zijde LS-transformator | D141: 5286.04 | E141: 1 | G141: >0,6 MW en t/m 2.0 MW, MS meting | I141: 50487.87 | J141: 9 | L141: >3*80A en t/m 3*160A | N141: 2200 | O141: 478.1095455 | Q141: >1 MVA t/m 2 MVA | S141: 33313 | T141: 0 | V141: >2 MVA en t/m 5,0 MVA | X141: 228994 | Y141: 8 | AA141: >3x125A en t/m 3x160A | AC141: 4059.71 | AD141: 3 | AF141: > 630kVA t/m 1.000kVA | AH141: 39339 | AI141: ='Aanpassing gegevens (sep2013)'!I130 -> 23.65575282 | AK141: >3*250A en t/m 3*400A af sec. zijde LS | AM141: 4898.56 | AN141: 9
B142: >3*160A en t/m 3*200A af sec.zijde LS-transformator | D142: 5629.23 | E142: 3.998934135 | G142: >2,0 MVA en t/m 5 MVA | I142: 191587.61 | J142: 0 | L142: >3*160A t/m 3*250A | N142: 2900 | O142: 392.2620862 | Q142: >2 MVA t/m 5,0 MVA | S142: 107867.83 | T142: 0 | V142: >5 MVA en t/m 10,0 MVA | X142: 333256 | Y142: 9 | AA142: >3x160A en t/m 3x200A | AC142: 4662.6 | AD142: 2 | AF142: > 1.000kVA t/m 1.750kVA | AH142: 39339 | AI142: ='Aanpassing gegevens (sep2013)'!I131 -> 65.78383208 | AK142: >3*200A en t/m 3*250A af sec. zijde LS | AM142: 4730.17 | AN142: 5
B143: >3*200A en t/m 3*225A af sec.zijde LS-transformator | D143: 5900.43 | E143: 7 | G143: >5,0 MVA en t/m 10 MVA | I143: 209060.43 | J143: 2 | L143: >3*250A (173 kVA) t/m 630 kVA | N143: 10595 | O143: 402.6470533 | Q143: >5,0 MVA t/m 10 MVA | S143: 149071.11 | T143: 0 | V143: t/m 1 x 6A op geschakeld net | X143: 341 | Y143: 10610 | AA143: >3x200A en t/m 3x225A | AC143: 4662.6 | AD143: 1 | AF143: > 1.750kVA t/m 3.000kVA | AH143: 183873 | AI143: ='Aanpassing gegevens (sep2013)'!I132 -> 9.872750322 | AK143: >3*80A en t/m 3*200A af sec. zijde LS | AM143: 4430.02 | AN143: 20
B144: >0,15 MVA en t/m 0,63 MVA MS met LS meting | D144: 24470.76 | E144: 2 | L144: > 630 kVA t/m 1750 kVA | N144: 23640 | O144: 200.0084602 | AA144: >0,15 t/m 0.63 MVA met LS meting | AC144: 18489.86 | AD144: 1 | AF144: > 3.000kVA t/m 10.000kVA | AH144: 236105 | AI144: ='Aanpassing gegevens (sep2013)'!I133 -> 17.46894361 | AK144: >3*63A en t/m 3*80A | AM144: 1243.78 | AN144: 24
B145: >0,63 MVA en t/m 1,2 MVA MS met LS meting | D145: 28483.71 | E145: 0 | L145: > 1750 kVA t/m 6 MVA | N145: 156115 | O145: 14.20090645 | AA145: > 0.63 MVA t/m 1.2 MVA met LS meting | AC145: 21672.35 | AD145: 0 | AK145: >3*50A en t/m 3*63A | AM145: 1172.24 | AN145: 12
B146: >1,2 MVA en t/m 1,8 MVA MS met MS meting | D146: 57128.91 | E146: 0 | L146: >6,0 MVA en t/m 10 MVA | N146: 242815 | O146: 3.688231781 | AA146: > 1.2 MVA t/m 2 MVA met MS meting | AC146: 49135.47 | AD146: 0 | AK146: >3*35A en t/m 3*50A | AM146: 1034.29 | AN146: 9
B147: >1,8 MVA en t/m 2,4 MVA MS met MS meting | D147: 58038.49 | E147: 0 | AA147: > 2 MVA t/m 5 MVA met MS meting | AC147: 312901.87 | AD147: 0 | AK147: >3*25A en t/m 3*35A | AM147: 744.98 | AN147: 68
B148: >2,4 MVA en t/m 3,0 MVA MS met MS meting | D148: 58490.54 | E148: 0 | AA148: > 5 MVA tot 10 MVA met MS meting | AC148: 334416.85 | AD148: 0 | AK148: t/m 3*25A | AM148: 677.97 | AN148: 972
AK149: 1*6A geschakeld net | AM149: 356.17 | AN149: 456
B151: OMZET | D151: =SUMPRODUCT(D133:D149,E133:E149) -> 804197.0461 | G151: OMZET | I151: =SUMPRODUCT(I133:I149,J133:J149) -> 2812873.67 | L151: OMZET | N151: =SUMPRODUCT(N134:N146,O134:O146) -> 43085814.91 | Q151: OMZET | S151: =SUMPRODUCT(S133:S149,T133:T149) -> 1366396.03 | V151: OMZET | X151: =SUMPRODUCT(X133:X149,Y133:Y149) -> 40136853.25 | AA151: OMZET | AC151: =SUMPRODUCT(AC133:AC149,AD133:AD149) -> 408650.4 | AF151: OMZET | AH151: =SUMPRODUCT(AH133:AH149,AI133:AI149) -> 40567000.92 | AK151: OMZET | AM151: =SUMPRODUCT(AM133:AM149,AN133:AN149) -> 2518498.05
B153: COGAS | G153: DNWB | L153: ENEXIS | Q153: ENDINET | V153: LIANDER | AA153: RENDO | AF153: STEDIN | AK153: WESTLAND
B154: EAV t/m 25 meter | D154: tarief | E154: volume | G154: EAV t/m 25 meter | I154: tarief | J154: volume | L154: EAV t/m 25 meter | N154: tarief | O154: volume | Q154: EAV t/m 25 meter | S154: tarief | T154: volume | V154: EAV t/m 25 meter | X154: tarief | Y154: volume | AA154: EAV t/m 25 meter | AC154: tarief | AD154: volume | AF154: EAV t/m 25 meter | AH154: tarief | AI154: volume | AK154: EAV t/m 25 meter | AM154: tarief | AN154: volume
B155: t/m 1 x 6A geschakeld net | D155: =D133 -> 424.02 | E155: =E133 -> 541.6068176 | G155: t/m 1 x 6A geschakeld net | I155: =I133 -> 299.97 | J155: =J133 -> 1360 | L155: t/m 1 x 6A geschakeld net | N155: =N134 -> 310 | O155: =O134 -> 29519.46935 | Q155: t/m 1 x 6A geschakeld net | S155: =S133 -> 359.19 | T155: =T133 -> 22 | V155: t/m 1 x 6A geschakeld net | X155: =X143 -> 341 | Y155: =Y143 -> 10610 | AA155: t/m 1 x 6A geschakeld net | AC155: =AC133 -> 366.84 | AD155: =AD133 -> 309 | AF155: t/m 1 x 6A geschakeld net | AH155: =AH133 -> 348.79 | AI155: =AI133 -> 16420.88128 | AK155: t/m 1 x 6A geschakeld net | AM155: =AM149 -> 356.17 | AN155: =AN149 -> 456
B156: t/m 3*25 A | D156: =D134 -> 604.57 | E156: =E134 -> 658.0002805 | G156: t/m 3*25 A | I156: =I134 -> 569.5 | J156: =J134 -> 1868 | L156: t/m 3*25 A | N156: =IF(O156<>0,SUMPRODUCT(N135:N136,O135:O136)/SUM(O135:O136),0) -> 595 | O156: =SUM(O135:O136) -> 30436.47982 | Q156: t/m 3*25 A | S156: =S134 -> 466.36 | T156: =T134 -> 1781 | V156: t/m 3*25 A | X156: =X133 -> 565.95 | Y156: =Y133 -> 36285 | AA156: t/m 3*25 A | AC156: =AC134 -> 620.97 | AD156: =AD134 -> 315 | AF156: t/m 3*25 A | AH156: =AH134 -> 510.18 | AI156: =AI134 -> 32022.20998 | AK156: t/m 3*25 A | AM156: =AM148 -> 677.97 | AN156: =AN148 -> 972
B157: >3*25A t/m 3*80A | D157: =IF(E157<>0,SUMPRODUCT(D135:D138,E135:E138)/SUM(E135:E138),0) -> 969.47 | E157: =SUM(E135:E138) -> 48.67924102 | G157: >3*25A t/m 3*80A | I157: =IF(J157<>0,SUMPRODUCT(I135:I138,J135:J138)/SUM(J135:J138),0) -> 911.6001961 | J157: =SUM(J135:J138) -> 204 | L157: >3*25A t/m 3*80A | N157: =IF(O157<>0,SUMPRODUCT(N137:N140,O137:O140)/SUM(O137:O140),0) -> 828.3393388 | O157: =SUM(O137:O140) -> 1845.734904 | Q157: >3*25A t/m 3*80A | S157: =IF(T157<>0,SUMPRODUCT(S135:S136,T135:T136)/SUM(T135:T136),0) -> 803.3241935 | T157: =SUM(T135:T136) -> 217 | V157: >3*25A t/m 3*80A | X157: =IF(Y157<>0,SUMPRODUCT(X134:X135,Y134:Y135)/SUM(Y134:Y135),0) -> 949.274166 | Y157: =SUM(Y134:Y135) -> 3507 | AA157: >3*25A t/m 3*80A | AC157: =IF(AD157<>0,SUMPRODUCT(AC135:AC138,AD135:AD138)/SUM(AD135:AD138),0) -> 955.2223529 | AD157: =SUM(AD135:AD138) -> 51 | AF157: >3*25A t/m 3*80A | AH157: =IF(AI157<>0,SUMPRODUCT(AH135:AH137,AI135:AI137)/SUM(AI135:AI137),0) -> 851.5757808 | AI157: =SUM(AI135:AI137) -> 2806.37663 | AK157: >3*25A t/m 3*80A | AM157: =SUMPRODUCT(AM144:AM147,AN144:AN147)/SUM(AN144:AN147) -> 919.3349558 | AN157: =SUM(AN144:AN147) -> 113
B158: LS & Trafo MS/LS | D158: =IF(E158<>0,SUMPRODUCT(D139:D144,E139:E144)/SUM(E139:E144),0) -> 7620.750158 | E158: =SUM(E139:E144) -> 16.99893413 | G158: LS & Trafo MS/LS | I158: =IF(J158<>0,SUMPRODUCT(I139:I140,J139:J140)/SUM(J139:J140),0) -> 5767.557959 | J158: =SUM(J139:J140) -> 49 | L158: LS & Trafo MS/LS | N158: =IF(O158<>0,SUMPRODUCT(N141:N143,O141:O143)/SUM(O141:O143),0) -> 5070.975514 | O158: =SUM(O141:O143) -> 1273.018685 | Q158: LS & Trafo MS/LS | S158: =IF(T158<>0,SUMPRODUCT(S137:S139,T137:T139)/SUM(T137:T139),0) -> 6006.508182 | T158: =SUM(T137:T139) -> 55 | V158: LS & Trafo MS/LS | X158: =IF(Y158<>0,SUMPRODUCT(X136:X138,Y136:Y138)/SUM(Y136:Y138),0) -> 7673.05414 | Y158: =SUM(Y136:Y138) -> 628 | AA158: LS & Trafo MS/LS | AC158: =IF(AD158<>0,SUMPRODUCT(AC139:AC144,AD139:AD144)/SUM(AD139:AD144),0) -> 5663.883333 | AD158: =SUM(AD139:AD144) -> 9 | AF158: LS & Trafo MS/LS | AH158: =IF(AI158<>0,SUMPRODUCT(AH138:AH140,AI138:AI140)/SUM(AI138:AI140),0) -> 7642.826109 | AI158: =SUM(AI138:AI140) -> 870.663182 | AK158: LS & Trafo MS/LS | AM158: =SUMPRODUCT(AM137:AM143,AN137:AN143)/SUM(AN137:AN143) -> 5430.459318 | AN158: =SUM(AN137:AN143) -> 44
B159: MS en >MS | D159: =IF(E159<>0,SUMPRODUCT(D145:D148,E145:E148)/SUM(E145:E148),0) -> 0 | E159: =SUM(E145:E148) -> 0 | G159: MS en >MS | I159: =IF(J159<>0,SUMPRODUCT(I141:I143,J141:J143)/SUM(J141:J143),0) -> 79319.24455 | J159: =SUM(J141:J143) -> 11 | L159: MS en >MS | N159: =IF(O159<>0,SUMPRODUCT(N144:N146,O144:O146)/SUM(O144:O146),0) -> 35983.56552 | O159: =SUM(O144:O146) -> 217.8975985 | Q159: MS en >MS | S159: =IF(T159<>0,SUMPRODUCT(S140:S143,T140:T143)/SUM(T140:T143),0) -> 23227.39 | T159: =SUM(T140:T143) -> 1 | V159: MS en >MS | X159: =IF(Y159<>0,SUMPRODUCT(X139:X142,Y139:Y142)/SUM(Y139:Y142),0) -> 92183.11765 | Y159: =SUM(Y139:Y142) -> 85 | AA159: MS en >MS | AC159: =IF(AD159<>0,SUMPRODUCT(AC145:AC148,AD145:AD148)/SUM(AD145:AD148),0) -> 0 | AD159: =SUM(AD145:AD148) -> 0 | AF159: MS en >MS | AH159: =IF(AI159<>0,SUMPRODUCT(AH141:AH144,AI141:AI144)/SUM(AI141:AI144),0) -> 80991.58594 | AI159: =SUM(AI141:AI144) -> 116.7812788 | AK159: MS en >MS | AM159: =SUMPRODUCT(AM133:AM136,AN133:AN136)/SUM(AN133:AN136) -> 50158.24556 | AN159: =SUM(AN133:AN136) -> 27
B160: OMZET | D160: =SUMPRODUCT(D155:D159,E155:E159) -> 804197.0461 | G160: OMZET | I160: =SUMPRODUCT(I155:I159,J155:J159) -> 2812873.67 | L160: OMZET | N160: =SUMPRODUCT(N155:N159,O155:O159) -> 43085814.91 | Q160: OMZET | S160: =SUMPRODUCT(S155:S159,T155:T159) -> 1366396.03 | V160: OMZET | X160: =SUMPRODUCT(X155:X159,Y155:Y159) -> 40136853.25 | AA160: OMZET | AC160: =SUMPRODUCT(AC155:AC159,AD155:AD159) -> 408650.4 | AF160: OMZET | AH160: =SUMPRODUCT(AH155:AH159,AI155:AI159) -> 40567000.92 | AK160: OMZET | AM160: =SUMPRODUCT(AM155:AM159,AN155:AN159) -> 2518498.05
B163: EAV > 25 meter
B165: COGAS | G165: DNWB | L165: ENEXIS | Q165: ENDINET | V165: LIANDER | AA165: RENDO | AF165: STEDIN | AK165: WESTLAND
B166: EAV > 25 meter | D166: tarief | E166: volume | G166: EAV > 25 meter | I166: tarief | J166: volume | L166: EAV > 25 meter | N166: tarief | O166: volume | Q166: EAV > 25 meter | S166: tarief | T166: volume | V166: EAV > 25 meter | X166: tarief | Y166: volume | AA166: EAV > 25 meter | AC166: tarief | AD166: volume | AF166: EAV > 25 meter | AH166: tarief | AI166: volume | AK166: EAV > 25 meter | AM166: tarief | AN166: volume
B167: 0 t/m 1*6A (OV) | D167: 21.89 | E167: 704.6697122 | G167: t/m 1*6 A geschakeld net | I167: 14.86 | J167: 680 | Q167: 0 t/m 1*6 A aansluting op geschakeld net | S167: 23.97 | T167: 0 | V167: t/m 3*25A | X167: 22.37 | Y167: 34778 | AA167: 0 t/m 1x6A LS geschakeld | AC167: 18.18 | AD167: 261 | AF167: 1*6 A op geschakeld net | AH167: 16.21 | AI167: ='Aanpassing gegevens (sep2013)'!I136 -> 8882.792104 | AK167: >2,4 MVA en t/m 10 MVA | AM167: 132.66 | AN167: 0
B168: > 1*6A en t/m 3*25A | D168: 17.28 | E168: 256.835002 | G168: > 1*6A en t/m 3*25A | I168: 24.18 | J168: 7147 | L168: t/m 1*6 A op geschakeld net | N168: 15 | O168: 44844.57333 | Q168: > 1*6A t/m 3*25A | S168: 24.89 | T168: 600 | V168: >3*25A en t/m 3*50A | X168: 29.27 | Y168: 20149 | AA168: 0 t/m 3x25A en 1x40A | AC168: 21.31 | AD168: 583 | AF168: >1*6A t/m 3*25A | AH168: 22.41 | AI168: ='Aanpassing gegevens (sep2013)'!I137 -> 31081.5917 | AK168: >= 1MW en t/m 2,4 MVA | AM168: 128.87 | AN168: 901.2774113
B169: >3*25A en t/m 3*35A | D169: 24.2 | E169: 1218.674456 | G169: >3*25A en t/m 3*35A | I169: 29.54 | J169: 798 | L169: t/m 1*40A | N169: 17 | O169: 90185.23529 | Q169: >3*25A t/m 3*63A | S169: 28.61 | T169: 664 | V169: >3*50A en t/m 3*80A | X169: 30.22 | Y169: 17327 | AA169: >3x25A en t/m 3x40A | AC169: 24.61 | AD169: 0 | AF169: >3*25A en t/m 3*35A | AH169: 29.21 | AI169: ='Aanpassing gegevens (sep2013)'!I138 -> 7537.769257 | AK169: >3*1500A en t/m 3*1600A af sec. zijde LS | AM169: 546.99 | AN169: 47
B170: >3*35A en t/m 3*50A | D170: 24.2 | E170: 0 | G170: >3*35A en t/m 3*50A | I170: 31.33 | J170: 901 | L170: > 1*40A t/m 3*25A | N170: 17 | O170: 0 | Q170: >3*63A t/m 3*80A | S170: 49.96 | T170: 1002.579664 | V170: >3*80A en t/m 100 kVA af sec zijde trafo | X170: 39.99 | Y170: 30283 | AA170: >3x40A en t/m 3x50A | AC170: 24.61 | AD170: 12 | AF170: >3*35A en t/m 3*63A | AH170: 29.21 | AI170: ='Aanpassing gegevens (sep2013)'!I139 -> 8840.813762 | AK170: >3*1200A en t/m 3*1500A af sec. zijde LS | AM170: 318.4 | AN170: 0
B171: >3*50A en t/m 3*63A | D171: 24.2 | E171: 0 | G171: >3*50A en t/m 3*63A | I171: 31.33 | J171: 143 | L171: >3*25A en t/m 3*40A | N171: 17 | O171: 0 | Q171: >3*80 A t/m 3*160A | S171: 49.96 | T171: 2657 | V171: >100 kVA en t/m 160 kVA af sec zijde trafo | X171: 49.51 | Y171: 31083 | AA171: >3x50A en t/m 3x63A | AC171: 27.8 | AD171: 49 | AF171: > 3*63 A t/m 3*80A | AH171: 34.66 | AI171: ='Aanpassing gegevens (sep2013)'!I140 -> 7236.962493 | AK171: >3*750A en t/m 3*1200A af sec. zijde LS | AM171: 301.55 | AN171: 185
B172: >3*63A en t/m 3*80A | D172: 24.2 | E172: 0 | G172: >3*63A en t/m 3*80A | I172: 31.33 | J172: 1623 | L172: >3*40A en t/m 3*50A | N172: 17 | O172: 0 | Q172: >3*160 A t/m 250 A | S172: 54.62 | T172: 1770 | V172: >160 kVA en t/m 630 kVA met LS meting | X172: 107.59 | Y172: 24364 | AA172: >3x63A en t/m 3x80A | AC172: 27.8 | AD172: 20 | AF172: >3*80A t/m 3*125 A | AH172: 48.85 | AI172: ='Aanpassing gegevens (sep2013)'!I141 -> 18989.96131 | AK172: >3*500A en t/m 3*750A af sec. zijde LS | AM172: 142.86 | AN172: 410
B173: >3*80A en t/m 3*100A af sec. zijde LS-transformator | D173: 31.09 | E173: 370 | G173: >50 kW en t/m 0,2 MW af sec. zijde LS | I173: 46.56 | J173: 6788 | L173: >3*50A en t/m 3*63A | N173: 22 | O173: 39048.40909 | Q173: >110 kVA t/m 630 kVA | S173: 93.96 | T173: 744 | V173: >630 kVA en t/m 1000 kVA met LS meting | X173: 107.59 | Y173: 3916 | AA173: >3x80A en t/m 3x100A | AC173: 32.11 | AD173: 0 | AF173: >3*125 Amp t/m 175 kVA | AH173: 50.18 | AI173: ='Aanpassing gegevens (sep2013)'!I142 -> 52427.04125 | AK173: >3*480A en t/m 3*500A af sec. zijde LS | AM173: 142.86 | AN173: 0
B174: >3*100A en t/m 3*125A af sec.zijde LS-transformator | D174: 31.09 | E174: 0 | G174: >0,2 MW en t/m 0.6 MW, LS meting | I174: 89.54 | J174: 825 | L174: >3*63A en t/m 3*80A | N174: 22 | O174: 0 | Q174: >630 kVA t/m <1 MVA | S174: 93.96 | T174: 0 | V174: >1000 kVA en t/m 2 MVA | X174: 107.59 | Y174: 5946 | AA174: >3x100A en t/m 3x125A | AC174: 32.11 | AD174: 336 | AF174: > 175kVA t/m 630kVA | AH174: 87.03 | AI174: ='Aanpassing gegevens (sep2013)'!I143 -> 8575.044812 | AK174: >3*400A en t/m 3*480A af sec. zijde LS | AM174: 107.15 | AN174: 175
B175: >3*125A en t/m 3*160A af sec.zijde LS-transformator | D175: 38.02 | E175: 621.4143328 | G175: >0,6 MW en t/m 2.0 MW, MS meting | I175: 89.54 | J175: 6805 | L175: >3*80A en t/m 3*160A | N175: 28 | O175: 142120 | Q175: >1 MVA t/m 2 MVA | S175: 93.96 | T175: 0 | V175: >2 MVA en t/m 5,0 MVA | X175: 107.59 | Y175: 5076.666667 | AA175: >3x125A en t/m 3x160A | AC175: 37.48 | AD175: 440 | AF175: > 630kVA t/m 1.000kVA | AH175: 104.93 | AI175: ='Aanpassing gegevens (sep2013)'!I144 -> 803.8218813 | AK175: >3*250A en t/m 3*400A af sec. zijde LS | AM175: 68.92 | AN175: 920
B176: >3*160A en t/m 3*200A af sec.zijde LS-transformator | D176: 38.02 | E176: 1888.782483 | G176: >2,0 MVA en t/m 5 MVA | I176: 89.54 | L176: >3*160A t/m 3*250A | N176: 28 | O176: 0 | Q176: >2 MVA t/m 5,0 MVA | S176: 138.05 | T176: 0 | V176: >5 MVA en t/m 10,0 MVA | X176: 179.95 | Y176: 9135 | AA176: >3x160A en t/m 3x200A | AC176: 37.48 | AD176: 345 | AF176: > 1.000kVA t/m 1.750kVA | AH176: 110.63 | AI176: ='Aanpassing gegevens (sep2013)'!I145 -> 2049.254723 | AK176: >3*200A en t/m 3*250A af sec. zijde LS | AM176: 59.01 | AN176: 208
B177: >3*200A en t/m 3*225A af sec.zijde LS-transformator | D177: 62.21 | E177: 401.2795371 | G177: >5,0 MVA en t/m 10 MVA | I177: 141.48 | J177: 9850 | L177: >3*250A (173 kVA) t/m 630 kVA | N177: 63 | O177: 23091.04762 | Q177: >5,0 MVA t/m 10 MVA | S177: 187.46 | T177: 0 | V177: t/m 1 x 6A op geschakeld net | X177: 16.93 | Y177: 17007 | AA177: >3x200A en t/m 3x225A | AC177: 53.48 | AD177: 85 | AF177: > 1.750kVA t/m 3.000kVA | AH177: 148.84 | AI177: ='Aanpassing gegevens (sep2013)'!I146 -> 10550.64102 | AK177: >3*80A en t/m 3*200A af sec. zijde LS | AM177: 35.71 | AN177: 1448
B178: >0,15 MVA en t/m 0,63 MVA MS met LS meting | D178: 132.63 | E178: 90 | L178: > 630 kVA t/m 1750 kVA | N178: 63 | O178: 12149.47619 | AA178: >0,15 t/m 0.63 MVA met LS meting | AC178: 101.75 | AD178: 180 | AF178: > 3.000kVA t/m 10.000kVA | AH178: 169.64 | AI178: ='Aanpassing gegevens (sep2013)'!I147 -> 4352.497937 | AK178: >3*63A en t/m 3*80A | AM178: 30.61 | AN178: 64
B179: >0,63 MVA en t/m 1,2 MVA MS met LS meting | D179: 147.5 | E179: 0 | L179: > 1750 kVA t/m 6 MVA | N179: 115 | O179: 12899.18261 | AA179: > 0.63 MVA t/m 1.2 MVA met LS meting | AC179: 101.75 | AD179: 0 | AK179: >3*50A en t/m 3*63A | AM179: 30.61 | AN179: 10
B180: >1,2 MVA en t/m 1,8 MVA MS met MS meting | D180: 147.5 | E180: 0 | L180: >6,0 MVA en t/m 10 MVA | N180: 135 | O180: 16479.17037 | AA180: > 1.2 MVA t/m 2 MVA met MS meting | AC180: 101.75 | AD180: 0 | AK180: >3*35A en t/m 3*50A | AM180: 30.61 | AN180: 2563
B181: >1,8 MVA en t/m 2,4 MVA MS met MS meting | D181: 147.5 | E181: 0 | AA181: > 2 MVA t/m 5 MVA met MS meting | AC181: 177.99 | AD181: 0 | AK181: >3*25A en t/m 3*35A | AM181: 25.5 | AN181: 407.5
B182: >2,4 MVA en t/m 3,0 MVA MS met MS meting | D182: 147.5 | E182: 0 | AA182: > 5 MVA tot 10 MVA met MS meting | AC182: 225.89 | AD182: 0 | AK182: t/m 3*25A | AM182: 25.5 | AN182: 356
AK183: 1*6A geschakeld net | AM183: 17.65 | AN183: 992
B185: OMZET | D185: =SUMPRODUCT(D167:D183,E167:E183) -> 193196.5336 | G185: OMZET | I185: =SUMPRODUCT(I167:I183,J167:J183) -> 2682866.77 | L185: OMZET | N185: =SUMPRODUCT(N168:N183,O168:O183) -> 12972489.6 | Q185: OMZET | S185: =SUMPRODUCT(S167:S183,T167:T183) -> 383347.28 | V185: OMZET | X185: =SUMPRODUCT(X167:X183,Y167:Y183) -> 10801649.2 | AA185: OMZET | AC185: =SUMPRODUCT(AC167:AC183,AD167:AD183) -> 82453.79 | AF185: OMZET | AH185: =SUMPRODUCT(AH167:AH183,AI167:AI183) -> 8494283.99 | AK185: OMZET | AM185: =SUMPRODUCT(AM167:AM183,AN167:AN183) -> 520051.93
B187: COGAS | G187: DNWB | L187: ENEXIS | Q187: ENDINET | V187: LIANDER | AA187: RENDO | AF187: STEDIN | AK187: WESTLAND
B188: EAV > 25 meter | D188: tarief | E188: volume | G188: EAV > 25 meter | I188: tarief | J188: volume | L188: EAV > 25 meter | N188: tarief | O188: volume | Q188: EAV > 25 meter | S188: tarief | T188: volume | V188: EAV > 25 meter | X188: tarief | Y188: volume | AA188: EAV > 25 meter | AC188: tarief | AD188: volume | AF188: EAV > 25 meter | AH188: tarief | AI188: volume | AK188: EAV > 25 meter | AM188: tarief | AN188: volume
B189: t/m 1 x 6A geschakeld net | D189: =D167 -> 21.89 | E189: =E167 -> 704.6697122 | G189: t/m 1 x 6A geschakeld net | I189: =I167 -> 14.86 | J189: =J167 -> 680 | L189: t/m 1 x 6A geschakeld net | N189: =N168 -> 15 | O189: =O168 -> 44844.57333 | Q189: t/m 1 x 6A geschakeld net | S189: =S167 -> 23.97 | T189: =T167 -> 0 | V189: t/m 1 x 6A geschakeld net | X189: =X177 -> 16.93 | Y189: =Y177 -> 17007 | AA189: t/m 1 x 6A geschakeld net | AC189: =AC167 -> 18.18 | AD189: =AD167 -> 261 | AF189: t/m 1 x 6A geschakeld net | AH189: =AH167 -> 16.21 | AI189: =AI167 -> 8882.792104 | AK189: t/m 1 x 6A geschakeld net | AM189: =AM183 -> 17.65 | AN189: =AN183 -> 992
B190: t/m 3*25 A | D190: =D168 -> 17.28 | E190: =E168 -> 256.835002 | G190: t/m 3*25 A | I190: =I168 -> 24.18 | J190: =J168 -> 7147 | L190: t/m 3*25 A | N190: =IF(O190<>0,SUMPRODUCT(N169:N170,O169:O170)/SUM(O169:O170),0) -> 17 | O190: =SUM(O169:O170) -> 90185.23529 | Q190: t/m 3*25 A | S190: =S168 -> 24.89 | T190: =T168 -> 600 | V190: t/m 3*25 A | X190: =X167 -> 22.37 | Y190: =Y167 -> 34778 | AA190: t/m 3*25 A | AC190: =AC168 -> 21.31 | AD190: =AD168 -> 583 | AF190: t/m 3*25 A | AH190: =AH168 -> 22.41 | AI190: =AI168 -> 31081.5917 | AK190: t/m 3*25 A | AM190: =AM182 -> 25.5 | AN190: =AN182 -> 356
B191: >3*25A t/m 3*80A | D191: =IF(E191<>0,SUMPRODUCT(D169:D172,E169:E172)/SUM(E169:E172),0) -> 24.2 | E191: =SUM(E169:E172) -> 1218.674456 | G191: >3*25A t/m 3*80A | I191: =IF(J191<>0,SUMPRODUCT(I169:I172,J169:J172)/SUM(J169:J172),0) -> 30.91775758 | J191: =SUM(J169:J172) -> 3465 | L191: >3*25A t/m 3*80A | N191: =IF(O191<>0,SUMPRODUCT(N171:N174,O171:O174)/SUM(O171:O174),0) -> 22 | O191: =SUM(O171:O174) -> 39048.40909 | Q191: >3*25A t/m 3*80A | S191: =IF(T191<>0,SUMPRODUCT(S169:S170,T169:T170)/SUM(T169:T170),0) -> 41.45371596 | T191: =SUM(T169:T170) -> 1666.579664 | V191: >3*25A t/m 3*80A | X191: =IF(Y191<>0,SUMPRODUCT(X168:X169,Y168:Y169)/SUM(Y168:Y169),0) -> 29.70923178 | Y191: =SUM(Y168:Y169) -> 37476 | AA191: >3*25A t/m 3*80A | AC191: =IF(AD191<>0,SUMPRODUCT(AC169:AC172,AD169:AD172)/SUM(AD169:AD172),0) -> 27.32740741 | AD191: =SUM(AD169:AD172) -> 81 | AF191: >3*25A t/m 3*80A | AH191: =IF(AI191<>0,SUMPRODUCT(AH169:AH171,AI169:AI171)/SUM(AI169:AI171),0) -> 30.88014755 | AI191: =SUM(AI169:AI171) -> 23615.54551 | AK191: >3*25A t/m 3*80A | AM191: =SUMPRODUCT(AM178:AM181,AN178:AN181)/SUM(AN178:AN181) -> 29.92603712 | AN191: =SUM(AN178:AN181) -> 3044.5
B192: LS & Trafo MS/LS | D192: =IF(E192<>0,SUMPRODUCT(D173:D178,E173:E178)/SUM(E173:E178),0) -> 42.66418266 | E192: =SUM(E173:E178) -> 3371.476353 | G192: LS & Trafo MS/LS | I192: =IF(J192<>0,SUMPRODUCT(I173:I174,J173:J174)/SUM(J173:J174),0) -> 51.21762511 | J192: =SUM(J173:J174) -> 7613 | L192: LS & Trafo MS/LS | N192: =IF(O192<>0,SUMPRODUCT(N175:N177,O175:O177)/SUM(O175:O177),0) -> 32.89184397 | O192: =SUM(O175:O177) -> 165211.0476 | Q192: LS & Trafo MS/LS | S192: =IF(T192<>0,SUMPRODUCT(S171:S173,T171:T173)/SUM(T171:T173),0) -> 57.88577838 | T192: =SUM(T171:T173) -> 5171 | V192: LS & Trafo MS/LS | X192: =IF(Y192<>0,SUMPRODUCT(X170:X172,Y170:Y172)/SUM(Y170:Y172),0) -> 62.65320495 | Y192: =SUM(Y170:Y172) -> 85730 | AA192: LS & Trafo MS/LS | AC192: =IF(AD192<>0,SUMPRODUCT(AC173:AC178,AD173:AD178)/SUM(AD173:AD178),0) -> 45.50617605 | AD192: =SUM(AD173:AD178) -> 1386 | AF192: LS & Trafo MS/LS | AH192: =IF(AI192<>0,SUMPRODUCT(AH172:AH174,AI172:AI174)/SUM(AI172:AI174),0) -> 53.81453321 | AI192: =SUM(AI172:AI174) -> 79992.04737 | AK192: LS & Trafo MS/LS | AM192: =SUMPRODUCT(AM171:AM177,AN171:AN177)/SUM(AN171:AN177) -> 77.85390317 | AN192: =SUM(AN171:AN177) -> 3346
B193: MS en >MS | D193: =IF(E193<>0,SUMPRODUCT(D179:D182,E179:E182)/SUM(E179:E182),0) -> 0 | E193: =SUM(E179:E182) -> 0 | G193: MS en >MS | I193: =IF(J193<>0,SUMPRODUCT(I175:I177,J175:J177)/SUM(J175:J177),0) -> 120.2580426 | J193: =SUM(J175:J177) -> 16655 | L193: MS en >MS | N193: =IF(O193<>0,SUMPRODUCT(N178:N180,O178:O180)/SUM(O178:O180),0) -> 107.7232085 | O193: =SUM(O178:O180) -> 41527.82917 | Q193: MS en >MS | S193: =IF(T193<>0,SUMPRODUCT(S174:S177,T174:T177)/SUM(T174:T177),0) -> 0 | T193: =SUM(T174:T177) -> 0 | V193: MS en >MS | X193: =IF(Y193<>0,SUMPRODUCT(X173:X176,Y173:Y176)/SUM(Y173:Y176),0) -> 135.047745 | Y193: =SUM(Y173:Y176) -> 24073.66667 | AA193: MS en >MS | AC193: =IF(AD193<>0,SUMPRODUCT(AC179:AC182,AD179:AD182)/SUM(AD179:AD182),0) -> 0 | AD193: =SUM(AD179:AD182) -> 0 | AF193: MS en >MS | AH193: =IF(AI193<>0,SUMPRODUCT(AH175:AH178,AI175:AI178)/SUM(AI175:AI178),0) -> 147.5409684 | AI193: =SUM(AI175:AI178) -> 17756.21556 | AK193: MS en >MS | AM193: =SUMPRODUCT(AM167:AM170,AN167:AN170)/SUM(AN167:AN170) -> 149.5935138 | AN193: =SUM(AN167:AN170) -> 948.2774113
B194: OMZET | D194: =SUMPRODUCT(D189:D193,E189:E193) -> 193196.5336 | G194: OMZET | I194: =SUMPRODUCT(I189:I193,J189:J193) -> 2682866.77 | L194: OMZET | N194: =SUMPRODUCT(N189:N193,O189:O193) -> 12972489.6 | Q194: OMZET | S194: =SUMPRODUCT(S189:S193,T189:T193) -> 383347.28 | V194: OMZET | X194: =SUMPRODUCT(X189:X193,Y189:Y193) -> 10801649.2 | AA194: OMZET | AC194: =SUMPRODUCT(AC189:AC193,AD189:AD193) -> 82453.79 | AF194: OMZET | AH194: =SUMPRODUCT(AH189:AH193,AI189:AI193) -> 8494283.99 | AK194: OMZET | AM194: =SUMPRODUCT(AM189:AM193,AN189:AN193) -> 520051.93

Sheet PAV (incl RV)
B2: Periodieke Aansluitvergoeding (inclusief Rekenvolumes)
B4: Rekenvolumes PAV
B6: COGAS | G6: DNWB | L6: ENEXIS | Q6: ENDINET | V6: LIANDER | AA6: RENDO | AF6: STEDIN | AK6: WESTLAND
B8: Periodieke aansluitvergoeding | G8: Periodieke aansluitvergoeding | L8: Periodieke aansluitvergoeding | Q8: Periodieke aansluitvergoeding | V8: Periodieke aansluitvergoeding | AA8: Periodieke aansluitvergoeding | AF8: Periodieke aansluitvergoeding | AK8: Periodieke aansluitvergoeding
B10: =B50 -> Afnemers EHS/HS (>=110 kV) | G10: =G51 -> Afnemers TS (25-50 kV) | L10: =L51 -> Afnemers TS (25-50) (30 MVA maatwerk aansluiting) | Q10: =Q50 -> Afnemers EHS/HS (>=110 kV) | V10: =V50 -> t/m 3*25A | Y10: =Y50 -> 2711550.165 | AA10: =AA50 -> Afnemers EHS/HS (>=110 kV) | AF10: =AF50 -> t/m 1*6 A | AI10: =AI50 -> 569974.5102 | AK10: =AK50 -> >2,4 MVA en t/m 10 MVA | AN10: =AN50 -> 28.81530099
B11: Afnemers TS (25-50 kV) | G11: =G52 -> Afnemers Trafo HS + TS/MS (>2 MW t/m 10 MVA) | J11: =J52 -> 10 | L11: =L52 -> Aansl. cap. > 6 MVA t/m 10 MVA - ( indien aansl > 10 MVA: maatwerk p.a.v.)) | O11: =O52 -> 186.2809243 | Q11: Afnemers TS (25-50 kV) | V11: >3*25A en t/m 3*50A | Y11: 73890.38613 | AA11: Afnemers TS (25-50 kV) | AF11: > 1*6A t/m 3*25A | AI11: 1855895.182 | AK11: >=1,0 MW en t/m 2,4 MVA | AN11: 235.9948494
B12: Afnemers Trafo HS + TS/MS | G12: Afnemers MS (1-20 kV) - Transport | L12: Aansl. cap. >1750 kVA t/m 6 MVA | O12: 646.2193114 | Q12: Afnemers Trafo HS + TS/MS | T12: =T52 -> 0.997753027 | V12: >3*50A en t/m 3*80A | Y12: 38003.24764 | AA12: Afnemers Trafo HS + TS/MS | AF12: > 3*25A t/m 3*80A | AI12: 74270 | AK12: >3*1500A en t/m 3*1600 A af sec zijde LS | AN12: 5.936600029
B13: Afnemers MS (1-20 kV) - Transport | G13: Afnemers MS (1-20 kV) - Distributie (>0,2 MW t/m 2 MW) | J13: 400.75 | L13: Aansl. cap. >173 kVA t/m 1750 kVA | O13: 14023.15245 | Q13: Afnemers MS (> 3 MW ) | T13: =T53 -> 3.990949157 | V13: >3*80A en t/m 100 kVA af sec zijde trafo | Y13: 7832.886361 | AA13: Afnemers MS (1-20 kV) - Transport (> 2.0 MVA tot 10 MVA) | AD13: =AD53 -> 1 | AF13: > 3*80A t/m 175 kVA | AI13: 9659.666667 | AK13: >3*1200A en t/m 3*1500 A af sec zijde LS | AN13: 112.9822004
B14: Afnemers MS (1-20 kV) - Distributie (> 1,2 MVA t/m 3,0 MVA) | E14: =E54 -> 30 | G14: Afnemers Trafo MS/LS (>50 kW t/m 0,2 MW) | J14: 1444.916667 | L14: Aansl. cap. > 3x80A t/m 3x250A (173 kVA) | O14: 12070.14531 | Q14: Afnemers MS (> 3x250A t/m 3 MW) | T14: =T54 -> 583.9417828 | V14: >100 kVA en t/m 160 kVA af sec zijde trafo | Y14: 5451.474306 | AA14: Afnemers MS (1-20 kV) - Distributie (> 1,2 MVA t/m 2,0 MVA) | AD14: 17.73 | AF14: > 175kVA t/m 1750kVA | AI14: 3828.75 | AK14: >3*750A en t/m 3*1200 A af sec zijde LS | AN14: 148.8742145
B15: Afnemers Trafo MS/LS (>0,15 MVA t/m 1,2 MVA) | E15: 209 | G15: Afnemers LS (> 3*80A t/m 50 kW) | J15: 352.4166667 | L15: Aansl. cap. > 3x80A t/m 3x250A (173 kVA) fysiek aangesloten op LS | O15: 0 | Q15: Afnemers Trafo MS/LS (> 3x63A t/m 3x250A) aansluiting MS/LS | T15: =T55 -> 657.623113 | V15: >160 kVA en t/m 630 kVA met LS meting | Y15: 10245.4361 | AA15: Afnemers Trafo MS/LS (0,15MVA t/m 1,2MVA) | AD15: 134.06 | AF15: > 1.750kVA t/m 3.000kVA | AI15: 35.66556254 | AK15: >3*500A en t/m 3*750 A af sec zijde LS | AN15: 86.1235974
B16: Afnemers LS (>3*80A t/m 3*225A) | E16: 305 | G16: Afnemers > 3 x 25A DT (>3*25A t/m 3*80A) | J16: 0 | L16: Afnemers > 3 x 25A DT (doorlaatwaarde >3x25A t/m 3x80A aangesloten op ls net) | O16: 121967.8003 | Q16: Afnemers LS | V16: >630 kVA en t/m 1000 kVA met LS meting | Y16: 211.9771979 | AA16: Afnemers LS (>3x80A t/m 3x225A) | AD16: 122.1 | AF16: > 3.000kVA t/m 10.000kVA | AI16: 152.6931896 | AK16: >3*480A en t/m 3*500 A af sec zijde LS | AN16: 5.339471835
B17: Afnemers > 3*25A t/m 3*80A DT | E17: 1179 | G17: Afnemers > 3 x 25A ET (>3*25A t/m 3*80A) | J17: 7152.083167 | L17: Afnemers > 3 x 25A ET (doorlaatwaarde >3x25A t/m 3x80A aangesloten op ls net) | O17: 0 | Q17: Afnemers > 3 * 25 A (DT) (> 3x25A t/m 3x80A aangesloten op ls) | T17: =T57 -> 0 | V17: >1000 kVA en t/m 2,0 MVA | Y17: 2141.389149 | AA17: Afnemers > 3x25A t/m 3x80A DT | AD17: 1178 | AK17: >3*400A en t/m 3*480 A af sec zijde LS | AN17: 16.47132269
B18: Afnemers > 3*25A t/m 3*80A ET | E18: 410 | G18: Afnemers > 1*6A DT (> 1*6A t/m 3*25A) | J18: 0 | L18: Afnemers t/m 3 x 25A DT (doorlaatwaarde t/m 3x25A aangesloten op ls net) | O18: 2407244.5 | Q18: Afnemers > 3 * 25 A (ET) (> 3x25A t/m 3x80A aangesloten op ls) | T18: =T58 -> 3375.008108 | V18: >2 MVA en t/m 5,0 MVA | Y18: 129.0146076 | AA18: Afnemers > 3x25A t/m 3x80A ET | AD18: 0 | AK18: >3*250A en t/m 3*400 A af sec zijde LS | AN18: 144.6820814
B19: Afnemers > 1* 6A t/m 3* 25A DT | E19: 31654 | G19: Afnemers > 1*6A ET (> 1*6A t/m 3*25A) | J19: 195378.5835 | L19: Afnemers t/m 3 x 25A ET (doorlaatwaarde t/m 3x25A aangesloten op ls net) | O19: 0 | Q19: Afnemers < 3 * 25 A (DT) (> 1x6A t/m 3x25A aangesloten op ls) | T19: =T59 -> 0 | V19: >5 MVA en t/m 10,0 MVA | Y19: 63.9748394 | AA19: Afnemers 0 t/m 3x25A en 1x40A DT | AD19: 19529 | AK19: >3*200A en t/m 3*250 A af sec zijde LS | AN19: 87.92818267
B20: Afnemers > 1* 6A t/m 3* 25A ET | E20: 18710 | G20: Afnemers t/m 1 x 6A geschakeld net | J20: 84946 | L20: Afnemers t/m 6A (geschakeld ls net) | O20: 1062638.483 | Q20: Afnemers < 3 * 25 A (ET) (> 1x6A t/m 3x25A aangesloten op ls) | T20: =T60 -> 99272.07522 | V20: t/m 1 x 6A op geschakeld net | Y20: 772155.8848 | AA20: Afnemers 0 t/m 3x25A en 1x40A ET | AD20: 10175 | AK20: >3*80A en t/m 3*200 A af sec zijde LS | AN20: 501.9442954
B21: Afnemers 0 t/m 1* 6A (OV) | E21: 22611 | Q21: Afnemers LS geschakeld (t/m 1x6A) | T21: =T61 -> 44297.61125 | AA21: Afnemers 0 t/m 1x6A LS geschakeld | AD21: 18103 | AK21: >3*63A en t/m 3*80A | AN21: 627.099171
AK22: >3*50A en t/m 3*63A | AN22: 660.4712812
AK23: >3*35A en t/m 3*50A | AN23: 825.3782932
AK24: >3*25A en t/m 3*35A | AN24: 1552.825457
AK25: > 1*6A en t/m 3*25A | AN25: 48234.7257
AK26: t/m 1*6A (geschakeld net) | AN26: 24409.27613
B29: PAV meerlengte 3-10 MVA | G29: PAV meerlengte 3-10 MVA | L29: PAV meerlengte 3-10 MVA | Q29: PAV meerlengte 3-10 MVA | V29: PAV meerlengte 3-10 MVA | AA29: PAV meerlengte 3-10 MVA | AF29: PAV meerlengte 3-10 MVA | AK29: PAV meerlengte 3-10 MVA
G31: =G71 -> 3-10 MVA | J31: =J71 -> 146306 | L31: =L71 -> PAV > 6 t/m 10 MVA | O31: =O71 -> 95345.90275 | Q31: =Q71 -> 3-10 MVA | T31: =T71 -> 2834.993333 | V31: =V71 -> 3-10 MVA | Y31: =Y71 -> 766153.7973 | AA31: =AA71 -> 3-10 MVA | AD31: =AD71 -> 5615 | AF31: =AF71 -> 3-10 MVA | AI31: =AI71 -> 105135.9929 | AK31: =AK71 -> 3-10 MVA | AN31: =AN71 -> 2300
L32: =L72 -> PAV 3 t/m 6 MVA | O32: =O72 -> 105494.5803
A37: NE5R - Standaardisatie
B39: t/m 1 x 6A geschakeld net | C39: Geen verdere standaardisatie. Categorie is reeds uniform.
B40: t/m 3*25 A | C40: Geen verdere standaardisatie. Categorie is reeds uniform.
B41: >3*25A t/m 3*80A | C41: Standaardisatie op basis van aansluitcapaciteit.
B42: >3*80A t/m 630kVA | C42: Standaardisatie op basis van aansluitcapaciteit.
B43: MS | C43: Standaardisatie op basis van aansluitcapaciteit (>630 kVA) of op basis van technische omschrijving van de tariefcategorie.
B44: >MS | C44: Standaardisatie op basis van aansluitcapaciteit (> 2,4 MVA) of op basis van technische omschrijving van de tariefcategorie.
A46: NE5R - PAV - Tarieven 2010 en Volumes 2009 om gestandaardiseerde tarieven 2010 tbv wegingsfactor te berekenen
B48: COGAS | G48: DNWB | L48: ENEXIS | Q48: ENDINET | V48: LIANDER | AA48: RENDO | AF48: STEDIN | AK48: WESTLAND
B49: Periodieke aansluitvergoeding | D49: tarief | E49: volume | G49: Periodieke aansluitvergoeding | I49: tarief | J49: volume | L49: Periodieke aansluitvergoeding | N49: tarief | O49: volume | Q49: Periodieke aansluitvergoeding | S49: tarief | T49: volume | V49: Periodieke aansluitvergoeding | X49: tarief | Y49: volume | AA49: Periodieke aansluitvergoeding | AC49: tarief | AD49: volume | AF49: Periodieke aansluitvergoeding | AH49: tarief | AI49: volume | AK49: Periodieke aansluitvergoeding | AM49: tarief | AN49: volume
B50: Afnemers EHS/HS (>=110 kV) | L50: Afnemers EHS/HS (>=110 kV) ( > 10 MVA maatwerk HS aansluiting) | Q50: Afnemers EHS/HS (>=110 kV) | V50: t/m 3*25A | X50: 15.96 | Y50: =Y239 -> 2711550.165 | AA50: Afnemers EHS/HS (>=110 kV) | AF50: t/m 1*6 A | AH50: 6.24 | AI50: =AI239 -> 569974.5102 | AK50: >2,4 MVA en t/m 10 MVA | AM50: 5073.28 | AN50: =AN239 -> 28.81530099
B51: Afnemers TS (25-50 kV) | G51: Afnemers TS (25-50 kV) | L51: Afnemers TS (25-50) (30 MVA maatwerk aansluiting) | Q51: Afnemers TS (25-50 kV) | V51: >3*25A en t/m 3*50A | X51: 24.6 | Y51: 73890.38613 | AA51: Afnemers TS (25-50 kV) | AF51: > 1*6A t/m 3*25A | AH51: 16.56 | AI51: 1855895.182 | AK51: >=1,0 MW en t/m 2,4 MVA | AM51: 1666.93 | AN51: 235.9948494
B52: Afnemers Trafo HS + TS/MS | G52: Afnemers Trafo HS + TS/MS (>2 MW t/m 10 MVA) | I52: 6097.2 | J52: =J241 -> 10 | L52: Aansl. cap. > 6 MVA t/m 10 MVA - ( indien aansl > 10 MVA: maatwerk p.a.v.)) | N52: 1763 | O52: =O241 -> 186.2809243 | Q52: Afnemers Trafo HS + TS/MS | S52: 5167.12 | T52: =T241 -> 0.997753027 | V52: >3*50A en t/m 3*80A | X52: 29.88 | Y52: 38003.24764 | AA52: Afnemers Trafo HS + TS/MS | AF52: > 3*25A t/m 3*80A | AH52: 32.88 | AI52: 74270 | AK52: >3*1500A en t/m 3*1600 A af sec zijde LS | AM52: 645.02 | AN52: 5.936600029
B53: Afnemers MS (1-20 kV) - Transport | G53: Afnemers MS (1-20 kV) - Transport | L53: Aansl. cap. >1750 kVA t/m 6 MVA | N53: 1519 | O53: 646.2193114 | Q53: Afnemers MS (> 3 MW ) | S53: 1788.65 | T53: 3.990949157 | V53: >3*80A en t/m 100 kVA af sec zijde trafo | X53: 106.92 | Y53: 7832.886361 | AA53: Afnemers MS (1-20 kV) - Transport (> 2.0 MVA tot 10 MVA) | AC53: 1342.5 | AD53: =AD242 -> 1 | AF53: > 3*80A t/m 175 kVA | AH53: 46.8 | AI53: =AI243 -> 9659.666667 | AK53: >3*1200A en t/m 3*1500 A af sec zijde LS | AM53: 553.71 | AN53: 112.9822004
B54: Afnemers MS (1-20 kV) - Distributie (> 1,2 MVA t/m 3,0 MVA) | D54: 404.55 | E54: =E243 -> 30 | G54: Afnemers MS (1-20 kV) - Distributie (>0,2 MW t/m 2 MW) | I54: 915.36 | J54: =J243 -> 400.75 | L54: Aansl. cap. >173 kVA t/m 1750 kVA | N54: 569 | O54: 14023.15245 | Q54: Afnemers MS (> 3x250A t/m 3 MW) | S54: 581.83 | T54: 583.9417828 | V54: >100 kVA en t/m 160 kVA af sec zijde trafo | X54: 119.88 | Y54: 5451.474306 | AA54: Afnemers MS (1-20 kV) - Distributie (> 1,2 MVA t/m 2,0 MVA) | AC54: 452.45 | AD54: 17.73 | AF54: > 175kVA t/m 1750kVA | AH54: 423.96 | AI54: =AI244 -> 3828.75 | AK54: >3*750A en t/m 3*1200 A af sec zijde LS | AM54: 369.62 | AN54: 148.8742145
B55: Afnemers Trafo MS/LS (>0,15 MVA t/m 1,2 MVA) | D55: 353.69 | E55: 209 | G55: Afnemers Trafo MS/LS (>50 kW t/m 0,2 MW) | I55: 132.48 | J55: 1444.916667 | L55: Aansl. cap. > 3x80A t/m 3x250A (173 kVA) | N55: 143 | O55: 12070.14531 | Q55: Afnemers Trafo MS/LS (> 3x63A t/m 3x250A) aansluiting MS/LS | S55: 202.37 | T55: 657.623113 | V55: >160 kVA en t/m 630 kVA met LS meting | X55: 492 | Y55: 10245.4361 | AA55: Afnemers Trafo MS/LS (0,15MVA t/m 1,2MVA) | AC55: 153.45 | AD55: 134.06 | AF55: > 1.750kVA t/m 3.000kVA | AH55: 1014.36 | AI55: =AI245 -> 35.66556254 | AK55: >3*500A en t/m 3*750 A af sec zijde LS | AM55: 182.64 | AN55: 86.1235974
B56: Afnemers LS (>3*80A t/m 3*225A) | D56: 17.7 | E56: 305 | G56: Afnemers LS (> 3*80A t/m 50 kW) | I56: 31.56 | J56: 352.4166667 | L56: Aansl. cap. > 3x80A t/m 3x250A (173 kVA) fysiek aangesloten op LS | N56: 143 | O56: 0 | Q56: Afnemers LS | S56: 0 | T56: 0 | V56: >630 kVA en t/m 1000 kVA met LS meting | X56: 912 | Y56: 211.9771979 | AA56: Afnemers LS (>3x80A t/m 3x225A) | AC56: 34.8 | AD56: 122.1 | AF56: > 3.000kVA t/m 10.000kVA | AH56: 5766 | AI56: =AI246 -> 152.6931896 | AK56: >3*480A en t/m 3*500 A af sec zijde LS | AM56: 182.64 | AN56: 5.339471835
B57: Afnemers > 3*25A t/m 3*80A DT | D57: 14.75 | E57: 1179 | G57: Afnemers > 3 x 25A DT (>3*25A t/m 3*80A) | I57: 31.56 | J57: 0 | L57: Afnemers > 3 x 25A DT (doorlaatwaarde >3x25A t/m 3x80A aangesloten op ls net) | N57: 30.1 | O57: 121967.8003 | Q57: Afnemers > 3 * 25 A (DT) (> 3x25A t/m 3x80A aangesloten op ls) | S57: 13.47 | T57: 0 | V57: >1000 kVA en t/m 2,0 MVA | X57: 1452 | Y57: 2141.389149 | AA57: Afnemers > 3x25A t/m 3x80A DT | AC57: 34.8 | AD57: 1178 | AK57: >3*400A en t/m 3*480 A af sec zijde LS | AM57: 139.15 | AN57: 16.47132269
B58: Afnemers > 3*25A t/m 3*80A ET | D58: 14.75 | E58: 410 | G58: Afnemers > 3 x 25A ET (>3*25A t/m 3*80A) | I58: 31.56 | J58: 7152.083167 | L58: Afnemers > 3 x 25A ET (doorlaatwaarde >3x25A t/m 3x80A aangesloten op ls net) | N58: 30.1 | O58: 0 | Q58: Afnemers > 3 * 25 A (ET) (> 3x25A t/m 3x80A aangesloten op ls) | S58: 13.47 | T58: 3375.008108 | V58: >2 MVA en t/m 5,0 MVA | X58: 6420 | Y58: 129.0146076 | AA58: Afnemers > 3x25A t/m 3x80A ET | AC58: 0 | AD58: 0 | AK58: >3*250A en t/m 3*400 A af sec zijde LS | AM58: 139.15 | AN58: 144.6820814
B59: Afnemers > 1* 6A t/m 3* 25A DT | D59: 14.75 | E59: 31654 | G59: Afnemers > 1*6A DT (> 1*6A t/m 3*25A) | I59: 19.2 | J59: 0 | L59: Afnemers t/m 3 x 25A DT (doorlaatwaarde t/m 3x25A aangesloten op ls net) | N59: 26.4 | O59: 2407244.5 | Q59: Afnemers < 3 * 25 A (DT) (> 1x6A t/m 3x25A aangesloten op ls) | S59: 13.47 | T59: 0 | V59: >5 MVA en t/m 10,0 MVA | X59: 9336 | Y59: 63.9748394 | AA59: Afnemers 0 t/m 3x25A en 1x40A DT | AC59: 21.46 | AD59: 19529 | AK59: >3*200A en t/m 3*250 A af sec zijde LS | AM59: 134.35 | AN59: 87.92818267
B60: Afnemers > 1* 6A t/m 3* 25A ET | D60: 14.75 | E60: 18710 | G60: Afnemers > 1*6A ET (> 1*6A t/m 3*25A) | I60: 19.2 | J60: 195378.5835 | L60: Afnemers t/m 3 x 25A ET (doorlaatwaarde t/m 3x25A aangesloten op ls net) | N60: 26.4 | O60: 0 | Q60: Afnemers < 3 * 25 A (ET) (> 1x6A t/m 3x25A aangesloten op ls) | S60: 13.47 | T60: 99272.07522 | V60: t/m 1 x 6A op geschakeld net | X60: 7.8 | Y60: 772155.8848 | AA60: Afnemers 0 t/m 3x25A en 1x40A ET | AC60: 21.46 | AD60: 10175 | AK60: >3*80A en t/m 3*200 A af sec zijde LS | AM60: 126.4 | AN60: 501.9442954
B61: Afnemers 0 t/m 1* 6A (OV) | D61: 5.16 | E61: 22611 | G61: Afnemers t/m 1 x 6A geschakeld net | I61: 1.92 | J61: =J250 -> 84946 | L61: Afnemers t/m 6A (geschakeld ls net) | N61: 3.26 | O61: 1062638.483 | Q61: Afnemers LS geschakeld (t/m 1x6A) | S61: 6.23 | T61: 44297.61125 | AA61: Afnemers 0 t/m 1x6A LS geschakeld | AC61: 10.6 | AD61: 18103 | AK61: >3*63A en t/m 3*80A | AM61: 50.87 | AN61: 627.099171
AK62: >3*50A en t/m 3*63A | AM62: 50.87 | AN62: 660.4712812
AK63: >3*35A en t/m 3*50A | AM63: 50.87 | AN63: 825.3782932
AK64: >3*25A en t/m 3*35A | AM64: 15.09 | AN64: 1552.825457
AK65: > 1*6A en t/m 3*25A | AM65: 13.5 | AN65: 48234.7257
AK66: t/m 1*6A (geschakeld net) | AM66: 2.54 | AN66: 24409.27613
B68: OMZET | D68: =SUMPRODUCT(D50:D66,E50:E66) -> 974435.72 | G68: OMZET | I68: =SUMPRODUCT(I50:I66,J50:J66) -> 4770432.218 | L68: OMZET | N68: =SUMPRODUCT(N50:N66,O50:O66) -> 81701911.98 | Q68: OMZET | S68: =SUMPRODUCT(S50:S66,T50:T66) -> 2143762.288 | V68: OMZET | X68: =SUMPRODUCT(X50:X66,Y50:Y66) -> 63512329.72 | AA68: OMZET | AC68: =SUMPRODUCT(AC50:AC66,AD50:AD66) -> 904519.0655 | AF68: OMZET | AH68: =SUMPRODUCT(AH50:AH66,AI50:AI66) -> 39724178.66 | AK68: OMZET | AM68: =SUMPRODUCT(AM50:AM66,AN50:AN66) -> 1619464.89
B70: PAV meerlengte 3-10 MVA | D70: tarief | E70: volume | G70: PAV meerlengte 3-10 MVA | I70: tarief | J70: volume | L70: PAV meerlengte 3-10 MVA | N70: tarief | O70: volume | Q70: PAV meerlengte 3-10 MVA | S70: tarief | T70: volume | V70: PAV meerlengte 3-10 MVA | X70: tarief | Y70: volume | AA70: PAV meerlengte 3-10 MVA | AC70: tarief | AD70: volume | AF70: PAV meerlengte 3-10 MVA | AH70: tarief | AI70: volume | AK70: PAV meerlengte 3-10 MVA | AM70: tarief | AN70: volume
G71: 3-10 MVA | I71: 1.47 | J71: 146306 | L71: PAV > 6 t/m 10 MVA | N71: 2.4 | O71: 95345.90275 | Q71: 3-10 MVA | S71: 2.86 | T71: 2834.993333 | V71: 3-10 MVA | X71: 1.44 | Y71: 766153.7973 | AA71: 3-10 MVA | AC71: 11.45 | AD71: 5615 | AF71: 3-10 MVA | AH71: 5.28 | AI71: 105135.9929 | AK71: 3-10 MVA | AM71: 3.76 | AN71: 2300
L72: PAV 3 t/m 6 MVA | N72: 2 | O72: 105494.5803
B74: OMZET | D74: =SUMPRODUCT(D71:D72,E71:E72) -> 0 | G74: OMZET | I74: =SUMPRODUCT(I71:I72,J71:J72) -> 215069.82 | L74: OMZET | N74: =SUMPRODUCT(N71:N72,O71:O72) -> 439819.3272 | Q74: OMZET | S74: =SUMPRODUCT(S71:S72,T71:T72) -> 8108.080933 | V74: OMZET | X74: =SUMPRODUCT(X71:X72,Y71:Y72) -> 1103261.468 | AA74: OMZET | AC74: =SUMPRODUCT(AC71:AC72,AD71:AD72) -> 64291.75 | AF74: OMZET | AH74: =SUMPRODUCT(AH71:AH72,AI71:AI72) -> 555118.0426 | AK74: OMZET | AM74: =SUMPRODUCT(AM71:AM72,AN71:AN72) -> 8648
B77: COGAS | G77: DNWB | L77: ENEXIS | Q77: ENDINET | V77: LIANDER | AA77: RENDO | AF77: STEDIN | AK77: WESTLAND
D78: tarief | E78: volume | I78: tarief | J78: volume | N78: tarief | O78: volume | S78: tarief | T78: volume | X78: tarief | Y78: volume | AC78: tarief | AD78: volume | AH78: tarief | AI78: volume | AM78: tarief | AN78: volume
B79: t/m 1 x 6A geschakeld net | D79: =D61 -> 5.16 | E79: =E61 -> 22611 | G79: t/m 1 x 6A geschakeld net | I79: =I61 -> 1.92 | J79: =J61 -> 84946 | L79: t/m 1 x 6A geschakeld net | N79: =N61 -> 3.26 | O79: =O61 -> 1062638.483 | Q79: t/m 1 x 6A geschakeld net | S79: =S61 -> 6.23 | T79: =T61 -> 44297.61125 | V79: t/m 1 x 6A geschakeld net | X79: =X60 -> 7.8 | Y79: =Y60 -> 772155.8848 | AA79: t/m 1 x 6A geschakeld net | AC79: =AC61 -> 10.6 | AD79: =AD61 -> 18103 | AF79: t/m 1 x 6A geschakeld net | AH79: =AH50 -> 6.24 | AI79: 569974.5102 | AK79: t/m 1 x 6A geschakeld net | AM79: =AM66 -> 2.54 | AN79: =AN66 -> 24409.27613
B80: t/m 3*25 A | D80: =SUMPRODUCT(D59:D60,E59:E60)/SUM(E59:E60) -> 14.75 | E80: =SUM(E59:E60) -> 50364 | G80: t/m 3*25 A | I80: =SUMPRODUCT(I59:I60,J59:J60)/SUM(J59:J60) -> 19.2 | J80: =SUM(J59:J60) -> 195378.5835 | L80: t/m 3*25 A | N80: =SUMPRODUCT(N59:N60,O59:O60)/SUM(O59:O60) -> 26.4 | O80: =SUM(O59:O60) -> 2407244.5 | Q80: t/m 3*25 A | S80: =SUMPRODUCT(S59:S60,T59:T60)/SUM(T59:T60) -> 13.47 | T80: =SUM(T59:T60) -> 99272.07522 | V80: t/m 3*25 A | X80: =X50 -> 15.96 | Y80: =Y50 -> 2711550.165 | AA80: t/m 3*25 A | AC80: =SUMPRODUCT(AC59:AC60,AD59:AD60)/SUM(AD59:AD60) -> 21.46 | AD80: =SUM(AD59:AD60) -> 29704 | AF80: t/m 3*25 A | AH80: 16.56 | AI80: 1855895.182 | AK80: t/m 3*25 A | AM80: =AM65 -> 13.5 | AN80: =AN65 -> 48234.7257
B81: >3*25A t/m 3*80A | D81: =SUMPRODUCT(D57:D58,E57:E58)/SUM(E57:E58) -> 14.75 | E81: =SUM(E57:E58) -> 1589 | G81: >3*25A t/m 3*80A | I81: =SUMPRODUCT(I57:I58,J57:J58)/SUM(J57:J58) -> 31.56 | J81: =SUM(J57:J58) -> 7152.083167 | L81: >3*25A t/m 3*80A | N81: =SUMPRODUCT(N57:N58,O57:O58)/SUM(O57:O58) -> 30.1 | O81: =SUM(O57:O58) -> 121967.8003 | Q81: >3*25A t/m 3*80A | S81: =SUMPRODUCT(S57:S58,T57:T58)/SUM(T57:T58) -> 13.47 | T81: =SUM(T57:T58) -> 3375.008108 | V81: >3*25A t/m 3*80A | X81: =SUMPRODUCT(X51:X52,Y51:Y52)/SUM(Y51:Y52) -> 26.39328475 | Y81: =SUM(Y51:Y52) -> 111893.6338 | AA81: >3*25A t/m 3*80A | AC81: =SUMPRODUCT(AC57:AC58,AD57:AD58)/SUM(AD57:AD58) -> 34.8 | AD81: =SUM(AD57:AD58) -> 1178 | AF81: >3*25A t/m 3*80A | AH81: 32.88 | AI81: 74270 | AK81: >3*25A t/m 3*80A | AM81: =SUMPRODUCT(AM61:AM64,AN61:AN64)/SUM(AN61:AN64) -> 35.71355779 | AN81: =SUM(AN61:AN64) -> 3665.774202
B82: LS & Trafo MS/LS | D82: =SUMPRODUCT(D55:D56,E55:E56)/SUM(E55:E56) -> 154.3185019 | E82: =SUM(E55:E56) -> 514 | G82: LS & Trafo MS/LS | I82: =SUMPRODUCT(I55:I56,J55:J56)/SUM(J55:J56) -> 112.6918565 | J82: =SUM(J55:J56) -> 1797.333333 | L82: LS & Trafo MS/LS | N82: =SUMPRODUCT(N55:N56,O55:O56)/SUM(O55:O56) -> 143 | O82: =SUM(O55:O56) -> 12070.14531 | Q82: LS & Trafo MS/LS | S82: =SUMPRODUCT(S55:S56,T55:T56)/SUM(T55:T56) -> 202.37 | T82: =SUM(T55:T56) -> 657.623113 | V82: LS & Trafo MS/LS | X82: =SUMPRODUCT(X53:X55,Y53:Y55)/SUM(Y53:Y55) -> 277.595662 | Y82: =SUM(Y53:Y55) -> 23529.79677 | AA82: LS & Trafo MS/LS | AC82: =SUMPRODUCT(AC55:AC56,AD55:AD56)/SUM(AD55:AD56) -> 96.89485868 | AD82: =SUM(AD55:AD56) -> 256.16 | AF82: LS & Trafo MS/LS | AH82: 46.8 | AI82: 9659.666667 | AK82: LS & Trafo MS/LS | AM82: =SUMPRODUCT(AM54:AM60,AN54:AN60)/SUM(AN54:AN60) -> 170.8910664 | AN82: =SUM(AN54:AN60) -> 991.3631659
B83: MS | D83: =D54 -> 404.55 | E83: =E54 -> 30 | G83: MS | I83: =I54 -> 915.36 | J83: =J54 -> 400.75 | L83: MS | N83: =N54 -> 569 | O83: =O54 -> 14023.15245 | Q83: MS | S83: =S54 -> 581.83 | T83: =T54 -> 583.9417828 | V83: MS | X83: =SUMPRODUCT(X56:X57,Y56:Y57)/SUM(Y56:Y57) -> 1403.360022 | Y83: =SUM(Y56:Y57) -> 2353.366347 | AA83: MS | AC83: =SUMPRODUCT(AC53:AC54,AD53:AD54)/SUM(AD53:AD54) -> 499.9700214 | AD83: =SUM(AD53:AD54) -> 18.73 | AF83: MS | AH83: =SUMPRODUCT(AH54:AH55,AI54:AI55)/SUM(AI54:AI55) -> 429.4089347 | AI83: =SUM(AI54:AI55) -> 3864.415563 | AK83: MS | AM83: =SUMPRODUCT(AM51:AM53,AN51:AN53)/SUM(AN51:AN53) -> 1295.457344 | AN83: =SUM(AN51:AN53) -> 354.9136499
B84: >MS | G84: >MS | I84: =I52 -> 6097.2 | J84: =J52 -> 10 | L84: >MS | N84: =SUMPRODUCT(N52:N53,O52:O53)/SUM(O52:O53) -> 1573.597637 | O84: =SUM(O52:O53) -> 832.5002357 | Q84: >MS | S84: =SUMPRODUCT(S52:S53,T52:T53)/SUM(T52:T53) -> 2464.352526 | T84: =SUM(T52:T53) -> 4.988702184 | V84: >MS | X84: =SUMPRODUCT(X58:X59,Y58:Y59)/SUM(Y58:Y59) -> 7386.636438 | Y84: =SUM(Y58:Y59) -> 192.989447 | AA84: >MS | AF84: >MS | AH84: =AH56 -> 5766 | AI84: =AI56 -> 152.6931896 | AK84: >MS | AM84: =AM50 -> 5073.28 | AN84: =AN50 -> 28.81530099
B85: OMZET | D85: =SUMPRODUCT(D79:D84,E79:E84) -> 974435.72 | G85: OMZET | I85: =SUMPRODUCT(I79:I84,J79:J84) -> 4770432.218 | L85: OMZET | N85: =SUMPRODUCT(N79:N84,O79:O84) -> 81701911.98 | Q85: OMZET | S85: =SUMPRODUCT(S79:S84,T79:T84) -> 2143762.288 | V85: OMZET | X85: =SUMPRODUCT(X79:X84,Y79:Y84) -> 63512329.72 | AA85: OMZET | AC85: =SUMPRODUCT(AC79:AC84,AD79:AD84) -> 904519.0655 | AF85: OMZET | AH85: =SUMPRODUCT(AH79:AH84,AI79:AI84) -> 39724178.66 | AK85: OMZET | AM85: =SUMPRODUCT(AM79:AM84,AN79:AN84) -> 1619464.89
B87: PAV meerlengte 3-10 MVA | D87: tarief | E87: volume | G87: PAV meerlengte 3-10 MVA | I87: tarief | J87: volume | L87: PAV meerlengte 3-10 MVA | N87: tarief | O87: volume | Q87: PAV meerlengte 3-10 MVA | S87: tarief | T87: volume | V87: PAV meerlengte 3-10 MVA | X87: tarief | Y87: volume | AA87: PAV meerlengte 3-10 MVA | AC87: tarief | AD87: volume | AF87: PAV meerlengte 3-10 MVA | AH87: tarief | AI87: volume | AK87: PAV meerlengte 3-10 MVA | AM87: tarief | AN87: volume
B88: 3-10 MVA | E88: =SUM(E71:E72) -> 0 | G88: 3-10 MVA | I88: =(I72*J72+I71*J71)/(J71+J72) -> 1.47 | J88: =SUM(J71:J72) -> 146306 | L88: 3-10 MVA | N88: =SUMPRODUCT(N71:N72,O71:O72)/SUM(O71:O72) -> 2.189893793 | O88: =SUM(O71:O72) -> 200840.4831 | Q88: 3-10 MVA | S88: =(S72*T72+S71*T71)/(T71+T72) -> 2.86 | T88: =SUM(T71:T72) -> 2834.993333 | V88: 3-10 MVA | X88: =(X72*Y72+X71*Y71)/(Y71+Y72) -> 1.44 | Y88: =SUM(Y71:Y72) -> 766153.7973 | AA88: 3-10 MVA | AC88: =(AC72*AD72+AC71*AD71)/(AD71+AD72) -> 11.45 | AD88: =SUM(AD71:AD72) -> 5615 | AF88: 3-10 MVA | AH88: =(AH72*AI72+AH71*AI71)/(AI71+AI72) -> 5.28 | AI88: =SUM(AI71:AI72) -> 105135.9929 | AK88: 3-10 MVA | AM88: =(AM72*AN72+AM71*AN71)/(AN71+AN72) -> 3.76 | AN88: =SUM(AN71:AN72) -> 2300
B90: OMZET | D90: =D88*E88 -> 0 | G90: OMZET | I90: =I88*J88 -> 215069.82 | L90: OMZET | N90: =N88*O88 -> 439819.3272 | Q90: OMZET | S90: =S88*T88 -> 8108.080933 | V90: OMZET | X90: =X88*Y88 -> 1103261.468 | AA90: OMZET | AC90: =AC88*AD88 -> 64291.75 | AF90: OMZET | AH90: =AH88*AI88 -> 555118.0426 | AK90: OMZET | AM90: =AM88*AN88 -> 8648
A93: NE5R - PAV - Volumes en Tarieven 2006 (alleen volumes worden gebruikt tbv SO 2006)
B95: COGAS | G95: DNWB | L95: ENEXIS | Q95: ENDINET | V95: LIANDER | AA95: RENDO | AF95: STEDIN | AK95: WESTLAND | AP95: MOSA | AU95: ONS
B96: Periodieke aansluitvergoeding | D96: tarief | E96: volume | G96: Periodieke aansluitvergoeding | I96: tarief | J96: volume | L96: Periodieke aansluitvergoeding | N96: tarief | O96: volume | Q96: Periodieke aansluitvergoeding | S96: tarief | T96: volume | V96: Periodieke aansluitvergoeding | X96: tarief | Y96: volume | AC96: tarief | AD96: volume | AF96: Periodieke aansluitvergoeding | AH96: tarief | AI96: volume | AK96: Periodieke aansluitvergoeding | AM96: tarief | AN96: volume | AR96: tarief | AS96: volume | AW96: tarief | AX96: volume
G97: Afnemers HS (110-150 kV) | L97: Afnemers HS (110-150 kV) | Q97: Afnemers MS (1-20 kV) - DISTRIBUTIE | S97: 589.56 | T97: 581.1253609 | V97: Afnemers HS (110-150 kV) | X97: 7332.857143 | Y97: 7 | AA97: Afnemers MS (1-20 kV) - TRANSPORT | AC97: 1229 | AD97: 1 | AF97: Afnemers MS (1-20 kV) - TRANSPORT | AH97: 503.16 | AI97: 1.818507036 | AK97: >3,0 MVA en t/m 10 MVA | AM97: 4868.93 | AN97: 16.85806093 | AP97: Afnemers Trafo HS+TS/MS | AR97: 1981 | AS97: 19 | AU97: Afnemers TS (25-50 kV) | AW97: 1794 | AX97: 1
